Workbook

Sheet Presentation
B2: Pick a player in the Yellow Box
B4: Name
B5: Richard Butland | E5: =INDEX(Pivots!$T$4:$T$78,MATCH(B5,Pivots!$W$4:$W$78,0)) -> RB
C7: =Pivots!D1 -> All From 18/19 Season (19/20) | G7: =Pivots!G3 -> Current Season
C8: Appeara- nces | D8: Total Butler | E8: Relative Butler | F8: Rel/ Match | G8: Total Butler | H8: Rel / Match
B9: =VLOOKUP(Extract!D5,Tables!$B$3:$C$5,2) -> Dawes | C9: =Extract!E5 & IF(C72="",""," (" ) & C72 & IF(C72="","",")") -> 11 (5) | D9: =Extract!F5 -> 102.72 | E9: =Extract!G5 -> -67.8975 | F9: =IF(Extract!E5="","",Extract!G5/Extract!E5) -> -6.1725 | G9: =D72 -> 73.18 | H9: =F72 -> -1.594
B10: =VLOOKUP(Extract!D6,Tables!$B$3:$C$5,2) -> Porter | C10: =Extract!E6 & IF(C73="",""," (" ) & C73 & IF(C73="","",")") ->  | D10: =Extract!F6 ->  | E10: =Extract!G6 ->  | F10: =IF(Extract!E6="","",Extract!G6/Extract!E6) ->  | G10: =D73 ->  | H10: =F73 -> 
B11: =VLOOKUP(Extract!D7,Tables!$B$3:$C$5,2) -> Markham | C11: =Extract!E7 & IF(C74="",""," (" ) & C74 & IF(C74="","",")") ->  | D11: =Extract!F7 ->  | E11: =Extract!G7 ->  | F11: =IF(Extract!E7="","",Extract!G7/Extract!E7) ->  | G11: =D74 ->  | H11: =F74 -> 
B13: Total | C13: =Extract!E9 & IF(C76="",""," (") & C76 & IF(C76="","",")") -> 11 (5) | D13: =SUM(D9:D12) -> 102.72 | E13: =SUM(E9:E12) -> -67.8975 | F13: =E13/Extract!E9 -> -6.1725 | G13: =D76 -> 73.18 | H13: =F76 -> -1.594
B15: Wins | C15: Losses | E15: Draws
B16: =COUNTIF($G$16:$G$50,">0") -> 13 | C16: =COUNTIF($G$16:$G$50,"<0") -> 3 | E16: =COUNTIF($G$16:$G$47,"=0") -> 0
B18: Match | C18: Home / Away | D18: Partner | E18: League | F18: Butler | G18: Match Score | H18: Relative
B19: =IFERROR(VLOOKUP(Extract!J5,Tables!$F$2:$H$40,2),"") -> Warks Sep 17 | C19: =IFERROR(VLOOKUP(Extract!J5,Tables!$F$2:$H$679,3),"") -> A | D19: =IF(Extract!L5=0,"",Extract!L5) -> GW | E19: =IF(ISNA(VLOOKUP(Extract!M5,Tables!$B$3:$C$5,2)),"",VLOOKUP(Extract!M5,Tables!$B$3:$C$5,2)) -> Dawes | F19: =Extract!N5 -> -52 | G19: =Extract!O5 -> -96 | H19: =IF(B19="","",F19-G19/4) -> -28
B20: =IFERROR(VLOOKUP(Extract!J6,Tables!$F$2:$H$40,2),"") -> Worcs Nov 17 | C20: =IFERROR(VLOOKUP(Extract!J6,Tables!$F$2:$H$679,3),"") -> H | D20: =IF(Extract!L6=0,"",Extract!L6) -> GW | E20: =IF(ISNA(VLOOKUP(Extract!M6,Tables!$B$3:$C$5,2)),"",VLOOKUP(Extract!M6,Tables!$B$3:$C$5,2)) -> Dawes | F20: =Extract!N6 -> -13 | G20: =Extract!O6 -> 42 | H20: =IF(B20="","",F20-G20/4) -> -23.5
B21: =IFERROR(VLOOKUP(Extract!J7,Tables!$F$2:$H$40,2),"") -> Notts Feb 18 | C21: =IFERROR(VLOOKUP(Extract!J7,Tables!$F$2:$H$679,3),"") -> A | D21: =IF(Extract!L7=0,"",Extract!L7) -> GW | E21: =IF(ISNA(VLOOKUP(Extract!M7,Tables!$B$3:$C$5,2)),"",VLOOKUP(Extract!M7,Tables!$B$3:$C$5,2)) -> Dawes | F21: =Extract!N7 -> 37 | G21: =Extract!O7 -> 61 | H21: 21.75
B22: =IFERROR(VLOOKUP(Extract!J8,Tables!$F$2:$H$40,2),"") -> Staffs Mar 18 | C22: =IFERROR(VLOOKUP(Extract!J8,Tables!$F$2:$H$679,3),"") -> H | D22: =IF(Extract!L8=0,"",Extract!L8) -> GW | E22: =IF(ISNA(VLOOKUP(Extract!M8,Tables!$B$3:$C$5,2)),"",VLOOKUP(Extract!M8,Tables!$B$3:$C$5,2)) -> Dawes | F22: =Extract!N8 -> 16 | G22: =Extract!O8 -> 76 | H22: -3
B23: =IFERROR(VLOOKUP(Extract!J9,Tables!$F$2:$H$40,2),"") -> Oxf Apr 18 | C23: =IFERROR(VLOOKUP(Extract!J9,Tables!$F$2:$H$679,3),"") -> H | D23: =IF(Extract!L9=0,"",Extract!L9) -> KST | E23: =IF(ISNA(VLOOKUP(Extract!M9,Tables!$B$3:$C$5,2)),"",VLOOKUP(Extract!M9,Tables!$B$3:$C$5,2)) -> Dawes | F23: =Extract!N9 -> -19 | G23: =Extract!O9 -> 71 | H23: -36.75
B24: =IFERROR(VLOOKUP(Extract!J10,Tables!$F$2:$H$40,2),"") -> Lei Sep 18 | C24: =IFERROR(VLOOKUP(Extract!J10,Tables!$F$2:$H$679,3),"") -> A | D24: =IF(Extract!L10=0,"",Extract!L10) -> GW | E24: =IF(ISNA(VLOOKUP(Extract!M10,Tables!$B$3:$C$5,2)),"",VLOOKUP(Extract!M10,Tables!$B$3:$C$5,2)) -> Dawes | F24: =Extract!N10 -> -11 | G24: =Extract!O10 -> -1 | H24: -10.75
B25: =IFERROR(VLOOKUP(Extract!J11,Tables!$F$2:$H$40,2),"") -> Wor Oct 18 | C25: =IFERROR(VLOOKUP(Extract!J11,Tables!$F$2:$H$679,3),"") -> A | D25: =IF(Extract!L11=0,"",Extract!L11) -> GW | E25: =IF(ISNA(VLOOKUP(Extract!M11,Tables!$B$3:$C$5,2)),"",VLOOKUP(Extract!M11,Tables!$B$3:$C$5,2)) -> Dawes | F25: =Extract!N11 -> 9.54 | G25: =Extract!O11 -> 99.87 | H25: -15.4275
B26: =IFERROR(VLOOKUP(Extract!J12,Tables!$F$2:$H$40,2),"") -> Oxf Nov 18 | C26: =IFERROR(VLOOKUP(Extract!J12,Tables!$F$2:$H$679,3),"") -> H | D26: =IF(Extract!L12=0,"",Extract!L12) -> GW | E26: =IF(ISNA(VLOOKUP(Extract!M12,Tables!$B$3:$C$5,2)),"",VLOOKUP(Extract!M12,Tables!$B$3:$C$5,2)) -> Dawes | F26: =Extract!N12 -> 26 | G26: =Extract!O12 -> 69 | H26: 8.75
B27: =IFERROR(VLOOKUP(Extract!J13,Tables!$F$2:$H$40,2),"") -> Notts Jan19 | C27: =IFERROR(VLOOKUP(Extract!J13,Tables!$F$2:$H$679,3),"") -> H | D27: =IF(Extract!L13=0,"",Extract!L13) -> GW | E27: =IF(ISNA(VLOOKUP(Extract!M13,Tables!$B$3:$C$5,2)),"",VLOOKUP(Extract!M13,Tables!$B$3:$C$5,2)) -> Dawes | F27: =Extract!N13 -> 20 | G27: =Extract!O13 -> 121 | H27: -10.25
B28: =IFERROR(VLOOKUP(Extract!J14,Tables!$F$2:$H$40,2),"") -> Staffs Feb 19 | C28: =IFERROR(VLOOKUP(Extract!J14,Tables!$F$2:$H$679,3),"") -> A | D28: =IF(Extract!L14=0,"",Extract!L14) -> GW | E28: =IF(ISNA(VLOOKUP(Extract!M14,Tables!$B$3:$C$5,2)),"",VLOOKUP(Extract!M14,Tables!$B$3:$C$5,2)) -> Dawes | F28: =Extract!N14 -> 2 | G28: =Extract!O14 -> 57 | H28: -12.25
B29: =IFERROR(VLOOKUP(Extract!J15,Tables!$F$2:$H$40,2),"") -> Warks Apr 19 | C29: =IFERROR(VLOOKUP(Extract!J15,Tables!$F$2:$H$679,3),"") -> H | D29: =IF(Extract!L15=0,"",Extract!L15) -> GW | E29: =IF(ISNA(VLOOKUP(Extract!M15,Tables!$B$3:$C$5,2)),"",VLOOKUP(Extract!M15,Tables!$B$3:$C$5,2)) -> Dawes | F29: =Extract!N15 -> -17 | G29: =Extract!O15 -> 12 | H29: -20
B30: =IFERROR(VLOOKUP(Extract!J16,Tables!$F$2:$H$40,2),"") -> Worcs Sep 19 | C30: =IFERROR(VLOOKUP(Extract!J16,Tables!$F$2:$H$679,3),"") -> H | D30: =IF(Extract!L16=0,"",Extract!L16) -> GW | E30: =IF(ISNA(VLOOKUP(Extract!M16,Tables!$B$3:$C$5,2)),"",VLOOKUP(Extract!M16,Tables!$B$3:$C$5,2)) -> Dawes | F30: =Extract!N16 -> 31 | G30: =Extract!O16 -> 191 | H30: -16.75
B31: =IFERROR(VLOOKUP(Extract!J17,Tables!$F$2:$H$40,2),"") -> Oxford Oct 19 | C31: =IFERROR(VLOOKUP(Extract!J17,Tables!$F$2:$H$679,3),"") -> A | D31: =IF(Extract!L17=0,"",Extract!L17) -> KST | E31: =IF(ISNA(VLOOKUP(Extract!M17,Tables!$B$3:$C$5,2)),"",VLOOKUP(Extract!M17,Tables!$B$3:$C$5,2)) -> Dawes | F31: =Extract!N17 -> 22 | G31: =Extract!O17 -> 1 | H31: 21.75
B32: =IFERROR(VLOOKUP(Extract!J18,Tables!$F$2:$H$40,2),"") -> Derby Nov 19 | C32: =IFERROR(VLOOKUP(Extract!J18,Tables!$F$2:$H$679,3),"") -> H | D32: =IF(Extract!L18=0,"",Extract!L18) -> AKM | E32: =IF(ISNA(VLOOKUP(Extract!M18,Tables!$B$3:$C$5,2)),"",VLOOKUP(Extract!M18,Tables!$B$3:$C$5,2)) -> Dawes | F32: =Extract!N18 -> -10 | G32: =Extract!O18 -> 46 | H32: -21.5
B33: =IFERROR(VLOOKUP(Extract!J19,Tables!$F$2:$H$40,2),"") -> Notts Dec 19 | C33: =IFERROR(VLOOKUP(Extract!J19,Tables!$F$2:$H$679,3),"") -> A | D33: =IF(Extract!L19=0,"",Extract!L19) -> GW | E33: =IF(ISNA(VLOOKUP(Extract!M19,Tables!$B$3:$C$5,2)),"",VLOOKUP(Extract!M19,Tables!$B$3:$C$5,2)) -> Dawes | F33: =Extract!N19 -> 26 | G33: =Extract!O19 -> -3 | H33: 26.75
B34: =IFERROR(VLOOKUP(Extract!J20,Tables!$F$2:$H$40,2),"") -> Warks Feb 20 | C34: =IFERROR(VLOOKUP(Extract!J20,Tables!$F$2:$H$679,3),"") -> A | D34: =IF(Extract!L20=0,"",Extract!L20) -> GW | E34: =IF(ISNA(VLOOKUP(Extract!M20,Tables!$B$3:$C$5,2)),"",VLOOKUP(Extract!M20,Tables!$B$3:$C$5,2)) -> Dawes | F34: =Extract!N20 -> 4.18 | G34: =Extract!O20 -> 89.6 | H34: -18.22
B35: =IFERROR(VLOOKUP(Extract!J21,Tables!$F$2:$H$40,2),"") ->  | C35: =IFERROR(VLOOKUP(Extract!J21,Tables!$F$2:$H$679,3),"") ->  | D35: =IF(Extract!L21=0,"",Extract!L21) ->  | E35: =IF(ISNA(VLOOKUP(Extract!M21,Tables!$B$3:$C$5,2)),"",VLOOKUP(Extract!M21,Tables!$B$3:$C$5,2)) ->  | F35: =Extract!N21 ->  | G35: =Extract!O21 -> 
B36: =IFERROR(VLOOKUP(Extract!J22,Tables!$F$2:$H$40,2),"") ->  | C36: =IFERROR(VLOOKUP(Extract!J22,Tables!$F$2:$H$679,3),"") ->  | D36: =IF(Extract!L22=0,"",Extract!L22) ->  | E36: =IF(ISNA(VLOOKUP(Extract!M22,Tables!$B$3:$C$5,2)),"",VLOOKUP(Extract!M22,Tables!$B$3:$C$5,2)) ->  | F36: =Extract!N22 ->  | G36: =Extract!O22 -> 
B37: =IFERROR(VLOOKUP(Extract!J23,Tables!$F$2:$H$40,2),"") ->  | C37: =IFERROR(VLOOKUP(Extract!J23,Tables!$F$2:$H$679,3),"") ->  | D37: =IF(Extract!L23=0,"",Extract!L23) ->  | E37: =IF(ISNA(VLOOKUP(Extract!M23,Tables!$B$3:$C$5,2)),"",VLOOKUP(Extract!M23,Tables!$B$3:$C$5,2)) ->  | F37: =Extract!N23 ->  | G37: =Extract!O23 -> 
B38: =IFERROR(VLOOKUP(Extract!J24,Tables!$F$2:$H$40,2),"") ->  | C38: =IFERROR(VLOOKUP(Extract!J24,Tables!$F$2:$H$679,3),"") ->  | D38: =IF(Extract!L24=0,"",Extract!L24) ->  | E38: =IF(ISNA(VLOOKUP(Extract!M24,Tables!$B$3:$C$5,2)),"",VLOOKUP(Extract!M24,Tables!$B$3:$C$5,2)) ->  | F38: =Extract!N24 ->  | G38: =Extract!O24 -> 
B39: =IFERROR(VLOOKUP(Extract!J25,Tables!$F$2:$H$40,2),"") ->  | C39: =IFERROR(VLOOKUP(Extract!J25,Tables!$F$2:$H$679,3),"") ->  | D39: =IF(Extract!L25=0,"",Extract!L25) ->  | E39: =IF(ISNA(VLOOKUP(Extract!M25,Tables!$B$3:$C$5,2)),"",VLOOKUP(Extract!M25,Tables!$B$3:$C$5,2)) ->  | F39: =Extract!N25 ->  | G39: =Extract!O25 -> 
B40: =IFERROR(VLOOKUP(Extract!J26,Tables!$F$2:$H$40,2),"") ->  | C40: =IFERROR(VLOOKUP(Extract!J26,Tables!$F$2:$H$679,3),"") ->  | D40: =IF(Extract!L26=0,"",Extract!L26) ->  | E40: =IF(ISNA(VLOOKUP(Extract!M26,Tables!$B$3:$C$5,2)),"",VLOOKUP(Extract!M26,Tables!$B$3:$C$5,2)) ->  | F40: =Extract!N26 ->  | G40: =Extract!O26 -> 
B41: =IFERROR(VLOOKUP(Extract!J27,Tables!$F$2:$H$40,2),"") ->  | C41: =IFERROR(VLOOKUP(Extract!J27,Tables!$F$2:$H$679,3),"") ->  | D41: =IF(Extract!L27=0,"",Extract!L27) ->  | E41: =IF(ISNA(VLOOKUP(Extract!M27,Tables!$B$3:$C$5,2)),"",VLOOKUP(Extract!M27,Tables!$B$3:$C$5,2)) ->  | F41: =Extract!N27 ->  | G41: =Extract!O27 -> 
B42: =IFERROR(VLOOKUP(Extract!J28,Tables!$F$2:$H$40,2),"") ->  | C42: =IFERROR(VLOOKUP(Extract!J28,Tables!$F$2:$H$679,3),"") ->  | D42: =IF(Extract!L28=0,"",Extract!L28) ->  | E42: =IF(ISNA(VLOOKUP(Extract!M28,Tables!$B$3:$C$5,2)),"",VLOOKUP(Extract!M28,Tables!$B$3:$C$5,2)) ->  | F42: =Extract!N28 ->  | G42: =Extract!O28 -> 
B43: =IFERROR(VLOOKUP(Extract!J29,Tables!$F$2:$H$40,2),"") ->  | C43: =IFERROR(VLOOKUP(Extract!J29,Tables!$F$2:$H$679,3),"") ->  | D43: =IF(Extract!L29=0,"",Extract!L29) ->  | E43: =IF(ISNA(VLOOKUP(Extract!M29,Tables!$B$3:$C$5,2)),"",VLOOKUP(Extract!M29,Tables!$B$3:$C$5,2)) ->  | F43: =Extract!N29 ->  | G43: =Extract!O29 -> 
B44: =IFERROR(VLOOKUP(Extract!J30,Tables!$F$2:$H$40,2),"") ->  | C44: =IFERROR(VLOOKUP(Extract!J30,Tables!$F$2:$H$679,3),"") ->  | D44: =IF(Extract!L30=0,"",Extract!L30) ->  | E44: =IF(ISNA(VLOOKUP(Extract!M30,Tables!$B$3:$C$5,2)),"",VLOOKUP(Extract!M30,Tables!$B$3:$C$5,2)) ->  | F44: =Extract!N30 ->  | G44: =Extract!O30 -> 
B45: =IFERROR(VLOOKUP(Extract!J31,Tables!$F$2:$H$40,2),"") ->  | C45: =IFERROR(VLOOKUP(Extract!J31,Tables!$F$2:$H$679,3),"") ->  | D45: =IF(Extract!L31=0,"",Extract!L31) ->  | E45: =IF(ISNA(VLOOKUP(Extract!M31,Tables!$B$3:$C$5,2)),"",VLOOKUP(Extract!M31,Tables!$B$3:$C$5,2)) ->  | F45: =Extract!N31 ->  | G45: =Extract!O31 -> 
B46: =IFERROR(VLOOKUP(Extract!J32,Tables!$F$2:$H$40,2),"") ->  | C46: =IFERROR(VLOOKUP(Extract!J32,Tables!$F$2:$H$679,3),"") ->  | D46: =IF(Extract!L32=0,"",Extract!L32) ->  | E46: =IF(ISNA(VLOOKUP(Extract!M32,Tables!$B$3:$C$5,2)),"",VLOOKUP(Extract!M32,Tables!$B$3:$C$5,2)) ->  | F46: =Extract!N32 ->  | G46: =Extract!O32 -> 
B47: =IFERROR(VLOOKUP(Extract!J33,Tables!$F$2:$H$40,2),"") ->  | C47: =IFERROR(VLOOKUP(Extract!J33,Tables!$F$2:$H$679,3),"") ->  | D47: =IF(Extract!L33=0,"",Extract!L33) ->  | E47: =IF(ISNA(VLOOKUP(Extract!M33,Tables!$B$3:$C$5,2)),"",VLOOKUP(Extract!M33,Tables!$B$3:$C$5,2)) ->  | F47: =Extract!N33 ->  | G47: =Extract!O33 -> 
B48: =IFERROR(VLOOKUP(Extract!J34,Tables!$F$2:$H$40,2),"") ->  | C48: =IFERROR(VLOOKUP(Extract!J34,Tables!$F$2:$H$679,3),"") ->  | D48: =IF(Extract!L34=0,"",Extract!L34) ->  | E48: =IF(ISNA(VLOOKUP(Extract!M34,Tables!$B$3:$C$5,2)),"",VLOOKUP(Extract!M34,Tables!$B$3:$C$5,2)) ->  | F48: =Extract!N34 ->  | G48: =Extract!O34 -> 
B49: =IFERROR(VLOOKUP(Extract!J35,Tables!$F$2:$H$40,2),"") ->  | C49: =IFERROR(VLOOKUP(Extract!J35,Tables!$F$2:$H$679,3),"") ->  | D49: =IF(Extract!L35=0,"",Extract!L35) ->  | E49: =IF(ISNA(VLOOKUP(Extract!M35,Tables!$B$3:$C$5,2)),"",VLOOKUP(Extract!M35,Tables!$B$3:$C$5,2)) ->  | F49: =Extract!N35 ->  | G49: =Extract!O35 -> 
B50: =IFERROR(VLOOKUP(Extract!J36,Tables!$F$2:$H$40,2),"") ->  | C50: =IFERROR(VLOOKUP(Extract!J36,Tables!$F$2:$H$679,3),"") ->  | D50: =IF(Extract!L36=0,"",Extract!L36) ->  | E50: =IF(ISNA(VLOOKUP(Extract!M36,Tables!$B$3:$C$5,2)),"",VLOOKUP(Extract!M36,Tables!$B$3:$C$5,2)) ->  | F50: =Extract!N36 ->  | G50: =Extract!O36 -> 
B51: =DCOUNT(B18:F50,5,Tables!$J$2:$J$3) -> 8 | C51: =DCOUNT(C18:G50,5,Tables!$K$2:$K$3) -> 8 | F51: =SUM(F19:F50) -> 71.72 | G51: =SUM(G19:G50) -> 836.47 | H51: =IFERROR(F51-G51/4,"") -> -137.3975
H52: =IF(H51=SUM(H19:H50),"","error") -> 
D54: Partner | E54: Matches | F54: Butlers | G54: Relative | H54: Rel/Match
D55: =IF(ISBLANK(Pivots!AQ7),"",Pivots!AQ7) -> AKM | E55: =IF(Pivots!AR7=0,"",Pivots!AR7) -> 1 | F55: =IF(Pivots!AS7=0,"",Pivots!AS7) -> -10 | G55: =IF(Pivots!AT7=0,"",Pivots!AT7) -> -21.5 | H55: =IFERROR(G55/E55,"") -> -21.5
D56: =IF(ISBLANK(Pivots!AQ8),"",Pivots!AQ8) -> GW | E56: =IF(Pivots!AR8=0,"",Pivots!AR8) -> 13 | F56: =IF(Pivots!AS8=0,"",Pivots!AS8) -> 78.72 | G56: =IF(Pivots!AT8=0,"",Pivots!AT8) -> -100.8975 | H56: =IFERROR(G56/E56,"") -> -7.761346154
D57: =IF(ISBLANK(Pivots!AQ9),"",Pivots!AQ9) -> KST | E57: =IF(Pivots!AR9=0,"",Pivots!AR9) -> 2 | F57: =IF(Pivots!AS9=0,"",Pivots!AS9) -> 3 | G57: =IF(Pivots!AT9=0,"",Pivots!AT9) -> -15 | H57: -7.5
D58: =IF(ISBLANK(Pivots!AQ10),"",Pivots!AQ10) ->  | E58: =IF(Pivots!AR10=0,"",Pivots!AR10) ->  | F58: =IF(Pivots!AS10=0,"",Pivots!AS10) ->  | G58: =IF(Pivots!AT10=0,"",Pivots!AT10) -> 
D59: =IF(ISBLANK(Pivots!AQ11),"",Pivots!AQ11) ->  | E59: =IF(Pivots!AR11=0,"",Pivots!AR11) ->  | F59: =IF(Pivots!AS11=0,"",Pivots!AS11) ->  | G59: =IF(Pivots!AT11=0,"",Pivots!AT11) -> 
D60: =IF(ISBLANK(Pivots!AQ12),"",Pivots!AQ12) ->  | E60: =IF(Pivots!AR12=0,"",Pivots!AR12) ->  | F60: =IF(Pivots!AS12=0,"",Pivots!AS12) ->  | G60: =IF(Pivots!AT12=0,"",Pivots!AT12) -> 
D61: =IF(ISBLANK(Pivots!AQ13),"",Pivots!AQ13) ->  | E61: =IF(Pivots!AR13=0,"",Pivots!AR13) ->  | F61: =IF(Pivots!AS13=0,"",Pivots!AS13) ->  | G61: =IF(Pivots!AT13=0,"",Pivots!AT13) -> 
D62: =IF(ISBLANK(Pivots!AQ14),"",Pivots!AQ14) ->  | E62: =IF(Pivots!AR14=0,"",Pivots!AR14) ->  | F62: =IF(Pivots!AS14=0,"",Pivots!AS14) ->  | G62: =IF(Pivots!AT14=0,"",Pivots!AT14) -> 
D63: =IF(ISBLANK(Pivots!AQ15),"",Pivots!AQ15) ->  | E63: =IF(Pivots!AR15=0,"",Pivots!AR15) ->  | F63: =IF(Pivots!AS15=0,"",Pivots!AS15) ->  | G63: =IF(Pivots!AT15=0,"",Pivots!AT15) -> 
D64: =IF(ISBLANK(Pivots!AQ16),"",Pivots!AQ16) ->  | E64: =IF(Pivots!AR16=0,"",Pivots!AR16) ->  | F64: =IF(Pivots!AS16=0,"",Pivots!AS16) ->  | G64: =IF(Pivots!AT16=0,"",Pivots!AT16) -> 
D65: =IF(ISBLANK(Pivots!AQ17),"",Pivots!AQ17) ->  | E65: =IF(Pivots!AR17=0,"",Pivots!AR17) ->  | F65: =IF(Pivots!AS17=0,"",Pivots!AS17) ->  | G65: =IF(Pivots!AT17=0,"",Pivots!AT17) -> 
D66: =IF(ISBLANK(Pivots!AQ18),"",Pivots!AQ18) ->  | E66: =IF(Pivots!AR18=0,"",Pivots!AR18) ->  | F66: =IF(Pivots!AS18=0,"",Pivots!AS18) ->  | G66: =IF(Pivots!AT18=0,"",Pivots!AT18) -> 
D67: Total | E67: =SUM(E55:E66) -> 16 | F67: =SUM(F55:F66) -> 71.72 | G67: =SUM(G55:G66) -> -137.3975 | H67: -8.58734375
C70: =Pivots!G3 -> Current Season
C71: Appearances | D71: Total Butler | E71: Relative Butler | F71: Rel/ Match
B72: =B9 -> Dawes | C72: =Extract!E14 -> 5 | D72: =Extract!F14 -> 73.18 | E72: =Extract!G14 -> -7.97 | F72: =IF(E72="","",E72/C72) -> -1.594
B73: =B10 -> Porter | C73: =Extract!E15 ->  | D73: =Extract!F15 ->  | E73: =Extract!G15 ->  | F73: =IF(E73="","",E73/C73) -> 
B74: =B11 -> Markham | C74: =Extract!E16 ->  | D74: =Extract!F16 ->  | E74: =Extract!G16 -> 
B76: Total | C76: =SUM(C72:C75) -> 5 | D76: =SUM(D72:D75) -> 73.18 | E76: =SUM(E72:E75) -> -7.97 | F76: =IF(C76=0,"",E76/C76) -> -1.594

Sheet Summary
B2: Dawes | C2: Appearances | D2: Relative Score per match | I2: Porter | J2: Appearances | K2: Relative Score per match | P2: Markham | Q2: Appearances | R2: Relative Score per match
B3: Player | D3: Overall | E3: Dawes | F3: Porter | G3: Markham | I3: Player | J3: Appearances | K3: Overall | L3: Dawes | M3: Porter | N3: Markham | P3: Player | Q3: Appearances | R3: Overall | S3: Dawes | T3: Porter | U3: Markham
A4: 1 | B4: =IF(ISNA(VLOOKUP($A4,Extract!$AC$4:$AJ$42,2,0)),"",VLOOKUP(VLOOKUP($A4,Extract!$AC$4:$AJ$42,2,0),Players!$A$2:$B$91,2)) -> Patrick Shields | C4: =IF(ISNA(VLOOKUP($A4,Extract!$AC$4:$AJ$42,2,0)),"",VLOOKUP($A4,Extract!$AC$4:$AJ$42,3,0)) -> 10D | D4: =IF(ISNA(VLOOKUP($A4,Extract!$AC$4:$AJ$42,2,0)),"",VLOOKUP($A4,Extract!$AC$4:$AJ$42,4,0)) -> 15.86725 | E4: =IF(ISNA(VLOOKUP($A4,Extract!$AC$4:$AJ$42,2,0)),"",VLOOKUP($A4,Extract!$AC$4:$AJ$42,5,0)) -> 15.86725 | F4: =IF(ISNA(VLOOKUP($A4,Extract!$AC$4:$AJ$42,2,0)),"",VLOOKUP($A4,Extract!$AC$4:$AJ$42,6,0)) ->  | G4: =IF(ISNA(VLOOKUP($A4,Extract!$AC$4:$AJ$42,2,0)),"",VLOOKUP($A4,Extract!$AC$4:$AJ$42,7,0)) ->  | I4: =IF(ISNA(VLOOKUP($A4,Extract!$AL$4:$AS$40,2,0)),"",VLOOKUP(VLOOKUP($A4,Extract!$AL$4:$AS$40,2,0),Players!$A$2:$B$95,2)) -> Patrick Phair | J4: =IF(ISNA(VLOOKUP($A4,Extract!$AL$4:$AS$42,2,0)),"",VLOOKUP($A4,Extract!$AL$4:$AS$42,3,0)) -> 8P1M | K4: =IF(ISNA(VLOOKUP($A4,Extract!$AL$4:$AS$42,2,0)),"",VLOOKUP($A4,Extract!$AL$4:$AS$42,4,0)) -> 9.319722222 | L4: =IF(ISNA(VLOOKUP($A4,Extract!$AL$4:$AS$42,2,0)),"",VLOOKUP($A4,Extract!$AL$4:$AS$42,5,0)) ->  | M4: =IF(ISNA(VLOOKUP($A4,Extract!$AL$4:$AS$42,2,0)),"",VLOOKUP($A4,Extract!$AL$4:$AS$42,6,0)) -> 10.1096875 | N4: =IF(ISNA(VLOOKUP($A4,Extract!$AL$4:$AS$42,2,0)),"",VLOOKUP($A4,Extract!$AL$4:$AS$42,7,0)) -> 3 | P4: =IF(ISNA(VLOOKUP($A4,Extract!$AU$4:$BB$40,2,0)),"",VLOOKUP(VLOOKUP($A4,Extract!$AU$4:$BB$40,2,0),Players!$A$2:$B$95,2)) -> Ben Ritacca | Q4: =IF(ISNA(VLOOKUP($A4,Extract!$AU$4:$BA$42,2,0)),"",VLOOKUP($A4,Extract!$AU$4:$BA$42,3,0)) -> 2P3M | R4: =IF(ISNA(VLOOKUP($A4,Extract!$AU$4:$BA$42,2,0)),"",VLOOKUP($A4,Extract!$AU$4:$BA$42,4,0)) -> 22.215 | S4: =IF(ISNA(VLOOKUP($A4,Extract!$AU$4:$BA$42,2,0)),"",VLOOKUP($A4,Extract!$AU$4:$BA$42,5,0)) ->  | T4: =IF(ISNA(VLOOKUP($A4,Extract!$AU$4:$BA$42,2,0)),"",VLOOKUP($A4,Extract!$AU$4:$BA$42,6,0)) -> 3.5375 | U4: =IF(ISNA(VLOOKUP($A4,Extract!$AU$4:$BA$42,2,0)),"",VLOOKUP($A4,Extract!$AU$4:$BA$42,7,0)) -> 34.66666667
A5: =A4+1 -> 2 | B5: =IF(ISNA(VLOOKUP($A5,Extract!$AC$4:$AJ$42,2,0)),"",VLOOKUP(VLOOKUP($A5,Extract!$AC$4:$AJ$42,2,0),Players!$A$2:$B$91,2)) -> Richard Chamberlain | C5: =IF(ISNA(VLOOKUP($A5,Extract!$AC$4:$AJ$42,2,0)),"",VLOOKUP($A5,Extract!$AC$4:$AJ$42,3,0)) -> 10D | D5: =IF(ISNA(VLOOKUP($A5,Extract!$AC$4:$AJ$42,2,0)),"",VLOOKUP($A5,Extract!$AC$4:$AJ$42,4,0)) -> 10.81725 | E5: =IF(ISNA(VLOOKUP($A5,Extract!$AC$4:$AJ$42,2,0)),"",VLOOKUP($A5,Extract!$AC$4:$AJ$42,5,0)) -> 10.81725 | F5: =IF(ISNA(VLOOKUP($A5,Extract!$AC$4:$AJ$42,2,0)),"",VLOOKUP($A5,Extract!$AC$4:$AJ$42,6,0)) ->  | G5: =IF(ISNA(VLOOKUP($A5,Extract!$AC$4:$AJ$42,2,0)),"",VLOOKUP($A5,Extract!$AC$4:$AJ$42,7,0)) ->  | I5: =IF(ISNA(VLOOKUP($A5,Extract!$AL$4:$AS$40,2,0)),"",VLOOKUP(VLOOKUP($A5,Extract!$AL$4:$AS$40,2,0),Players!$A$2:$B$95,2)) -> Peter Swales | J5: =IF(ISNA(VLOOKUP($A5,Extract!$AL$4:$AS$42,2,0)),"",VLOOKUP($A5,Extract!$AL$4:$AS$42,3,0)) -> 6P3M | K5: =IF(ISNA(VLOOKUP($A5,Extract!$AL$4:$AS$42,2,0)),"",VLOOKUP($A5,Extract!$AL$4:$AS$42,4,0)) -> 10.96611111 | L5: =IF(ISNA(VLOOKUP($A5,Extract!$AL$4:$AS$42,2,0)),"",VLOOKUP($A5,Extract!$AL$4:$AS$42,5,0)) ->  | M5: =IF(ISNA(VLOOKUP($A5,Extract!$AL$4:$AS$42,2,0)),"",VLOOKUP($A5,Extract!$AL$4:$AS$42,6,0)) -> 9.949166667 | N5: =IF(ISNA(VLOOKUP($A5,Extract!$AL$4:$AS$42,2,0)),"",VLOOKUP($A5,Extract!$AL$4:$AS$42,7,0)) -> 13 | P5: =IF(ISNA(VLOOKUP($A5,Extract!$AU$4:$BB$40,2,0)),"",VLOOKUP(VLOOKUP($A5,Extract!$AU$4:$BB$40,2,0),Players!$A$2:$B$95,2)) -> Richard Harris | Q5: =IF(ISNA(VLOOKUP($A5,Extract!$AU$4:$BA$42,2,0)),"",VLOOKUP($A5,Extract!$AU$4:$BA$42,3,0)) -> 4P5M | R5: =IF(ISNA(VLOOKUP($A5,Extract!$AU$4:$BA$42,2,0)),"",VLOOKUP($A5,Extract!$AU$4:$BA$42,4,0)) -> 15.40305556 | S5: =IF(ISNA(VLOOKUP($A5,Extract!$AU$4:$BA$42,2,0)),"",VLOOKUP($A5,Extract!$AU$4:$BA$42,5,0)) ->  | T5: =IF(ISNA(VLOOKUP($A5,Extract!$AU$4:$BA$42,2,0)),"",VLOOKUP($A5,Extract!$AU$4:$BA$42,6,0)) -> 4.70625 | U5: =IF(ISNA(VLOOKUP($A5,Extract!$AU$4:$BA$42,2,0)),"",VLOOKUP($A5,Extract!$AU$4:$BA$42,7,0)) -> 23.9605
A6: =A5+1 -> 3 | B6: =IF(ISNA(VLOOKUP($A6,Extract!$AC$4:$AJ$42,2,0)),"",VLOOKUP(VLOOKUP($A6,Extract!$AC$4:$AJ$42,2,0),Players!$A$2:$B$91,2)) -> John Atthey | C6: =IF(ISNA(VLOOKUP($A6,Extract!$AC$4:$AJ$42,2,0)),"",VLOOKUP($A6,Extract!$AC$4:$AJ$42,3,0)) -> 4D | D6: =IF(ISNA(VLOOKUP($A6,Extract!$AC$4:$AJ$42,2,0)),"",VLOOKUP($A6,Extract!$AC$4:$AJ$42,4,0)) -> 9.275625 | E6: =IF(ISNA(VLOOKUP($A6,Extract!$AC$4:$AJ$42,2,0)),"",VLOOKUP($A6,Extract!$AC$4:$AJ$42,5,0)) -> 9.275625 | F6: =IF(ISNA(VLOOKUP($A6,Extract!$AC$4:$AJ$42,2,0)),"",VLOOKUP($A6,Extract!$AC$4:$AJ$42,6,0)) ->  | G6: =IF(ISNA(VLOOKUP($A6,Extract!$AC$4:$AJ$42,2,0)),"",VLOOKUP($A6,Extract!$AC$4:$AJ$42,7,0)) ->  | I6: =IF(ISNA(VLOOKUP($A6,Extract!$AL$4:$AS$40,2,0)),"",VLOOKUP(VLOOKUP($A6,Extract!$AL$4:$AS$40,2,0),Players!$A$2:$B$95,2)) -> Paul Lilley | J6: =IF(ISNA(VLOOKUP($A6,Extract!$AL$4:$AS$42,2,0)),"",VLOOKUP($A6,Extract!$AL$4:$AS$42,3,0)) -> 6P3M | K6: =IF(ISNA(VLOOKUP($A6,Extract!$AL$4:$AS$42,2,0)),"",VLOOKUP($A6,Extract!$AL$4:$AS$42,4,0)) -> 10.96611111 | L6: =IF(ISNA(VLOOKUP($A6,Extract!$AL$4:$AS$42,2,0)),"",VLOOKUP($A6,Extract!$AL$4:$AS$42,5,0)) ->  | M6: =IF(ISNA(VLOOKUP($A6,Extract!$AL$4:$AS$42,2,0)),"",VLOOKUP($A6,Extract!$AL$4:$AS$42,6,0)) -> 9.949166667 | N6: =IF(ISNA(VLOOKUP($A6,Extract!$AL$4:$AS$42,2,0)),"",VLOOKUP($A6,Extract!$AL$4:$AS$42,7,0)) -> 13 | P6: =IF(ISNA(VLOOKUP($A6,Extract!$AU$4:$BB$40,2,0)),"",VLOOKUP(VLOOKUP($A6,Extract!$AU$4:$BB$40,2,0),Players!$A$2:$B$95,2)) -> Tony Letts | Q6: =IF(ISNA(VLOOKUP($A6,Extract!$AU$4:$BA$42,2,0)),"",VLOOKUP($A6,Extract!$AU$4:$BA$42,3,0)) -> 4P5M | R6: =IF(ISNA(VLOOKUP($A6,Extract!$AU$4:$BA$42,2,0)),"",VLOOKUP($A6,Extract!$AU$4:$BA$42,4,0)) -> 8.8225 | S6: =IF(ISNA(VLOOKUP($A6,Extract!$AU$4:$BA$42,2,0)),"",VLOOKUP($A6,Extract!$AU$4:$BA$42,5,0)) ->  | T6: =IF(ISNA(VLOOKUP($A6,Extract!$AU$4:$BA$42,2,0)),"",VLOOKUP($A6,Extract!$AU$4:$BA$42,6,0)) -> 4.5 | U6: =IF(ISNA(VLOOKUP($A6,Extract!$AU$4:$BA$42,2,0)),"",VLOOKUP($A6,Extract!$AU$4:$BA$42,7,0)) -> 12.2805
A7: 4 | B7: =IF(ISNA(VLOOKUP($A7,Extract!$AC$4:$AJ$42,2,0)),"",VLOOKUP(VLOOKUP($A7,Extract!$AC$4:$AJ$42,2,0),Players!$A$2:$B$91,2)) -> Claire Robinson | C7: =IF(ISNA(VLOOKUP($A7,Extract!$AC$4:$AJ$42,2,0)),"",VLOOKUP($A7,Extract!$AC$4:$AJ$42,3,0)) -> 4D | D7: =IF(ISNA(VLOOKUP($A7,Extract!$AC$4:$AJ$42,2,0)),"",VLOOKUP($A7,Extract!$AC$4:$AJ$42,4,0)) -> 9.275625 | E7: =IF(ISNA(VLOOKUP($A7,Extract!$AC$4:$AJ$42,2,0)),"",VLOOKUP($A7,Extract!$AC$4:$AJ$42,5,0)) -> 9.275625 | F7: =IF(ISNA(VLOOKUP($A7,Extract!$AC$4:$AJ$42,2,0)),"",VLOOKUP($A7,Extract!$AC$4:$AJ$42,6,0)) ->  | G7: =IF(ISNA(VLOOKUP($A7,Extract!$AC$4:$AJ$42,2,0)),"",VLOOKUP($A7,Extract!$AC$4:$AJ$42,7,0)) ->  | I7: =IF(ISNA(VLOOKUP($A7,Extract!$AL$4:$AS$40,2,0)),"",VLOOKUP(VLOOKUP($A7,Extract!$AL$4:$AS$40,2,0),Players!$A$2:$B$95,2)) -> Jim Simons | J7: =IF(ISNA(VLOOKUP($A7,Extract!$AL$4:$AS$42,2,0)),"",VLOOKUP($A7,Extract!$AL$4:$AS$42,3,0)) -> 7P5M | K7: =IF(ISNA(VLOOKUP($A7,Extract!$AL$4:$AS$42,2,0)),"",VLOOKUP($A7,Extract!$AL$4:$AS$42,4,0)) -> 0.3741666667 | L7: =IF(ISNA(VLOOKUP($A7,Extract!$AL$4:$AS$42,2,0)),"",VLOOKUP($A7,Extract!$AL$4:$AS$42,5,0)) ->  | M7: =IF(ISNA(VLOOKUP($A7,Extract!$AL$4:$AS$42,2,0)),"",VLOOKUP($A7,Extract!$AL$4:$AS$42,6,0)) -> 4.5375 | N7: =IF(ISNA(VLOOKUP($A7,Extract!$AL$4:$AS$42,2,0)),"",VLOOKUP($A7,Extract!$AL$4:$AS$42,7,0)) -> -5.4545 | P7: =IF(ISNA(VLOOKUP($A7,Extract!$AU$4:$BB$40,2,0)),"",VLOOKUP(VLOOKUP($A7,Extract!$AU$4:$BB$40,2,0),Players!$A$2:$B$95,2)) -> Roger Schofield | Q7: =IF(ISNA(VLOOKUP($A7,Extract!$AU$4:$BA$42,2,0)),"",VLOOKUP($A7,Extract!$AU$4:$BA$42,3,0)) -> 4P5M | R7: =IF(ISNA(VLOOKUP($A7,Extract!$AU$4:$BA$42,2,0)),"",VLOOKUP($A7,Extract!$AU$4:$BA$42,4,0)) -> 8.8225 | S7: =IF(ISNA(VLOOKUP($A7,Extract!$AU$4:$BA$42,2,0)),"",VLOOKUP($A7,Extract!$AU$4:$BA$42,5,0)) ->  | T7: =IF(ISNA(VLOOKUP($A7,Extract!$AU$4:$BA$42,2,0)),"",VLOOKUP($A7,Extract!$AU$4:$BA$42,6,0)) -> 4.5 | U7: =IF(ISNA(VLOOKUP($A7,Extract!$AU$4:$BA$42,2,0)),"",VLOOKUP($A7,Extract!$AU$4:$BA$42,7,0)) -> 12.2805
A8: 5 | B8: =IF(ISNA(VLOOKUP($A8,Extract!$AC$4:$AJ$42,2,0)),"",VLOOKUP(VLOOKUP($A8,Extract!$AC$4:$AJ$42,2,0),Players!$A$2:$B$91,2)) -> Paul Denning | C8: =IF(ISNA(VLOOKUP($A8,Extract!$AC$4:$AJ$42,2,0)),"",VLOOKUP($A8,Extract!$AC$4:$AJ$42,3,0)) -> 12D | D8: =IF(ISNA(VLOOKUP($A8,Extract!$AC$4:$AJ$42,2,0)),"",VLOOKUP($A8,Extract!$AC$4:$AJ$42,4,0)) -> 8.199375 | E8: =IF(ISNA(VLOOKUP($A8,Extract!$AC$4:$AJ$42,2,0)),"",VLOOKUP($A8,Extract!$AC$4:$AJ$42,5,0)) -> 8.199375 | F8: =IF(ISNA(VLOOKUP($A8,Extract!$AC$4:$AJ$42,2,0)),"",VLOOKUP($A8,Extract!$AC$4:$AJ$42,6,0)) ->  | G8: =IF(ISNA(VLOOKUP($A8,Extract!$AC$4:$AJ$42,2,0)),"",VLOOKUP($A8,Extract!$AC$4:$AJ$42,7,0)) ->  | I8: =IF(ISNA(VLOOKUP($A8,Extract!$AL$4:$AS$40,2,0)),"",VLOOKUP(VLOOKUP($A8,Extract!$AL$4:$AS$40,2,0),Players!$A$2:$B$95,2)) -> Pam Pearce | J8: =IF(ISNA(VLOOKUP($A8,Extract!$AL$4:$AS$42,2,0)),"",VLOOKUP($A8,Extract!$AL$4:$AS$42,3,0)) -> 6P | K8: =IF(ISNA(VLOOKUP($A8,Extract!$AL$4:$AS$42,2,0)),"",VLOOKUP($A8,Extract!$AL$4:$AS$42,4,0)) -> 2.875 | L8: =IF(ISNA(VLOOKUP($A8,Extract!$AL$4:$AS$42,2,0)),"",VLOOKUP($A8,Extract!$AL$4:$AS$42,5,0)) ->  | M8: =IF(ISNA(VLOOKUP($A8,Extract!$AL$4:$AS$42,2,0)),"",VLOOKUP($A8,Extract!$AL$4:$AS$42,6,0)) -> 2.875 | N8: =IF(ISNA(VLOOKUP($A8,Extract!$AL$4:$AS$42,2,0)),"",VLOOKUP($A8,Extract!$AL$4:$AS$42,7,0)) ->  | P8: =IF(ISNA(VLOOKUP($A8,Extract!$AU$4:$BB$40,2,0)),"",VLOOKUP(VLOOKUP($A8,Extract!$AU$4:$BB$40,2,0),Players!$A$2:$B$95,2)) -> Tricia Gilham | Q8: =IF(ISNA(VLOOKUP($A8,Extract!$AU$4:$BA$42,2,0)),"",VLOOKUP($A8,Extract!$AU$4:$BA$42,3,0)) -> 2P2M | R8: =IF(ISNA(VLOOKUP($A8,Extract!$AU$4:$BA$42,2,0)),"",VLOOKUP($A8,Extract!$AU$4:$BA$42,4,0)) -> 6.888125 | S8: =IF(ISNA(VLOOKUP($A8,Extract!$AU$4:$BA$42,2,0)),"",VLOOKUP($A8,Extract!$AU$4:$BA$42,5,0)) ->  | T8: =IF(ISNA(VLOOKUP($A8,Extract!$AU$4:$BA$42,2,0)),"",VLOOKUP($A8,Extract!$AU$4:$BA$42,6,0)) -> 5.875 | U8: =IF(ISNA(VLOOKUP($A8,Extract!$AU$4:$BA$42,2,0)),"",VLOOKUP($A8,Extract!$AU$4:$BA$42,7,0)) -> 7.90125
A9: 6 | B9: =IF(ISNA(VLOOKUP($A9,Extract!$AC$4:$AJ$42,2,0)),"",VLOOKUP(VLOOKUP($A9,Extract!$AC$4:$AJ$42,2,0),Players!$A$2:$B$91,2)) -> Richard Plackett | C9: =IF(ISNA(VLOOKUP($A9,Extract!$AC$4:$AJ$42,2,0)),"",VLOOKUP($A9,Extract!$AC$4:$AJ$42,3,0)) -> 11D | D9: =IF(ISNA(VLOOKUP($A9,Extract!$AC$4:$AJ$42,2,0)),"",VLOOKUP($A9,Extract!$AC$4:$AJ$42,4,0)) -> 5.785681818 | E9: =IF(ISNA(VLOOKUP($A9,Extract!$AC$4:$AJ$42,2,0)),"",VLOOKUP($A9,Extract!$AC$4:$AJ$42,5,0)) -> 5.785681818 | F9: =IF(ISNA(VLOOKUP($A9,Extract!$AC$4:$AJ$42,2,0)),"",VLOOKUP($A9,Extract!$AC$4:$AJ$42,6,0)) ->  | G9: =IF(ISNA(VLOOKUP($A9,Extract!$AC$4:$AJ$42,2,0)),"",VLOOKUP($A9,Extract!$AC$4:$AJ$42,7,0)) ->  | I9: =IF(ISNA(VLOOKUP($A9,Extract!$AL$4:$AS$40,2,0)),"",VLOOKUP(VLOOKUP($A9,Extract!$AL$4:$AS$40,2,0),Players!$A$2:$B$95,2)) -> Mike Wignall | J9: =IF(ISNA(VLOOKUP($A9,Extract!$AL$4:$AS$42,2,0)),"",VLOOKUP($A9,Extract!$AL$4:$AS$42,3,0)) -> 7P2M | K9: =IF(ISNA(VLOOKUP($A9,Extract!$AL$4:$AS$42,2,0)),"",VLOOKUP($A9,Extract!$AL$4:$AS$42,4,0)) -> -1.046944444 | L9: =IF(ISNA(VLOOKUP($A9,Extract!$AL$4:$AS$42,2,0)),"",VLOOKUP($A9,Extract!$AL$4:$AS$42,5,0)) ->  | M9: =IF(ISNA(VLOOKUP($A9,Extract!$AL$4:$AS$42,2,0)),"",VLOOKUP($A9,Extract!$AL$4:$AS$42,6,0)) -> -1.774642857 | N9: =IF(ISNA(VLOOKUP($A9,Extract!$AL$4:$AS$42,2,0)),"",VLOOKUP($A9,Extract!$AL$4:$AS$42,7,0)) -> 1.5 | P9: =IF(ISNA(VLOOKUP($A9,Extract!$AU$4:$BB$40,2,0)),"",VLOOKUP(VLOOKUP($A9,Extract!$AU$4:$BB$40,2,0),Players!$A$2:$B$95,2)) -> Roger Jackson | Q9: =IF(ISNA(VLOOKUP($A9,Extract!$AU$4:$BA$42,2,0)),"",VLOOKUP($A9,Extract!$AU$4:$BA$42,3,0)) -> 11M | R9: =IF(ISNA(VLOOKUP($A9,Extract!$AU$4:$BA$42,2,0)),"",VLOOKUP($A9,Extract!$AU$4:$BA$42,4,0)) -> 0.3827272727 | S9: =IF(ISNA(VLOOKUP($A9,Extract!$AU$4:$BA$42,2,0)),"",VLOOKUP($A9,Extract!$AU$4:$BA$42,5,0)) ->  | T9: =IF(ISNA(VLOOKUP($A9,Extract!$AU$4:$BA$42,2,0)),"",VLOOKUP($A9,Extract!$AU$4:$BA$42,6,0)) ->  | U9: =IF(ISNA(VLOOKUP($A9,Extract!$AU$4:$BA$42,2,0)),"",VLOOKUP($A9,Extract!$AU$4:$BA$42,7,0)) -> 0.3827272727
A10: 7 | B10: =IF(ISNA(VLOOKUP($A10,Extract!$AC$4:$AJ$42,2,0)),"",VLOOKUP(VLOOKUP($A10,Extract!$AC$4:$AJ$42,2,0),Players!$A$2:$B$91,2)) -> Keith Stanley | C10: =IF(ISNA(VLOOKUP($A10,Extract!$AC$4:$AJ$42,2,0)),"",VLOOKUP($A10,Extract!$AC$4:$AJ$42,3,0)) -> 7D1P | D10: =IF(ISNA(VLOOKUP($A10,Extract!$AC$4:$AJ$42,2,0)),"",VLOOKUP($A10,Extract!$AC$4:$AJ$42,4,0)) -> 0.6815625 | E10: =IF(ISNA(VLOOKUP($A10,Extract!$AC$4:$AJ$42,2,0)),"",VLOOKUP($A10,Extract!$AC$4:$AJ$42,5,0)) -> -3.11 | F10: =IF(ISNA(VLOOKUP($A10,Extract!$AC$4:$AJ$42,2,0)),"",VLOOKUP($A10,Extract!$AC$4:$AJ$42,6,0)) -> 27.2225 | G10: =IF(ISNA(VLOOKUP($A10,Extract!$AC$4:$AJ$42,2,0)),"",VLOOKUP($A10,Extract!$AC$4:$AJ$42,7,0)) ->  | I10: =IF(ISNA(VLOOKUP($A10,Extract!$AL$4:$AS$40,2,0)),"",VLOOKUP(VLOOKUP($A10,Extract!$AL$4:$AS$40,2,0),Players!$A$2:$B$95,2)) -> Val Constable | J10: =IF(ISNA(VLOOKUP($A10,Extract!$AL$4:$AS$42,2,0)),"",VLOOKUP($A10,Extract!$AL$4:$AS$42,3,0)) -> 2P4M | K10: =IF(ISNA(VLOOKUP($A10,Extract!$AL$4:$AS$42,2,0)),"",VLOOKUP($A10,Extract!$AL$4:$AS$42,4,0)) -> 0.74625 | L10: =IF(ISNA(VLOOKUP($A10,Extract!$AL$4:$AS$42,2,0)),"",VLOOKUP($A10,Extract!$AL$4:$AS$42,5,0)) ->  | M10: =IF(ISNA(VLOOKUP($A10,Extract!$AL$4:$AS$42,2,0)),"",VLOOKUP($A10,Extract!$AL$4:$AS$42,6,0)) -> -2.375 | N10: =IF(ISNA(VLOOKUP($A10,Extract!$AL$4:$AS$42,2,0)),"",VLOOKUP($A10,Extract!$AL$4:$AS$42,7,0)) -> 2.306875 | P10: =IF(ISNA(VLOOKUP($A10,Extract!$AU$4:$BB$40,2,0)),"",VLOOKUP(VLOOKUP($A10,Extract!$AU$4:$BB$40,2,0),Players!$A$2:$B$95,2)) -> Peter Waggett | Q10: =IF(ISNA(VLOOKUP($A10,Extract!$AU$4:$BA$42,2,0)),"",VLOOKUP($A10,Extract!$AU$4:$BA$42,3,0)) -> 1P11M | R10: =IF(ISNA(VLOOKUP($A10,Extract!$AU$4:$BA$42,2,0)),"",VLOOKUP($A10,Extract!$AU$4:$BA$42,4,0)) -> -0.2741666667 | S10: =IF(ISNA(VLOOKUP($A10,Extract!$AU$4:$BA$42,2,0)),"",VLOOKUP($A10,Extract!$AU$4:$BA$42,5,0)) ->  | T10: =IF(ISNA(VLOOKUP($A10,Extract!$AU$4:$BA$42,2,0)),"",VLOOKUP($A10,Extract!$AU$4:$BA$42,6,0)) -> -7.5 | U10: =IF(ISNA(VLOOKUP($A10,Extract!$AU$4:$BA$42,2,0)),"",VLOOKUP($A10,Extract!$AU$4:$BA$42,7,0)) -> 0.3827272727
A11: 8 | B11: =IF(ISNA(VLOOKUP($A11,Extract!$AC$4:$AJ$42,2,0)),"",VLOOKUP(VLOOKUP($A11,Extract!$AC$4:$AJ$42,2,0),Players!$A$2:$B$91,2)) -> Richard Butland | C11: =IF(ISNA(VLOOKUP($A11,Extract!$AC$4:$AJ$42,2,0)),"",VLOOKUP($A11,Extract!$AC$4:$AJ$42,3,0)) -> 11D | D11: =IF(ISNA(VLOOKUP($A11,Extract!$AC$4:$AJ$42,2,0)),"",VLOOKUP($A11,Extract!$AC$4:$AJ$42,4,0)) -> -6.1725 | E11: =IF(ISNA(VLOOKUP($A11,Extract!$AC$4:$AJ$42,2,0)),"",VLOOKUP($A11,Extract!$AC$4:$AJ$42,5,0)) -> -6.1725 | F11: =IF(ISNA(VLOOKUP($A11,Extract!$AC$4:$AJ$42,2,0)),"",VLOOKUP($A11,Extract!$AC$4:$AJ$42,6,0)) ->  | G11: =IF(ISNA(VLOOKUP($A11,Extract!$AC$4:$AJ$42,2,0)),"",VLOOKUP($A11,Extract!$AC$4:$AJ$42,7,0)) ->  | I11: =IF(ISNA(VLOOKUP($A11,Extract!$AL$4:$AS$40,2,0)),"",VLOOKUP(VLOOKUP($A11,Extract!$AL$4:$AS$40,2,0),Players!$A$2:$B$95,2)) -> John Councer | J11: =IF(ISNA(VLOOKUP($A11,Extract!$AL$4:$AS$42,2,0)),"",VLOOKUP($A11,Extract!$AL$4:$AS$42,3,0)) -> 1D8P | K11: =IF(ISNA(VLOOKUP($A11,Extract!$AL$4:$AS$42,2,0)),"",VLOOKUP($A11,Extract!$AL$4:$AS$42,4,0)) -> -2.981388889 | L11: =IF(ISNA(VLOOKUP($A11,Extract!$AL$4:$AS$42,2,0)),"",VLOOKUP($A11,Extract!$AL$4:$AS$42,5,0)) -> -6.75 | M11: =IF(ISNA(VLOOKUP($A11,Extract!$AL$4:$AS$42,2,0)),"",VLOOKUP($A11,Extract!$AL$4:$AS$42,6,0)) -> -2.5103125 | N11: =IF(ISNA(VLOOKUP($A11,Extract!$AL$4:$AS$42,2,0)),"",VLOOKUP($A11,Extract!$AL$4:$AS$42,7,0)) ->  | P11: =IF(ISNA(VLOOKUP($A11,Extract!$AU$4:$BB$40,2,0)),"",VLOOKUP(VLOOKUP($A11,Extract!$AU$4:$BB$40,2,0),Players!$A$2:$B$95,2)) -> David Atthey | Q11: =IF(ISNA(VLOOKUP($A11,Extract!$AU$4:$BA$42,2,0)),"",VLOOKUP($A11,Extract!$AU$4:$BA$42,3,0)) -> 4M | R11: =IF(ISNA(VLOOKUP($A11,Extract!$AU$4:$BA$42,2,0)),"",VLOOKUP($A11,Extract!$AU$4:$BA$42,4,0)) -> -3.25 | S11: =IF(ISNA(VLOOKUP($A11,Extract!$AU$4:$BA$42,2,0)),"",VLOOKUP($A11,Extract!$AU$4:$BA$42,5,0)) ->  | T11: =IF(ISNA(VLOOKUP($A11,Extract!$AU$4:$BA$42,2,0)),"",VLOOKUP($A11,Extract!$AU$4:$BA$42,6,0)) ->  | U11: =IF(ISNA(VLOOKUP($A11,Extract!$AU$4:$BA$42,2,0)),"",VLOOKUP($A11,Extract!$AU$4:$BA$42,7,0)) -> -3.25
A12: 9 | B12: =IF(ISNA(VLOOKUP($A12,Extract!$AC$4:$AJ$42,2,0)),"",VLOOKUP(VLOOKUP($A12,Extract!$AC$4:$AJ$42,2,0),Players!$A$2:$B$91,2)) -> Gary Watson | C12: =IF(ISNA(VLOOKUP($A12,Extract!$AC$4:$AJ$42,2,0)),"",VLOOKUP($A12,Extract!$AC$4:$AJ$42,3,0)) -> 10D | D12: =IF(ISNA(VLOOKUP($A12,Extract!$AC$4:$AJ$42,2,0)),"",VLOOKUP($A12,Extract!$AC$4:$AJ$42,4,0)) -> -10.66475 | E12: =IF(ISNA(VLOOKUP($A12,Extract!$AC$4:$AJ$42,2,0)),"",VLOOKUP($A12,Extract!$AC$4:$AJ$42,5,0)) -> -10.66475 | F12: =IF(ISNA(VLOOKUP($A12,Extract!$AC$4:$AJ$42,2,0)),"",VLOOKUP($A12,Extract!$AC$4:$AJ$42,6,0)) ->  | G12: =IF(ISNA(VLOOKUP($A12,Extract!$AC$4:$AJ$42,2,0)),"",VLOOKUP($A12,Extract!$AC$4:$AJ$42,7,0)) ->  | I12: =IF(ISNA(VLOOKUP($A12,Extract!$AL$4:$AS$40,2,0)),"",VLOOKUP(VLOOKUP($A12,Extract!$AL$4:$AS$40,2,0),Players!$A$2:$B$95,2)) -> Roy Collard | J12: =IF(ISNA(VLOOKUP($A12,Extract!$AL$4:$AS$42,2,0)),"",VLOOKUP($A12,Extract!$AL$4:$AS$42,3,0)) -> 7P | K12: =IF(ISNA(VLOOKUP($A12,Extract!$AL$4:$AS$42,2,0)),"",VLOOKUP($A12,Extract!$AL$4:$AS$42,4,0)) -> -5.964285714 | L12: =IF(ISNA(VLOOKUP($A12,Extract!$AL$4:$AS$42,2,0)),"",VLOOKUP($A12,Extract!$AL$4:$AS$42,5,0)) ->  | M12: =IF(ISNA(VLOOKUP($A12,Extract!$AL$4:$AS$42,2,0)),"",VLOOKUP($A12,Extract!$AL$4:$AS$42,6,0)) -> -5.964285714 | N12: =IF(ISNA(VLOOKUP($A12,Extract!$AL$4:$AS$42,2,0)),"",VLOOKUP($A12,Extract!$AL$4:$AS$42,7,0)) ->  | P12: =IF(ISNA(VLOOKUP($A12,Extract!$AU$4:$BB$40,2,0)),"",VLOOKUP(VLOOKUP($A12,Extract!$AU$4:$BB$40,2,0),Players!$A$2:$B$95,2)) -> Alison Pritchard | Q12: =IF(ISNA(VLOOKUP($A12,Extract!$AU$4:$BA$42,2,0)),"",VLOOKUP($A12,Extract!$AU$4:$BA$42,3,0)) -> 4M | R12: =IF(ISNA(VLOOKUP($A12,Extract!$AU$4:$BA$42,2,0)),"",VLOOKUP($A12,Extract!$AU$4:$BA$42,4,0)) -> -3.25 | S12: =IF(ISNA(VLOOKUP($A12,Extract!$AU$4:$BA$42,2,0)),"",VLOOKUP($A12,Extract!$AU$4:$BA$42,5,0)) ->  | T12: =IF(ISNA(VLOOKUP($A12,Extract!$AU$4:$BA$42,2,0)),"",VLOOKUP($A12,Extract!$AU$4:$BA$42,6,0)) ->  | U12: =IF(ISNA(VLOOKUP($A12,Extract!$AU$4:$BA$42,2,0)),"",VLOOKUP($A12,Extract!$AU$4:$BA$42,7,0)) -> -3.25
A13: 10 | B13: =IF(ISNA(VLOOKUP($A13,Extract!$AC$4:$AJ$42,2,0)),"",VLOOKUP(VLOOKUP($A13,Extract!$AC$4:$AJ$42,2,0),Players!$A$2:$B$91,2)) -> Joe Angseesing | C13: =IF(ISNA(VLOOKUP($A13,Extract!$AC$4:$AJ$42,2,0)),"",VLOOKUP($A13,Extract!$AC$4:$AJ$42,3,0)) -> 8D1P | D13: =IF(ISNA(VLOOKUP($A13,Extract!$AC$4:$AJ$42,2,0)),"",VLOOKUP($A13,Extract!$AC$4:$AJ$42,4,0)) -> -7.921944444 | E13: =IF(ISNA(VLOOKUP($A13,Extract!$AC$4:$AJ$42,2,0)),"",VLOOKUP($A13,Extract!$AC$4:$AJ$42,5,0)) -> -12.315 | F13: =IF(ISNA(VLOOKUP($A13,Extract!$AC$4:$AJ$42,2,0)),"",VLOOKUP($A13,Extract!$AC$4:$AJ$42,6,0)) -> 27.2225 | G13: =IF(ISNA(VLOOKUP($A13,Extract!$AC$4:$AJ$42,2,0)),"",VLOOKUP($A13,Extract!$AC$4:$AJ$42,7,0)) ->  | I13: =IF(ISNA(VLOOKUP($A13,Extract!$AL$4:$AS$40,2,0)),"",VLOOKUP(VLOOKUP($A13,Extract!$AL$4:$AS$40,2,0),Players!$A$2:$B$95,2)) -> Mark Rogers | J13: =IF(ISNA(VLOOKUP($A13,Extract!$AL$4:$AS$42,2,0)),"",VLOOKUP($A13,Extract!$AL$4:$AS$42,3,0)) -> 1D9P | K13: =IF(ISNA(VLOOKUP($A13,Extract!$AL$4:$AS$42,2,0)),"",VLOOKUP($A13,Extract!$AL$4:$AS$42,4,0)) -> -8.58325 | L13: =IF(ISNA(VLOOKUP($A13,Extract!$AL$4:$AS$42,2,0)),"",VLOOKUP($A13,Extract!$AL$4:$AS$42,5,0)) -> -6.75 | M13: =IF(ISNA(VLOOKUP($A13,Extract!$AL$4:$AS$42,2,0)),"",VLOOKUP($A13,Extract!$AL$4:$AS$42,6,0)) -> -8.786944444 | N13: =IF(ISNA(VLOOKUP($A13,Extract!$AL$4:$AS$42,2,0)),"",VLOOKUP($A13,Extract!$AL$4:$AS$42,7,0)) ->  | P13: =IF(ISNA(VLOOKUP($A13,Extract!$AU$4:$BB$40,2,0)),"",VLOOKUP(VLOOKUP($A13,Extract!$AU$4:$BB$40,2,0),Players!$A$2:$B$95,2)) -> Anne Swannell | Q13: =IF(ISNA(VLOOKUP($A13,Extract!$AU$4:$BA$42,2,0)),"",VLOOKUP($A13,Extract!$AU$4:$BA$42,3,0)) -> 2M | R13: =IF(ISNA(VLOOKUP($A13,Extract!$AU$4:$BA$42,2,0)),"",VLOOKUP($A13,Extract!$AU$4:$BA$42,4,0)) -> -4.65875 | S13: =IF(ISNA(VLOOKUP($A13,Extract!$AU$4:$BA$42,2,0)),"",VLOOKUP($A13,Extract!$AU$4:$BA$42,5,0)) ->  | T13: =IF(ISNA(VLOOKUP($A13,Extract!$AU$4:$BA$42,2,0)),"",VLOOKUP($A13,Extract!$AU$4:$BA$42,6,0)) ->  | U13: =IF(ISNA(VLOOKUP($A13,Extract!$AU$4:$BA$42,2,0)),"",VLOOKUP($A13,Extract!$AU$4:$BA$42,7,0)) -> -4.65875
A14: 11 | B14: =IF(ISNA(VLOOKUP($A14,Extract!$AC$4:$AJ$42,2,0)),"",VLOOKUP(VLOOKUP($A14,Extract!$AC$4:$AJ$42,2,0),Players!$A$2:$B$91,2)) -> Andrew Kambites | C14: =IF(ISNA(VLOOKUP($A14,Extract!$AC$4:$AJ$42,2,0)),"",VLOOKUP($A14,Extract!$AC$4:$AJ$42,3,0)) -> 1D | D14: =IF(ISNA(VLOOKUP($A14,Extract!$AC$4:$AJ$42,2,0)),"",VLOOKUP($A14,Extract!$AC$4:$AJ$42,4,0)) -> -21.5 | E14: =IF(ISNA(VLOOKUP($A14,Extract!$AC$4:$AJ$42,2,0)),"",VLOOKUP($A14,Extract!$AC$4:$AJ$42,5,0)) -> -21.5 | F14: =IF(ISNA(VLOOKUP($A14,Extract!$AC$4:$AJ$42,2,0)),"",VLOOKUP($A14,Extract!$AC$4:$AJ$42,6,0)) ->  | G14: =IF(ISNA(VLOOKUP($A14,Extract!$AC$4:$AJ$42,2,0)),"",VLOOKUP($A14,Extract!$AC$4:$AJ$42,7,0)) ->  | I14: =IF(ISNA(VLOOKUP($A14,Extract!$AL$4:$AS$40,2,0)),"",VLOOKUP(VLOOKUP($A14,Extract!$AL$4:$AS$40,2,0),Players!$A$2:$B$95,2)) -> Wendy Angseesing | J14: =IF(ISNA(VLOOKUP($A14,Extract!$AL$4:$AS$42,2,0)),"",VLOOKUP($A14,Extract!$AL$4:$AS$42,3,0)) -> 1D3P1M | K14: =IF(ISNA(VLOOKUP($A14,Extract!$AL$4:$AS$42,2,0)),"",VLOOKUP($A14,Extract!$AL$4:$AS$42,4,0)) -> -17.7075 | L14: =IF(ISNA(VLOOKUP($A14,Extract!$AL$4:$AS$42,2,0)),"",VLOOKUP($A14,Extract!$AL$4:$AS$42,5,0)) -> -39.25 | M14: =IF(ISNA(VLOOKUP($A14,Extract!$AL$4:$AS$42,2,0)),"",VLOOKUP($A14,Extract!$AL$4:$AS$42,6,0)) -> -16.42916667 | N14: =IF(ISNA(VLOOKUP($A14,Extract!$AL$4:$AS$42,2,0)),"",VLOOKUP($A14,Extract!$AL$4:$AS$42,7,0)) -> 0 | P14: =IF(ISNA(VLOOKUP($A14,Extract!$AU$4:$BB$40,2,0)),"",VLOOKUP(VLOOKUP($A14,Extract!$AU$4:$BB$40,2,0),Players!$A$2:$B$95,2)) -> Roger Williams | Q14: =IF(ISNA(VLOOKUP($A14,Extract!$AU$4:$BA$42,2,0)),"",VLOOKUP($A14,Extract!$AU$4:$BA$42,3,0)) -> 3M | R14: =IF(ISNA(VLOOKUP($A14,Extract!$AU$4:$BA$42,2,0)),"",VLOOKUP($A14,Extract!$AU$4:$BA$42,4,0)) -> -11.93916667 | S14: =IF(ISNA(VLOOKUP($A14,Extract!$AU$4:$BA$42,2,0)),"",VLOOKUP($A14,Extract!$AU$4:$BA$42,5,0)) ->  | T14: =IF(ISNA(VLOOKUP($A14,Extract!$AU$4:$BA$42,2,0)),"",VLOOKUP($A14,Extract!$AU$4:$BA$42,6,0)) ->  | U14: =IF(ISNA(VLOOKUP($A14,Extract!$AU$4:$BA$42,2,0)),"",VLOOKUP($A14,Extract!$AU$4:$BA$42,7,0)) -> -11.93916667
A15: 12 | B15: =IF(ISNA(VLOOKUP($A15,Extract!$AC$4:$AJ$42,2,0)),"",VLOOKUP(VLOOKUP($A15,Extract!$AC$4:$AJ$42,2,0),Players!$A$2:$B$91,2)) -> Tony Hill | C15: =IF(ISNA(VLOOKUP($A15,Extract!$AC$4:$AJ$42,2,0)),"",VLOOKUP($A15,Extract!$AC$4:$AJ$42,3,0)) -> 2D1P | D15: =IF(ISNA(VLOOKUP($A15,Extract!$AC$4:$AJ$42,2,0)),"",VLOOKUP($A15,Extract!$AC$4:$AJ$42,4,0)) -> -25.16666667 | E15: =IF(ISNA(VLOOKUP($A15,Extract!$AC$4:$AJ$42,2,0)),"",VLOOKUP($A15,Extract!$AC$4:$AJ$42,5,0)) -> -23.875 | F15: =IF(ISNA(VLOOKUP($A15,Extract!$AC$4:$AJ$42,2,0)),"",VLOOKUP($A15,Extract!$AC$4:$AJ$42,6,0)) -> -27.75 | G15: =IF(ISNA(VLOOKUP($A15,Extract!$AC$4:$AJ$42,2,0)),"",VLOOKUP($A15,Extract!$AC$4:$AJ$42,7,0)) ->  | I15: =IF(ISNA(VLOOKUP($A15,Extract!$AL$4:$AS$40,2,0)),"",VLOOKUP(VLOOKUP($A15,Extract!$AL$4:$AS$40,2,0),Players!$A$2:$B$95,2)) -> Mel Barlow | J15: =IF(ISNA(VLOOKUP($A15,Extract!$AL$4:$AS$42,2,0)),"",VLOOKUP($A15,Extract!$AL$4:$AS$42,3,0)) -> 3P3M | K15: =IF(ISNA(VLOOKUP($A15,Extract!$AL$4:$AS$42,2,0)),"",VLOOKUP($A15,Extract!$AL$4:$AS$42,4,0)) -> -13.57375 | L15: =IF(ISNA(VLOOKUP($A15,Extract!$AL$4:$AS$42,2,0)),"",VLOOKUP($A15,Extract!$AL$4:$AS$42,5,0)) ->  | M15: =IF(ISNA(VLOOKUP($A15,Extract!$AL$4:$AS$42,2,0)),"",VLOOKUP($A15,Extract!$AL$4:$AS$42,6,0)) -> -17.83333333 | N15: =IF(ISNA(VLOOKUP($A15,Extract!$AL$4:$AS$42,2,0)),"",VLOOKUP($A15,Extract!$AL$4:$AS$42,7,0)) -> -9.314166667 | P15: =IF(ISNA(VLOOKUP($A15,Extract!$AU$4:$BB$40,2,0)),"",VLOOKUP(VLOOKUP($A15,Extract!$AU$4:$BB$40,2,0),Players!$A$2:$B$95,2)) -> Judy Sanis | Q15: =IF(ISNA(VLOOKUP($A15,Extract!$AU$4:$BA$42,2,0)),"",VLOOKUP($A15,Extract!$AU$4:$BA$42,3,0)) -> 4M | R15: =IF(ISNA(VLOOKUP($A15,Extract!$AU$4:$BA$42,2,0)),"",VLOOKUP($A15,Extract!$AU$4:$BA$42,4,0)) -> -12.595625 | S15: =IF(ISNA(VLOOKUP($A15,Extract!$AU$4:$BA$42,2,0)),"",VLOOKUP($A15,Extract!$AU$4:$BA$42,5,0)) ->  | T15: =IF(ISNA(VLOOKUP($A15,Extract!$AU$4:$BA$42,2,0)),"",VLOOKUP($A15,Extract!$AU$4:$BA$42,6,0)) ->  | U15: =IF(ISNA(VLOOKUP($A15,Extract!$AU$4:$BA$42,2,0)),"",VLOOKUP($A15,Extract!$AU$4:$BA$42,7,0)) -> -12.595625
A16: 13 | B16: =IF(ISNA(VLOOKUP($A16,Extract!$AC$4:$AJ$42,2,0)),"",VLOOKUP(VLOOKUP($A16,Extract!$AC$4:$AJ$42,2,0),Players!$A$2:$B$91,2)) -> Alan Wearmouth | C16: =IF(ISNA(VLOOKUP($A16,Extract!$AC$4:$AJ$42,2,0)),"",VLOOKUP($A16,Extract!$AC$4:$AJ$42,3,0)) -> 2D1P | D16: =IF(ISNA(VLOOKUP($A16,Extract!$AC$4:$AJ$42,2,0)),"",VLOOKUP($A16,Extract!$AC$4:$AJ$42,4,0)) -> -25.16666667 | E16: =IF(ISNA(VLOOKUP($A16,Extract!$AC$4:$AJ$42,2,0)),"",VLOOKUP($A16,Extract!$AC$4:$AJ$42,5,0)) -> -23.875 | F16: =IF(ISNA(VLOOKUP($A16,Extract!$AC$4:$AJ$42,2,0)),"",VLOOKUP($A16,Extract!$AC$4:$AJ$42,6,0)) -> -27.75 | G16: =IF(ISNA(VLOOKUP($A16,Extract!$AC$4:$AJ$42,2,0)),"",VLOOKUP($A16,Extract!$AC$4:$AJ$42,7,0)) ->  | I16: =IF(ISNA(VLOOKUP($A16,Extract!$AL$4:$AS$40,2,0)),"",VLOOKUP(VLOOKUP($A16,Extract!$AL$4:$AS$40,2,0),Players!$A$2:$B$95,2)) -> John Arblaster | J16: =IF(ISNA(VLOOKUP($A16,Extract!$AL$4:$AS$42,2,0)),"",VLOOKUP($A16,Extract!$AL$4:$AS$42,3,0)) -> 3P2M | K16: =IF(ISNA(VLOOKUP($A16,Extract!$AL$4:$AS$42,2,0)),"",VLOOKUP($A16,Extract!$AL$4:$AS$42,4,0)) -> -10.1 | L16: =IF(ISNA(VLOOKUP($A16,Extract!$AL$4:$AS$42,2,0)),"",VLOOKUP($A16,Extract!$AL$4:$AS$42,5,0)) ->  | M16: =IF(ISNA(VLOOKUP($A16,Extract!$AL$4:$AS$42,2,0)),"",VLOOKUP($A16,Extract!$AL$4:$AS$42,6,0)) -> -17.83333333 | N16: =IF(ISNA(VLOOKUP($A16,Extract!$AL$4:$AS$42,2,0)),"",VLOOKUP($A16,Extract!$AL$4:$AS$42,7,0)) -> 1.5 | P16: =IF(ISNA(VLOOKUP($A16,Extract!$AU$4:$BB$40,2,0)),"",VLOOKUP(VLOOKUP($A16,Extract!$AU$4:$BB$40,2,0),Players!$A$2:$B$95,2)) -> Allan Sanis | Q16: =IF(ISNA(VLOOKUP($A16,Extract!$AU$4:$BA$42,2,0)),"",VLOOKUP($A16,Extract!$AU$4:$BA$42,3,0)) -> 1D5M | R16: =IF(ISNA(VLOOKUP($A16,Extract!$AU$4:$BA$42,2,0)),"",VLOOKUP($A16,Extract!$AU$4:$BA$42,4,0)) -> -20.89708333 | S16: =IF(ISNA(VLOOKUP($A16,Extract!$AU$4:$BA$42,2,0)),"",VLOOKUP($A16,Extract!$AU$4:$BA$42,5,0)) -> -38.5 | T16: =IF(ISNA(VLOOKUP($A16,Extract!$AU$4:$BA$42,2,0)),"",VLOOKUP($A16,Extract!$AU$4:$BA$42,6,0)) ->  | U16: =IF(ISNA(VLOOKUP($A16,Extract!$AU$4:$BA$42,2,0)),"",VLOOKUP($A16,Extract!$AU$4:$BA$42,7,0)) -> -17.3765
A17: 14 | B17: =IF(ISNA(VLOOKUP($A17,Extract!$AC$4:$AJ$42,2,0)),"",VLOOKUP(VLOOKUP($A17,Extract!$AC$4:$AJ$42,2,0),Players!$A$2:$B$91,2)) ->  | C17: =IF(ISNA(VLOOKUP($A17,Extract!$AC$4:$AJ$42,2,0)),"",VLOOKUP($A17,Extract!$AC$4:$AJ$42,3,0)) ->  | D17: =IF(ISNA(VLOOKUP($A17,Extract!$AC$4:$AJ$42,2,0)),"",VLOOKUP($A17,Extract!$AC$4:$AJ$42,4,0)) ->  | E17: =IF(ISNA(VLOOKUP($A17,Extract!$AC$4:$AJ$42,2,0)),"",VLOOKUP($A17,Extract!$AC$4:$AJ$42,5,0)) ->  | F17: =IF(ISNA(VLOOKUP($A17,Extract!$AC$4:$AJ$42,2,0)),"",VLOOKUP($A17,Extract!$AC$4:$AJ$42,6,0)) ->  | G17: =IF(ISNA(VLOOKUP($A17,Extract!$AC$4:$AJ$42,2,0)),"",VLOOKUP($A17,Extract!$AC$4:$AJ$42,7,0)) ->  | I17: =IF(ISNA(VLOOKUP($A17,Extract!$AL$4:$AS$40,2,0)),"",VLOOKUP(VLOOKUP($A17,Extract!$AL$4:$AS$40,2,0),Players!$A$2:$B$95,2)) ->  | J17: =IF(ISNA(VLOOKUP($A17,Extract!$AL$4:$AS$42,2,0)),"",VLOOKUP($A17,Extract!$AL$4:$AS$42,3,0)) ->  | K17: =IF(ISNA(VLOOKUP($A17,Extract!$AL$4:$AS$42,2,0)),"",VLOOKUP($A17,Extract!$AL$4:$AS$42,4,0)) ->  | L17: =IF(ISNA(VLOOKUP($A17,Extract!$AL$4:$AS$42,2,0)),"",VLOOKUP($A17,Extract!$AL$4:$AS$42,5,0)) ->  | M17: =IF(ISNA(VLOOKUP($A17,Extract!$AL$4:$AS$42,2,0)),"",VLOOKUP($A17,Extract!$AL$4:$AS$42,6,0)) ->  | N17: =IF(ISNA(VLOOKUP($A17,Extract!$AL$4:$AS$42,2,0)),"",VLOOKUP($A17,Extract!$AL$4:$AS$42,7,0)) ->  | P17: =IF(ISNA(VLOOKUP($A17,Extract!$AU$4:$BB$40,2,0)),"",VLOOKUP(VLOOKUP($A17,Extract!$AU$4:$BB$40,2,0),Players!$A$2:$B$95,2)) -> Lesley Harrison | Q17: =IF(ISNA(VLOOKUP($A17,Extract!$AU$4:$BA$42,2,0)),"",VLOOKUP($A17,Extract!$AU$4:$BA$42,3,0)) -> 3M | R17: =IF(ISNA(VLOOKUP($A17,Extract!$AU$4:$BA$42,2,0)),"",VLOOKUP($A17,Extract!$AU$4:$BA$42,4,0)) -> -24.33333333 | S17: =IF(ISNA(VLOOKUP($A17,Extract!$AU$4:$BA$42,2,0)),"",VLOOKUP($A17,Extract!$AU$4:$BA$42,5,0)) ->  | T17: =IF(ISNA(VLOOKUP($A17,Extract!$AU$4:$BA$42,2,0)),"",VLOOKUP($A17,Extract!$AU$4:$BA$42,6,0)) ->  | U17: =IF(ISNA(VLOOKUP($A17,Extract!$AU$4:$BA$42,2,0)),"",VLOOKUP($A17,Extract!$AU$4:$BA$42,7,0)) -> -24.33333333
A18: 15 | B18: =IF(ISNA(VLOOKUP($A18,Extract!$AC$4:$AJ$42,2,0)),"",VLOOKUP(VLOOKUP($A18,Extract!$AC$4:$AJ$42,2,0),Players!$A$2:$B$91,2)) ->  | C18: =IF(ISNA(VLOOKUP($A18,Extract!$AC$4:$AJ$42,2,0)),"",VLOOKUP($A18,Extract!$AC$4:$AJ$42,3,0)) ->  | D18: =IF(ISNA(VLOOKUP($A18,Extract!$AC$4:$AJ$42,2,0)),"",VLOOKUP($A18,Extract!$AC$4:$AJ$42,4,0)) ->  | E18: =IF(ISNA(VLOOKUP($A18,Extract!$AC$4:$AJ$42,2,0)),"",VLOOKUP($A18,Extract!$AC$4:$AJ$42,5,0)) ->  | F18: =IF(ISNA(VLOOKUP($A18,Extract!$AC$4:$AJ$42,2,0)),"",VLOOKUP($A18,Extract!$AC$4:$AJ$42,6,0)) ->  | G18: =IF(ISNA(VLOOKUP($A18,Extract!$AC$4:$AJ$42,2,0)),"",VLOOKUP($A18,Extract!$AC$4:$AJ$42,7,0)) ->  | I18: =IF(ISNA(VLOOKUP($A18,Extract!$AL$4:$AS$40,2,0)),"",VLOOKUP(VLOOKUP($A18,Extract!$AL$4:$AS$40,2,0),Players!$A$2:$B$95,2)) ->  | J18: =IF(ISNA(VLOOKUP($A18,Extract!$AL$4:$AS$42,2,0)),"",VLOOKUP($A18,Extract!$AL$4:$AS$42,3,0)) ->  | K18: =IF(ISNA(VLOOKUP($A18,Extract!$AL$4:$AS$42,2,0)),"",VLOOKUP($A18,Extract!$AL$4:$AS$42,4,0)) ->  | L18: =IF(ISNA(VLOOKUP($A18,Extract!$AL$4:$AS$42,2,0)),"",VLOOKUP($A18,Extract!$AL$4:$AS$42,5,0)) ->  | M18: =IF(ISNA(VLOOKUP($A18,Extract!$AL$4:$AS$42,2,0)),"",VLOOKUP($A18,Extract!$AL$4:$AS$42,6,0)) ->  | N18: =IF(ISNA(VLOOKUP($A18,Extract!$AL$4:$AS$42,2,0)),"",VLOOKUP($A18,Extract!$AL$4:$AS$42,7,0)) ->  | P18: =IF(ISNA(VLOOKUP($A18,Extract!$AU$4:$BB$40,2,0)),"",VLOOKUP(VLOOKUP($A18,Extract!$AU$4:$BB$40,2,0),Players!$A$2:$B$95,2)) -> Ashok Kwatra | Q18: =IF(ISNA(VLOOKUP($A18,Extract!$AU$4:$BA$42,2,0)),"",VLOOKUP($A18,Extract!$AU$4:$BA$42,3,0)) -> 3M | R18: =IF(ISNA(VLOOKUP($A18,Extract!$AU$4:$BA$42,2,0)),"",VLOOKUP($A18,Extract!$AU$4:$BA$42,4,0)) -> -24.33333333 | S18: =IF(ISNA(VLOOKUP($A18,Extract!$AU$4:$BA$42,2,0)),"",VLOOKUP($A18,Extract!$AU$4:$BA$42,5,0)) ->  | T18: =IF(ISNA(VLOOKUP($A18,Extract!$AU$4:$BA$42,2,0)),"",VLOOKUP($A18,Extract!$AU$4:$BA$42,6,0)) ->  | U18: =IF(ISNA(VLOOKUP($A18,Extract!$AU$4:$BA$42,2,0)),"",VLOOKUP($A18,Extract!$AU$4:$BA$42,7,0)) -> -24.33333333
A19: 16 | B19: =IF(ISNA(VLOOKUP($A19,Extract!$AC$4:$AJ$42,2,0)),"",VLOOKUP(VLOOKUP($A19,Extract!$AC$4:$AJ$42,2,0),Players!$A$2:$B$91,2)) ->  | C19: =IF(ISNA(VLOOKUP($A19,Extract!$AC$4:$AJ$42,2,0)),"",VLOOKUP($A19,Extract!$AC$4:$AJ$42,3,0)) ->  | D19: =IF(ISNA(VLOOKUP($A19,Extract!$AC$4:$AJ$42,2,0)),"",VLOOKUP($A19,Extract!$AC$4:$AJ$42,4,0)) ->  | E19: =IF(ISNA(VLOOKUP($A19,Extract!$AC$4:$AJ$42,2,0)),"",VLOOKUP($A19,Extract!$AC$4:$AJ$42,5,0)) ->  | F19: =IF(ISNA(VLOOKUP($A19,Extract!$AC$4:$AJ$42,2,0)),"",VLOOKUP($A19,Extract!$AC$4:$AJ$42,6,0)) ->  | G19: =IF(ISNA(VLOOKUP($A19,Extract!$AC$4:$AJ$42,2,0)),"",VLOOKUP($A19,Extract!$AC$4:$AJ$42,7,0)) ->  | I19: =IF(ISNA(VLOOKUP($A19,Extract!$AL$4:$AS$40,2,0)),"",VLOOKUP(VLOOKUP($A19,Extract!$AL$4:$AS$40,2,0),Players!$A$2:$B$95,2)) ->  | J19: =IF(ISNA(VLOOKUP($A19,Extract!$AL$4:$AS$42,2,0)),"",VLOOKUP($A19,Extract!$AL$4:$AS$42,3,0)) ->  | K19: =IF(ISNA(VLOOKUP($A19,Extract!$AL$4:$AS$42,2,0)),"",VLOOKUP($A19,Extract!$AL$4:$AS$42,4,0)) ->  | L19: =IF(ISNA(VLOOKUP($A19,Extract!$AL$4:$AS$42,2,0)),"",VLOOKUP($A19,Extract!$AL$4:$AS$42,5,0)) ->  | M19: =IF(ISNA(VLOOKUP($A19,Extract!$AL$4:$AS$42,2,0)),"",VLOOKUP($A19,Extract!$AL$4:$AS$42,6,0)) ->  | N19: =IF(ISNA(VLOOKUP($A19,Extract!$AL$4:$AS$42,2,0)),"",VLOOKUP($A19,Extract!$AL$4:$AS$42,7,0)) ->  | P19: =IF(ISNA(VLOOKUP($A19,Extract!$AU$4:$BB$40,2,0)),"",VLOOKUP(VLOOKUP($A19,Extract!$AU$4:$BB$40,2,0),Players!$A$2:$B$95,2)) -> Mike Lewis | Q19: =IF(ISNA(VLOOKUP($A19,Extract!$AU$4:$BA$42,2,0)),"",VLOOKUP($A19,Extract!$AU$4:$BA$42,3,0)) -> 1M | R19: =IF(ISNA(VLOOKUP($A19,Extract!$AU$4:$BA$42,2,0)),"",VLOOKUP($A19,Extract!$AU$4:$BA$42,4,0)) -> -26.5 | S19: =IF(ISNA(VLOOKUP($A19,Extract!$AU$4:$BA$42,2,0)),"",VLOOKUP($A19,Extract!$AU$4:$BA$42,5,0)) ->  | T19: =IF(ISNA(VLOOKUP($A19,Extract!$AU$4:$BA$42,2,0)),"",VLOOKUP($A19,Extract!$AU$4:$BA$42,6,0)) ->  | U19: =IF(ISNA(VLOOKUP($A19,Extract!$AU$4:$BA$42,2,0)),"",VLOOKUP($A19,Extract!$AU$4:$BA$42,7,0)) -> -26.5
A20: 17 | B20: =IF(ISNA(VLOOKUP($A20,Extract!$AC$4:$AJ$42,2,0)),"",VLOOKUP(VLOOKUP($A20,Extract!$AC$4:$AJ$42,2,0),Players!$A$2:$B$91,2)) ->  | C20: =IF(ISNA(VLOOKUP($A20,Extract!$AC$4:$AJ$42,2,0)),"",VLOOKUP($A20,Extract!$AC$4:$AJ$42,3,0)) ->  | D20: =IF(ISNA(VLOOKUP($A20,Extract!$AC$4:$AJ$42,2,0)),"",VLOOKUP($A20,Extract!$AC$4:$AJ$42,4,0)) ->  | E20: =IF(ISNA(VLOOKUP($A20,Extract!$AC$4:$AJ$42,2,0)),"",VLOOKUP($A20,Extract!$AC$4:$AJ$42,5,0)) ->  | F20: =IF(ISNA(VLOOKUP($A20,Extract!$AC$4:$AJ$42,2,0)),"",VLOOKUP($A20,Extract!$AC$4:$AJ$42,6,0)) ->  | G20: =IF(ISNA(VLOOKUP($A20,Extract!$AC$4:$AJ$42,2,0)),"",VLOOKUP($A20,Extract!$AC$4:$AJ$42,7,0)) ->  | I20: =IF(ISNA(VLOOKUP($A20,Extract!$AL$4:$AS$40,2,0)),"",VLOOKUP(VLOOKUP($A20,Extract!$AL$4:$AS$40,2,0),Players!$A$2:$B$95,2)) ->  | J20: =IF(ISNA(VLOOKUP($A20,Extract!$AL$4:$AS$42,2,0)),"",VLOOKUP($A20,Extract!$AL$4:$AS$42,3,0)) ->  | K20: =IF(ISNA(VLOOKUP($A20,Extract!$AL$4:$AS$42,2,0)),"",VLOOKUP($A20,Extract!$AL$4:$AS$42,4,0)) ->  | L20: =IF(ISNA(VLOOKUP($A20,Extract!$AL$4:$AS$42,2,0)),"",VLOOKUP($A20,Extract!$AL$4:$AS$42,5,0)) ->  | M20: =IF(ISNA(VLOOKUP($A20,Extract!$AL$4:$AS$42,2,0)),"",VLOOKUP($A20,Extract!$AL$4:$AS$42,6,0)) ->  | N20: =IF(ISNA(VLOOKUP($A20,Extract!$AL$4:$AS$42,2,0)),"",VLOOKUP($A20,Extract!$AL$4:$AS$42,7,0)) ->  | P20: =IF(ISNA(VLOOKUP($A20,Extract!$AU$4:$BB$40,2,0)),"",VLOOKUP(VLOOKUP($A20,Extract!$AU$4:$BB$40,2,0),Players!$A$2:$B$95,2)) ->  | Q20: =IF(ISNA(VLOOKUP($A20,Extract!$AU$4:$BA$42,2,0)),"",VLOOKUP($A20,Extract!$AU$4:$BA$42,3,0)) ->  | R20: =IF(ISNA(VLOOKUP($A20,Extract!$AU$4:$BA$42,2,0)),"",VLOOKUP($A20,Extract!$AU$4:$BA$42,4,0)) ->  | S20: =IF(ISNA(VLOOKUP($A20,Extract!$AU$4:$BA$42,2,0)),"",VLOOKUP($A20,Extract!$AU$4:$BA$42,5,0)) ->  | T20: =IF(ISNA(VLOOKUP($A20,Extract!$AU$4:$BA$42,2,0)),"",VLOOKUP($A20,Extract!$AU$4:$BA$42,6,0)) ->  | U20: =IF(ISNA(VLOOKUP($A20,Extract!$AU$4:$BA$42,2,0)),"",VLOOKUP($A20,Extract!$AU$4:$BA$42,7,0)) -> 
A21: 18 | B21: =IF(ISNA(VLOOKUP($A21,Extract!$AC$4:$AJ$42,2,0)),"",VLOOKUP(VLOOKUP($A21,Extract!$AC$4:$AJ$42,2,0),Players!$A$2:$B$91,2)) ->  | C21: =IF(ISNA(VLOOKUP($A21,Extract!$AC$4:$AJ$42,2,0)),"",VLOOKUP($A21,Extract!$AC$4:$AJ$42,3,0)) ->  | D21: =IF(ISNA(VLOOKUP($A21,Extract!$AC$4:$AJ$42,2,0)),"",VLOOKUP($A21,Extract!$AC$4:$AJ$42,4,0)) ->  | E21: =IF(ISNA(VLOOKUP($A21,Extract!$AC$4:$AJ$42,2,0)),"",VLOOKUP($A21,Extract!$AC$4:$AJ$42,5,0)) ->  | F21: =IF(ISNA(VLOOKUP($A21,Extract!$AC$4:$AJ$42,2,0)),"",VLOOKUP($A21,Extract!$AC$4:$AJ$42,6,0)) ->  | G21: =IF(ISNA(VLOOKUP($A21,Extract!$AC$4:$AJ$42,2,0)),"",VLOOKUP($A21,Extract!$AC$4:$AJ$42,7,0)) ->  | I21: =IF(ISNA(VLOOKUP($A21,Extract!$AL$4:$AS$40,2,0)),"",VLOOKUP(VLOOKUP($A21,Extract!$AL$4:$AS$40,2,0),Players!$A$2:$B$95,2)) ->  | J21: =IF(ISNA(VLOOKUP($A21,Extract!$AL$4:$AS$42,2,0)),"",VLOOKUP($A21,Extract!$AL$4:$AS$42,3,0)) ->  | K21: =IF(ISNA(VLOOKUP($A21,Extract!$AL$4:$AS$42,2,0)),"",VLOOKUP($A21,Extract!$AL$4:$AS$42,4,0)) ->  | L21: =IF(ISNA(VLOOKUP($A21,Extract!$AL$4:$AS$42,2,0)),"",VLOOKUP($A21,Extract!$AL$4:$AS$42,5,0)) ->  | M21: =IF(ISNA(VLOOKUP($A21,Extract!$AL$4:$AS$42,2,0)),"",VLOOKUP($A21,Extract!$AL$4:$AS$42,6,0)) ->  | N21: =IF(ISNA(VLOOKUP($A21,Extract!$AL$4:$AS$42,2,0)),"",VLOOKUP($A21,Extract!$AL$4:$AS$42,7,0)) ->  | P21: =IF(ISNA(VLOOKUP($A21,Extract!$AU$4:$BB$40,2,0)),"",VLOOKUP(VLOOKUP($A21,Extract!$AU$4:$BB$40,2,0),Players!$A$2:$B$95,2)) ->  | Q21: =IF(ISNA(VLOOKUP($A21,Extract!$AU$4:$BA$42,2,0)),"",VLOOKUP($A21,Extract!$AU$4:$BA$42,3,0)) ->  | R21: =IF(ISNA(VLOOKUP($A21,Extract!$AU$4:$BA$42,2,0)),"",VLOOKUP($A21,Extract!$AU$4:$BA$42,4,0)) ->  | S21: =IF(ISNA(VLOOKUP($A21,Extract!$AU$4:$BA$42,2,0)),"",VLOOKUP($A21,Extract!$AU$4:$BA$42,5,0)) ->  | T21: =IF(ISNA(VLOOKUP($A21,Extract!$AU$4:$BA$42,2,0)),"",VLOOKUP($A21,Extract!$AU$4:$BA$42,6,0)) ->  | U21: =IF(ISNA(VLOOKUP($A21,Extract!$AU$4:$BA$42,2,0)),"",VLOOKUP($A21,Extract!$AU$4:$BA$42,7,0)) -> 
A22: 19 | B22: =IF(ISNA(VLOOKUP($A22,Extract!$AC$4:$AJ$42,2,0)),"",VLOOKUP(VLOOKUP($A22,Extract!$AC$4:$AJ$42,2,0),Players!$A$2:$B$91,2)) ->  | C22: =IF(ISNA(VLOOKUP($A22,Extract!$AC$4:$AJ$42,2,0)),"",VLOOKUP($A22,Extract!$AC$4:$AJ$42,3,0)) ->  | D22: =IF(ISNA(VLOOKUP($A22,Extract!$AC$4:$AJ$42,2,0)),"",VLOOKUP($A22,Extract!$AC$4:$AJ$42,4,0)) ->  | E22: =IF(ISNA(VLOOKUP($A22,Extract!$AC$4:$AJ$42,2,0)),"",VLOOKUP($A22,Extract!$AC$4:$AJ$42,5,0)) ->  | F22: =IF(ISNA(VLOOKUP($A22,Extract!$AC$4:$AJ$42,2,0)),"",VLOOKUP($A22,Extract!$AC$4:$AJ$42,6,0)) ->  | G22: =IF(ISNA(VLOOKUP($A22,Extract!$AC$4:$AJ$42,2,0)),"",VLOOKUP($A22,Extract!$AC$4:$AJ$42,7,0)) ->  | I22: =IF(ISNA(VLOOKUP($A22,Extract!$AL$4:$AS$40,2,0)),"",VLOOKUP(VLOOKUP($A22,Extract!$AL$4:$AS$40,2,0),Players!$A$2:$B$95,2)) ->  | J22: =IF(ISNA(VLOOKUP($A22,Extract!$AL$4:$AS$42,2,0)),"",VLOOKUP($A22,Extract!$AL$4:$AS$42,3,0)) ->  | K22: =IF(ISNA(VLOOKUP($A22,Extract!$AL$4:$AS$42,2,0)),"",VLOOKUP($A22,Extract!$AL$4:$AS$42,4,0)) ->  | L22: =IF(ISNA(VLOOKUP($A22,Extract!$AL$4:$AS$42,2,0)),"",VLOOKUP($A22,Extract!$AL$4:$AS$42,5,0)) ->  | M22: =IF(ISNA(VLOOKUP($A22,Extract!$AL$4:$AS$42,2,0)),"",VLOOKUP($A22,Extract!$AL$4:$AS$42,6,0)) ->  | N22: =IF(ISNA(VLOOKUP($A22,Extract!$AL$4:$AS$42,2,0)),"",VLOOKUP($A22,Extract!$AL$4:$AS$42,7,0)) ->  | P22: =IF(ISNA(VLOOKUP($A22,Extract!$AU$4:$BB$40,2,0)),"",VLOOKUP(VLOOKUP($A22,Extract!$AU$4:$BB$40,2,0),Players!$A$2:$B$95,2)) ->  | Q22: =IF(ISNA(VLOOKUP($A22,Extract!$AU$4:$BA$42,2,0)),"",VLOOKUP($A22,Extract!$AU$4:$BA$42,3,0)) ->  | R22: =IF(ISNA(VLOOKUP($A22,Extract!$AU$4:$BA$42,2,0)),"",VLOOKUP($A22,Extract!$AU$4:$BA$42,4,0)) ->  | S22: =IF(ISNA(VLOOKUP($A22,Extract!$AU$4:$BA$42,2,0)),"",VLOOKUP($A22,Extract!$AU$4:$BA$42,5,0)) ->  | T22: =IF(ISNA(VLOOKUP($A22,Extract!$AU$4:$BA$42,2,0)),"",VLOOKUP($A22,Extract!$AU$4:$BA$42,6,0)) ->  | U22: =IF(ISNA(VLOOKUP($A22,Extract!$AU$4:$BA$42,2,0)),"",VLOOKUP($A22,Extract!$AU$4:$BA$42,7,0)) -> 
A23: 20 | B23: =IF(ISNA(VLOOKUP($A23,Extract!$AC$4:$AJ$42,2,0)),"",VLOOKUP(VLOOKUP($A23,Extract!$AC$4:$AJ$42,2,0),Players!$A$2:$B$91,2)) ->  | C23: =IF(ISNA(VLOOKUP($A23,Extract!$AC$4:$AJ$42,2,0)),"",VLOOKUP($A23,Extract!$AC$4:$AJ$42,3,0)) ->  | D23: =IF(ISNA(VLOOKUP($A23,Extract!$AC$4:$AJ$42,2,0)),"",VLOOKUP($A23,Extract!$AC$4:$AJ$42,4,0)) ->  | E23: =IF(ISNA(VLOOKUP($A23,Extract!$AC$4:$AJ$42,2,0)),"",VLOOKUP($A23,Extract!$AC$4:$AJ$42,5,0)) ->  | F23: =IF(ISNA(VLOOKUP($A23,Extract!$AC$4:$AJ$42,2,0)),"",VLOOKUP($A23,Extract!$AC$4:$AJ$42,6,0)) ->  | G23: =IF(ISNA(VLOOKUP($A23,Extract!$AC$4:$AJ$42,2,0)),"",VLOOKUP($A23,Extract!$AC$4:$AJ$42,7,0)) ->  | I23: =IF(ISNA(VLOOKUP($A23,Extract!$AL$4:$AS$40,2,0)),"",VLOOKUP(VLOOKUP($A23,Extract!$AL$4:$AS$40,2,0),Players!$A$2:$B$95,2)) ->  | J23: =IF(ISNA(VLOOKUP($A23,Extract!$AL$4:$AS$42,2,0)),"",VLOOKUP($A23,Extract!$AL$4:$AS$42,3,0)) ->  | K23: =IF(ISNA(VLOOKUP($A23,Extract!$AL$4:$AS$42,2,0)),"",VLOOKUP($A23,Extract!$AL$4:$AS$42,4,0)) ->  | L23: =IF(ISNA(VLOOKUP($A23,Extract!$AL$4:$AS$42,2,0)),"",VLOOKUP($A23,Extract!$AL$4:$AS$42,5,0)) ->  | M23: =IF(ISNA(VLOOKUP($A23,Extract!$AL$4:$AS$42,2,0)),"",VLOOKUP($A23,Extract!$AL$4:$AS$42,6,0)) ->  | N23: =IF(ISNA(VLOOKUP($A23,Extract!$AL$4:$AS$42,2,0)),"",VLOOKUP($A23,Extract!$AL$4:$AS$42,7,0)) ->  | P23: =IF(ISNA(VLOOKUP($A23,Extract!$AU$4:$BB$40,2,0)),"",VLOOKUP(VLOOKUP($A23,Extract!$AU$4:$BB$40,2,0),Players!$A$2:$B$95,2)) ->  | Q23: =IF(ISNA(VLOOKUP($A23,Extract!$AU$4:$BA$42,2,0)),"",VLOOKUP($A23,Extract!$AU$4:$BA$42,3,0)) ->  | R23: =IF(ISNA(VLOOKUP($A23,Extract!$AU$4:$BA$42,2,0)),"",VLOOKUP($A23,Extract!$AU$4:$BA$42,4,0)) ->  | S23: =IF(ISNA(VLOOKUP($A23,Extract!$AU$4:$BA$42,2,0)),"",VLOOKUP($A23,Extract!$AU$4:$BA$42,5,0)) ->  | T23: =IF(ISNA(VLOOKUP($A23,Extract!$AU$4:$BA$42,2,0)),"",VLOOKUP($A23,Extract!$AU$4:$BA$42,6,0)) ->  | U23: =IF(ISNA(VLOOKUP($A23,Extract!$AU$4:$BA$42,2,0)),"",VLOOKUP($A23,Extract!$AU$4:$BA$42,7,0)) -> 
A24: 21 | B24: =IF(ISNA(VLOOKUP($A24,Extract!$AC$4:$AJ$42,2,0)),"",VLOOKUP(VLOOKUP($A24,Extract!$AC$4:$AJ$42,2,0),Players!$A$2:$B$91,2)) ->  | C24: =IF(ISNA(VLOOKUP($A24,Extract!$AC$4:$AJ$42,2,0)),"",VLOOKUP($A24,Extract!$AC$4:$AJ$42,3,0)) ->  | D24: =IF(ISNA(VLOOKUP($A24,Extract!$AC$4:$AJ$42,2,0)),"",VLOOKUP($A24,Extract!$AC$4:$AJ$42,4,0)) ->  | E24: =IF(ISNA(VLOOKUP($A24,Extract!$AC$4:$AJ$42,2,0)),"",VLOOKUP($A24,Extract!$AC$4:$AJ$42,5,0)) ->  | F24: =IF(ISNA(VLOOKUP($A24,Extract!$AC$4:$AJ$42,2,0)),"",VLOOKUP($A24,Extract!$AC$4:$AJ$42,6,0)) ->  | G24: =IF(ISNA(VLOOKUP($A24,Extract!$AC$4:$AJ$42,2,0)),"",VLOOKUP($A24,Extract!$AC$4:$AJ$42,7,0)) ->  | I24: =IF(ISNA(VLOOKUP($A24,Extract!$AL$4:$AS$40,2,0)),"",VLOOKUP(VLOOKUP($A24,Extract!$AL$4:$AS$40,2,0),Players!$A$2:$B$95,2)) ->  | J24: =IF(ISNA(VLOOKUP($A24,Extract!$AL$4:$AS$42,2,0)),"",VLOOKUP($A24,Extract!$AL$4:$AS$42,3,0)) ->  | K24: =IF(ISNA(VLOOKUP($A24,Extract!$AL$4:$AS$42,2,0)),"",VLOOKUP($A24,Extract!$AL$4:$AS$42,4,0)) ->  | L24: =IF(ISNA(VLOOKUP($A24,Extract!$AL$4:$AS$42,2,0)),"",VLOOKUP($A24,Extract!$AL$4:$AS$42,5,0)) ->  | M24: =IF(ISNA(VLOOKUP($A24,Extract!$AL$4:$AS$42,2,0)),"",VLOOKUP($A24,Extract!$AL$4:$AS$42,6,0)) ->  | N24: =IF(ISNA(VLOOKUP($A24,Extract!$AL$4:$AS$42,2,0)),"",VLOOKUP($A24,Extract!$AL$4:$AS$42,7,0)) ->  | P24: =IF(ISNA(VLOOKUP($A24,Extract!$AU$4:$BB$40,2,0)),"",VLOOKUP(VLOOKUP($A24,Extract!$AU$4:$BB$40,2,0),Players!$A$2:$B$95,2)) ->  | Q24: =IF(ISNA(VLOOKUP($A24,Extract!$AU$4:$BA$42,2,0)),"",VLOOKUP($A24,Extract!$AU$4:$BA$42,3,0)) ->  | R24: =IF(ISNA(VLOOKUP($A24,Extract!$AU$4:$BA$42,2,0)),"",VLOOKUP($A24,Extract!$AU$4:$BA$42,4,0)) ->  | S24: =IF(ISNA(VLOOKUP($A24,Extract!$AU$4:$BA$42,2,0)),"",VLOOKUP($A24,Extract!$AU$4:$BA$42,5,0)) ->  | T24: =IF(ISNA(VLOOKUP($A24,Extract!$AU$4:$BA$42,2,0)),"",VLOOKUP($A24,Extract!$AU$4:$BA$42,6,0)) ->  | U24: =IF(ISNA(VLOOKUP($A24,Extract!$AU$4:$BA$42,2,0)),"",VLOOKUP($A24,Extract!$AU$4:$BA$42,7,0)) -> 
B26: Tables are ranked on the per match Relative Score for that Division

Sheet Pivots (hidden)
B1: Match | C1: (Multiple Items) | D1: All From 18/19 Season (19/20) | G1: Use the filter to edit | K1: Match | L1: (Multiple Items)
A2: PT2 | G2: Put a description in the Y box | J2: PT3 | S2: PT4 | AA2: PT5 | AG2: PT1 | AP2: PT6
B3: Row Labels | C3: Count of Match | D3: Sum of Butler | E3: Sum of Relative | G3: Current Season | K3: Row Labels | L3: Sum of Relative | M3: Count of Match | N3: Sum of Butler | T3: Row Labels | U3: Sum of Butler | V3: Sum of MatchS | W3: Name | AB3: Row Labels | AC3: Average of Relative | AD3: Average of Butler | AH3: Player1 | AI3: RB | AQ3: Player1 | AR3: RB | AX3: Sum of Butler | AY3: Column Labels
B4: AKA | C4: 3 | D4: -31 | E4: -73 | K4: AKM | L4: -21.5 | M4: 1 | N4: -10 | T4: AKA | U4: -38 | V4: 143 | W4: =IF(T4="","",VLOOKUP(T4,Players!$A$2:$B$98,2)) -> Ashok Kwatra | AB4: AKA | AC4: -10.53571429 | AD4: -5.428571429 | AX4: Row Labels | AY4: 1 | AZ4: 2 | BA4: 3
B5: 3 | C5: 3 | D5: -31 | E5: -73 | K5: 1 | L5: -21.5 | M5: 1 | N5: -10 | T5: AKM | U5: 14 | V5: 96 | W5: =IF(T5="","",VLOOKUP(T5,Players!$A$2:$B$98,2)) -> Andrew Kambites | AB5: DS | AC5: 15 | AD5: 18 | AJ5: Values | AR5: Values | AX5: 1 | AY5: -192 | AZ5: -74 | BA5: 4
B6: AKM | C6: 1 | D6: -10 | E6: -21.5 | K6: APR | L6: 20 | M6: 2 | N6: 63 | T6: APO | U6: -33 | V6: -13 | W6: =IF(T6="","",VLOOKUP(T6,Players!$A$2:$B$98,2)) -> Andrea Powell | AB6: LH | AC6: -20.75 | AD6: -14.8 | AH6: Row Labels | AI6: Player2 | AJ6: Average of Team | AK6: Sum of Butler | AL6: Sum of MatchS | AM6: Sum of Relative | AQ6: Row Labels | AR6: Count of Match | AS6: Sum of Butler | AT6: Sum of Relative | AX6: 2 | AY6: 246 | AZ6: 258 | BA6: 122
B7: 1 | C7: 1 | D7: -10 | E7: -21.5 | K7: 3 | L7: 20 | M7: 2 | N7: 63 | T7: APR | U7: 51 | V7: 324 | W7: =IF(T7="","",VLOOKUP(T7,Players!$A$2:$B$98,2)) -> Alison Pritchard | AB7: AKM | AC7: -5 | AD7: 7 | AH7: 1 | AQ7: AKM | AR7: 1 | AS7: -10 | AT7: -21.5 | AX7: 3 | AY7: 84 | AZ7: 84 | BA7: 6
B8: APR | C8: 4 | D8: 56 | E8: -13 | K8: AS | L8: -111.6325 | M8: 4 | N8: -85.74 | T8: AS | U8: -70.74 | V8: 237.57 | W8: =IF(T8="","",VLOOKUP(T8,Players!$A$2:$B$98,2)) -> Allan Sanis | AB8: RB | AC8: -21.5 | AD8: -10 | AI8: GW | AJ8: 1 | AK8: -52 | AL8: -96 | AM8: -28 | AQ8: GW | AR8: 13 | AS8: 78.72 | AT8: -100.8975 | AX8: 4 | AY8: 100 | AZ8: 56 | BA8: -28
B9: 3 | C9: 4 | D9: 56 | E9: -13 | K9: 1 | L9: -38.5 | M9: 1 | N9: -16 | T9: AW | U9: -64 | V9: 46 | W9: =IF(T9="","",VLOOKUP(T9,Players!$A$2:$B$98,2)) -> Alan Wearmouth | AB9: RCM | AC9: 11.5 | AD9: 24 | AH9: 3 | AQ9: KST | AR9: 2 | AS9: 3 | AT9: -15 | AX9: 5 | AY9: 122 | AZ9: 20 | BA9: -26
B10: AS | C10: 6 | D10: -69.74 | E10: -125.3825 | K10: 3 | L10: -73.1325 | M10: 3 | N10: -69.74 | T10: BR | U10: 165.36 | V10: 217.14 | W10: =IF(T10="","",VLOOKUP(T10,Players!$A$2:$B$98,2)) -> Ben Ritacca | AB10: APO | AC10: -29.75 | AD10: -33 | AI10: GW | AJ10: 1 | AK10: -13 | AL10: 42 | AM10: -23.5 | AX10: 6 | AY10: 152 | AZ10: 242 | BA10: 262
B11: 1 | C11: 1 | D11: -16 | E11: -38.5 | K11: AW | L11: -47.75 | M11: 2 | N11: -37 | T11: BY | U11: 21 | V11: 79 | W11: =IF(T11="","",VLOOKUP(T11,Players!$A$2:$B$98,2)) -> Bryony Youngs | AB11: SP | AC11: -29.75 | AD11: -33 | AH11: 5 | AX11: 7 | AY11: 142 | AZ11: -64 | BA11: -70
B12: 3 | C12: 5 | D12: -53.74 | E12: -86.8825 | K12: 1 | L12: -47.75 | M12: 2 | N12: -37 | T12: CRO | U12: 147.07 | V12: 430.87 | W12: =IF(T12="","",VLOOKUP(T12,Players!$A$2:$B$98,2)) -> Claire Robinson | AB12: APR | AC12: -3.333333333 | AD12: 5.666666667 | AI12: GW | AJ12: 1 | AK12: 37 | AL12: 61 | AM12: 21.75 | AX12: 11 | AY12: -2 | AZ12: 12 | BA12: 216
B13: AW | C13: 3 | D13: -64 | E13: -75.5 | K13: BR | L13: 111.075 | M13: 5 | N13: 165.36 | T13: DA | U13: 51 | V13: 324 | W13: =IF(T13="","",VLOOKUP(T13,Players!$A$2:$B$98,2)) -> David Atthey | AB13: DA | AC13: -3.333333333 | AD13: 5.666666667 | AH13: 6 | AX13: 12 | AY13: 199.74 | AZ13: 17.82 | BA13: -70.5
B14: 1 | C14: 2 | D14: -37 | E14: -47.75 | K14: 2 | L14: 7.075 | M14: 2 | N14: 19.36 | T14: DN | U14: -25 | V14: 18 | W14: =IF(T14="","",VLOOKUP(T14,Players!$A$2:$B$98,2)) -> Diana Nettleton | AB14: AS | AC14: -14.45916667 | AD14: -7.86 | AI14: GW | AJ14: 1 | AK14: 16 | AL14: 76 | AM14: -3 | AX14: 13 | AY14: 138 | AZ14: 198 | BA14: 262
B15: 2 | C15: 1 | D15: -27 | E15: -27.75 | K15: 3 | L15: 104 | M15: 3 | N15: 146 | T15: DS | U15: 36 | V15: 24 | W15: =IF(T15="","",VLOOKUP(T15,Players!$A$2:$B$98,2)) -> David Simons | AB15: GW | AC15: -38.5 | AD15: -16 | AH15: 7 | AX15: 14 | AY15: 242 | AZ15: 60 | BA15: 186
B16: BR | C16: 5 | D16: 165.36 | E16: 111.075 | K16: CRO | L16: 56.25 | M16: 1 | N16: 104 | T16: GW | U16: 79.72 | V16: 981.47 | W16: =IF(T16="","",VLOOKUP(T16,Players!$A$2:$B$98,2)) -> Gary Watson | AB16: IC | AC16: 10.5 | AD16: 13 | AI16: KST | AJ16: 1 | AK16: -19 | AL16: 71 | AM16: -36.75 | AX16: 15 | AY16: 114 | AZ16: 114 | BA16: 22
B17: 2 | C17: 2 | D17: 19.36 | E17: 7.075 | K17: 1 | L17: 56.25 | M17: 1 | N17: 104 | T17: IC | U17: 55 | V17: 190 | W17: =IF(T17="","",VLOOKUP(T17,Players!$A$2:$B$98,2)) -> Ian Constable | AB17: JSI | AC17: -36.5 | AD17: -12 | AH17: 11 | AX17: 16 | AY17: 24 | AZ17: 6 | BA17: -66
B18: 3 | C18: 3 | D18: 146 | E18: 104 | K18: DA | L18: 20 | M18: 2 | N18: 63 | T18: JA | U18: -47.55 | V18: -66.43 | W18: =IF(T18="","",VLOOKUP(T18,Players!$A$2:$B$98,2)) -> Ian Constable | AB18: JUS | AC18: -10.93875 | AD18: -9.29 | AI18: GW | AJ18: 1 | AK18: -11 | AL18: -1 | AM18: -10.75 | AX18: 21 | AY18: 382 | AZ18: 134 | BA18: 128
B19: CRO | C19: 4 | D19: 127.07 | E19: 37.1025 | K19: 3 | L19: 20 | M19: 2 | N19: 63 | T19: JAN | U19: 74.08 | V19: 975.51 | W19: =IF(T19="","",VLOOKUP(T19,Players!$A$2:$B$98,2)) -> Joe Angseesing | AB19: BY | AC19: 0.4166666667 | AD19: 7 | AH19: 12 | AX19: 22 | AY19: 2 | AZ19: 176 | BA19: 196
B20: 1 | C20: 4 | D20: 127.07 | E20: 37.1025 | K20: GW | L20: -46.72 | M20: 4 | N20: 45.18 | T20: JAR | U20: 96 | V20: 367 | W20: =IF(T20="","",VLOOKUP(T20,Players!$A$2:$B$98,2)) -> John Arblaster | AB20: DN | AC20: -14.75 | AD20: -12.5 | AI20: GW | AJ20: 1 | AK20: 9.54 | AL20: 99.87 | AM20: -15.4275 | AX20: 23 | AY20: 92 | AZ20: -130 | BA20: 176
B21: DA | C21: 4 | D21: 56 | E21: -13 | K21: 1 | L21: -46.72 | M21: 4 | N21: 45.18 | T21: JAT | U21: 144.07 | V21: 553.87 | W21: =IF(T21="","",VLOOKUP(T21,Players!$A$2:$B$98,2)) -> John Atthey | AB21: PD | AC21: 30.75 | AD21: 46 | AH21: 13 | AX21: 24 | AY21: -6 | AZ21: -64 | BA21: -36
B22: 3 | C22: 4 | D22: 56 | E22: -13 | K22: JAN | L22: -47.77 | M22: 5 | N22: 56.63 | T22: JC | U22: 99.43 | V22: 330.05 | W22: =IF(T22="","",VLOOKUP(T22,Players!$A$2:$B$98,2)) -> John Councer | AB22: CRO | AC22: 7.8705 | AD22: 29.414 | AI22: GW | AJ22: 1 | AK22: 26 | AL22: 69 | AM22: 8.75 | AX22: 25 | AY22: 180 | AZ22: -4 | BA22: 168
B23: GW | C23: 10 | D23: 74.72 | E23: -106.6475 | K23: 1 | L23: -47.77 | M23: 5 | N23: 56.63 | T23: JSI | U23: 77.86 | V23: 583.48 | W23: =IF(T23="","",VLOOKUP(T23,Players!$A$2:$B$98,2)) -> Jim Simons | AB23: JAT | AC23: 7.8705 | AD23: 29.414 | AH23: 14 | AX23: 26 | AY23: 179.2 | AZ23: 102.28 | BA23: -132.86
B24: 1 | C24: 10 | D24: 74.72 | E24: -106.6475 | K24: JAR | L24: -29 | M24: 3 | N24: 30 | T24: JUS | U24: -55.74 | V24: 39.57 | W24: =IF(T24="","",VLOOKUP(T24,Players!$A$2:$B$98,2)) -> Judy Sanis | AB24: DA | AC24: -3.333333333 | AD24: 5.666666667 | AI24: GW | AJ24: 1 | AK24: 20 | AL24: 121 | AM24: -10.25 | AX24: 27 | AY24: 0 | AZ24: 0 | BA24: 0
B25: JAN | C25: 9 | D25: 97.08 | E25: -71.2975 | K25: 2 | L25: -32 | M25: 1 | N25: -10 | T25: KAS | U25: 39.62 | V25: 87.75 | W25: =IF(T25="","",VLOOKUP(T25,Players!$A$2:$B$98,2)) -> Anne Swannell | AB25: APR | AC25: -3.333333333 | AD25: 5.666666667 | AH25: 15 | AX25: 31 | AY25: 0 | AZ25: 0 | BA25: 0
B26: 1 | C26: 8 | D26: 67.63 | E26: -98.52 | K26: 3 | L26: 3 | M26: 2 | N26: 40 | T26: KST | U26: 75.08 | V26: 813.51 | W26: =IF(T26="","",VLOOKUP(T26,Players!$A$2:$B$98,2)) -> Keith Stanley | AB26: DN | AC26: -14.75 | AD26: -12.5 | AI26: GW | AJ26: 1 | AK26: 2 | AL26: 57 | AM26: -12.25 | AX26: 32 | AY26: 0 | AZ26: 0 | BA26: 0
B27: 2 | C27: 1 | D27: 29.45 | E27: 27.2225 | K27: JAT | L27: 56.25 | M27: 1 | N27: 104 | T27: LH | U27: -49 | V27: 108 | W27: =IF(T27="","",VLOOKUP(T27,Players!$A$2:$B$98,2)) -> Lesley Harrison | AB27: BY | AC27: -14.75 | AD27: -12.5 | AH27: 16 | AX27: 33 | AY27: 0 | AZ27: 0 | BA27: 0
B28: JAR | C28: 5 | D28: 34 | E28: -50.5 | K28: 1 | L28: 56.25 | M28: 1 | N28: 104 | T28: MB | U28: 48.45 | V28: 300.57 | W28: =IF(T28="","",VLOOKUP(T28,Players!$A$2:$B$98,2)) -> Mel Barlow | AB28: DS | AC28: 15 | AD28: 18 | AI28: GW | AJ28: 1 | AK28: -17 | AL28: 12 | AM28: -20 | AX28: 34 | AY28: 0 | AZ28: 0 | BA28: 0
B29: 2 | C29: 3 | D29: -6 | E29: -53.5 | K29: JC | L29: -3.885 | M29: 4 | N29: 8.9 | T29: ML | U29: -31 | V29: -18 | W29: =IF(T29="","",VLOOKUP(T29,Players!$A$2:$B$98,2)) -> Mike Lewis | AB29: AKA | AC29: 15 | AD29: 18 | AH29: 21 | AX29: 35 | AY29: 0 | AZ29: 0 | BA29: 0
B30: 3 | C30: 2 | D30: 40 | E30: 3 | K30: 2 | L30: -3.885 | M30: 4 | N30: 8.9 | T30: MR | U30: 128.43 | V30: 469.05 | W30: =IF(T30="","",VLOOKUP(T30,Players!$A$2:$B$98,2)) -> Mark Rogers | AB30: GW | AC30: -10.35296875 | AD30: 4.9825 | AI30: GW | AJ30: 1 | AK30: 31 | AL30: 191 | AM30: -16.75 | AX30: 36 | AY30: 0 | AZ30: 0 | BA30: 0
B31: JAT | C31: 4 | D31: 127.07 | E31: 37.1025 | K31: JSI | L31: -32.0225 | M31: 7 | N31: 13.12 | T31: MW | U31: 152.34 | V31: 595.05 | W31: =IF(T31="","",VLOOKUP(T31,Players!$A$2:$B$98,2)) -> Mike Wignall | AB31: AS | AC31: -38.5 | AD31: -16 | AH31: 22 | AX31: 37 | AY31: 0 | AZ31: 0 | BA31: 0
B32: 1 | C32: 4 | D32: 127.07 | E32: 37.1025 | K32: 2 | L32: -4.75 | M32: 2 | N32: -29 | T32: PD | U32: 515.51 | V32: 1099.47 | W32: =IF(T32="","",VLOOKUP(T32,Players!$A$2:$B$98,2)) -> Paul Denning | AB32: JAT | AC32: -33.75 | AD32: -3 | AI32: KST | AJ32: 1 | AK32: 22 | AL32: 1 | AM32: 21.75 | AX32: 38 | AY32: 0 | AZ32: 0 | BA32: 0
B33: JC | C33: 9 | D33: 34.43 | E33: -26.8325 | K33: 3 | L33: -27.2725 | M33: 5 | N33: 42.12 | T33: PL | U33: 200.73 | V33: 408.14 | W33: =IF(T33="","",VLOOKUP(T33,Players!$A$2:$B$98,2)) -> Paul Lilley | AB33: PSH | AC33: 7.5 | AD33: 20 | AH33: 23 | AX33: 39 | AY33: 0 | AZ33: 0 | BA33: 0
B34: 1 | C34: 1 | D34: -7 | E34: -6.75 | K34: JUS | L34: -36.6325 | M34: 2 | N34: -57.74 | T34: PPE | U34: 104 | V34: 354 | W34: =IF(T34="","",VLOOKUP(T34,Players!$A$2:$B$98,2)) -> Pam Pearce | AB34: RB | AC34: -7.761346154 | AD34: 6.055384615 | AI34: AKM | AJ34: 1 | AK34: -10 | AL34: 46 | AM34: -21.5 | AX34: 40 | AY34: 0 | AZ34: 0 | BA34: 0
B35: 2 | C35: 8 | D35: 41.43 | E35: -20.0825 | K35: 3 | L35: -36.6325 | M35: 2 | N35: -57.74 | T35: PPH | U35: 115.89 | V35: 561.05 | W35: =IF(T35="","",VLOOKUP(T35,Players!$A$2:$B$98,2)) -> Patrick Phair | AB35: IC | AC35: 1.071428571 | AD35: 7.857142857 | AH35: 24 | AX35: 41 | AY35: 0 | AZ35: 0 | BA35: 0
B36: JSI | C36: 12 | D36: 75.86 | E36: 4.49 | K36: KST | L36: 28.98 | M36: 4 | N36: 85.63 | T36: PSH | U36: 506.54 | V36: 958.47 | W36: =IF(T36="","",VLOOKUP(T36,Players!$A$2:$B$98,2)) -> Patrick Shields | AB36: AS | AC36: 10.5 | AD36: 13 | AI36: GW | AJ36: 1 | AK36: 26 | AL36: -3 | AM36: 26.75 | AX36: 42 | AY36: 0 | AZ36: 0 | BA36: 0
B37: 2 | C37: 7 | D37: 33.74 | E37: 31.7625 | K37: 1 | L37: 28.98 | M37: 4 | N37: 85.63 | T37: PSW | U37: 252.73 | V37: 400.14 | W37: =IF(T37="","",VLOOKUP(T37,Players!$A$2:$B$98,2)) -> Peter Swales | AB37: VC | AC37: -0.5 | AD37: 7 | AH37: 26 | AX37: 43 | AY37: 0 | AZ37: 0 | BA37: 0
B38: 3 | C38: 5 | D38: 42.12 | E38: -27.2725 | K38: MB | L38: -59.9425 | M38: 4 | N38: -17.55 | T38: PW | U38: 176.29 | V38: 625.32 | W38: =IF(T38="","",VLOOKUP(T38,Players!$A$2:$B$98,2)) -> Peter Waggett | AB38: JAN | AC38: -13.06134615 | AD38: 5.698461538 | AI38: GW | AJ38: 1 | AK38: 4.18 | AL38: 89.6 | AM38: -18.22 | AX38: 44 | AY38: 0 | AZ38: 0 | BA38: 0
B39: JUS | C39: 4 | D39: -41.74 | E39: -50.3825 | K39: 2 | L39: -32 | M39: 1 | N39: -10 | T39: RB | U39: 71.72 | V39: 836.47 | W39: =IF(T39="","",VLOOKUP(T39,Players!$A$2:$B$98,2)) -> Richard Butland | AB39: KST | AC39: -11.32975 | AD39: 7.208 | AX39: 45 | AY39: 0 | AZ39: 0 | BA39: 0
B40: 3 | C40: 4 | D40: -41.74 | E40: -50.3825 | K40: 3 | L40: -27.9425 | M40: 3 | N40: -7.55 | T40: RCM | U40: 493.54 | V40: 1092.47 | W40: =IF(T40="","",VLOOKUP(T40,Players!$A$2:$B$98,2)) -> Richard Chamberlain | AB40: RCM | AC40: -15.75 | AD40: 32 | AX40: 46 | AY40: 0 | AZ40: 0 | BA40: 0
B41: KAS | C41: 2 | D41: 14.62 | E41: -9.3175 | K41: ML | L41: -26.5 | M41: 1 | N41: -31 | T41: RCO | U41: 37 | V41: 322 | W41: =IF(T41="","",VLOOKUP(T41,Players!$A$2:$B$98,2)) -> Roy Collard | AB41: WA | AC41: -20.375 | AD41: -15 | AX41: 47 | AY41: 0 | AZ41: 0 | BA41: 0
B42: 3 | C42: 2 | D42: 14.62 | E42: -9.3175 | K42: 3 | L42: -26.5 | M42: 1 | N42: -31 | T42: RHA | U42: 177.1 | V42: 487.89 | W42: =IF(T42="","",VLOOKUP(T42,Players!$A$2:$B$98,2)) -> Richard Harris | AB42: JAR | AC42: 0.6071428571 | AD42: 13.71428571 | AX42: 48 | AY42: 0 | AZ42: 0 | BA42: 0
B43: KST | C43: 8 | D43: 126.08 | E43: 5.4525 | K43: MR | L43: -62.885 | M43: 5 | N43: -58.1 | T43: RJ | U43: 131.29 | V43: 485.32 | W43: =IF(T43="","",VLOOKUP(T43,Players!$A$2:$B$98,2)) -> Roger Jackson | AB43: MB | AC43: 0.6071428571 | AD43: 13.71428571 | AX43: 49 | AY43: 0 | AZ43: 0 | BA43: 0
B44: 1 | C44: 7 | D44: 96.63 | E44: -21.77 | K44: 2 | L44: -62.885 | M44: 5 | N44: -58.1 | T44: RPL | U44: 420.51 | V44: 981.47 | W44: =IF(T44="","",VLOOKUP(T44,Players!$A$2:$B$98,2)) -> Richard Plackett | AB44: JAT | AC44: 0.93375 | AD44: 24.01166667 | AX44: 50 | AY44: 0 | AZ44: 0 | BA44: 0
B45: 2 | C45: 1 | D45: 29.45 | E45: 27.2225 | K45: MW | L45: 47.365 | M45: 5 | N45: 112.15 | T45: RS | U45: 160.84 | V45: 363.75 | W45: =IF(T45="","",VLOOKUP(T45,Players!$A$2:$B$98,2)) -> Roger Schofield | AB45: CRO | AC45: 7.8705 | AD45: 29.414 | AX45: 51 | AY45: 0 | AZ45: 0 | BA45: 0
B46: LH | C46: 3 | D46: -31 | E46: -73 | K46: 2 | L46: 44.365 | M46: 3 | N46: 71.15 | T46: RW | U46: -18.38 | V46: 66.75 | W46: =IF(T46="","",VLOOKUP(T46,Players!$A$2:$B$98,2)) -> Roger Williams | AB46: GW | AC46: -33.75 | AD46: -3 | AX46: Grand Total | AY46: 2198.94 | AZ46: 1144.1 | BA46: 1318.64
B47: 3 | C47: 3 | D47: -31 | E47: -73 | K47: 3 | L47: 3 | M47: 2 | N47: 41 | T47: SP | U47: -33 | V47: -13 | W47: =IF(T47="","",VLOOKUP(T47,Players!$A$2:$B$98,2)) -> Stan Powell | AB47: JC | AC47: 1.409791667 | AD47: 8.285833333
B48: MB | C48: 6 | D48: -13.55 | E48: -81.4425 | K48: PD | L48: 5.26 | M48: 6 | N48: 108.91 | T48: TG | U48: 11.74 | V48: 270.75 | W48: =IF(T48="","",VLOOKUP(T48,Players!$A$2:$B$98,2)) -> Tricia Gilham | AB48: MR | AC48: 1.409791667 | AD48: 8.285833333
B49: 2 | C49: 3 | D49: -6 | E49: -53.5 | K49: 1 | L49: 5.26 | M49: 6 | N49: 108.91 | T49: TH | U49: -64 | V49: 46 | W49: =IF(T49="","",VLOOKUP(T49,Players!$A$2:$B$98,2)) -> Tony Hill | AB49: JSI | AC49: -3.778333333 | AD49: 4.325555556
B50: 3 | C50: 3 | D50: -7.55 | E50: -27.9425 | K50: PL | L50: 27.945 | M50: 5 | N50: 32.73 | T50: TL | U50: 160.84 | V50: 363.75 | W50: =IF(T50="","",VLOOKUP(T50,Players!$A$2:$B$98,2)) -> Tony Letts | AB50: AS | AC50: -36.5 | AD50: -12
B51: ML | C51: 1 | D51: -31 | E51: -26.5 | K51: 2 | L51: 27.945 | M51: 5 | N51: 32.73 | T51: VC | U51: 67.12 | V51: 262.57 | W51: =IF(T51="","",VLOOKUP(T51,Players!$A$2:$B$98,2)) -> Val Constable | AB51: PPH | AC51: -3.271590909 | AD51: 5.885454545
B52: 3 | C52: 1 | D52: -31 | E52: -26.5 | K52: PPE | L52: 2.25 | M52: 2 | N52: 41 | T52: WA | U52: 32.19 | V52: 436.91 | W52: =IF(T52="","",VLOOKUP(T52,Players!$A$2:$B$98,2)) -> Wendy Angseesing | AB52: VC | AC52: 0.74625 | AD52: 4.186666667
B53: MR | C53: 10 | D53: -32.57 | E53: -85.8325 | K53: 2 | L53: 2.25 | M53: 2 | N53: 41 | W53: =IF(T53="","",VLOOKUP(T53,Players!$A$2:$B$98,2)) ->  | AB53: JUS | AC53: -10.93875 | AD53: -9.29
B54: 1 | C54: 1 | D54: -7 | E54: -6.75 | K54: PPH | L54: 47.365 | M54: 4 | N54: 96.15 | W54: =IF(T54="","",VLOOKUP(T54,Players!$A$2:$B$98,2)) ->  | AB54: AS | AC54: -10.93875 | AD54: -9.29
B55: 2 | C55: 9 | D55: -25.57 | E55: -79.0825 | K55: 2 | L55: 44.365 | M55: 3 | N55: 71.15 | W55: =IF(T55="","",VLOOKUP(T55,Players!$A$2:$B$98,2)) ->  | AB55: KAS | AC55: 3.5365 | AD55: 7.924
B56: MW | C56: 9 | D56: 91.34 | E56: -9.4225 | K56: 3 | L56: 3 | M56: 1 | N56: 25 | W56: =IF(T56="","",VLOOKUP(T56,Players!$A$2:$B$98,2)) ->  | AB56: PSW | AC56: 26.25 | AD56: 27
B57: 2 | C57: 7 | D57: 50.34 | E57: -12.4225 | K57: PSH | L57: 80.48 | M57: 4 | N57: 124.88 | W57: =IF(T57="","",VLOOKUP(T57,Players!$A$2:$B$98,2)) ->  | AB57: RW | AC57: -2.141875 | AD57: 3.155
B58: 3 | C58: 2 | D58: 41 | E58: 3 | K58: 1 | L58: 80.48 | M58: 4 | N58: 124.88 | W58: =IF(T58="","",VLOOKUP(T58,Players!$A$2:$B$98,2)) ->  | AB58: KST | AC58: -10.69145833 | AD58: 6.256666667
B59: PD | C59: 12 | D59: 291.51 | E59: 98.3925 | K59: PSW | L59: 27.945 | M59: 5 | N59: 32.73 | W59: =IF(T59="","",VLOOKUP(T59,Players!$A$2:$B$98,2)) ->  | AB59: JAN | AC59: -11.32975 | AD59: 7.208
B60: 1 | C60: 12 | D60: 291.51 | E60: 98.3925 | K60: 2 | L60: 27.945 | M60: 5 | N60: 32.73 | W60: =IF(T60="","",VLOOKUP(T60,Players!$A$2:$B$98,2)) ->  | AB60: RB | AC60: -7.5 | AD60: 1.5
B61: PL | C61: 9 | D61: 200.73 | E61: 98.695 | K61: PW | L61: -8.6525 | M61: 6 | N61: 53.74 | W61: =IF(T61="","",VLOOKUP(T61,Players!$A$2:$B$98,2)) ->  | AB61: LH | AC61: -10.85714286 | AD61: -7
B62: 2 | C62: 6 | D62: 78.73 | E62: 59.695 | K62: 3 | L62: -8.6525 | M62: 6 | N62: 53.74 | W62: =IF(T62="","",VLOOKUP(T62,Players!$A$2:$B$98,2)) ->  | AB62: AKA | AC62: -20.75 | AD62: -14.8
B63: 3 | C63: 3 | D63: 122 | E63: 39 | K63: RB | L63: -7.97 | M63: 5 | N63: 73.18 | W63: =IF(T63="","",VLOOKUP(T63,Players!$A$2:$B$98,2)) ->  | AB63: PSW | AC63: 13.875 | AD63: 12.5
B64: PPE | C64: 6 | D64: 80 | E64: 17.25 | K64: 1 | L64: -7.97 | M64: 5 | N64: 73.18 | W64: =IF(T64="","",VLOOKUP(T64,Players!$A$2:$B$98,2)) ->  | AB64: MB | AC64: -3.3365625 | AD64: 6.05625
B65: 2 | C65: 6 | D65: 80 | E65: 17.25 | K65: RCM | L65: 64.73 | M65: 5 | N65: 156.88 | W65: =IF(T65="","",VLOOKUP(T65,Players!$A$2:$B$98,2)) ->  | AB65: JAR | AC65: 0.6071428571 | AD65: 13.71428571
B66: PPH | C66: 9 | D66: 158.89 | E66: 83.8775 | K66: 1 | L66: 64.73 | M66: 5 | N66: 156.88 | W66: =IF(T66="","",VLOOKUP(T66,Players!$A$2:$B$98,2)) ->  | AB66: JA | AC66: -30.9425 | AD66: -47.55
B67: 2 | C67: 8 | D67: 133.89 | E67: 80.8775 | K67: RCO | L67: -56.75 | M67: 3 | N67: -26 | W67: =IF(T67="","",VLOOKUP(T67,Players!$A$2:$B$98,2)) ->  | AB67: MR | AC67: 0.7445 | AD67: 8.562
B68: 3 | C68: 1 | D68: 25 | E68: 3 | K68: 2 | L68: -56.75 | M68: 3 | N68: -26 | W68: =IF(T68="","",VLOOKUP(T68,Players!$A$2:$B$98,2)) ->  | AB68: JC | AC68: 1.409791667 | AD68: 8.285833333
B69: PSH | C69: 10 | D69: 292.54 | E69: 158.6725 | K69: RHA | L69: 111.075 | M69: 5 | N69: 165.36 | W69: =IF(T69="","",VLOOKUP(T69,Players!$A$2:$B$98,2)) ->  | AB69: PW | AC69: 26.625 | AD69: 48
B70: 1 | C70: 10 | D70: 292.54 | E70: 158.6725 | K70: 2 | L70: 7.075 | M70: 2 | N70: 19.36 | W70: =IF(T70="","",VLOOKUP(T70,Players!$A$2:$B$98,2)) ->  | AB70: RCO | AC70: -59 | AD70: -67
B71: PSW | C71: 9 | D71: 200.73 | E71: 98.695 | K71: 3 | L71: 104 | M71: 3 | N71: 146 | W71: =IF(T71="","",VLOOKUP(T71,Players!$A$2:$B$98,2)) ->  | AB71: MW | AC71: 0.298125 | AD71: 12.695
B72: 2 | C72: 6 | D72: 78.73 | E72: 59.695 | K72: RJ | L72: -8.6525 | M72: 6 | N72: 53.74 | W72: =IF(T72="","",VLOOKUP(T72,Players!$A$2:$B$98,2)) ->  | AB72: PPH | AC72: 11.84125 | AD72: 24.0375
B73: 3 | C73: 3 | D73: 122 | E73: 39 | K73: 3 | L73: -8.6525 | M73: 6 | N73: 53.74 | W73: =IF(T73="","",VLOOKUP(T73,Players!$A$2:$B$98,2)) ->  | AB73: PW | AC73: -7.5 | AD73: -6
B74: PW | C74: 12 | D74: 102.29 | E74: -3.29 | K74: RPL | L74: 5.26 | M74: 6 | N74: 108.91 | W74: =IF(T74="","",VLOOKUP(T74,Players!$A$2:$B$98,2)) ->  | AB74: WA | AC74: -5.183928571 | AD74: 8.884285714
B75: 2 | C75: 1 | D75: -6 | E75: -7.5 | K75: 1 | L75: 5.26 | M75: 6 | N75: 108.91 | W75: =IF(T75="","",VLOOKUP(T75,Players!$A$2:$B$98,2)) ->  | AB75: PD | AC75: 12.66539474 | AD75: 27.13210526
B76: 3 | C76: 11 | D76: 108.29 | E76: 4.21 | K76: RS | L76: 18 | M76: 4 | N76: 40 | W76: =IF(T76="","",VLOOKUP(T76,Players!$A$2:$B$98,2)) ->  | AB76: BY | AC76: 30.75 | AD76: 46
B77: RB | C77: 11 | D77: 102.72 | E77: -67.8975 | K77: 2 | L77: 18 | M77: 4 | N77: 40 | W77: =IF(T77="","",VLOOKUP(T77,Players!$A$2:$B$98,2)) ->  | AB77: PSH | AC77: 34.75 | AD77: 49
B78: 1 | C78: 11 | D78: 102.72 | E78: -67.8975 | K78: RW | L78: -26.5 | M78: 1 | N78: -31 | W78: =IF(T78="","",VLOOKUP(T78,Players!$A$2:$B$98,2)) ->  | AB78: RPL | AC78: 10.3025 | AD78: 24.73588235
B79: RCM | C79: 10 | D79: 275.54 | E79: 108.1725 | K79: 3 | L79: -26.5 | M79: 1 | N79: -31 | W79: =IF(T79="","",VLOOKUP(T79,Players!$A$2:$B$98,2)) ->  | AB79: PPE | AC79: 1.55 | AD79: 10.4
B80: 1 | C80: 10 | D80: 275.54 | E80: 108.1725 | K80: TL | L80: 18 | M80: 4 | N80: 40 | W80: =IF(T80="","",VLOOKUP(T80,Players!$A$2:$B$98,2)) ->  | AB80: RCO | AC80: 1.55 | AD80: 10.4
B81: RCO | C81: 7 | D81: 13 | E81: -41.75 | K81: 2 | L81: 18 | M81: 4 | N81: 40 | W81: =IF(T81="","",VLOOKUP(T81,Players!$A$2:$B$98,2)) ->  | AB81: PPH | AC81: -1.52328125 | AD81: 7.243125
B82: 2 | C82: 7 | D82: 13 | E82: -41.75 | K82: VC | L82: 4.4775 | M82: 6 | N82: 25.12 | W82: =IF(T82="","",VLOOKUP(T82,Players!$A$2:$B$98,2)) ->  | AB82: JSI | AC82: -3.271590909 | AD82: 5.885454545
B83: RHA | C83: 9 | D83: 202.1 | E83: 138.6275 | K83: 2 | L83: -4.75 | M83: 2 | N83: -29 | W83: =IF(T83="","",VLOOKUP(T83,Players!$A$2:$B$98,2)) ->  | AB83: MW | AC83: 11.84125 | AD83: 24.0375
B84: 2 | C84: 4 | D84: 57.36 | E84: 18.825 | K84: 3 | L84: 9.2275 | M84: 4 | N84: 54.12 | W84: =IF(T84="","",VLOOKUP(T84,Players!$A$2:$B$98,2)) ->  | AB84: PW | AC84: -35.75 | AD84: -45
B85: 3 | C85: 5 | D85: 144.74 | E85: 119.8025 | K85: WA | L85: -39.25 | M85: 2 | N85: -23 | AB85: PSH | AC85: 16.68265625 | AD85: 31.65875
B86: RJ | C86: 11 | D86: 108.29 | E86: 4.21 | K86: 1 | L86: -39.25 | M86: 1 | N86: -39 | AB86: GW | AC86: 7.5 | AD86: 20
B87: 3 | C87: 11 | D87: 108.29 | E87: 4.21 | K87: 3 | L87: 0 | M87: 1 | N87: 16 | AB87: PD | AC87: 34.75 | AD87: 49
B88: RPL | C88: 11 | D88: 242.51 | E88: 63.6425 | K88: Grand Total | L88: 78.6925 | M88: 141 | N88: 1627.17 | AB88: RCM | AC88: 16.04803571 | AD88: 31.25285714
B89: 1 | C89: 11 | D89: 242.51 | E89: 63.6425 | AB89: PSW | AC89: 12.72458333 | AD89: 21.06083333
B90: RS | C90: 9 | D90: 146.84 | E90: 79.4025 | AB90: KAS | AC90: 26.25 | AD90: 27
B91: 2 | C91: 4 | D91: 40 | E91: 18 | AB91: LH | AC91: 13.875 | AD91: 12.5
B92: 3 | C92: 5 | D92: 106.84 | E92: 61.4025 | AB92: PL | AC92: 10.96611111 | AD92: 22.30333333
B93: RW | C93: 3 | D93: -16.38 | E93: -35.8175 | AB93: PW | AC93: 1.050526316 | AD93: 9.278421053
B94: 3 | C94: 3 | D94: -16.38 | E94: -35.8175 | AB94: MR | AC94: 26.625 | AD94: 48
B95: TG | C95: 4 | D95: 36.74 | E95: 27.5525 | AB95: MW | AC95: -7.5 | AD95: -6
B96: 2 | C96: 2 | D96: 38 | E96: 11.75 | AB96: PPH | AC96: -35.75 | AD96: -45
B97: 3 | C97: 2 | D97: -1.26 | E97: 15.8025 | AB97: RJ | AC97: 0.664 | AD97: 8.752666667
B98: TH | C98: 3 | D98: -64 | E98: -75.5 | AB98: RB | AC98: -8.58734375 | AD98: 4.4825
B99: 1 | C99: 2 | D99: -37 | E99: -47.75 | AB99: AKM | AC99: -21.5 | AD99: -10
B100: 2 | C100: 1 | D100: -27 | E100: -27.75 | AB100: GW | AC100: -7.761346154 | AD100: 6.055384615
B101: TL | C101: 9 | D101: 146.84 | E101: 79.4025 | AB101: KST | AC101: -7.5 | AD101: 1.5
B102: 2 | C102: 4 | D102: 40 | E102: 18 | AB102: RCM | AC102: 13.77640625 | AD102: 30.84625
B103: 3 | C103: 5 | D103: 106.84 | E103: 61.4025 | AB103: JAN | AC103: -15.75 | AD103: 32
B104: VC | C104: 6 | D104: 25.12 | E104: 4.4775 | AB104: AKM | AC104: 11.5 | AD104: 24
B105: 2 | C105: 2 | D105: -29 | E105: -4.75 | AB105: PSH | AC105: 16.04803571 | AD105: 31.25285714
B106: 3 | C106: 4 | D106: 54.12 | E106: 9.2275 | AB106: RCO | AC106: -3.954545455 | AD106: 3.363636364
B107: WA | C107: 5 | D107: -37.81 | E107: -88.5375 | AB107: MR | AC107: -59 | AD107: -67
B108: 1 | C108: 1 | D108: -39 | E108: -39.25 | AB108: PPE | AC108: 1.55 | AD108: 10.4
B109: 2 | C109: 3 | D109: -14.81 | E109: -49.2875 | AB109: RHA | AC109: 3.675166667 | AD109: 11.80666667
B110: 3 | C110: 1 | D110: 16 | E110: 0 | AB110: TG | AC110: -5.59475 | AD110: 1.174
B111: (blank) | C111: 264 | E111: 0 | AB111: BR | AC111: 22.215 | AD111: 33.072
B112: 1 | C112: 88 | E112: 0 | AB112: RJ | AC112: 0.664 | AD112: 8.752666667
B113: 2 | C113: 88 | E113: 0 | AB113: PW | AC113: 0.664 | AD113: 8.752666667
B114: 3 | C114: 88 | E114: 0 | AB114: RPL | AC114: 10.3025 | AD114: 24.73588235
B115: (blank) | AB115: PD | AC115: 10.3025 | AD115: 24.73588235
B116: Grand Total | C116: 551 | D116: 3263.23 | E116: 30.9425 | AB116: RS | AC116: 6.354772727 | AD116: 14.62181818
AB117: TL | AC117: 6.354772727 | AD117: 14.62181818
AB118: RW | AC118: -7.0135 | AD118: -3.676
AB119: KAS | AC119: -2.141875 | AD119: 3.155
AB120: ML | AC120: -26.5 | AD120: -31
AB121: SP | AC121: -29.75 | AD121: -33
AB122: APO | AC122: -29.75 | AD122: -33
AB123: TG | AC123: -5.59475 | AD123: 1.174
AB124: RHA | AC124: -5.59475 | AD124: 1.174
AB125: TL | AC125: 6.354772727 | AD125: 14.62181818
AB126: RS | AC126: 6.354772727 | AD126: 14.62181818
AB127: VC | AC127: 0.123125 | AD127: 5.593333333
AB128: IC | AC128: -0.5 | AD128: 7
AB129: JSI | AC129: 0.74625 | AD129: 4.186666667
AB130: WA | AC130: -8.559722222 | AD130: 3.576666667
AB131: JAN | AC131: -20.375 | AD131: -15
AB132: MW | AC132: -5.183928571 | AD132: 8.884285714
AB133: Grand Total | AC133: -0.00305875576 | AD133: 10.37359447

Sheet Extract (hidden)
Y2: Apps | Z2: (Multiple Items) | AD2: Team | AE2: 1 | AM2: Team | AN2: 2 | AV2: Team | AW2: 3
C3: Overall | J3: Partners | S3: For Summary
C4: PLAYER | D4: Div | E4: Apps | F4: Butler | G4: Relative | J4: Match | M4: Average of Team | N4: Sum of Butler | O4: Sum of MatchS | P4: Sum of Relative | S4: Row Labels | T4: Average of Guess T | U4: Apps | Y4: Row Labels | Z4: Team | AA4: Appear | AC4: Rank | AD4: Row Labels | AE4: Apps | AF4: Score | AG4: 1 | AH4: 2 | AI4: 3 | AJ4: Sort | AL4: Rank | AM4: Row Labels | AP4: 1 | AQ4: 2 | AR4: 3 | AS4: Sort | AU4: Rank | AV4: Row Labels | AY4: 1 | AZ4: 2 | BA4: 3 | BB4: Sort
C5: =Presentation!E5 -> RB | D5: 1 | E5: =IFERROR(GETPIVOTDATA("Count of Match",Pivots!$B$3,"Player2",Extract!$C$5,"Team",D5),"") -> 11 | F5: =IFERROR(GETPIVOTDATA("Sum of Butler",Pivots!$B$3,"Player2",$C$5,"Team",D5),"") -> 102.72 | G5: =IFERROR(GETPIVOTDATA("Sum of Relative",Pivots!$B$3,"Player2",$C$5,"Team",D5),"") -> -67.8975 | J5: =Pivots!AH7 -> 1 | K5: =IFERROR(VLOOKUP(J5,Tables!$F$2:$H$40,2),"") -> Warks Sep 17 | L5: =Pivots!AI8 -> GW | M5: =IF(J5=0,"",GETPIVOTDATA("Average of Team",Pivots!AH5,"Match",$J5,"player2",$L5)) -> 1 | N5: =IF(J5=0,"",GETPIVOTDATA("Sum of Butler",Pivots!AI5,"Match",$J5,"player2",$L5)) -> -52 | O5: =IF(J5=0,"",GETPIVOTDATA("Sum of MatchS",Pivots!AJ5,"Match",$J5,"player2",$L5)) -> -96 | P5: =IF(J5=0,"",GETPIVOTDATA("Sum of Relative",Pivots!AK5,"Match",$J5,"player2",$L5)) -> -28 | S5: AA | T5: 3 | U5: =IFERROR(GETPIVOTDATA("Count of Match",Pivots!B$3,"Player2",S5),"") ->  | Y5: AKA | Z5: 3 | AA5: 3 | AC5: =IF(AD5="","",RANK(AJ5,$AJ$5:$AJ$42)) -> 11 | AD5: AKM | AE5: =IF(AG5="","",GETPIVOTDATA("Count of Match",Pivots!$B$3,"Player2",$AD5,"Team",1)&"D")&IF(AH5="","",GETPIVOTDATA("Count of Match",Pivots!$B$3,"Player2",$AD5,"Team",2)&"P")&IF(AI5="","",GETPIVOTDATA("Count of Match",Pivots!$B$3,"Player2",$AD5,"Team",3)&"M") -> 1D | AF5: =IF(AD5="","",GETPIVOTDATA("Sum of Relative",Pivots!$B$3,"Player2",$AD5)/GETPIVOTDATA("Count of Match",Pivots!$B$3,"Player2",$AD5)) -> -21.5 | AG5: =IFERROR(GETPIVOTDATA("Sum of Relative",Pivots!$B$3,"Player2",$AD5,"Team",AG$4)/GETPIVOTDATA("Count of Match",Pivots!$B$3,"Player2",$AD5,"Team",AG$4),"") -> -21.5 | AH5: =IFERROR(GETPIVOTDATA("Sum of Relative",Pivots!$B$3,"Player2",$AD5,"Team",AH$4)/GETPIVOTDATA("Count of Match",Pivots!$B$3,"Player2",$AD5,"Team",AH$4),"") ->  | AI5: =IFERROR(GETPIVOTDATA("Sum of Relative",Pivots!$B$3,"Player2",$AD5,"Team",AI$4)/GETPIVOTDATA("Count of Match",Pivots!$B$3,"Player2",$AD5,"Team",AI$4),"") ->  | AJ5: =IF(AG5="","",AG5+ROW(AD5)/100000) -> -21.49995 | AL5: =IF(AM5="","",RANK(AS5,$AS$5:$AS$42)) -> 13 | AM5: JAR | AN5: =IF(AP5="","",GETPIVOTDATA("Count of Match",Pivots!$B$3,"Player2",$AM5,"Team",1)&"D")&IF(AQ5="","",GETPIVOTDATA("Count of Match",Pivots!$B$3,"Player2",$AM5,"Team",2)&"P")&IF(AR5="","",GETPIVOTDATA("Count of Match",Pivots!$B$3,"Player2",$AM5,"Team",3)&"M") -> 3P2M | AO5: =IF(AM5="","",GETPIVOTDATA("Sum of Relative",Pivots!$B$3,"Player2",$AM5)/GETPIVOTDATA("Count of Match",Pivots!$B$3,"Player2",$AM5)) -> -10.1 | AP5: =IFERROR(GETPIVOTDATA("Sum of Relative",Pivots!$B$3,"Player2",$AM5,"Team",AP$4)/GETPIVOTDATA("Count of Match",Pivots!$B$3,"Player2",$AM5,"Team",AP$4),"") ->  | AQ5: =IFERROR(GETPIVOTDATA("Sum of Relative",Pivots!$B$3,"Player2",$AM5,"Team",AQ$4)/GETPIVOTDATA("Count of Match",Pivots!$B$3,"Player2",$AM5,"Team",AQ$4),"") -> -17.83333333 | AR5: =IFERROR(GETPIVOTDATA("Sum of Relative",Pivots!$B$3,"Player2",$AM5,"Team",AR$4)/GETPIVOTDATA("Count of Match",Pivots!$B$3,"Player2",$AM5,"Team",AR$4),"") -> 1.5 | AS5: =IF(AQ5="","",AQ5+ROW(AM5)/100000) -> -17.83328333 | AU5: =IF(AV5="","",RANK(BB5,$BB$5:$BB$42)) -> 15 | AV5: AKA | AW5: =IF(AY5="","",GETPIVOTDATA("Count of Match",Pivots!$B$3,"Player2",$AV5,"Team",1)&"D")&IF(AZ5="","",GETPIVOTDATA("Count of Match",Pivots!$B$3,"Player2",$AV5,"Team",2)&"P")&IF(BA5="","",GETPIVOTDATA("Count of Match",Pivots!$B$3,"Player2",$AV5,"Team",3)&"M") -> 3M | AX5: =IF(AV5="","",GETPIVOTDATA("Sum of Relative",Pivots!$B$3,"Player2",$AV5)/GETPIVOTDATA("Count of Match",Pivots!$B$3,"Player2",$AV5)) -> -24.33333333 | AY5: =IFERROR(GETPIVOTDATA("Sum of Relative",Pivots!$B$3,"Player2",$AV5,"Team",AY$4)/GETPIVOTDATA("Count of Match",Pivots!$B$3,"Player2",$AV5,"Team",AY$4),"") ->  | AZ5: =IFERROR(GETPIVOTDATA("Sum of Relative",Pivots!$B$3,"Player2",$AV5,"Team",AZ$4)/GETPIVOTDATA("Count of Match",Pivots!$B$3,"Player2",$AV5,"Team",AZ$4),"") ->  | BA5: =IFERROR(GETPIVOTDATA("Sum of Relative",Pivots!$B$3,"Player2",$AV5,"Team",BA$4)/GETPIVOTDATA("Count of Match",Pivots!$B$3,"Player2",$AV5,"Team",BA$4),"") -> -24.33333333 | BB5: =IF(BA5="","",BA5+ROW(AV5)/100000) -> -24.33328333
D6: 2 | E6: =IFERROR(GETPIVOTDATA("Count of Match",Pivots!$B$3,"Player2",Extract!$C$5,"Team",D6),"") ->  | F6: =IFERROR(GETPIVOTDATA("Sum of Butler",Pivots!$B$3,"Player2",$C$5,"Team",D6),"") ->  | G6: =IFERROR(GETPIVOTDATA("Sum of Relative",Pivots!$B$3,"Player2",$C$5,"Team",D6),"") ->  | J6: =Pivots!AH9 -> 3 | K6: =IFERROR(VLOOKUP(J6,Tables!$F$2:$H$40,2),"") -> Worcs Nov 17 | L6: =Pivots!AI10 -> GW | M6: =IF(J6=0,"",GETPIVOTDATA("Average of Team",Pivots!AH6,"Match",$J6,"player2",$L6)) -> 1 | N6: =IF(J6=0,"",GETPIVOTDATA("Sum of Butler",Pivots!AI6,"Match",$J6,"player2",$L6)) -> -13 | O6: =IF(J6=0,"",GETPIVOTDATA("Sum of MatchS",Pivots!AJ6,"Match",$J6,"player2",$L6)) -> 42 | P6: =IF(J6=0,"",GETPIVOTDATA("Sum of Relative",Pivots!AK6,"Match",$J6,"player2",$L6)) -> -23.5 | S6: AC | T6: 3 | U6: =IFERROR(GETPIVOTDATA("Count of Match",Pivots!B$3,"Player2",S6),"") ->  | Y6: AKM | Z6: 1 | AA6: 1 | AC6: 13 | AD6: AW | AE6: =IF(AG6="","",GETPIVOTDATA("Count of Match",Pivots!$B$3,"Player2",$AD6,"Team",1)&"D")&IF(AH6="","",GETPIVOTDATA("Count of Match",Pivots!$B$3,"Player2",$AD6,"Team",2)&"P")&IF(AI6="","",GETPIVOTDATA("Count of Match",Pivots!$B$3,"Player2",$AD6,"Team",3)&"M") -> 2D1P | AF6: =IF(AD6="","",GETPIVOTDATA("Sum of Relative",Pivots!$B$3,"Player2",$AD6)/GETPIVOTDATA("Count of Match",Pivots!$B$3,"Player2",$AD6)) -> -25.16666667 | AG6: =IFERROR(GETPIVOTDATA("Sum of Relative",Pivots!$B$3,"Player2",$AD6,"Team",AG$4)/GETPIVOTDATA("Count of Match",Pivots!$B$3,"Player2",$AD6,"Team",AG$4),"") -> -23.875 | AH6: =IFERROR(GETPIVOTDATA("Sum of Relative",Pivots!$B$3,"Player2",$AD6,"Team",AH$4)/GETPIVOTDATA("Count of Match",Pivots!$B$3,"Player2",$AD6,"Team",AH$4),"") -> -27.75 | AI6: =IFERROR(GETPIVOTDATA("Sum of Relative",Pivots!$B$3,"Player2",$AD6,"Team",AI$4)/GETPIVOTDATA("Count of Match",Pivots!$B$3,"Player2",$AD6,"Team",AI$4),"") ->  | AJ6: =IF(AG6="","",AG6+ROW(AD6)/100000) -> -23.87494 | AL6: 8 | AM6: JC | AN6: =IF(AP6="","",GETPIVOTDATA("Count of Match",Pivots!$B$3,"Player2",$AM6,"Team",1)&"D")&IF(AQ6="","",GETPIVOTDATA("Count of Match",Pivots!$B$3,"Player2",$AM6,"Team",2)&"P")&IF(AR6="","",GETPIVOTDATA("Count of Match",Pivots!$B$3,"Player2",$AM6,"Team",3)&"M") -> 1D8P | AO6: =IF(AM6="","",GETPIVOTDATA("Sum of Relative",Pivots!$B$3,"Player2",$AM6)/GETPIVOTDATA("Count of Match",Pivots!$B$3,"Player2",$AM6)) -> -2.981388889 | AP6: =IFERROR(GETPIVOTDATA("Sum of Relative",Pivots!$B$3,"Player2",$AM6,"Team",AP$4)/GETPIVOTDATA("Count of Match",Pivots!$B$3,"Player2",$AM6,"Team",AP$4),"") -> -6.75 | AQ6: =IFERROR(GETPIVOTDATA("Sum of Relative",Pivots!$B$3,"Player2",$AM6,"Team",AQ$4)/GETPIVOTDATA("Count of Match",Pivots!$B$3,"Player2",$AM6,"Team",AQ$4),"") -> -2.5103125 | AR6: =IFERROR(GETPIVOTDATA("Sum of Relative",Pivots!$B$3,"Player2",$AM6,"Team",AR$4)/GETPIVOTDATA("Count of Match",Pivots!$B$3,"Player2",$AM6,"Team",AR$4),"") ->  | AS6: =IF(AQ6="","",AQ6+ROW(AM6)/100000) -> -2.5102525 | AU6: 9 | AV6: APR | AW6: =IF(AY6="","",GETPIVOTDATA("Count of Match",Pivots!$B$3,"Player2",$AV6,"Team",1)&"D")&IF(AZ6="","",GETPIVOTDATA("Count of Match",Pivots!$B$3,"Player2",$AV6,"Team",2)&"P")&IF(BA6="","",GETPIVOTDATA("Count of Match",Pivots!$B$3,"Player2",$AV6,"Team",3)&"M") -> 4M | AX6: =IF(AV6="","",GETPIVOTDATA("Sum of Relative",Pivots!$B$3,"Player2",$AV6)/GETPIVOTDATA("Count of Match",Pivots!$B$3,"Player2",$AV6)) -> -3.25 | AY6: =IFERROR(GETPIVOTDATA("Sum of Relative",Pivots!$B$3,"Player2",$AV6,"Team",AY$4)/GETPIVOTDATA("Count of Match",Pivots!$B$3,"Player2",$AV6,"Team",AY$4),"") ->  | AZ6: =IFERROR(GETPIVOTDATA("Sum of Relative",Pivots!$B$3,"Player2",$AV6,"Team",AZ$4)/GETPIVOTDATA("Count of Match",Pivots!$B$3,"Player2",$AV6,"Team",AZ$4),"") ->  | BA6: =IFERROR(GETPIVOTDATA("Sum of Relative",Pivots!$B$3,"Player2",$AV6,"Team",BA$4)/GETPIVOTDATA("Count of Match",Pivots!$B$3,"Player2",$AV6,"Team",BA$4),"") -> -3.25 | BB6: =IF(BA6="","",BA6+ROW(AV6)/100000) -> -3.24994
D7: 3 | E7: =IFERROR(GETPIVOTDATA("Count of Match",Pivots!$B$3,"Player2",Extract!$C$5,"Team",D7),"") ->  | F7: =IFERROR(GETPIVOTDATA("Sum of Butler",Pivots!$B$3,"Player2",$C$5,"Team",D7),"") ->  | G7: =IFERROR(GETPIVOTDATA("Sum of Relative",Pivots!$B$3,"Player2",$C$5,"Team",D7),"") ->  | J7: =Pivots!AH11 -> 5 | K7: =IFERROR(VLOOKUP(J7,Tables!$F$2:$H$40,2),"") -> Notts Feb 18 | L7: =Pivots!AI12 -> GW | M7: =IF(J7=0,"",GETPIVOTDATA("Average of Team",Pivots!AH7,"Match",$J7,"player2",$L7)) -> 1 | N7: =IF(J7=0,"",GETPIVOTDATA("Sum of Butler",Pivots!AI7,"Match",$J7,"player2",$L7)) -> 37 | O7: =IF(J7=0,"",GETPIVOTDATA("Sum of MatchS",Pivots!AJ7,"Match",$J7,"player2",$L7)) -> 61 | P7: =IF(J7=0,"",GETPIVOTDATA("Sum of Relative",Pivots!AK7,"Match",$J7,"player2",$L7)) -> 21.75 | S7: AKA | T7: 3 | U7: =IFERROR(GETPIVOTDATA("Count of Match",Pivots!B$3,"Player2",S7),"") -> 3 | Y7: APR | Z7: 3 | AA7: 4 | AC7: 4 | AD7: CRO | AE7: =IF(AG7="","",GETPIVOTDATA("Count of Match",Pivots!$B$3,"Player2",$AD7,"Team",1)&"D")&IF(AH7="","",GETPIVOTDATA("Count of Match",Pivots!$B$3,"Player2",$AD7,"Team",2)&"P")&IF(AI7="","",GETPIVOTDATA("Count of Match",Pivots!$B$3,"Player2",$AD7,"Team",3)&"M") -> 4D | AF7: =IF(AD7="","",GETPIVOTDATA("Sum of Relative",Pivots!$B$3,"Player2",$AD7)/GETPIVOTDATA("Count of Match",Pivots!$B$3,"Player2",$AD7)) -> 9.275625 | AG7: =IFERROR(GETPIVOTDATA("Sum of Relative",Pivots!$B$3,"Player2",$AD7,"Team",AG$4)/GETPIVOTDATA("Count of Match",Pivots!$B$3,"Player2",$AD7,"Team",AG$4),"") -> 9.275625 | AH7: =IFERROR(GETPIVOTDATA("Sum of Relative",Pivots!$B$3,"Player2",$AD7,"Team",AH$4)/GETPIVOTDATA("Count of Match",Pivots!$B$3,"Player2",$AD7,"Team",AH$4),"") ->  | AI7: =IFERROR(GETPIVOTDATA("Sum of Relative",Pivots!$B$3,"Player2",$AD7,"Team",AI$4)/GETPIVOTDATA("Count of Match",Pivots!$B$3,"Player2",$AD7,"Team",AI$4),"") ->  | AJ7: 9.275695 | AL7: 4 | AM7: JSI | AN7: =IF(AP7="","",GETPIVOTDATA("Count of Match",Pivots!$B$3,"Player2",$AM7,"Team",1)&"D")&IF(AQ7="","",GETPIVOTDATA("Count of Match",Pivots!$B$3,"Player2",$AM7,"Team",2)&"P")&IF(AR7="","",GETPIVOTDATA("Count of Match",Pivots!$B$3,"Player2",$AM7,"Team",3)&"M") -> 7P5M | AO7: =IF(AM7="","",GETPIVOTDATA("Sum of Relative",Pivots!$B$3,"Player2",$AM7)/GETPIVOTDATA("Count of Match",Pivots!$B$3,"Player2",$AM7)) -> 0.3741666667 | AP7: =IFERROR(GETPIVOTDATA("Sum of Relative",Pivots!$B$3,"Player2",$AM7,"Team",AP$4)/GETPIVOTDATA("Count of Match",Pivots!$B$3,"Player2",$AM7,"Team",AP$4),"") ->  | AQ7: =IFERROR(GETPIVOTDATA("Sum of Relative",Pivots!$B$3,"Player2",$AM7,"Team",AQ$4)/GETPIVOTDATA("Count of Match",Pivots!$B$3,"Player2",$AM7,"Team",AQ$4),"") -> 4.5375 | AR7: =IFERROR(GETPIVOTDATA("Sum of Relative",Pivots!$B$3,"Player2",$AM7,"Team",AR$4)/GETPIVOTDATA("Count of Match",Pivots!$B$3,"Player2",$AM7,"Team",AR$4),"") -> -5.4545 | AS7: 4.53757 | AU7: 13 | AV7: AS | AW7: =IF(AY7="","",GETPIVOTDATA("Count of Match",Pivots!$B$3,"Player2",$AV7,"Team",1)&"D")&IF(AZ7="","",GETPIVOTDATA("Count of Match",Pivots!$B$3,"Player2",$AV7,"Team",2)&"P")&IF(BA7="","",GETPIVOTDATA("Count of Match",Pivots!$B$3,"Player2",$AV7,"Team",3)&"M") -> 1D5M | AX7: =IF(AV7="","",GETPIVOTDATA("Sum of Relative",Pivots!$B$3,"Player2",$AV7)/GETPIVOTDATA("Count of Match",Pivots!$B$3,"Player2",$AV7)) -> -20.89708333 | AY7: =IFERROR(GETPIVOTDATA("Sum of Relative",Pivots!$B$3,"Player2",$AV7,"Team",AY$4)/GETPIVOTDATA("Count of Match",Pivots!$B$3,"Player2",$AV7,"Team",AY$4),"") -> -38.5 | AZ7: =IFERROR(GETPIVOTDATA("Sum of Relative",Pivots!$B$3,"Player2",$AV7,"Team",AZ$4)/GETPIVOTDATA("Count of Match",Pivots!$B$3,"Player2",$AV7,"Team",AZ$4),"") ->  | BA7: =IFERROR(GETPIVOTDATA("Sum of Relative",Pivots!$B$3,"Player2",$AV7,"Team",BA$4)/GETPIVOTDATA("Count of Match",Pivots!$B$3,"Player2",$AV7,"Team",BA$4),"") -> -17.3765 | BB7: -17.37643
J8: =Pivots!AH13 -> 6 | K8: =IFERROR(VLOOKUP(J8,Tables!$F$2:$H$40,2),"") -> Staffs Mar 18 | L8: =Pivots!AI14 -> GW | M8: =IF(J8=0,"",GETPIVOTDATA("Average of Team",Pivots!AH8,"Match",$J8,"player2",$L8)) -> 1 | N8: =IF(J8=0,"",GETPIVOTDATA("Sum of Butler",Pivots!AI8,"Match",$J8,"player2",$L8)) -> 16 | O8: =IF(J8=0,"",GETPIVOTDATA("Sum of MatchS",Pivots!AJ8,"Match",$J8,"player2",$L8)) -> 76 | P8: =IF(J8=0,"",GETPIVOTDATA("Sum of Relative",Pivots!AK8,"Match",$J8,"player2",$L8)) -> -3 | S8: AKM | T8: 1 | U8: =IFERROR(GETPIVOTDATA("Count of Match",Pivots!B$3,"Player2",S8),"") -> 1 | Y8: AS | Z8: 3 | AA8: 6 | AC8: 9 | AD8: GW | AE8: =IF(AG8="","",GETPIVOTDATA("Count of Match",Pivots!$B$3,"Player2",$AD8,"Team",1)&"D")&IF(AH8="","",GETPIVOTDATA("Count of Match",Pivots!$B$3,"Player2",$AD8,"Team",2)&"P")&IF(AI8="","",GETPIVOTDATA("Count of Match",Pivots!$B$3,"Player2",$AD8,"Team",3)&"M") -> 10D | AF8: =IF(AD8="","",GETPIVOTDATA("Sum of Relative",Pivots!$B$3,"Player2",$AD8)/GETPIVOTDATA("Count of Match",Pivots!$B$3,"Player2",$AD8)) -> -10.66475 | AG8: =IFERROR(GETPIVOTDATA("Sum of Relative",Pivots!$B$3,"Player2",$AD8,"Team",AG$4)/GETPIVOTDATA("Count of Match",Pivots!$B$3,"Player2",$AD8,"Team",AG$4),"") -> -10.66475 | AH8: =IFERROR(GETPIVOTDATA("Sum of Relative",Pivots!$B$3,"Player2",$AD8,"Team",AH$4)/GETPIVOTDATA("Count of Match",Pivots!$B$3,"Player2",$AD8,"Team",AH$4),"") ->  | AI8: =IFERROR(GETPIVOTDATA("Sum of Relative",Pivots!$B$3,"Player2",$AD8,"Team",AI$4)/GETPIVOTDATA("Count of Match",Pivots!$B$3,"Player2",$AD8,"Team",AI$4),"") ->  | AJ8: -10.66467 | AL8: 12 | AM8: MB | AN8: =IF(AP8="","",GETPIVOTDATA("Count of Match",Pivots!$B$3,"Player2",$AM8,"Team",1)&"D")&IF(AQ8="","",GETPIVOTDATA("Count of Match",Pivots!$B$3,"Player2",$AM8,"Team",2)&"P")&IF(AR8="","",GETPIVOTDATA("Count of Match",Pivots!$B$3,"Player2",$AM8,"Team",3)&"M") -> 3P3M | AO8: =IF(AM8="","",GETPIVOTDATA("Sum of Relative",Pivots!$B$3,"Player2",$AM8)/GETPIVOTDATA("Count of Match",Pivots!$B$3,"Player2",$AM8)) -> -13.57375 | AP8: =IFERROR(GETPIVOTDATA("Sum of Relative",Pivots!$B$3,"Player2",$AM8,"Team",AP$4)/GETPIVOTDATA("Count of Match",Pivots!$B$3,"Player2",$AM8,"Team",AP$4),"") ->  | AQ8: =IFERROR(GETPIVOTDATA("Sum of Relative",Pivots!$B$3,"Player2",$AM8,"Team",AQ$4)/GETPIVOTDATA("Count of Match",Pivots!$B$3,"Player2",$AM8,"Team",AQ$4),"") -> -17.83333333 | AR8: =IFERROR(GETPIVOTDATA("Sum of Relative",Pivots!$B$3,"Player2",$AM8,"Team",AR$4)/GETPIVOTDATA("Count of Match",Pivots!$B$3,"Player2",$AM8,"Team",AR$4),"") -> -9.314166667 | AS8: -17.83325333 | AU8: 1 | AV8: BR | AW8: =IF(AY8="","",GETPIVOTDATA("Count of Match",Pivots!$B$3,"Player2",$AV8,"Team",1)&"D")&IF(AZ8="","",GETPIVOTDATA("Count of Match",Pivots!$B$3,"Player2",$AV8,"Team",2)&"P")&IF(BA8="","",GETPIVOTDATA("Count of Match",Pivots!$B$3,"Player2",$AV8,"Team",3)&"M") -> 2P3M | AX8: =IF(AV8="","",GETPIVOTDATA("Sum of Relative",Pivots!$B$3,"Player2",$AV8)/GETPIVOTDATA("Count of Match",Pivots!$B$3,"Player2",$AV8)) -> 22.215 | AY8: =IFERROR(GETPIVOTDATA("Sum of Relative",Pivots!$B$3,"Player2",$AV8,"Team",AY$4)/GETPIVOTDATA("Count of Match",Pivots!$B$3,"Player2",$AV8,"Team",AY$4),"") ->  | AZ8: =IFERROR(GETPIVOTDATA("Sum of Relative",Pivots!$B$3,"Player2",$AV8,"Team",AZ$4)/GETPIVOTDATA("Count of Match",Pivots!$B$3,"Player2",$AV8,"Team",AZ$4),"") -> 3.5375 | BA8: =IFERROR(GETPIVOTDATA("Sum of Relative",Pivots!$B$3,"Player2",$AV8,"Team",BA$4)/GETPIVOTDATA("Count of Match",Pivots!$B$3,"Player2",$AV8,"Team",BA$4),"") -> 34.66666667 | BB8: 34.66674667
D9: Total | E9: =SUM(E5:E7) -> 11 | F9: =SUM(F5:F7) -> 102.72 | G9: =SUM(G5:G7) -> -67.8975 | J9: =Pivots!AH15 -> 7 | K9: =IFERROR(VLOOKUP(J9,Tables!$F$2:$H$40,2),"") -> Oxf Apr 18 | L9: =Pivots!AI16 -> KST | M9: =IF(J9=0,"",GETPIVOTDATA("Average of Team",Pivots!AH9,"Match",$J9,"player2",$L9)) -> 1 | N9: =IF(J9=0,"",GETPIVOTDATA("Sum of Butler",Pivots!AI9,"Match",$J9,"player2",$L9)) -> -19 | O9: =IF(J9=0,"",GETPIVOTDATA("Sum of MatchS",Pivots!AJ9,"Match",$J9,"player2",$L9)) -> 71 | P9: =IF(J9=0,"",GETPIVOTDATA("Sum of Relative",Pivots!AK9,"Match",$J9,"player2",$L9)) -> -36.75 | S9: APO | T9: 3 | U9: =IFERROR(GETPIVOTDATA("Count of Match",Pivots!B$3,"Player2",S9),"") ->  | Y9: AW | Z9: 1 | AA9: 3 | AC9: 10 | AD9: JAN | AE9: =IF(AG9="","",GETPIVOTDATA("Count of Match",Pivots!$B$3,"Player2",$AD9,"Team",1)&"D")&IF(AH9="","",GETPIVOTDATA("Count of Match",Pivots!$B$3,"Player2",$AD9,"Team",2)&"P")&IF(AI9="","",GETPIVOTDATA("Count of Match",Pivots!$B$3,"Player2",$AD9,"Team",3)&"M") -> 8D1P | AF9: =IF(AD9="","",GETPIVOTDATA("Sum of Relative",Pivots!$B$3,"Player2",$AD9)/GETPIVOTDATA("Count of Match",Pivots!$B$3,"Player2",$AD9)) -> -7.921944444 | AG9: =IFERROR(GETPIVOTDATA("Sum of Relative",Pivots!$B$3,"Player2",$AD9,"Team",AG$4)/GETPIVOTDATA("Count of Match",Pivots!$B$3,"Player2",$AD9,"Team",AG$4),"") -> -12.315 | AH9: =IFERROR(GETPIVOTDATA("Sum of Relative",Pivots!$B$3,"Player2",$AD9,"Team",AH$4)/GETPIVOTDATA("Count of Match",Pivots!$B$3,"Player2",$AD9,"Team",AH$4),"") -> 27.2225 | AI9: =IFERROR(GETPIVOTDATA("Sum of Relative",Pivots!$B$3,"Player2",$AD9,"Team",AI$4)/GETPIVOTDATA("Count of Match",Pivots!$B$3,"Player2",$AD9,"Team",AI$4),"") ->  | AJ9: -12.31491 | AL9: 10 | AM9: MR | AN9: =IF(AP9="","",GETPIVOTDATA("Count of Match",Pivots!$B$3,"Player2",$AM9,"Team",1)&"D")&IF(AQ9="","",GETPIVOTDATA("Count of Match",Pivots!$B$3,"Player2",$AM9,"Team",2)&"P")&IF(AR9="","",GETPIVOTDATA("Count of Match",Pivots!$B$3,"Player2",$AM9,"Team",3)&"M") -> 1D9P | AO9: =IF(AM9="","",GETPIVOTDATA("Sum of Relative",Pivots!$B$3,"Player2",$AM9)/GETPIVOTDATA("Count of Match",Pivots!$B$3,"Player2",$AM9)) -> -8.58325 | AP9: =IFERROR(GETPIVOTDATA("Sum of Relative",Pivots!$B$3,"Player2",$AM9,"Team",AP$4)/GETPIVOTDATA("Count of Match",Pivots!$B$3,"Player2",$AM9,"Team",AP$4),"") -> -6.75 | AQ9: =IFERROR(GETPIVOTDATA("Sum of Relative",Pivots!$B$3,"Player2",$AM9,"Team",AQ$4)/GETPIVOTDATA("Count of Match",Pivots!$B$3,"Player2",$AM9,"Team",AQ$4),"") -> -8.786944444 | AR9: =IFERROR(GETPIVOTDATA("Sum of Relative",Pivots!$B$3,"Player2",$AM9,"Team",AR$4)/GETPIVOTDATA("Count of Match",Pivots!$B$3,"Player2",$AM9,"Team",AR$4),"") ->  | AS9: -8.786854444 | AU9: 8 | AV9: DA | AW9: =IF(AY9="","",GETPIVOTDATA("Count of Match",Pivots!$B$3,"Player2",$AV9,"Team",1)&"D")&IF(AZ9="","",GETPIVOTDATA("Count of Match",Pivots!$B$3,"Player2",$AV9,"Team",2)&"P")&IF(BA9="","",GETPIVOTDATA("Count of Match",Pivots!$B$3,"Player2",$AV9,"Team",3)&"M") -> 4M | AX9: =IF(AV9="","",GETPIVOTDATA("Sum of Relative",Pivots!$B$3,"Player2",$AV9)/GETPIVOTDATA("Count of Match",Pivots!$B$3,"Player2",$AV9)) -> -3.25 | AY9: =IFERROR(GETPIVOTDATA("Sum of Relative",Pivots!$B$3,"Player2",$AV9,"Team",AY$4)/GETPIVOTDATA("Count of Match",Pivots!$B$3,"Player2",$AV9,"Team",AY$4),"") ->  | AZ9: =IFERROR(GETPIVOTDATA("Sum of Relative",Pivots!$B$3,"Player2",$AV9,"Team",AZ$4)/GETPIVOTDATA("Count of Match",Pivots!$B$3,"Player2",$AV9,"Team",AZ$4),"") ->  | BA9: =IFERROR(GETPIVOTDATA("Sum of Relative",Pivots!$B$3,"Player2",$AV9,"Team",BA$4)/GETPIVOTDATA("Count of Match",Pivots!$B$3,"Player2",$AV9,"Team",BA$4),"") -> -3.25 | BB9: -3.24991
J10: =Pivots!AH17 -> 11 | K10: =IFERROR(VLOOKUP(J10,Tables!$F$2:$H$40,2),"") -> Lei Sep 18 | L10: =Pivots!AI18 -> GW | M10: =IF(J10=0,"",GETPIVOTDATA("Average of Team",Pivots!AH10,"Match",$J10,"player2",$L10)) -> 1 | N10: =IF(J10=0,"",GETPIVOTDATA("Sum of Butler",Pivots!AI10,"Match",$J10,"player2",$L10)) -> -11 | O10: =IF(J10=0,"",GETPIVOTDATA("Sum of MatchS",Pivots!AJ10,"Match",$J10,"player2",$L10)) -> -1 | P10: =IF(J10=0,"",GETPIVOTDATA("Sum of Relative",Pivots!AK10,"Match",$J10,"player2",$L10)) -> -10.75 | S10: APR | T10: 3 | U10: =IFERROR(GETPIVOTDATA("Count of Match",Pivots!B$3,"Player2",S10),"") -> 4 | Y10: BR | Z10: 3 | AA10: 5 | AC10: 3 | AD10: JAT | AE10: =IF(AG10="","",GETPIVOTDATA("Count of Match",Pivots!$B$3,"Player2",$AD10,"Team",1)&"D")&IF(AH10="","",GETPIVOTDATA("Count of Match",Pivots!$B$3,"Player2",$AD10,"Team",2)&"P")&IF(AI10="","",GETPIVOTDATA("Count of Match",Pivots!$B$3,"Player2",$AD10,"Team",3)&"M") -> 4D | AF10: =IF(AD10="","",GETPIVOTDATA("Sum of Relative",Pivots!$B$3,"Player2",$AD10)/GETPIVOTDATA("Count of Match",Pivots!$B$3,"Player2",$AD10)) -> 9.275625 | AG10: =IFERROR(GETPIVOTDATA("Sum of Relative",Pivots!$B$3,"Player2",$AD10,"Team",AG$4)/GETPIVOTDATA("Count of Match",Pivots!$B$3,"Player2",$AD10,"Team",AG$4),"") -> 9.275625 | AH10: =IFERROR(GETPIVOTDATA("Sum of Relative",Pivots!$B$3,"Player2",$AD10,"Team",AH$4)/GETPIVOTDATA("Count of Match",Pivots!$B$3,"Player2",$AD10,"Team",AH$4),"") ->  | AI10: =IFERROR(GETPIVOTDATA("Sum of Relative",Pivots!$B$3,"Player2",$AD10,"Team",AI$4)/GETPIVOTDATA("Count of Match",Pivots!$B$3,"Player2",$AD10,"Team",AI$4),"") ->  | AJ10: 9.275725 | AL10: 6 | AM10: MW | AN10: =IF(AP10="","",GETPIVOTDATA("Count of Match",Pivots!$B$3,"Player2",$AM10,"Team",1)&"D")&IF(AQ10="","",GETPIVOTDATA("Count of Match",Pivots!$B$3,"Player2",$AM10,"Team",2)&"P")&IF(AR10="","",GETPIVOTDATA("Count of Match",Pivots!$B$3,"Player2",$AM10,"Team",3)&"M") -> 7P2M | AO10: =IF(AM10="","",GETPIVOTDATA("Sum of Relative",Pivots!$B$3,"Player2",$AM10)/GETPIVOTDATA("Count of Match",Pivots!$B$3,"Player2",$AM10)) -> -1.046944444 | AP10: =IFERROR(GETPIVOTDATA("Sum of Relative",Pivots!$B$3,"Player2",$AM10,"Team",AP$4)/GETPIVOTDATA("Count of Match",Pivots!$B$3,"Player2",$AM10,"Team",AP$4),"") ->  | AQ10: =IFERROR(GETPIVOTDATA("Sum of Relative",Pivots!$B$3,"Player2",$AM10,"Team",AQ$4)/GETPIVOTDATA("Count of Match",Pivots!$B$3,"Player2",$AM10,"Team",AQ$4),"") -> -1.774642857 | AR10: =IFERROR(GETPIVOTDATA("Sum of Relative",Pivots!$B$3,"Player2",$AM10,"Team",AR$4)/GETPIVOTDATA("Count of Match",Pivots!$B$3,"Player2",$AM10,"Team",AR$4),"") -> 1.5 | AS10: -1.774542857 | AU10: 12 | AV10: JuS | AW10: =IF(AY10="","",GETPIVOTDATA("Count of Match",Pivots!$B$3,"Player2",$AV10,"Team",1)&"D")&IF(AZ10="","",GETPIVOTDATA("Count of Match",Pivots!$B$3,"Player2",$AV10,"Team",2)&"P")&IF(BA10="","",GETPIVOTDATA("Count of Match",Pivots!$B$3,"Player2",$AV10,"Team",3)&"M") -> 4M | AX10: =IF(AV10="","",GETPIVOTDATA("Sum of Relative",Pivots!$B$3,"Player2",$AV10)/GETPIVOTDATA("Count of Match",Pivots!$B$3,"Player2",$AV10)) -> -12.595625 | AY10: =IFERROR(GETPIVOTDATA("Sum of Relative",Pivots!$B$3,"Player2",$AV10,"Team",AY$4)/GETPIVOTDATA("Count of Match",Pivots!$B$3,"Player2",$AV10,"Team",AY$4),"") ->  | AZ10: =IFERROR(GETPIVOTDATA("Sum of Relative",Pivots!$B$3,"Player2",$AV10,"Team",AZ$4)/GETPIVOTDATA("Count of Match",Pivots!$B$3,"Player2",$AV10,"Team",AZ$4),"") ->  | BA10: =IFERROR(GETPIVOTDATA("Sum of Relative",Pivots!$B$3,"Player2",$AV10,"Team",BA$4)/GETPIVOTDATA("Count of Match",Pivots!$B$3,"Player2",$AV10,"Team",BA$4),"") -> -12.595625 | BB10: -12.595525
J11: =Pivots!AH19 -> 12 | K11: =IFERROR(VLOOKUP(J11,Tables!$F$2:$H$40,2),"") -> Wor Oct 18 | L11: =Pivots!AI20 -> GW | M11: =IF(J11=0,"",GETPIVOTDATA("Average of Team",Pivots!AH11,"Match",$J11,"player2",$L11)) -> 1 | N11: =IF(J11=0,"",GETPIVOTDATA("Sum of Butler",Pivots!AI11,"Match",$J11,"player2",$L11)) -> 9.54 | O11: =IF(J11=0,"",GETPIVOTDATA("Sum of MatchS",Pivots!AJ11,"Match",$J11,"player2",$L11)) -> 99.87 | P11: =IF(J11=0,"",GETPIVOTDATA("Sum of Relative",Pivots!AK11,"Match",$J11,"player2",$L11)) -> -15.4275 | S11: AS | T11: 3 | U11: =IFERROR(GETPIVOTDATA("Count of Match",Pivots!B$3,"Player2",S11),"") -> 6 | Y11: CRO | Z11: 1 | AA11: 4 | AC11: 7 | AD11: KST | AE11: =IF(AG11="","",GETPIVOTDATA("Count of Match",Pivots!$B$3,"Player2",$AD11,"Team",1)&"D")&IF(AH11="","",GETPIVOTDATA("Count of Match",Pivots!$B$3,"Player2",$AD11,"Team",2)&"P")&IF(AI11="","",GETPIVOTDATA("Count of Match",Pivots!$B$3,"Player2",$AD11,"Team",3)&"M") -> 7D1P | AF11: =IF(AD11="","",GETPIVOTDATA("Sum of Relative",Pivots!$B$3,"Player2",$AD11)/GETPIVOTDATA("Count of Match",Pivots!$B$3,"Player2",$AD11)) -> 0.6815625 | AG11: =IFERROR(GETPIVOTDATA("Sum of Relative",Pivots!$B$3,"Player2",$AD11,"Team",AG$4)/GETPIVOTDATA("Count of Match",Pivots!$B$3,"Player2",$AD11,"Team",AG$4),"") -> -3.11 | AH11: =IFERROR(GETPIVOTDATA("Sum of Relative",Pivots!$B$3,"Player2",$AD11,"Team",AH$4)/GETPIVOTDATA("Count of Match",Pivots!$B$3,"Player2",$AD11,"Team",AH$4),"") -> 27.2225 | AI11: =IFERROR(GETPIVOTDATA("Sum of Relative",Pivots!$B$3,"Player2",$AD11,"Team",AI$4)/GETPIVOTDATA("Count of Match",Pivots!$B$3,"Player2",$AD11,"Team",AI$4),"") ->  | AJ11: -3.10989 | AL11: 3 | AM11: PL | AN11: =IF(AP11="","",GETPIVOTDATA("Count of Match",Pivots!$B$3,"Player2",$AM11,"Team",1)&"D")&IF(AQ11="","",GETPIVOTDATA("Count of Match",Pivots!$B$3,"Player2",$AM11,"Team",2)&"P")&IF(AR11="","",GETPIVOTDATA("Count of Match",Pivots!$B$3,"Player2",$AM11,"Team",3)&"M") -> 6P3M | AO11: =IF(AM11="","",GETPIVOTDATA("Sum of Relative",Pivots!$B$3,"Player2",$AM11)/GETPIVOTDATA("Count of Match",Pivots!$B$3,"Player2",$AM11)) -> 10.96611111 | AP11: =IFERROR(GETPIVOTDATA("Sum of Relative",Pivots!$B$3,"Player2",$AM11,"Team",AP$4)/GETPIVOTDATA("Count of Match",Pivots!$B$3,"Player2",$AM11,"Team",AP$4),"") ->  | AQ11: =IFERROR(GETPIVOTDATA("Sum of Relative",Pivots!$B$3,"Player2",$AM11,"Team",AQ$4)/GETPIVOTDATA("Count of Match",Pivots!$B$3,"Player2",$AM11,"Team",AQ$4),"") -> 9.949166667 | AR11: =IFERROR(GETPIVOTDATA("Sum of Relative",Pivots!$B$3,"Player2",$AM11,"Team",AR$4)/GETPIVOTDATA("Count of Match",Pivots!$B$3,"Player2",$AM11,"Team",AR$4),"") -> 13 | AS11: 9.949276667 | AU11: 10 | AV11: KAS | AW11: =IF(AY11="","",GETPIVOTDATA("Count of Match",Pivots!$B$3,"Player2",$AV11,"Team",1)&"D")&IF(AZ11="","",GETPIVOTDATA("Count of Match",Pivots!$B$3,"Player2",$AV11,"Team",2)&"P")&IF(BA11="","",GETPIVOTDATA("Count of Match",Pivots!$B$3,"Player2",$AV11,"Team",3)&"M") -> 2M | AX11: =IF(AV11="","",GETPIVOTDATA("Sum of Relative",Pivots!$B$3,"Player2",$AV11)/GETPIVOTDATA("Count of Match",Pivots!$B$3,"Player2",$AV11)) -> -4.65875 | AY11: =IFERROR(GETPIVOTDATA("Sum of Relative",Pivots!$B$3,"Player2",$AV11,"Team",AY$4)/GETPIVOTDATA("Count of Match",Pivots!$B$3,"Player2",$AV11,"Team",AY$4),"") ->  | AZ11: =IFERROR(GETPIVOTDATA("Sum of Relative",Pivots!$B$3,"Player2",$AV11,"Team",AZ$4)/GETPIVOTDATA("Count of Match",Pivots!$B$3,"Player2",$AV11,"Team",AZ$4),"") ->  | BA11: =IFERROR(GETPIVOTDATA("Sum of Relative",Pivots!$B$3,"Player2",$AV11,"Team",BA$4)/GETPIVOTDATA("Count of Match",Pivots!$B$3,"Player2",$AV11,"Team",BA$4),"") -> -4.65875 | BB11: -4.65864
C12: From 2013 | J12: =Pivots!AH21 -> 13 | K12: =IFERROR(VLOOKUP(J12,Tables!$F$2:$H$40,2),"") -> Oxf Nov 18 | L12: =Pivots!AI22 -> GW | M12: =IF(J12=0,"",GETPIVOTDATA("Average of Team",Pivots!AH12,"Match",$J12,"player2",$L12)) -> 1 | N12: =IF(J12=0,"",GETPIVOTDATA("Sum of Butler",Pivots!AI12,"Match",$J12,"player2",$L12)) -> 26 | O12: =IF(J12=0,"",GETPIVOTDATA("Sum of MatchS",Pivots!AJ12,"Match",$J12,"player2",$L12)) -> 69 | P12: =IF(J12=0,"",GETPIVOTDATA("Sum of Relative",Pivots!AK12,"Match",$J12,"player2",$L12)) -> 8.75 | S12: AW | T12: 1 | U12: =IFERROR(GETPIVOTDATA("Count of Match",Pivots!B$3,"Player2",S12),"") -> 3 | Y12: DA | Z12: 3 | AA12: 4 | AC12: 5 | AD12: PD | AE12: =IF(AG12="","",GETPIVOTDATA("Count of Match",Pivots!$B$3,"Player2",$AD12,"Team",1)&"D")&IF(AH12="","",GETPIVOTDATA("Count of Match",Pivots!$B$3,"Player2",$AD12,"Team",2)&"P")&IF(AI12="","",GETPIVOTDATA("Count of Match",Pivots!$B$3,"Player2",$AD12,"Team",3)&"M") -> 12D | AF12: =IF(AD12="","",GETPIVOTDATA("Sum of Relative",Pivots!$B$3,"Player2",$AD12)/GETPIVOTDATA("Count of Match",Pivots!$B$3,"Player2",$AD12)) -> 8.199375 | AG12: =IFERROR(GETPIVOTDATA("Sum of Relative",Pivots!$B$3,"Player2",$AD12,"Team",AG$4)/GETPIVOTDATA("Count of Match",Pivots!$B$3,"Player2",$AD12,"Team",AG$4),"") -> 8.199375 | AH12: =IFERROR(GETPIVOTDATA("Sum of Relative",Pivots!$B$3,"Player2",$AD12,"Team",AH$4)/GETPIVOTDATA("Count of Match",Pivots!$B$3,"Player2",$AD12,"Team",AH$4),"") ->  | AI12: =IFERROR(GETPIVOTDATA("Sum of Relative",Pivots!$B$3,"Player2",$AD12,"Team",AI$4)/GETPIVOTDATA("Count of Match",Pivots!$B$3,"Player2",$AD12,"Team",AI$4),"") ->  | AJ12: 8.199495 | AL12: 5 | AM12: PPE | AN12: =IF(AP12="","",GETPIVOTDATA("Count of Match",Pivots!$B$3,"Player2",$AM12,"Team",1)&"D")&IF(AQ12="","",GETPIVOTDATA("Count of Match",Pivots!$B$3,"Player2",$AM12,"Team",2)&"P")&IF(AR12="","",GETPIVOTDATA("Count of Match",Pivots!$B$3,"Player2",$AM12,"Team",3)&"M") -> 6P | AO12: =IF(AM12="","",GETPIVOTDATA("Sum of Relative",Pivots!$B$3,"Player2",$AM12)/GETPIVOTDATA("Count of Match",Pivots!$B$3,"Player2",$AM12)) -> 2.875 | AP12: =IFERROR(GETPIVOTDATA("Sum of Relative",Pivots!$B$3,"Player2",$AM12,"Team",AP$4)/GETPIVOTDATA("Count of Match",Pivots!$B$3,"Player2",$AM12,"Team",AP$4),"") ->  | AQ12: =IFERROR(GETPIVOTDATA("Sum of Relative",Pivots!$B$3,"Player2",$AM12,"Team",AQ$4)/GETPIVOTDATA("Count of Match",Pivots!$B$3,"Player2",$AM12,"Team",AQ$4),"") -> 2.875 | AR12: =IFERROR(GETPIVOTDATA("Sum of Relative",Pivots!$B$3,"Player2",$AM12,"Team",AR$4)/GETPIVOTDATA("Count of Match",Pivots!$B$3,"Player2",$AM12,"Team",AR$4),"") ->  | AS12: 2.87512 | AU12: 14 | AV12: LH | AW12: =IF(AY12="","",GETPIVOTDATA("Count of Match",Pivots!$B$3,"Player2",$AV12,"Team",1)&"D")&IF(AZ12="","",GETPIVOTDATA("Count of Match",Pivots!$B$3,"Player2",$AV12,"Team",2)&"P")&IF(BA12="","",GETPIVOTDATA("Count of Match",Pivots!$B$3,"Player2",$AV12,"Team",3)&"M") -> 3M | AX12: =IF(AV12="","",GETPIVOTDATA("Sum of Relative",Pivots!$B$3,"Player2",$AV12)/GETPIVOTDATA("Count of Match",Pivots!$B$3,"Player2",$AV12)) -> -24.33333333 | AY12: =IFERROR(GETPIVOTDATA("Sum of Relative",Pivots!$B$3,"Player2",$AV12,"Team",AY$4)/GETPIVOTDATA("Count of Match",Pivots!$B$3,"Player2",$AV12,"Team",AY$4),"") ->  | AZ12: =IFERROR(GETPIVOTDATA("Sum of Relative",Pivots!$B$3,"Player2",$AV12,"Team",AZ$4)/GETPIVOTDATA("Count of Match",Pivots!$B$3,"Player2",$AV12,"Team",AZ$4),"") ->  | BA12: =IFERROR(GETPIVOTDATA("Sum of Relative",Pivots!$B$3,"Player2",$AV12,"Team",BA$4)/GETPIVOTDATA("Count of Match",Pivots!$B$3,"Player2",$AV12,"Team",BA$4),"") -> -24.33333333 | BB12: -24.33321333
C13: PLAYER | D13: Div | E13: Apps | F13: Butler | G13: Relative | J13: =Pivots!AH23 -> 14 | K13: =IFERROR(VLOOKUP(J13,Tables!$F$2:$H$40,2),"") -> Notts Jan19 | L13: =Pivots!AI24 -> GW | M13: =IF(J13=0,"",GETPIVOTDATA("Average of Team",Pivots!AH13,"Match",$J13,"player2",$L13)) -> 1 | N13: =IF(J13=0,"",GETPIVOTDATA("Sum of Butler",Pivots!AI13,"Match",$J13,"player2",$L13)) -> 20 | O13: =IF(J13=0,"",GETPIVOTDATA("Sum of MatchS",Pivots!AJ13,"Match",$J13,"player2",$L13)) -> 121 | P13: =IF(J13=0,"",GETPIVOTDATA("Sum of Relative",Pivots!AK13,"Match",$J13,"player2",$L13)) -> -10.25 | S13: BG | T13: 2 | U13: =IFERROR(GETPIVOTDATA("Count of Match",Pivots!B$3,"Player2",S13),"") ->  | Y13: GW | Z13: 1 | AA13: 10 | AC13: 1 | AD13: PSH | AE13: =IF(AG13="","",GETPIVOTDATA("Count of Match",Pivots!$B$3,"Player2",$AD13,"Team",1)&"D")&IF(AH13="","",GETPIVOTDATA("Count of Match",Pivots!$B$3,"Player2",$AD13,"Team",2)&"P")&IF(AI13="","",GETPIVOTDATA("Count of Match",Pivots!$B$3,"Player2",$AD13,"Team",3)&"M") -> 10D | AF13: =IF(AD13="","",GETPIVOTDATA("Sum of Relative",Pivots!$B$3,"Player2",$AD13)/GETPIVOTDATA("Count of Match",Pivots!$B$3,"Player2",$AD13)) -> 15.86725 | AG13: =IFERROR(GETPIVOTDATA("Sum of Relative",Pivots!$B$3,"Player2",$AD13,"Team",AG$4)/GETPIVOTDATA("Count of Match",Pivots!$B$3,"Player2",$AD13,"Team",AG$4),"") -> 15.86725 | AH13: =IFERROR(GETPIVOTDATA("Sum of Relative",Pivots!$B$3,"Player2",$AD13,"Team",AH$4)/GETPIVOTDATA("Count of Match",Pivots!$B$3,"Player2",$AD13,"Team",AH$4),"") ->  | AI13: =IFERROR(GETPIVOTDATA("Sum of Relative",Pivots!$B$3,"Player2",$AD13,"Team",AI$4)/GETPIVOTDATA("Count of Match",Pivots!$B$3,"Player2",$AD13,"Team",AI$4),"") ->  | AJ13: 15.86738 | AL13: 1 | AM13: PPH | AN13: =IF(AP13="","",GETPIVOTDATA("Count of Match",Pivots!$B$3,"Player2",$AM13,"Team",1)&"D")&IF(AQ13="","",GETPIVOTDATA("Count of Match",Pivots!$B$3,"Player2",$AM13,"Team",2)&"P")&IF(AR13="","",GETPIVOTDATA("Count of Match",Pivots!$B$3,"Player2",$AM13,"Team",3)&"M") -> 8P1M | AO13: =IF(AM13="","",GETPIVOTDATA("Sum of Relative",Pivots!$B$3,"Player2",$AM13)/GETPIVOTDATA("Count of Match",Pivots!$B$3,"Player2",$AM13)) -> 9.319722222 | AP13: =IFERROR(GETPIVOTDATA("Sum of Relative",Pivots!$B$3,"Player2",$AM13,"Team",AP$4)/GETPIVOTDATA("Count of Match",Pivots!$B$3,"Player2",$AM13,"Team",AP$4),"") ->  | AQ13: =IFERROR(GETPIVOTDATA("Sum of Relative",Pivots!$B$3,"Player2",$AM13,"Team",AQ$4)/GETPIVOTDATA("Count of Match",Pivots!$B$3,"Player2",$AM13,"Team",AQ$4),"") -> 10.1096875 | AR13: =IFERROR(GETPIVOTDATA("Sum of Relative",Pivots!$B$3,"Player2",$AM13,"Team",AR$4)/GETPIVOTDATA("Count of Match",Pivots!$B$3,"Player2",$AM13,"Team",AR$4),"") -> 3 | AS13: 10.1098175 | AU13: 16 | AV13: ML | AW13: =IF(AY13="","",GETPIVOTDATA("Count of Match",Pivots!$B$3,"Player2",$AV13,"Team",1)&"D")&IF(AZ13="","",GETPIVOTDATA("Count of Match",Pivots!$B$3,"Player2",$AV13,"Team",2)&"P")&IF(BA13="","",GETPIVOTDATA("Count of Match",Pivots!$B$3,"Player2",$AV13,"Team",3)&"M") -> 1M | AX13: =IF(AV13="","",GETPIVOTDATA("Sum of Relative",Pivots!$B$3,"Player2",$AV13)/GETPIVOTDATA("Count of Match",Pivots!$B$3,"Player2",$AV13)) -> -26.5 | AY13: =IFERROR(GETPIVOTDATA("Sum of Relative",Pivots!$B$3,"Player2",$AV13,"Team",AY$4)/GETPIVOTDATA("Count of Match",Pivots!$B$3,"Player2",$AV13,"Team",AY$4),"") ->  | AZ13: =IFERROR(GETPIVOTDATA("Sum of Relative",Pivots!$B$3,"Player2",$AV13,"Team",AZ$4)/GETPIVOTDATA("Count of Match",Pivots!$B$3,"Player2",$AV13,"Team",AZ$4),"") ->  | BA13: =IFERROR(GETPIVOTDATA("Sum of Relative",Pivots!$B$3,"Player2",$AV13,"Team",BA$4)/GETPIVOTDATA("Count of Match",Pivots!$B$3,"Player2",$AV13,"Team",BA$4),"") -> -26.5 | BB13: -26.49987
D14: 1 | E14: =IFERROR(GETPIVOTDATA("Count of Match",Pivots!$K$3,"Player2",Extract!$C$5,"Team",D14),"") -> 5 | F14: =IFERROR(GETPIVOTDATA("Sum of Butler",Pivots!$K$3,"Player2",$C$5,"Team",D14),"") -> 73.18 | G14: =IFERROR(GETPIVOTDATA("Sum of Relative",Pivots!$K$3,"Player2",$C$5,"Team",D14),"") -> -7.97 | J14: =Pivots!AH25 -> 15 | K14: =IFERROR(VLOOKUP(J14,Tables!$F$2:$H$40,2),"") -> Staffs Feb 19 | L14: =Pivots!AI26 -> GW | M14: =IF(J14=0,"",GETPIVOTDATA("Average of Team",Pivots!AH14,"Match",$J14,"player2",$L14)) -> 1 | N14: =IF(J14=0,"",GETPIVOTDATA("Sum of Butler",Pivots!AI14,"Match",$J14,"player2",$L14)) -> 2 | O14: =IF(J14=0,"",GETPIVOTDATA("Sum of MatchS",Pivots!AJ14,"Match",$J14,"player2",$L14)) -> 57 | P14: =IF(J14=0,"",GETPIVOTDATA("Sum of Relative",Pivots!AK14,"Match",$J14,"player2",$L14)) -> -12.25 | S14: BR | T14: 3 | U14: =IFERROR(GETPIVOTDATA("Count of Match",Pivots!B$3,"Player2",S14),"") -> 5 | Y14: JAN | Z14: 1 | AA14: 9 | AC14: 8 | AD14: RB | AE14: =IF(AG14="","",GETPIVOTDATA("Count of Match",Pivots!$B$3,"Player2",$AD14,"Team",1)&"D")&IF(AH14="","",GETPIVOTDATA("Count of Match",Pivots!$B$3,"Player2",$AD14,"Team",2)&"P")&IF(AI14="","",GETPIVOTDATA("Count of Match",Pivots!$B$3,"Player2",$AD14,"Team",3)&"M") -> 11D | AF14: =IF(AD14="","",GETPIVOTDATA("Sum of Relative",Pivots!$B$3,"Player2",$AD14)/GETPIVOTDATA("Count of Match",Pivots!$B$3,"Player2",$AD14)) -> -6.1725 | AG14: =IFERROR(GETPIVOTDATA("Sum of Relative",Pivots!$B$3,"Player2",$AD14,"Team",AG$4)/GETPIVOTDATA("Count of Match",Pivots!$B$3,"Player2",$AD14,"Team",AG$4),"") -> -6.1725 | AH14: =IFERROR(GETPIVOTDATA("Sum of Relative",Pivots!$B$3,"Player2",$AD14,"Team",AH$4)/GETPIVOTDATA("Count of Match",Pivots!$B$3,"Player2",$AD14,"Team",AH$4),"") ->  | AI14: =IFERROR(GETPIVOTDATA("Sum of Relative",Pivots!$B$3,"Player2",$AD14,"Team",AI$4)/GETPIVOTDATA("Count of Match",Pivots!$B$3,"Player2",$AD14,"Team",AI$4),"") ->  | AJ14: -6.17236 | AL14: 2 | AM14: PSW | AN14: =IF(AP14="","",GETPIVOTDATA("Count of Match",Pivots!$B$3,"Player2",$AM14,"Team",1)&"D")&IF(AQ14="","",GETPIVOTDATA("Count of Match",Pivots!$B$3,"Player2",$AM14,"Team",2)&"P")&IF(AR14="","",GETPIVOTDATA("Count of Match",Pivots!$B$3,"Player2",$AM14,"Team",3)&"M") -> 6P3M | AO14: =IF(AM14="","",GETPIVOTDATA("Sum of Relative",Pivots!$B$3,"Player2",$AM14)/GETPIVOTDATA("Count of Match",Pivots!$B$3,"Player2",$AM14)) -> 10.96611111 | AP14: =IFERROR(GETPIVOTDATA("Sum of Relative",Pivots!$B$3,"Player2",$AM14,"Team",AP$4)/GETPIVOTDATA("Count of Match",Pivots!$B$3,"Player2",$AM14,"Team",AP$4),"") ->  | AQ14: =IFERROR(GETPIVOTDATA("Sum of Relative",Pivots!$B$3,"Player2",$AM14,"Team",AQ$4)/GETPIVOTDATA("Count of Match",Pivots!$B$3,"Player2",$AM14,"Team",AQ$4),"") -> 9.949166667 | AR14: =IFERROR(GETPIVOTDATA("Sum of Relative",Pivots!$B$3,"Player2",$AM14,"Team",AR$4)/GETPIVOTDATA("Count of Match",Pivots!$B$3,"Player2",$AM14,"Team",AR$4),"") -> 13 | AS14: 9.949306667 | AU14: 7 | AV14: PW | AW14: =IF(AY14="","",GETPIVOTDATA("Count of Match",Pivots!$B$3,"Player2",$AV14,"Team",1)&"D")&IF(AZ14="","",GETPIVOTDATA("Count of Match",Pivots!$B$3,"Player2",$AV14,"Team",2)&"P")&IF(BA14="","",GETPIVOTDATA("Count of Match",Pivots!$B$3,"Player2",$AV14,"Team",3)&"M") -> 1P11M | AX14: =IF(AV14="","",GETPIVOTDATA("Sum of Relative",Pivots!$B$3,"Player2",$AV14)/GETPIVOTDATA("Count of Match",Pivots!$B$3,"Player2",$AV14)) -> -0.2741666667 | AY14: =IFERROR(GETPIVOTDATA("Sum of Relative",Pivots!$B$3,"Player2",$AV14,"Team",AY$4)/GETPIVOTDATA("Count of Match",Pivots!$B$3,"Player2",$AV14,"Team",AY$4),"") ->  | AZ14: =IFERROR(GETPIVOTDATA("Sum of Relative",Pivots!$B$3,"Player2",$AV14,"Team",AZ$4)/GETPIVOTDATA("Count of Match",Pivots!$B$3,"Player2",$AV14,"Team",AZ$4),"") -> -7.5 | BA14: =IFERROR(GETPIVOTDATA("Sum of Relative",Pivots!$B$3,"Player2",$AV14,"Team",BA$4)/GETPIVOTDATA("Count of Match",Pivots!$B$3,"Player2",$AV14,"Team",BA$4),"") -> 0.3827272727 | BB14: 0.3828672727
D15: 2 | E15: =IFERROR(GETPIVOTDATA("Count of Match",Pivots!$K$3,"Player2",Extract!$C$5,"Team",D15),"") ->  | F15: =IFERROR(GETPIVOTDATA("Sum of Butler",Pivots!$K$3,"Player2",$C$5,"Team",D15),"") ->  | G15: =IFERROR(GETPIVOTDATA("Sum of Relative",Pivots!$K$3,"Player2",$C$5,"Team",D15),"") ->  | J15: =Pivots!AH27 -> 16 | K15: =IFERROR(VLOOKUP(J15,Tables!$F$2:$H$40,2),"") -> Warks Apr 19 | L15: =Pivots!AI28 -> GW | M15: =IF(J15=0,"",GETPIVOTDATA("Average of Team",Pivots!AH15,"Match",$J15,"player2",$L15)) -> 1 | N15: =IF(J15=0,"",GETPIVOTDATA("Sum of Butler",Pivots!AI15,"Match",$J15,"player2",$L15)) -> -17 | O15: =IF(J15=0,"",GETPIVOTDATA("Sum of MatchS",Pivots!AJ15,"Match",$J15,"player2",$L15)) -> 12 | P15: =IF(J15=0,"",GETPIVOTDATA("Sum of Relative",Pivots!AK15,"Match",$J15,"player2",$L15)) -> -20 | S15: BY | T15: 1 | U15: =IFERROR(GETPIVOTDATA("Count of Match",Pivots!B$3,"Player2",S15),"") ->  | Y15: JAR | Z15: 2 | AA15: 5 | AC15: 2 | AD15: RCM | AE15: =IF(AG15="","",GETPIVOTDATA("Count of Match",Pivots!$B$3,"Player2",$AD15,"Team",1)&"D")&IF(AH15="","",GETPIVOTDATA("Count of Match",Pivots!$B$3,"Player2",$AD15,"Team",2)&"P")&IF(AI15="","",GETPIVOTDATA("Count of Match",Pivots!$B$3,"Player2",$AD15,"Team",3)&"M") -> 10D | AF15: =IF(AD15="","",GETPIVOTDATA("Sum of Relative",Pivots!$B$3,"Player2",$AD15)/GETPIVOTDATA("Count of Match",Pivots!$B$3,"Player2",$AD15)) -> 10.81725 | AG15: =IFERROR(GETPIVOTDATA("Sum of Relative",Pivots!$B$3,"Player2",$AD15,"Team",AG$4)/GETPIVOTDATA("Count of Match",Pivots!$B$3,"Player2",$AD15,"Team",AG$4),"") -> 10.81725 | AH15: =IFERROR(GETPIVOTDATA("Sum of Relative",Pivots!$B$3,"Player2",$AD15,"Team",AH$4)/GETPIVOTDATA("Count of Match",Pivots!$B$3,"Player2",$AD15,"Team",AH$4),"") ->  | AI15: =IFERROR(GETPIVOTDATA("Sum of Relative",Pivots!$B$3,"Player2",$AD15,"Team",AI$4)/GETPIVOTDATA("Count of Match",Pivots!$B$3,"Player2",$AD15,"Team",AI$4),"") ->  | AJ15: 10.8174 | AL15: 9 | AM15: RCO | AN15: =IF(AP15="","",GETPIVOTDATA("Count of Match",Pivots!$B$3,"Player2",$AM15,"Team",1)&"D")&IF(AQ15="","",GETPIVOTDATA("Count of Match",Pivots!$B$3,"Player2",$AM15,"Team",2)&"P")&IF(AR15="","",GETPIVOTDATA("Count of Match",Pivots!$B$3,"Player2",$AM15,"Team",3)&"M") -> 7P | AO15: =IF(AM15="","",GETPIVOTDATA("Sum of Relative",Pivots!$B$3,"Player2",$AM15)/GETPIVOTDATA("Count of Match",Pivots!$B$3,"Player2",$AM15)) -> -5.964285714 | AP15: =IFERROR(GETPIVOTDATA("Sum of Relative",Pivots!$B$3,"Player2",$AM15,"Team",AP$4)/GETPIVOTDATA("Count of Match",Pivots!$B$3,"Player2",$AM15,"Team",AP$4),"") ->  | AQ15: =IFERROR(GETPIVOTDATA("Sum of Relative",Pivots!$B$3,"Player2",$AM15,"Team",AQ$4)/GETPIVOTDATA("Count of Match",Pivots!$B$3,"Player2",$AM15,"Team",AQ$4),"") -> -5.964285714 | AR15: =IFERROR(GETPIVOTDATA("Sum of Relative",Pivots!$B$3,"Player2",$AM15,"Team",AR$4)/GETPIVOTDATA("Count of Match",Pivots!$B$3,"Player2",$AM15,"Team",AR$4),"") ->  | AS15: -5.964135714 | AU15: 2 | AV15: RHA | AW15: =IF(AY15="","",GETPIVOTDATA("Count of Match",Pivots!$B$3,"Player2",$AV15,"Team",1)&"D")&IF(AZ15="","",GETPIVOTDATA("Count of Match",Pivots!$B$3,"Player2",$AV15,"Team",2)&"P")&IF(BA15="","",GETPIVOTDATA("Count of Match",Pivots!$B$3,"Player2",$AV15,"Team",3)&"M") -> 4P5M | AX15: =IF(AV15="","",GETPIVOTDATA("Sum of Relative",Pivots!$B$3,"Player2",$AV15)/GETPIVOTDATA("Count of Match",Pivots!$B$3,"Player2",$AV15)) -> 15.40305556 | AY15: =IFERROR(GETPIVOTDATA("Sum of Relative",Pivots!$B$3,"Player2",$AV15,"Team",AY$4)/GETPIVOTDATA("Count of Match",Pivots!$B$3,"Player2",$AV15,"Team",AY$4),"") ->  | AZ15: =IFERROR(GETPIVOTDATA("Sum of Relative",Pivots!$B$3,"Player2",$AV15,"Team",AZ$4)/GETPIVOTDATA("Count of Match",Pivots!$B$3,"Player2",$AV15,"Team",AZ$4),"") -> 4.70625 | BA15: =IFERROR(GETPIVOTDATA("Sum of Relative",Pivots!$B$3,"Player2",$AV15,"Team",BA$4)/GETPIVOTDATA("Count of Match",Pivots!$B$3,"Player2",$AV15,"Team",BA$4),"") -> 23.9605 | BB15: 23.96065
D16: 3 | E16: =IFERROR(GETPIVOTDATA("Count of Match",Pivots!$K$3,"Player2",Extract!$C$5,"Team",D16),"") ->  | F16: =IFERROR(GETPIVOTDATA("Sum of Butler",Pivots!$K3,"Player2",$C$5,"Team",D16),"") ->  | G16: =IFERROR(GETPIVOTDATA("Sum of Relative",Pivots!$K$3,"Player2",$C$5,"Team",D16),"") ->  | J16: =Pivots!AH29 -> 21 | K16: =IFERROR(VLOOKUP(J16,Tables!$F$2:$H$40,2),"") -> Worcs Sep 19 | L16: =Pivots!AI30 -> GW | M16: =IF(J16=0,"",GETPIVOTDATA("Average of Team",Pivots!AH16,"Match",$J16,"player2",$L16)) -> 1 | N16: =IF(J16=0,"",GETPIVOTDATA("Sum of Butler",Pivots!AI16,"Match",$J16,"player2",$L16)) -> 31 | O16: =IF(J16=0,"",GETPIVOTDATA("Sum of MatchS",Pivots!AJ16,"Match",$J16,"player2",$L16)) -> 191 | P16: =IF(J16=0,"",GETPIVOTDATA("Sum of Relative",Pivots!AK16,"Match",$J16,"player2",$L16)) -> -16.75 | S16: CK | T16: 1 | U16: =IFERROR(GETPIVOTDATA("Count of Match",Pivots!B$3,"Player2",S16),"") ->  | Y16: JAT | Z16: 1 | AA16: 4 | AC16: 6 | AD16: RPL | AE16: =IF(AG16="","",GETPIVOTDATA("Count of Match",Pivots!$B$3,"Player2",$AD16,"Team",1)&"D")&IF(AH16="","",GETPIVOTDATA("Count of Match",Pivots!$B$3,"Player2",$AD16,"Team",2)&"P")&IF(AI16="","",GETPIVOTDATA("Count of Match",Pivots!$B$3,"Player2",$AD16,"Team",3)&"M") -> 11D | AF16: =IF(AD16="","",GETPIVOTDATA("Sum of Relative",Pivots!$B$3,"Player2",$AD16)/GETPIVOTDATA("Count of Match",Pivots!$B$3,"Player2",$AD16)) -> 5.785681818 | AG16: =IFERROR(GETPIVOTDATA("Sum of Relative",Pivots!$B$3,"Player2",$AD16,"Team",AG$4)/GETPIVOTDATA("Count of Match",Pivots!$B$3,"Player2",$AD16,"Team",AG$4),"") -> 5.785681818 | AH16: =IFERROR(GETPIVOTDATA("Sum of Relative",Pivots!$B$3,"Player2",$AD16,"Team",AH$4)/GETPIVOTDATA("Count of Match",Pivots!$B$3,"Player2",$AD16,"Team",AH$4),"") ->  | AI16: =IFERROR(GETPIVOTDATA("Sum of Relative",Pivots!$B$3,"Player2",$AD16,"Team",AI$4)/GETPIVOTDATA("Count of Match",Pivots!$B$3,"Player2",$AD16,"Team",AI$4),"") ->  | AJ16: 5.785841818 | AL16: 7 | AM16: VC | AN16: =IF(AP16="","",GETPIVOTDATA("Count of Match",Pivots!$B$3,"Player2",$AM16,"Team",1)&"D")&IF(AQ16="","",GETPIVOTDATA("Count of Match",Pivots!$B$3,"Player2",$AM16,"Team",2)&"P")&IF(AR16="","",GETPIVOTDATA("Count of Match",Pivots!$B$3,"Player2",$AM16,"Team",3)&"M") -> 2P4M | AO16: =IF(AM16="","",GETPIVOTDATA("Sum of Relative",Pivots!$B$3,"Player2",$AM16)/GETPIVOTDATA("Count of Match",Pivots!$B$3,"Player2",$AM16)) -> 0.74625 | AP16: =IFERROR(GETPIVOTDATA("Sum of Relative",Pivots!$B$3,"Player2",$AM16,"Team",AP$4)/GETPIVOTDATA("Count of Match",Pivots!$B$3,"Player2",$AM16,"Team",AP$4),"") ->  | AQ16: =IFERROR(GETPIVOTDATA("Sum of Relative",Pivots!$B$3,"Player2",$AM16,"Team",AQ$4)/GETPIVOTDATA("Count of Match",Pivots!$B$3,"Player2",$AM16,"Team",AQ$4),"") -> -2.375 | AR16: =IFERROR(GETPIVOTDATA("Sum of Relative",Pivots!$B$3,"Player2",$AM16,"Team",AR$4)/GETPIVOTDATA("Count of Match",Pivots!$B$3,"Player2",$AM16,"Team",AR$4),"") -> 2.306875 | AS16: -2.37484 | AU16: 6 | AV16: RJ | AW16: =IF(AY16="","",GETPIVOTDATA("Count of Match",Pivots!$B$3,"Player2",$AV16,"Team",1)&"D")&IF(AZ16="","",GETPIVOTDATA("Count of Match",Pivots!$B$3,"Player2",$AV16,"Team",2)&"P")&IF(BA16="","",GETPIVOTDATA("Count of Match",Pivots!$B$3,"Player2",$AV16,"Team",3)&"M") -> 11M | AX16: =IF(AV16="","",GETPIVOTDATA("Sum of Relative",Pivots!$B$3,"Player2",$AV16)/GETPIVOTDATA("Count of Match",Pivots!$B$3,"Player2",$AV16)) -> 0.3827272727 | AY16: =IFERROR(GETPIVOTDATA("Sum of Relative",Pivots!$B$3,"Player2",$AV16,"Team",AY$4)/GETPIVOTDATA("Count of Match",Pivots!$B$3,"Player2",$AV16,"Team",AY$4),"") ->  | AZ16: =IFERROR(GETPIVOTDATA("Sum of Relative",Pivots!$B$3,"Player2",$AV16,"Team",AZ$4)/GETPIVOTDATA("Count of Match",Pivots!$B$3,"Player2",$AV16,"Team",AZ$4),"") ->  | BA16: =IFERROR(GETPIVOTDATA("Sum of Relative",Pivots!$B$3,"Player2",$AV16,"Team",BA$4)/GETPIVOTDATA("Count of Match",Pivots!$B$3,"Player2",$AV16,"Team",BA$4),"") -> 0.3827272727 | BB16: 0.3828872727
J17: =Pivots!AH31 -> 22 | K17: =IFERROR(VLOOKUP(J17,Tables!$F$2:$H$40,2),"") -> Oxford Oct 19 | L17: =Pivots!AI32 -> KST | M17: =IF(J17=0,"",GETPIVOTDATA("Average of Team",Pivots!AH17,"Match",$J17,"player2",$L17)) -> 1 | N17: =IF(J17=0,"",GETPIVOTDATA("Sum of Butler",Pivots!AI17,"Match",$J17,"player2",$L17)) -> 22 | O17: =IF(J17=0,"",GETPIVOTDATA("Sum of MatchS",Pivots!AJ17,"Match",$J17,"player2",$L17)) -> 1 | P17: =IF(J17=0,"",GETPIVOTDATA("Sum of Relative",Pivots!AK17,"Match",$J17,"player2",$L17)) -> 21.75 | S17: CL | T17: 3 | U17: =IFERROR(GETPIVOTDATA("Count of Match",Pivots!B$3,"Player2",S17),"") ->  | Y17: JC | Z17: 2 | AA17: 9 | AC17: 12 | AD17: TH | AE17: =IF(AG17="","",GETPIVOTDATA("Count of Match",Pivots!$B$3,"Player2",$AD17,"Team",1)&"D")&IF(AH17="","",GETPIVOTDATA("Count of Match",Pivots!$B$3,"Player2",$AD17,"Team",2)&"P")&IF(AI17="","",GETPIVOTDATA("Count of Match",Pivots!$B$3,"Player2",$AD17,"Team",3)&"M") -> 2D1P | AF17: =IF(AD17="","",GETPIVOTDATA("Sum of Relative",Pivots!$B$3,"Player2",$AD17)/GETPIVOTDATA("Count of Match",Pivots!$B$3,"Player2",$AD17)) -> -25.16666667 | AG17: =IFERROR(GETPIVOTDATA("Sum of Relative",Pivots!$B$3,"Player2",$AD17,"Team",AG$4)/GETPIVOTDATA("Count of Match",Pivots!$B$3,"Player2",$AD17,"Team",AG$4),"") -> -23.875 | AH17: =IFERROR(GETPIVOTDATA("Sum of Relative",Pivots!$B$3,"Player2",$AD17,"Team",AH$4)/GETPIVOTDATA("Count of Match",Pivots!$B$3,"Player2",$AD17,"Team",AH$4),"") -> -27.75 | AI17: =IFERROR(GETPIVOTDATA("Sum of Relative",Pivots!$B$3,"Player2",$AD17,"Team",AI$4)/GETPIVOTDATA("Count of Match",Pivots!$B$3,"Player2",$AD17,"Team",AI$4),"") ->  | AJ17: -23.87483 | AL17: 11 | AM17: WA | AN17: =IF(AP17="","",GETPIVOTDATA("Count of Match",Pivots!$B$3,"Player2",$AM17,"Team",1)&"D")&IF(AQ17="","",GETPIVOTDATA("Count of Match",Pivots!$B$3,"Player2",$AM17,"Team",2)&"P")&IF(AR17="","",GETPIVOTDATA("Count of Match",Pivots!$B$3,"Player2",$AM17,"Team",3)&"M") -> 1D3P1M | AO17: =IF(AM17="","",GETPIVOTDATA("Sum of Relative",Pivots!$B$3,"Player2",$AM17)/GETPIVOTDATA("Count of Match",Pivots!$B$3,"Player2",$AM17)) -> -17.7075 | AP17: =IFERROR(GETPIVOTDATA("Sum of Relative",Pivots!$B$3,"Player2",$AM17,"Team",AP$4)/GETPIVOTDATA("Count of Match",Pivots!$B$3,"Player2",$AM17,"Team",AP$4),"") -> -39.25 | AQ17: =IFERROR(GETPIVOTDATA("Sum of Relative",Pivots!$B$3,"Player2",$AM17,"Team",AQ$4)/GETPIVOTDATA("Count of Match",Pivots!$B$3,"Player2",$AM17,"Team",AQ$4),"") -> -16.42916667 | AR17: =IFERROR(GETPIVOTDATA("Sum of Relative",Pivots!$B$3,"Player2",$AM17,"Team",AR$4)/GETPIVOTDATA("Count of Match",Pivots!$B$3,"Player2",$AM17,"Team",AR$4),"") -> 0 | AS17: -16.42899667 | AU17: 4 | AV17: RS | AW17: =IF(AY17="","",GETPIVOTDATA("Count of Match",Pivots!$B$3,"Player2",$AV17,"Team",1)&"D")&IF(AZ17="","",GETPIVOTDATA("Count of Match",Pivots!$B$3,"Player2",$AV17,"Team",2)&"P")&IF(BA17="","",GETPIVOTDATA("Count of Match",Pivots!$B$3,"Player2",$AV17,"Team",3)&"M") -> 4P5M | AX17: =IF(AV17="","",GETPIVOTDATA("Sum of Relative",Pivots!$B$3,"Player2",$AV17)/GETPIVOTDATA("Count of Match",Pivots!$B$3,"Player2",$AV17)) -> 8.8225 | AY17: =IFERROR(GETPIVOTDATA("Sum of Relative",Pivots!$B$3,"Player2",$AV17,"Team",AY$4)/GETPIVOTDATA("Count of Match",Pivots!$B$3,"Player2",$AV17,"Team",AY$4),"") ->  | AZ17: =IFERROR(GETPIVOTDATA("Sum of Relative",Pivots!$B$3,"Player2",$AV17,"Team",AZ$4)/GETPIVOTDATA("Count of Match",Pivots!$B$3,"Player2",$AV17,"Team",AZ$4),"") -> 4.5 | BA17: =IFERROR(GETPIVOTDATA("Sum of Relative",Pivots!$B$3,"Player2",$AV17,"Team",BA$4)/GETPIVOTDATA("Count of Match",Pivots!$B$3,"Player2",$AV17,"Team",BA$4),"") -> 12.2805 | BB17: 12.28067
D18: Total | E18: =SUM(E14:E16) -> 5 | F18: =SUM(F14:F16) -> 73.18 | G18: =SUM(G14:G16) -> -7.97 | J18: =Pivots!AH33 -> 23 | K18: =IFERROR(VLOOKUP(J18,Tables!$F$2:$H$40,2),"") -> Derby Nov 19 | L18: =Pivots!AI34 -> AKM | M18: =IF(J18=0,"",GETPIVOTDATA("Average of Team",Pivots!AH18,"Match",$J18,"player2",$L18)) -> 1 | N18: =IF(J18=0,"",GETPIVOTDATA("Sum of Butler",Pivots!AI18,"Match",$J18,"player2",$L18)) -> -10 | O18: =IF(J18=0,"",GETPIVOTDATA("Sum of MatchS",Pivots!AJ18,"Match",$J18,"player2",$L18)) -> 46 | P18: =IF(J18=0,"",GETPIVOTDATA("Sum of Relative",Pivots!AK18,"Match",$J18,"player2",$L18)) -> -21.5 | S18: CM | T18: 3 | U18: =IFERROR(GETPIVOTDATA("Count of Match",Pivots!B$3,"Player2",S18),"") ->  | Y18: JSI | Z18: 2 | AA18: 12 | AE18: =IF(AG18="","",GETPIVOTDATA("Count of Match",Pivots!$B$3,"Player2",$AD18,"Team",1)&"D")&IF(AH18="","",GETPIVOTDATA("Count of Match",Pivots!$B$3,"Player2",$AD18,"Team",2)&"P")&IF(AI18="","",GETPIVOTDATA("Count of Match",Pivots!$B$3,"Player2",$AD18,"Team",3)&"M") ->  | AF18: =IF(AD18="","",GETPIVOTDATA("Sum of Relative",Pivots!$B$3,"Player2",$AD18)/GETPIVOTDATA("Count of Match",Pivots!$B$3,"Player2",$AD18)) ->  | AG18: =IFERROR(GETPIVOTDATA("Sum of Relative",Pivots!$B$3,"Player2",$AD18,"Team",AG$4)/GETPIVOTDATA("Count of Match",Pivots!$B$3,"Player2",$AD18,"Team",AG$4),"") ->  | AH18: =IFERROR(GETPIVOTDATA("Sum of Relative",Pivots!$B$3,"Player2",$AD18,"Team",AH$4)/GETPIVOTDATA("Count of Match",Pivots!$B$3,"Player2",$AD18,"Team",AH$4),"") ->  | AI18: =IFERROR(GETPIVOTDATA("Sum of Relative",Pivots!$B$3,"Player2",$AD18,"Team",AI$4)/GETPIVOTDATA("Count of Match",Pivots!$B$3,"Player2",$AD18,"Team",AI$4),"") ->  | AN18: =IF(AP18="","",GETPIVOTDATA("Count of Match",Pivots!$B$3,"Player2",$AM18,"Team",1)&"D")&IF(AQ18="","",GETPIVOTDATA("Count of Match",Pivots!$B$3,"Player2",$AM18,"Team",2)&"P")&IF(AR18="","",GETPIVOTDATA("Count of Match",Pivots!$B$3,"Player2",$AM18,"Team",3)&"M") ->  | AO18: =IF(AM18="","",GETPIVOTDATA("Sum of Relative",Pivots!$B$3,"Player2",$AM18)/GETPIVOTDATA("Count of Match",Pivots!$B$3,"Player2",$AM18)) ->  | AP18: =IFERROR(GETPIVOTDATA("Sum of Relative",Pivots!$B$3,"Player2",$AM18,"Team",AP$4)/GETPIVOTDATA("Count of Match",Pivots!$B$3,"Player2",$AM18,"Team",AP$4),"") ->  | AQ18: =IFERROR(GETPIVOTDATA("Sum of Relative",Pivots!$B$3,"Player2",$AM18,"Team",AQ$4)/GETPIVOTDATA("Count of Match",Pivots!$B$3,"Player2",$AM18,"Team",AQ$4),"") ->  | AR18: =IFERROR(GETPIVOTDATA("Sum of Relative",Pivots!$B$3,"Player2",$AM18,"Team",AR$4)/GETPIVOTDATA("Count of Match",Pivots!$B$3,"Player2",$AM18,"Team",AR$4),"") ->  | AU18: 11 | AV18: RW | AW18: =IF(AY18="","",GETPIVOTDATA("Count of Match",Pivots!$B$3,"Player2",$AV18,"Team",1)&"D")&IF(AZ18="","",GETPIVOTDATA("Count of Match",Pivots!$B$3,"Player2",$AV18,"Team",2)&"P")&IF(BA18="","",GETPIVOTDATA("Count of Match",Pivots!$B$3,"Player2",$AV18,"Team",3)&"M") -> 3M | AX18: =IF(AV18="","",GETPIVOTDATA("Sum of Relative",Pivots!$B$3,"Player2",$AV18)/GETPIVOTDATA("Count of Match",Pivots!$B$3,"Player2",$AV18)) -> -11.93916667 | AY18: =IFERROR(GETPIVOTDATA("Sum of Relative",Pivots!$B$3,"Player2",$AV18,"Team",AY$4)/GETPIVOTDATA("Count of Match",Pivots!$B$3,"Player2",$AV18,"Team",AY$4),"") ->  | AZ18: =IFERROR(GETPIVOTDATA("Sum of Relative",Pivots!$B$3,"Player2",$AV18,"Team",AZ$4)/GETPIVOTDATA("Count of Match",Pivots!$B$3,"Player2",$AV18,"Team",AZ$4),"") ->  | BA18: =IFERROR(GETPIVOTDATA("Sum of Relative",Pivots!$B$3,"Player2",$AV18,"Team",BA$4)/GETPIVOTDATA("Count of Match",Pivots!$B$3,"Player2",$AV18,"Team",BA$4),"") -> -11.93916667 | BB18: -11.93898667
J19: =Pivots!AH35 -> 24 | K19: =IFERROR(VLOOKUP(J19,Tables!$F$2:$H$40,2),"") -> Notts Dec 19 | L19: =Pivots!AI36 -> GW | M19: =IF(J19=0,"",GETPIVOTDATA("Average of Team",Pivots!AH19,"Match",$J19,"player2",$L19)) -> 1 | N19: =IF(J19=0,"",GETPIVOTDATA("Sum of Butler",Pivots!AI19,"Match",$J19,"player2",$L19)) -> 26 | O19: =IF(J19=0,"",GETPIVOTDATA("Sum of MatchS",Pivots!AJ19,"Match",$J19,"player2",$L19)) -> -3 | P19: =IF(J19=0,"",GETPIVOTDATA("Sum of Relative",Pivots!AK19,"Match",$J19,"player2",$L19)) -> 26.75 | S19: CRO | T19: 1 | U19: =IFERROR(GETPIVOTDATA("Count of Match",Pivots!B$3,"Player2",S19),"") -> 4 | Y19: JuS | Z19: 3 | AA19: 4 | AE19: =IF(AG19="","",GETPIVOTDATA("Count of Match",Pivots!$B$3,"Player2",$AD19,"Team",1)&"D")&IF(AH19="","",GETPIVOTDATA("Count of Match",Pivots!$B$3,"Player2",$AD19,"Team",2)&"P")&IF(AI19="","",GETPIVOTDATA("Count of Match",Pivots!$B$3,"Player2",$AD19,"Team",3)&"M") ->  | AF19: =IF(AD19="","",GETPIVOTDATA("Sum of Relative",Pivots!$B$3,"Player2",$AD19)/GETPIVOTDATA("Count of Match",Pivots!$B$3,"Player2",$AD19)) ->  | AG19: =IFERROR(GETPIVOTDATA("Sum of Relative",Pivots!$B$3,"Player2",$AD19,"Team",AG$4)/GETPIVOTDATA("Count of Match",Pivots!$B$3,"Player2",$AD19,"Team",AG$4),"") ->  | AH19: =IFERROR(GETPIVOTDATA("Sum of Relative",Pivots!$B$3,"Player2",$AD19,"Team",AH$4)/GETPIVOTDATA("Count of Match",Pivots!$B$3,"Player2",$AD19,"Team",AH$4),"") ->  | AI19: =IFERROR(GETPIVOTDATA("Sum of Relative",Pivots!$B$3,"Player2",$AD19,"Team",AI$4)/GETPIVOTDATA("Count of Match",Pivots!$B$3,"Player2",$AD19,"Team",AI$4),"") ->  | AN19: =IF(AP19="","",GETPIVOTDATA("Count of Match",Pivots!$B$3,"Player2",$AM19,"Team",1)&"D")&IF(AQ19="","",GETPIVOTDATA("Count of Match",Pivots!$B$3,"Player2",$AM19,"Team",2)&"P")&IF(AR19="","",GETPIVOTDATA("Count of Match",Pivots!$B$3,"Player2",$AM19,"Team",3)&"M") ->  | AO19: =IF(AM19="","",GETPIVOTDATA("Sum of Relative",Pivots!$B$3,"Player2",$AM19)/GETPIVOTDATA("Count of Match",Pivots!$B$3,"Player2",$AM19)) ->  | AP19: =IFERROR(GETPIVOTDATA("Sum of Relative",Pivots!$B$3,"Player2",$AM19,"Team",AP$4)/GETPIVOTDATA("Count of Match",Pivots!$B$3,"Player2",$AM19,"Team",AP$4),"") ->  | AQ19: =IFERROR(GETPIVOTDATA("Sum of Relative",Pivots!$B$3,"Player2",$AM19,"Team",AQ$4)/GETPIVOTDATA("Count of Match",Pivots!$B$3,"Player2",$AM19,"Team",AQ$4),"") ->  | AR19: =IFERROR(GETPIVOTDATA("Sum of Relative",Pivots!$B$3,"Player2",$AM19,"Team",AR$4)/GETPIVOTDATA("Count of Match",Pivots!$B$3,"Player2",$AM19,"Team",AR$4),"") ->  | AU19: 5 | AV19: TG | AW19: =IF(AY19="","",GETPIVOTDATA("Count of Match",Pivots!$B$3,"Player2",$AV19,"Team",1)&"D")&IF(AZ19="","",GETPIVOTDATA("Count of Match",Pivots!$B$3,"Player2",$AV19,"Team",2)&"P")&IF(BA19="","",GETPIVOTDATA("Count of Match",Pivots!$B$3,"Player2",$AV19,"Team",3)&"M") -> 2P2M | AX19: =IF(AV19="","",GETPIVOTDATA("Sum of Relative",Pivots!$B$3,"Player2",$AV19)/GETPIVOTDATA("Count of Match",Pivots!$B$3,"Player2",$AV19)) -> 6.888125 | AY19: =IFERROR(GETPIVOTDATA("Sum of Relative",Pivots!$B$3,"Player2",$AV19,"Team",AY$4)/GETPIVOTDATA("Count of Match",Pivots!$B$3,"Player2",$AV19,"Team",AY$4),"") ->  | AZ19: =IFERROR(GETPIVOTDATA("Sum of Relative",Pivots!$B$3,"Player2",$AV19,"Team",AZ$4)/GETPIVOTDATA("Count of Match",Pivots!$B$3,"Player2",$AV19,"Team",AZ$4),"") -> 5.875 | BA19: =IFERROR(GETPIVOTDATA("Sum of Relative",Pivots!$B$3,"Player2",$AV19,"Team",BA$4)/GETPIVOTDATA("Count of Match",Pivots!$B$3,"Player2",$AV19,"Team",BA$4),"") -> 7.90125 | BB19: 7.90144
J20: =Pivots!AH37 -> 26 | K20: =IFERROR(VLOOKUP(J20,Tables!$F$2:$H$40,2),"") -> Warks Feb 20 | L20: =Pivots!AI38 -> GW | M20: =IF(J20=0,"",GETPIVOTDATA("Average of Team",Pivots!AH20,"Match",$J20,"player2",$L20)) -> 1 | N20: =IF(J20=0,"",GETPIVOTDATA("Sum of Butler",Pivots!AI20,"Match",$J20,"player2",$L20)) -> 4.18 | O20: =IF(J20=0,"",GETPIVOTDATA("Sum of MatchS",Pivots!AJ20,"Match",$J20,"player2",$L20)) -> 89.6 | P20: =IF(J20=0,"",GETPIVOTDATA("Sum of Relative",Pivots!AK20,"Match",$J20,"player2",$L20)) -> -18.22 | S20: DA | T20: 3 | U20: =IFERROR(GETPIVOTDATA("Count of Match",Pivots!B$3,"Player2",S20),"") -> 4 | Y20: KAS | Z20: 3 | AA20: 2 | AE20: =IF(AG20="","",GETPIVOTDATA("Count of Match",Pivots!$B$3,"Player2",$AD20,"Team",1)&"D")&IF(AH20="","",GETPIVOTDATA("Count of Match",Pivots!$B$3,"Player2",$AD20,"Team",2)&"P")&IF(AI20="","",GETPIVOTDATA("Count of Match",Pivots!$B$3,"Player2",$AD20,"Team",3)&"M") ->  | AF20: =IF(AD20="","",GETPIVOTDATA("Sum of Relative",Pivots!$B$3,"Player2",$AD20)/GETPIVOTDATA("Count of Match",Pivots!$B$3,"Player2",$AD20)) ->  | AG20: =IFERROR(GETPIVOTDATA("Sum of Relative",Pivots!$B$3,"Player2",$AD20,"Team",AG$4)/GETPIVOTDATA("Count of Match",Pivots!$B$3,"Player2",$AD20,"Team",AG$4),"") ->  | AH20: =IFERROR(GETPIVOTDATA("Sum of Relative",Pivots!$B$3,"Player2",$AD20,"Team",AH$4)/GETPIVOTDATA("Count of Match",Pivots!$B$3,"Player2",$AD20,"Team",AH$4),"") ->  | AI20: =IFERROR(GETPIVOTDATA("Sum of Relative",Pivots!$B$3,"Player2",$AD20,"Team",AI$4)/GETPIVOTDATA("Count of Match",Pivots!$B$3,"Player2",$AD20,"Team",AI$4),"") ->  | AN20: =IF(AP20="","",GETPIVOTDATA("Count of Match",Pivots!$B$3,"Player2",$AM20,"Team",1)&"D")&IF(AQ20="","",GETPIVOTDATA("Count of Match",Pivots!$B$3,"Player2",$AM20,"Team",2)&"P")&IF(AR20="","",GETPIVOTDATA("Count of Match",Pivots!$B$3,"Player2",$AM20,"Team",3)&"M") ->  | AO20: =IF(AM20="","",GETPIVOTDATA("Sum of Relative",Pivots!$B$3,"Player2",$AM20)/GETPIVOTDATA("Count of Match",Pivots!$B$3,"Player2",$AM20)) ->  | AP20: =IFERROR(GETPIVOTDATA("Sum of Relative",Pivots!$B$3,"Player2",$AM20,"Team",AP$4)/GETPIVOTDATA("Count of Match",Pivots!$B$3,"Player2",$AM20,"Team",AP$4),"") ->  | AQ20: =IFERROR(GETPIVOTDATA("Sum of Relative",Pivots!$B$3,"Player2",$AM20,"Team",AQ$4)/GETPIVOTDATA("Count of Match",Pivots!$B$3,"Player2",$AM20,"Team",AQ$4),"") ->  | AR20: =IFERROR(GETPIVOTDATA("Sum of Relative",Pivots!$B$3,"Player2",$AM20,"Team",AR$4)/GETPIVOTDATA("Count of Match",Pivots!$B$3,"Player2",$AM20,"Team",AR$4),"") ->  | AU20: 3 | AV20: TL | AW20: =IF(AY20="","",GETPIVOTDATA("Count of Match",Pivots!$B$3,"Player2",$AV20,"Team",1)&"D")&IF(AZ20="","",GETPIVOTDATA("Count of Match",Pivots!$B$3,"Player2",$AV20,"Team",2)&"P")&IF(BA20="","",GETPIVOTDATA("Count of Match",Pivots!$B$3,"Player2",$AV20,"Team",3)&"M") -> 4P5M | AX20: =IF(AV20="","",GETPIVOTDATA("Sum of Relative",Pivots!$B$3,"Player2",$AV20)/GETPIVOTDATA("Count of Match",Pivots!$B$3,"Player2",$AV20)) -> 8.8225 | AY20: =IFERROR(GETPIVOTDATA("Sum of Relative",Pivots!$B$3,"Player2",$AV20,"Team",AY$4)/GETPIVOTDATA("Count of Match",Pivots!$B$3,"Player2",$AV20,"Team",AY$4),"") ->  | AZ20: =IFERROR(GETPIVOTDATA("Sum of Relative",Pivots!$B$3,"Player2",$AV20,"Team",AZ$4)/GETPIVOTDATA("Count of Match",Pivots!$B$3,"Player2",$AV20,"Team",AZ$4),"") -> 4.5 | BA20: =IFERROR(GETPIVOTDATA("Sum of Relative",Pivots!$B$3,"Player2",$AV20,"Team",BA$4)/GETPIVOTDATA("Count of Match",Pivots!$B$3,"Player2",$AV20,"Team",BA$4),"") -> 12.2805 | BB20: 12.2807
J21: =Pivots!AH39 -> 0 | K21: =IFERROR(VLOOKUP(J21,Tables!$F$2:$H$40,2),"") ->  | L21: =Pivots!AI40 -> 0 | M21: =IF(J21=0,"",GETPIVOTDATA("Average of Team",Pivots!AH21,"Match",$J21,"player2",$L21)) ->  | N21: =IF(J21=0,"",GETPIVOTDATA("Sum of Butler",Pivots!AI21,"Match",$J21,"player2",$L21)) ->  | O21: =IF(J21=0,"",GETPIVOTDATA("Sum of MatchS",Pivots!AJ21,"Match",$J21,"player2",$L21)) ->  | P21: =IF(J21=0,"",GETPIVOTDATA("Sum of Relative",Pivots!AK21,"Match",$J21,"player2",$L21)) ->  | S21: DHA | T21: 3 | U21: =IFERROR(GETPIVOTDATA("Count of Match",Pivots!B$3,"Player2",S21),"") ->  | Y21: KST | Z21: 1 | AA21: 8 | AE21: =IF(AG21="","",GETPIVOTDATA("Count of Match",Pivots!$B$3,"Player2",$AD21,"Team",1)&"D")&IF(AH21="","",GETPIVOTDATA("Count of Match",Pivots!$B$3,"Player2",$AD21,"Team",2)&"P")&IF(AI21="","",GETPIVOTDATA("Count of Match",Pivots!$B$3,"Player2",$AD21,"Team",3)&"M") ->  | AF21: =IF(AD21="","",GETPIVOTDATA("Sum of Relative",Pivots!$B$3,"Player2",$AD21)/GETPIVOTDATA("Count of Match",Pivots!$B$3,"Player2",$AD21)) ->  | AG21: =IFERROR(GETPIVOTDATA("Sum of Relative",Pivots!$B$3,"Player2",$AD21,"Team",AG$4)/GETPIVOTDATA("Count of Match",Pivots!$B$3,"Player2",$AD21,"Team",AG$4),"") ->  | AH21: =IFERROR(GETPIVOTDATA("Sum of Relative",Pivots!$B$3,"Player2",$AD21,"Team",AH$4)/GETPIVOTDATA("Count of Match",Pivots!$B$3,"Player2",$AD21,"Team",AH$4),"") ->  | AI21: =IFERROR(GETPIVOTDATA("Sum of Relative",Pivots!$B$3,"Player2",$AD21,"Team",AI$4)/GETPIVOTDATA("Count of Match",Pivots!$B$3,"Player2",$AD21,"Team",AI$4),"") ->  | AN21: =IF(AP21="","",GETPIVOTDATA("Count of Match",Pivots!$B$3,"Player2",$AM21,"Team",1)&"D")&IF(AQ21="","",GETPIVOTDATA("Count of Match",Pivots!$B$3,"Player2",$AM21,"Team",2)&"P")&IF(AR21="","",GETPIVOTDATA("Count of Match",Pivots!$B$3,"Player2",$AM21,"Team",3)&"M") ->  | AO21: =IF(AM21="","",GETPIVOTDATA("Sum of Relative",Pivots!$B$3,"Player2",$AM21)/GETPIVOTDATA("Count of Match",Pivots!$B$3,"Player2",$AM21)) ->  | AP21: =IFERROR(GETPIVOTDATA("Sum of Relative",Pivots!$B$3,"Player2",$AM21,"Team",AP$4)/GETPIVOTDATA("Count of Match",Pivots!$B$3,"Player2",$AM21,"Team",AP$4),"") ->  | AQ21: =IFERROR(GETPIVOTDATA("Sum of Relative",Pivots!$B$3,"Player2",$AM21,"Team",AQ$4)/GETPIVOTDATA("Count of Match",Pivots!$B$3,"Player2",$AM21,"Team",AQ$4),"") ->  | AR21: =IFERROR(GETPIVOTDATA("Sum of Relative",Pivots!$B$3,"Player2",$AM21,"Team",AR$4)/GETPIVOTDATA("Count of Match",Pivots!$B$3,"Player2",$AM21,"Team",AR$4),"") ->  | AW21: =IF(AY21="","",GETPIVOTDATA("Count of Match",Pivots!$B$3,"Player2",$AV21,"Team",1)&"D")&IF(AZ21="","",GETPIVOTDATA("Count of Match",Pivots!$B$3,"Player2",$AV21,"Team",2)&"P")&IF(BA21="","",GETPIVOTDATA("Count of Match",Pivots!$B$3,"Player2",$AV21,"Team",3)&"M") ->  | AX21: =IF(AV21="","",GETPIVOTDATA("Sum of Relative",Pivots!$B$3,"Player2",$AV21)/GETPIVOTDATA("Count of Match",Pivots!$B$3,"Player2",$AV21)) ->  | AY21: =IFERROR(GETPIVOTDATA("Sum of Relative",Pivots!$B$3,"Player2",$AV21,"Team",AY$4)/GETPIVOTDATA("Count of Match",Pivots!$B$3,"Player2",$AV21,"Team",AY$4),"") ->  | AZ21: =IFERROR(GETPIVOTDATA("Sum of Relative",Pivots!$B$3,"Player2",$AV21,"Team",AZ$4)/GETPIVOTDATA("Count of Match",Pivots!$B$3,"Player2",$AV21,"Team",AZ$4),"") ->  | BA21: =IFERROR(GETPIVOTDATA("Sum of Relative",Pivots!$B$3,"Player2",$AV21,"Team",BA$4)/GETPIVOTDATA("Count of Match",Pivots!$B$3,"Player2",$AV21,"Team",BA$4),"") -> 
J22: =Pivots!AH41 -> 0 | K22: =IFERROR(VLOOKUP(J22,Tables!$F$2:$H$40,2),"") ->  | L22: =Pivots!AI42 -> 0 | M22: =IF(J22=0,"",GETPIVOTDATA("Average of Team",Pivots!AH22,"Match",$J22,"player2",$L22)) ->  | N22: =IF(J22=0,"",GETPIVOTDATA("Sum of Butler",Pivots!AI22,"Match",$J22,"player2",$L22)) ->  | O22: =IF(J22=0,"",GETPIVOTDATA("Sum of MatchS",Pivots!AJ22,"Match",$J22,"player2",$L22)) ->  | P22: =IF(J22=0,"",GETPIVOTDATA("Sum of Relative",Pivots!AK22,"Match",$J22,"player2",$L22)) ->  | S22: DHO | T22: 3 | U22: =IFERROR(GETPIVOTDATA("Count of Match",Pivots!B$3,"Player2",S22),"") ->  | Y22: LH | Z22: 3 | AA22: 3 | AE22: =IF(AG22="","",GETPIVOTDATA("Count of Match",Pivots!$B$3,"Player2",$AD22,"Team",1)&"D")&IF(AH22="","",GETPIVOTDATA("Count of Match",Pivots!$B$3,"Player2",$AD22,"Team",2)&"P")&IF(AI22="","",GETPIVOTDATA("Count of Match",Pivots!$B$3,"Player2",$AD22,"Team",3)&"M") ->  | AF22: =IF(AD22="","",GETPIVOTDATA("Sum of Relative",Pivots!$B$3,"Player2",$AD22)/GETPIVOTDATA("Count of Match",Pivots!$B$3,"Player2",$AD22)) ->  | AG22: =IFERROR(GETPIVOTDATA("Sum of Relative",Pivots!$B$3,"Player2",$AD22,"Team",AG$4)/GETPIVOTDATA("Count of Match",Pivots!$B$3,"Player2",$AD22,"Team",AG$4),"") ->  | AH22: =IFERROR(GETPIVOTDATA("Sum of Relative",Pivots!$B$3,"Player2",$AD22,"Team",AH$4)/GETPIVOTDATA("Count of Match",Pivots!$B$3,"Player2",$AD22,"Team",AH$4),"") ->  | AI22: =IFERROR(GETPIVOTDATA("Sum of Relative",Pivots!$B$3,"Player2",$AD22,"Team",AI$4)/GETPIVOTDATA("Count of Match",Pivots!$B$3,"Player2",$AD22,"Team",AI$4),"") ->  | AN22: =IF(AP22="","",GETPIVOTDATA("Count of Match",Pivots!$B$3,"Player2",$AM22,"Team",1)&"D")&IF(AQ22="","",GETPIVOTDATA("Count of Match",Pivots!$B$3,"Player2",$AM22,"Team",2)&"P")&IF(AR22="","",GETPIVOTDATA("Count of Match",Pivots!$B$3,"Player2",$AM22,"Team",3)&"M") ->  | AO22: =IF(AM22="","",GETPIVOTDATA("Sum of Relative",Pivots!$B$3,"Player2",$AM22)/GETPIVOTDATA("Count of Match",Pivots!$B$3,"Player2",$AM22)) ->  | AP22: =IFERROR(GETPIVOTDATA("Sum of Relative",Pivots!$B$3,"Player2",$AM22,"Team",AP$4)/GETPIVOTDATA("Count of Match",Pivots!$B$3,"Player2",$AM22,"Team",AP$4),"") ->  | AQ22: =IFERROR(GETPIVOTDATA("Sum of Relative",Pivots!$B$3,"Player2",$AM22,"Team",AQ$4)/GETPIVOTDATA("Count of Match",Pivots!$B$3,"Player2",$AM22,"Team",AQ$4),"") ->  | AR22: =IFERROR(GETPIVOTDATA("Sum of Relative",Pivots!$B$3,"Player2",$AM22,"Team",AR$4)/GETPIVOTDATA("Count of Match",Pivots!$B$3,"Player2",$AM22,"Team",AR$4),"") ->  | AW22: =IF(AY22="","",GETPIVOTDATA("Count of Match",Pivots!$B$3,"Player2",$AV22,"Team",1)&"D")&IF(AZ22="","",GETPIVOTDATA("Count of Match",Pivots!$B$3,"Player2",$AV22,"Team",2)&"P")&IF(BA22="","",GETPIVOTDATA("Count of Match",Pivots!$B$3,"Player2",$AV22,"Team",3)&"M") ->  | AX22: =IF(AV22="","",GETPIVOTDATA("Sum of Relative",Pivots!$B$3,"Player2",$AV22)/GETPIVOTDATA("Count of Match",Pivots!$B$3,"Player2",$AV22)) ->  | AY22: =IFERROR(GETPIVOTDATA("Sum of Relative",Pivots!$B$3,"Player2",$AV22,"Team",AY$4)/GETPIVOTDATA("Count of Match",Pivots!$B$3,"Player2",$AV22,"Team",AY$4),"") ->  | AZ22: =IFERROR(GETPIVOTDATA("Sum of Relative",Pivots!$B$3,"Player2",$AV22,"Team",AZ$4)/GETPIVOTDATA("Count of Match",Pivots!$B$3,"Player2",$AV22,"Team",AZ$4),"") ->  | BA22: =IFERROR(GETPIVOTDATA("Sum of Relative",Pivots!$B$3,"Player2",$AV22,"Team",BA$4)/GETPIVOTDATA("Count of Match",Pivots!$B$3,"Player2",$AV22,"Team",BA$4),"") -> 
J23: =Pivots!AH43 -> 0 | K23: =IFERROR(VLOOKUP(J23,Tables!$F$2:$H$40,2),"") ->  | L23: =Pivots!AI44 -> 0 | M23: =IF(J23=0,"",GETPIVOTDATA("Average of Team",Pivots!AH23,"Match",$J23,"player2",$L23)) ->  | N23: =IF(J23=0,"",GETPIVOTDATA("Sum of Butler",Pivots!AI23,"Match",$J23,"player2",$L23)) ->  | O23: =IF(J23=0,"",GETPIVOTDATA("Sum of MatchS",Pivots!AJ23,"Match",$J23,"player2",$L23)) ->  | P23: =IF(J23=0,"",GETPIVOTDATA("Sum of Relative",Pivots!AK23,"Match",$J23,"player2",$L23)) ->  | S23: DHP | T23: 1 | U23: =IFERROR(GETPIVOTDATA("Count of Match",Pivots!B$3,"Player2",S23),"") ->  | Y23: MB | Z23: 2 | AA23: 6 | AE23: =IF(AG23="","",GETPIVOTDATA("Count of Match",Pivots!$B$3,"Player2",$AD23,"Team",1)&"D")&IF(AH23="","",GETPIVOTDATA("Count of Match",Pivots!$B$3,"Player2",$AD23,"Team",2)&"P")&IF(AI23="","",GETPIVOTDATA("Count of Match",Pivots!$B$3,"Player2",$AD23,"Team",3)&"M") ->  | AF23: =IF(AD23="","",GETPIVOTDATA("Sum of Relative",Pivots!$B$3,"Player2",$AD23)/GETPIVOTDATA("Count of Match",Pivots!$B$3,"Player2",$AD23)) ->  | AG23: =IFERROR(GETPIVOTDATA("Sum of Relative",Pivots!$B$3,"Player2",$AD23,"Team",AG$4)/GETPIVOTDATA("Count of Match",Pivots!$B$3,"Player2",$AD23,"Team",AG$4),"") ->  | AH23: =IFERROR(GETPIVOTDATA("Sum of Relative",Pivots!$B$3,"Player2",$AD23,"Team",AH$4)/GETPIVOTDATA("Count of Match",Pivots!$B$3,"Player2",$AD23,"Team",AH$4),"") ->  | AI23: =IFERROR(GETPIVOTDATA("Sum of Relative",Pivots!$B$3,"Player2",$AD23,"Team",AI$4)/GETPIVOTDATA("Count of Match",Pivots!$B$3,"Player2",$AD23,"Team",AI$4),"") ->  | AN23: =IF(AP23="","",GETPIVOTDATA("Count of Match",Pivots!$B$3,"Player2",$AM23,"Team",1)&"D")&IF(AQ23="","",GETPIVOTDATA("Count of Match",Pivots!$B$3,"Player2",$AM23,"Team",2)&"P")&IF(AR23="","",GETPIVOTDATA("Count of Match",Pivots!$B$3,"Player2",$AM23,"Team",3)&"M") ->  | AO23: =IF(AM23="","",GETPIVOTDATA("Sum of Relative",Pivots!$B$3,"Player2",$AM23)/GETPIVOTDATA("Count of Match",Pivots!$B$3,"Player2",$AM23)) ->  | AP23: =IFERROR(GETPIVOTDATA("Sum of Relative",Pivots!$B$3,"Player2",$AM23,"Team",AP$4)/GETPIVOTDATA("Count of Match",Pivots!$B$3,"Player2",$AM23,"Team",AP$4),"") ->  | AQ23: =IFERROR(GETPIVOTDATA("Sum of Relative",Pivots!$B$3,"Player2",$AM23,"Team",AQ$4)/GETPIVOTDATA("Count of Match",Pivots!$B$3,"Player2",$AM23,"Team",AQ$4),"") ->  | AR23: =IFERROR(GETPIVOTDATA("Sum of Relative",Pivots!$B$3,"Player2",$AM23,"Team",AR$4)/GETPIVOTDATA("Count of Match",Pivots!$B$3,"Player2",$AM23,"Team",AR$4),"") ->  | AW23: =IF(AY23="","",GETPIVOTDATA("Count of Match",Pivots!$B$3,"Player2",$AV23,"Team",1)&"D")&IF(AZ23="","",GETPIVOTDATA("Count of Match",Pivots!$B$3,"Player2",$AV23,"Team",2)&"P")&IF(BA23="","",GETPIVOTDATA("Count of Match",Pivots!$B$3,"Player2",$AV23,"Team",3)&"M") ->  | AX23: =IF(AV23="","",GETPIVOTDATA("Sum of Relative",Pivots!$B$3,"Player2",$AV23)/GETPIVOTDATA("Count of Match",Pivots!$B$3,"Player2",$AV23)) ->  | AY23: =IFERROR(GETPIVOTDATA("Sum of Relative",Pivots!$B$3,"Player2",$AV23,"Team",AY$4)/GETPIVOTDATA("Count of Match",Pivots!$B$3,"Player2",$AV23,"Team",AY$4),"") ->  | AZ23: =IFERROR(GETPIVOTDATA("Sum of Relative",Pivots!$B$3,"Player2",$AV23,"Team",AZ$4)/GETPIVOTDATA("Count of Match",Pivots!$B$3,"Player2",$AV23,"Team",AZ$4),"") ->  | BA23: =IFERROR(GETPIVOTDATA("Sum of Relative",Pivots!$B$3,"Player2",$AV23,"Team",BA$4)/GETPIVOTDATA("Count of Match",Pivots!$B$3,"Player2",$AV23,"Team",BA$4),"") -> 
J24: =Pivots!AH45 -> 0 | K24: =IFERROR(VLOOKUP(J24,Tables!$F$2:$H$40,2),"") ->  | L24: =Pivots!AI46 -> 0 | M24: =IF(J24=0,"",GETPIVOTDATA("Average of Team",Pivots!AH24,"Match",$J24,"player2",$L24)) ->  | N24: =IF(J24=0,"",GETPIVOTDATA("Sum of Butler",Pivots!AI24,"Match",$J24,"player2",$L24)) ->  | O24: =IF(J24=0,"",GETPIVOTDATA("Sum of MatchS",Pivots!AJ24,"Match",$J24,"player2",$L24)) ->  | P24: =IF(J24=0,"",GETPIVOTDATA("Sum of Relative",Pivots!AK24,"Match",$J24,"player2",$L24)) ->  | S24: DN | T24: 1 | U24: =IFERROR(GETPIVOTDATA("Count of Match",Pivots!B$3,"Player2",S24),"") ->  | Y24: ML | Z24: 3 | AA24: 1 | AE24: =IF(AG24="","",GETPIVOTDATA("Count of Match",Pivots!$B$3,"Player2",$AD24,"Team",1)&"D")&IF(AH24="","",GETPIVOTDATA("Count of Match",Pivots!$B$3,"Player2",$AD24,"Team",2)&"P")&IF(AI24="","",GETPIVOTDATA("Count of Match",Pivots!$B$3,"Player2",$AD24,"Team",3)&"M") ->  | AF24: =IF(AD24="","",GETPIVOTDATA("Sum of Relative",Pivots!$B$3,"Player2",$AD24)/GETPIVOTDATA("Count of Match",Pivots!$B$3,"Player2",$AD24)) ->  | AG24: =IFERROR(GETPIVOTDATA("Sum of Relative",Pivots!$B$3,"Player2",$AD24,"Team",AG$4)/GETPIVOTDATA("Count of Match",Pivots!$B$3,"Player2",$AD24,"Team",AG$4),"") ->  | AH24: =IFERROR(GETPIVOTDATA("Sum of Relative",Pivots!$B$3,"Player2",$AD24,"Team",AH$4)/GETPIVOTDATA("Count of Match",Pivots!$B$3,"Player2",$AD24,"Team",AH$4),"") ->  | AI24: =IFERROR(GETPIVOTDATA("Sum of Relative",Pivots!$B$3,"Player2",$AD24,"Team",AI$4)/GETPIVOTDATA("Count of Match",Pivots!$B$3,"Player2",$AD24,"Team",AI$4),"") ->  | AN24: =IF(AP24="","",GETPIVOTDATA("Count of Match",Pivots!$B$3,"Player2",$AM24,"Team",1)&"D")&IF(AQ24="","",GETPIVOTDATA("Count of Match",Pivots!$B$3,"Player2",$AM24,"Team",2)&"P")&IF(AR24="","",GETPIVOTDATA("Count of Match",Pivots!$B$3,"Player2",$AM24,"Team",3)&"M") ->  | AO24: =IF(AM24="","",GETPIVOTDATA("Sum of Relative",Pivots!$B$3,"Player2",$AM24)/GETPIVOTDATA("Count of Match",Pivots!$B$3,"Player2",$AM24)) ->  | AP24: =IFERROR(GETPIVOTDATA("Sum of Relative",Pivots!$B$3,"Player2",$AM24,"Team",AP$4)/GETPIVOTDATA("Count of Match",Pivots!$B$3,"Player2",$AM24,"Team",AP$4),"") ->  | AQ24: =IFERROR(GETPIVOTDATA("Sum of Relative",Pivots!$B$3,"Player2",$AM24,"Team",AQ$4)/GETPIVOTDATA("Count of Match",Pivots!$B$3,"Player2",$AM24,"Team",AQ$4),"") ->  | AR24: =IFERROR(GETPIVOTDATA("Sum of Relative",Pivots!$B$3,"Player2",$AM24,"Team",AR$4)/GETPIVOTDATA("Count of Match",Pivots!$B$3,"Player2",$AM24,"Team",AR$4),"") ->  | AW24: =IF(AY24="","",GETPIVOTDATA("Count of Match",Pivots!$B$3,"Player2",$AV24,"Team",1)&"D")&IF(AZ24="","",GETPIVOTDATA("Count of Match",Pivots!$B$3,"Player2",$AV24,"Team",2)&"P")&IF(BA24="","",GETPIVOTDATA("Count of Match",Pivots!$B$3,"Player2",$AV24,"Team",3)&"M") ->  | AX24: =IF(AV24="","",GETPIVOTDATA("Sum of Relative",Pivots!$B$3,"Player2",$AV24)/GETPIVOTDATA("Count of Match",Pivots!$B$3,"Player2",$AV24)) ->  | AY24: =IFERROR(GETPIVOTDATA("Sum of Relative",Pivots!$B$3,"Player2",$AV24,"Team",AY$4)/GETPIVOTDATA("Count of Match",Pivots!$B$3,"Player2",$AV24,"Team",AY$4),"") ->  | AZ24: =IFERROR(GETPIVOTDATA("Sum of Relative",Pivots!$B$3,"Player2",$AV24,"Team",AZ$4)/GETPIVOTDATA("Count of Match",Pivots!$B$3,"Player2",$AV24,"Team",AZ$4),"") ->  | BA24: =IFERROR(GETPIVOTDATA("Sum of Relative",Pivots!$B$3,"Player2",$AV24,"Team",BA$4)/GETPIVOTDATA("Count of Match",Pivots!$B$3,"Player2",$AV24,"Team",BA$4),"") -> 
J25: =Pivots!AH47 -> 0 | K25: =IFERROR(VLOOKUP(J25,Tables!$F$2:$H$40,2),"") ->  | L25: =Pivots!AI48 -> 0 | M25: =IF(J25=0,"",GETPIVOTDATA("Average of Team",Pivots!AH25,"Match",$J25,"player2",$L25)) ->  | N25: =IF(J25=0,"",GETPIVOTDATA("Sum of Butler",Pivots!AI25,"Match",$J25,"player2",$L25)) ->  | O25: =IF(J25=0,"",GETPIVOTDATA("Sum of MatchS",Pivots!AJ25,"Match",$J25,"player2",$L25)) ->  | P25: =IF(J25=0,"",GETPIVOTDATA("Sum of Relative",Pivots!AK25,"Match",$J25,"player2",$L25)) ->  | S25: DR | T25: 1 | U25: =IFERROR(GETPIVOTDATA("Count of Match",Pivots!B$3,"Player2",S25),"") ->  | Y25: MR | Z25: 2 | AA25: 10 | AE25: =IF(AG25="","",GETPIVOTDATA("Count of Match",Pivots!$B$3,"Player2",$AD25,"Team",1)&"D")&IF(AH25="","",GETPIVOTDATA("Count of Match",Pivots!$B$3,"Player2",$AD25,"Team",2)&"P")&IF(AI25="","",GETPIVOTDATA("Count of Match",Pivots!$B$3,"Player2",$AD25,"Team",3)&"M") ->  | AF25: =IF(AD25="","",GETPIVOTDATA("Sum of Relative",Pivots!$B$3,"Player2",$AD25)/GETPIVOTDATA("Count of Match",Pivots!$B$3,"Player2",$AD25)) ->  | AG25: =IFERROR(GETPIVOTDATA("Sum of Relative",Pivots!$B$3,"Player2",$AD25,"Team",AG$4)/GETPIVOTDATA("Count of Match",Pivots!$B$3,"Player2",$AD25,"Team",AG$4),"") ->  | AH25: =IFERROR(GETPIVOTDATA("Sum of Relative",Pivots!$B$3,"Player2",$AD25,"Team",AH$4)/GETPIVOTDATA("Count of Match",Pivots!$B$3,"Player2",$AD25,"Team",AH$4),"") ->  | AI25: =IFERROR(GETPIVOTDATA("Sum of Relative",Pivots!$B$3,"Player2",$AD25,"Team",AI$4)/GETPIVOTDATA("Count of Match",Pivots!$B$3,"Player2",$AD25,"Team",AI$4),"") ->  | AN25: =IF(AP25="","",GETPIVOTDATA("Count of Match",Pivots!$B$3,"Player2",$AM25,"Team",1)&"D")&IF(AQ25="","",GETPIVOTDATA("Count of Match",Pivots!$B$3,"Player2",$AM25,"Team",2)&"P")&IF(AR25="","",GETPIVOTDATA("Count of Match",Pivots!$B$3,"Player2",$AM25,"Team",3)&"M") ->  | AO25: =IF(AM25="","",GETPIVOTDATA("Sum of Relative",Pivots!$B$3,"Player2",$AM25)/GETPIVOTDATA("Count of Match",Pivots!$B$3,"Player2",$AM25)) ->  | AP25: =IFERROR(GETPIVOTDATA("Sum of Relative",Pivots!$B$3,"Player2",$AM25,"Team",AP$4)/GETPIVOTDATA("Count of Match",Pivots!$B$3,"Player2",$AM25,"Team",AP$4),"") ->  | AQ25: =IFERROR(GETPIVOTDATA("Sum of Relative",Pivots!$B$3,"Player2",$AM25,"Team",AQ$4)/GETPIVOTDATA("Count of Match",Pivots!$B$3,"Player2",$AM25,"Team",AQ$4),"") ->  | AR25: =IFERROR(GETPIVOTDATA("Sum of Relative",Pivots!$B$3,"Player2",$AM25,"Team",AR$4)/GETPIVOTDATA("Count of Match",Pivots!$B$3,"Player2",$AM25,"Team",AR$4),"") ->  | AW25: =IF(AY25="","",GETPIVOTDATA("Count of Match",Pivots!$B$3,"Player2",$AV25,"Team",1)&"D")&IF(AZ25="","",GETPIVOTDATA("Count of Match",Pivots!$B$3,"Player2",$AV25,"Team",2)&"P")&IF(BA25="","",GETPIVOTDATA("Count of Match",Pivots!$B$3,"Player2",$AV25,"Team",3)&"M") ->  | AX25: =IF(AV25="","",GETPIVOTDATA("Sum of Relative",Pivots!$B$3,"Player2",$AV25)/GETPIVOTDATA("Count of Match",Pivots!$B$3,"Player2",$AV25)) ->  | AY25: =IFERROR(GETPIVOTDATA("Sum of Relative",Pivots!$B$3,"Player2",$AV25,"Team",AY$4)/GETPIVOTDATA("Count of Match",Pivots!$B$3,"Player2",$AV25,"Team",AY$4),"") ->  | AZ25: =IFERROR(GETPIVOTDATA("Sum of Relative",Pivots!$B$3,"Player2",$AV25,"Team",AZ$4)/GETPIVOTDATA("Count of Match",Pivots!$B$3,"Player2",$AV25,"Team",AZ$4),"") ->  | BA25: =IFERROR(GETPIVOTDATA("Sum of Relative",Pivots!$B$3,"Player2",$AV25,"Team",BA$4)/GETPIVOTDATA("Count of Match",Pivots!$B$3,"Player2",$AV25,"Team",BA$4),"") -> 
J26: =Pivots!AH49 -> 0 | K26: =IFERROR(VLOOKUP(J26,Tables!$F$2:$H$40,2),"") ->  | L26: =Pivots!AI50 -> 0 | M26: =IF(J26=0,"",GETPIVOTDATA("Average of Team",Pivots!AH26,"Match",$J26,"player2",$L26)) ->  | N26: =IF(J26=0,"",GETPIVOTDATA("Sum of Butler",Pivots!AI26,"Match",$J26,"player2",$L26)) ->  | O26: =IF(J26=0,"",GETPIVOTDATA("Sum of MatchS",Pivots!AJ26,"Match",$J26,"player2",$L26)) ->  | P26: =IF(J26=0,"",GETPIVOTDATA("Sum of Relative",Pivots!AK26,"Match",$J26,"player2",$L26)) ->  | S26: DS | T26: 3 | U26: =IFERROR(GETPIVOTDATA("Count of Match",Pivots!B$3,"Player2",S26),"") ->  | Y26: MW | Z26: 2 | AA26: 9 | AE26: =IF(AG26="","",GETPIVOTDATA("Count of Match",Pivots!$B$3,"Player2",$AD26,"Team",1)&"D")&IF(AH26="","",GETPIVOTDATA("Count of Match",Pivots!$B$3,"Player2",$AD26,"Team",2)&"P")&IF(AI26="","",GETPIVOTDATA("Count of Match",Pivots!$B$3,"Player2",$AD26,"Team",3)&"M") ->  | AF26: =IF(AD26="","",GETPIVOTDATA("Sum of Relative",Pivots!$B$3,"Player2",$AD26)/GETPIVOTDATA("Count of Match",Pivots!$B$3,"Player2",$AD26)) ->  | AG26: =IFERROR(GETPIVOTDATA("Sum of Relative",Pivots!$B$3,"Player2",$AD26,"Team",AG$4)/GETPIVOTDATA("Count of Match",Pivots!$B$3,"Player2",$AD26,"Team",AG$4),"") ->  | AH26: =IFERROR(GETPIVOTDATA("Sum of Relative",Pivots!$B$3,"Player2",$AD26,"Team",AH$4)/GETPIVOTDATA("Count of Match",Pivots!$B$3,"Player2",$AD26,"Team",AH$4),"") ->  | AI26: =IFERROR(GETPIVOTDATA("Sum of Relative",Pivots!$B$3,"Player2",$AD26,"Team",AI$4)/GETPIVOTDATA("Count of Match",Pivots!$B$3,"Player2",$AD26,"Team",AI$4),"") ->  | AN26: =IF(AP26="","",GETPIVOTDATA("Count of Match",Pivots!$B$3,"Player2",$AM26,"Team",1)&"D")&IF(AQ26="","",GETPIVOTDATA("Count of Match",Pivots!$B$3,"Player2",$AM26,"Team",2)&"P")&IF(AR26="","",GETPIVOTDATA("Count of Match",Pivots!$B$3,"Player2",$AM26,"Team",3)&"M") ->  | AO26: =IF(AM26="","",GETPIVOTDATA("Sum of Relative",Pivots!$B$3,"Player2",$AM26)/GETPIVOTDATA("Count of Match",Pivots!$B$3,"Player2",$AM26)) ->  | AP26: =IFERROR(GETPIVOTDATA("Sum of Relative",Pivots!$B$3,"Player2",$AM26,"Team",AP$4)/GETPIVOTDATA("Count of Match",Pivots!$B$3,"Player2",$AM26,"Team",AP$4),"") ->  | AQ26: =IFERROR(GETPIVOTDATA("Sum of Relative",Pivots!$B$3,"Player2",$AM26,"Team",AQ$4)/GETPIVOTDATA("Count of Match",Pivots!$B$3,"Player2",$AM26,"Team",AQ$4),"") ->  | AR26: =IFERROR(GETPIVOTDATA("Sum of Relative",Pivots!$B$3,"Player2",$AM26,"Team",AR$4)/GETPIVOTDATA("Count of Match",Pivots!$B$3,"Player2",$AM26,"Team",AR$4),"") ->  | AW26: =IF(AY26="","",GETPIVOTDATA("Count of Match",Pivots!$B$3,"Player2",$AV26,"Team",1)&"D")&IF(AZ26="","",GETPIVOTDATA("Count of Match",Pivots!$B$3,"Player2",$AV26,"Team",2)&"P")&IF(BA26="","",GETPIVOTDATA("Count of Match",Pivots!$B$3,"Player2",$AV26,"Team",3)&"M") ->  | AX26: =IF(AV26="","",GETPIVOTDATA("Sum of Relative",Pivots!$B$3,"Player2",$AV26)/GETPIVOTDATA("Count of Match",Pivots!$B$3,"Player2",$AV26)) ->  | AY26: =IFERROR(GETPIVOTDATA("Sum of Relative",Pivots!$B$3,"Player2",$AV26,"Team",AY$4)/GETPIVOTDATA("Count of Match",Pivots!$B$3,"Player2",$AV26,"Team",AY$4),"") ->  | AZ26: =IFERROR(GETPIVOTDATA("Sum of Relative",Pivots!$B$3,"Player2",$AV26,"Team",AZ$4)/GETPIVOTDATA("Count of Match",Pivots!$B$3,"Player2",$AV26,"Team",AZ$4),"") ->  | BA26: =IFERROR(GETPIVOTDATA("Sum of Relative",Pivots!$B$3,"Player2",$AV26,"Team",BA$4)/GETPIVOTDATA("Count of Match",Pivots!$B$3,"Player2",$AV26,"Team",BA$4),"") -> 
J27: =Pivots!AH51 -> 0 | K27: =IFERROR(VLOOKUP(J27,Tables!$F$2:$H$40,2),"") ->  | L27: =Pivots!AI52 -> 0 | M27: =IF(J27=0,"",GETPIVOTDATA("Average of Team",Pivots!AH27,"Match",$J27,"player2",$L27)) ->  | N27: =IF(J27=0,"",GETPIVOTDATA("Sum of Butler",Pivots!AI27,"Match",$J27,"player2",$L27)) ->  | O27: =IF(J27=0,"",GETPIVOTDATA("Sum of MatchS",Pivots!AJ27,"Match",$J27,"player2",$L27)) ->  | P27: =IF(J27=0,"",GETPIVOTDATA("Sum of Relative",Pivots!AK27,"Match",$J27,"player2",$L27)) ->  | S27: ED | T27: 3 | U27: =IFERROR(GETPIVOTDATA("Count of Match",Pivots!B$3,"Player2",S27),"") ->  | Y27: PD | Z27: 1 | AA27: 12 | AE27: =IF(AG27="","",GETPIVOTDATA("Count of Match",Pivots!$B$3,"Player2",$AD27,"Team",1)&"D")&IF(AH27="","",GETPIVOTDATA("Count of Match",Pivots!$B$3,"Player2",$AD27,"Team",2)&"P")&IF(AI27="","",GETPIVOTDATA("Count of Match",Pivots!$B$3,"Player2",$AD27,"Team",3)&"M") ->  | AF27: =IF(AD27="","",GETPIVOTDATA("Sum of Relative",Pivots!$B$3,"Player2",$AD27)/GETPIVOTDATA("Count of Match",Pivots!$B$3,"Player2",$AD27)) ->  | AG27: =IFERROR(GETPIVOTDATA("Sum of Relative",Pivots!$B$3,"Player2",$AD27,"Team",AG$4)/GETPIVOTDATA("Count of Match",Pivots!$B$3,"Player2",$AD27,"Team",AG$4),"") ->  | AH27: =IFERROR(GETPIVOTDATA("Sum of Relative",Pivots!$B$3,"Player2",$AD27,"Team",AH$4)/GETPIVOTDATA("Count of Match",Pivots!$B$3,"Player2",$AD27,"Team",AH$4),"") ->  | AI27: =IFERROR(GETPIVOTDATA("Sum of Relative",Pivots!$B$3,"Player2",$AD27,"Team",AI$4)/GETPIVOTDATA("Count of Match",Pivots!$B$3,"Player2",$AD27,"Team",AI$4),"") ->  | AN27: =IF(AP27="","",GETPIVOTDATA("Count of Match",Pivots!$B$3,"Player2",$AM27,"Team",1)&"D")&IF(AQ27="","",GETPIVOTDATA("Count of Match",Pivots!$B$3,"Player2",$AM27,"Team",2)&"P")&IF(AR27="","",GETPIVOTDATA("Count of Match",Pivots!$B$3,"Player2",$AM27,"Team",3)&"M") ->  | AO27: =IF(AM27="","",GETPIVOTDATA("Sum of Relative",Pivots!$B$3,"Player2",$AM27)/GETPIVOTDATA("Count of Match",Pivots!$B$3,"Player2",$AM27)) ->  | AP27: =IFERROR(GETPIVOTDATA("Sum of Relative",Pivots!$B$3,"Player2",$AM27,"Team",AP$4)/GETPIVOTDATA("Count of Match",Pivots!$B$3,"Player2",$AM27,"Team",AP$4),"") ->  | AQ27: =IFERROR(GETPIVOTDATA("Sum of Relative",Pivots!$B$3,"Player2",$AM27,"Team",AQ$4)/GETPIVOTDATA("Count of Match",Pivots!$B$3,"Player2",$AM27,"Team",AQ$4),"") ->  | AR27: =IFERROR(GETPIVOTDATA("Sum of Relative",Pivots!$B$3,"Player2",$AM27,"Team",AR$4)/GETPIVOTDATA("Count of Match",Pivots!$B$3,"Player2",$AM27,"Team",AR$4),"") ->  | AW27: =IF(AY27="","",GETPIVOTDATA("Count of Match",Pivots!$B$3,"Player2",$AV27,"Team",1)&"D")&IF(AZ27="","",GETPIVOTDATA("Count of Match",Pivots!$B$3,"Player2",$AV27,"Team",2)&"P")&IF(BA27="","",GETPIVOTDATA("Count of Match",Pivots!$B$3,"Player2",$AV27,"Team",3)&"M") ->  | AX27: =IF(AV27="","",GETPIVOTDATA("Sum of Relative",Pivots!$B$3,"Player2",$AV27)/GETPIVOTDATA("Count of Match",Pivots!$B$3,"Player2",$AV27)) ->  | AY27: =IFERROR(GETPIVOTDATA("Sum of Relative",Pivots!$B$3,"Player2",$AV27,"Team",AY$4)/GETPIVOTDATA("Count of Match",Pivots!$B$3,"Player2",$AV27,"Team",AY$4),"") ->  | AZ27: =IFERROR(GETPIVOTDATA("Sum of Relative",Pivots!$B$3,"Player2",$AV27,"Team",AZ$4)/GETPIVOTDATA("Count of Match",Pivots!$B$3,"Player2",$AV27,"Team",AZ$4),"") ->  | BA27: =IFERROR(GETPIVOTDATA("Sum of Relative",Pivots!$B$3,"Player2",$AV27,"Team",BA$4)/GETPIVOTDATA("Count of Match",Pivots!$B$3,"Player2",$AV27,"Team",BA$4),"") -> 
J28: =Pivots!AH53 -> 0 | K28: =IFERROR(VLOOKUP(J28,Tables!$F$2:$H$40,2),"") ->  | L28: =Pivots!AI54 -> 0 | M28: =IF(J28=0,"",GETPIVOTDATA("Average of Team",Pivots!AH28,"Match",$J28,"player2",$L28)) ->  | N28: =IF(J28=0,"",GETPIVOTDATA("Sum of Butler",Pivots!AI28,"Match",$J28,"player2",$L28)) ->  | O28: =IF(J28=0,"",GETPIVOTDATA("Sum of MatchS",Pivots!AJ28,"Match",$J28,"player2",$L28)) ->  | P28: =IF(J28=0,"",GETPIVOTDATA("Sum of Relative",Pivots!AK28,"Match",$J28,"player2",$L28)) ->  | S28: GB | T28: 2 | U28: =IFERROR(GETPIVOTDATA("Count of Match",Pivots!B$3,"Player2",S28),"") ->  | Y28: PL | Z28: 2 | AA28: 9 | AE28: =IF(AG28="","",GETPIVOTDATA("Count of Match",Pivots!$B$3,"Player2",$AD28,"Team",1)&"D")&IF(AH28="","",GETPIVOTDATA("Count of Match",Pivots!$B$3,"Player2",$AD28,"Team",2)&"P")&IF(AI28="","",GETPIVOTDATA("Count of Match",Pivots!$B$3,"Player2",$AD28,"Team",3)&"M") ->  | AF28: =IF(AD28="","",GETPIVOTDATA("Sum of Relative",Pivots!$B$3,"Player2",$AD28)/GETPIVOTDATA("Count of Match",Pivots!$B$3,"Player2",$AD28)) ->  | AG28: =IFERROR(GETPIVOTDATA("Sum of Relative",Pivots!$B$3,"Player2",$AD28,"Team",AG$4)/GETPIVOTDATA("Count of Match",Pivots!$B$3,"Player2",$AD28,"Team",AG$4),"") ->  | AH28: =IFERROR(GETPIVOTDATA("Sum of Relative",Pivots!$B$3,"Player2",$AD28,"Team",AH$4)/GETPIVOTDATA("Count of Match",Pivots!$B$3,"Player2",$AD28,"Team",AH$4),"") ->  | AI28: =IFERROR(GETPIVOTDATA("Sum of Relative",Pivots!$B$3,"Player2",$AD28,"Team",AI$4)/GETPIVOTDATA("Count of Match",Pivots!$B$3,"Player2",$AD28,"Team",AI$4),"") ->  | AN28: =IF(AP28="","",GETPIVOTDATA("Count of Match",Pivots!$B$3,"Player2",$AM28,"Team",1)&"D")&IF(AQ28="","",GETPIVOTDATA("Count of Match",Pivots!$B$3,"Player2",$AM28,"Team",2)&"P")&IF(AR28="","",GETPIVOTDATA("Count of Match",Pivots!$B$3,"Player2",$AM28,"Team",3)&"M") ->  | AO28: =IF(AM28="","",GETPIVOTDATA("Sum of Relative",Pivots!$B$3,"Player2",$AM28)/GETPIVOTDATA("Count of Match",Pivots!$B$3,"Player2",$AM28)) ->  | AP28: =IFERROR(GETPIVOTDATA("Sum of Relative",Pivots!$B$3,"Player2",$AM28,"Team",AP$4)/GETPIVOTDATA("Count of Match",Pivots!$B$3,"Player2",$AM28,"Team",AP$4),"") ->  | AQ28: =IFERROR(GETPIVOTDATA("Sum of Relative",Pivots!$B$3,"Player2",$AM28,"Team",AQ$4)/GETPIVOTDATA("Count of Match",Pivots!$B$3,"Player2",$AM28,"Team",AQ$4),"") ->  | AR28: =IFERROR(GETPIVOTDATA("Sum of Relative",Pivots!$B$3,"Player2",$AM28,"Team",AR$4)/GETPIVOTDATA("Count of Match",Pivots!$B$3,"Player2",$AM28,"Team",AR$4),"") ->  | AW28: =IF(AY28="","",GETPIVOTDATA("Count of Match",Pivots!$B$3,"Player2",$AV28,"Team",1)&"D")&IF(AZ28="","",GETPIVOTDATA("Count of Match",Pivots!$B$3,"Player2",$AV28,"Team",2)&"P")&IF(BA28="","",GETPIVOTDATA("Count of Match",Pivots!$B$3,"Player2",$AV28,"Team",3)&"M") ->  | AX28: =IF(AV28="","",GETPIVOTDATA("Sum of Relative",Pivots!$B$3,"Player2",$AV28)/GETPIVOTDATA("Count of Match",Pivots!$B$3,"Player2",$AV28)) ->  | AY28: =IFERROR(GETPIVOTDATA("Sum of Relative",Pivots!$B$3,"Player2",$AV28,"Team",AY$4)/GETPIVOTDATA("Count of Match",Pivots!$B$3,"Player2",$AV28,"Team",AY$4),"") ->  | AZ28: =IFERROR(GETPIVOTDATA("Sum of Relative",Pivots!$B$3,"Player2",$AV28,"Team",AZ$4)/GETPIVOTDATA("Count of Match",Pivots!$B$3,"Player2",$AV28,"Team",AZ$4),"") ->  | BA28: =IFERROR(GETPIVOTDATA("Sum of Relative",Pivots!$B$3,"Player2",$AV28,"Team",BA$4)/GETPIVOTDATA("Count of Match",Pivots!$B$3,"Player2",$AV28,"Team",BA$4),"") -> 
J29: =Pivots!AH55 -> 0 | K29: =IFERROR(VLOOKUP(J29,Tables!$F$2:$H$40,2),"") ->  | L29: =Pivots!AI56 -> 0 | M29: =IF(J29=0,"",GETPIVOTDATA("Average of Team",Pivots!AH29,"Match",$J29,"player2",$L29)) ->  | N29: =IF(J29=0,"",GETPIVOTDATA("Sum of Butler",Pivots!AI29,"Match",$J29,"player2",$L29)) ->  | O29: =IF(J29=0,"",GETPIVOTDATA("Sum of MatchS",Pivots!AJ29,"Match",$J29,"player2",$L29)) ->  | P29: =IF(J29=0,"",GETPIVOTDATA("Sum of Relative",Pivots!AK29,"Match",$J29,"player2",$L29)) ->  | S29: GS | T29: 1 | U29: =IFERROR(GETPIVOTDATA("Count of Match",Pivots!B$3,"Player2",S29),"") ->  | Y29: PPE | Z29: 2 | AA29: 6 | AE29: =IF(AG29="","",GETPIVOTDATA("Count of Match",Pivots!$B$3,"Player2",$AD29,"Team",1)&"D")&IF(AH29="","",GETPIVOTDATA("Count of Match",Pivots!$B$3,"Player2",$AD29,"Team",2)&"P")&IF(AI29="","",GETPIVOTDATA("Count of Match",Pivots!$B$3,"Player2",$AD29,"Team",3)&"M") ->  | AF29: =IF(AD29="","",GETPIVOTDATA("Sum of Relative",Pivots!$B$3,"Player2",$AD29)/GETPIVOTDATA("Count of Match",Pivots!$B$3,"Player2",$AD29)) ->  | AG29: =IFERROR(GETPIVOTDATA("Sum of Relative",Pivots!$B$3,"Player2",$AD29,"Team",AG$4)/GETPIVOTDATA("Count of Match",Pivots!$B$3,"Player2",$AD29,"Team",AG$4),"") ->  | AH29: =IFERROR(GETPIVOTDATA("Sum of Relative",Pivots!$B$3,"Player2",$AD29,"Team",AH$4)/GETPIVOTDATA("Count of Match",Pivots!$B$3,"Player2",$AD29,"Team",AH$4),"") ->  | AI29: =IFERROR(GETPIVOTDATA("Sum of Relative",Pivots!$B$3,"Player2",$AD29,"Team",AI$4)/GETPIVOTDATA("Count of Match",Pivots!$B$3,"Player2",$AD29,"Team",AI$4),"") ->  | AN29: =IF(AP29="","",GETPIVOTDATA("Count of Match",Pivots!$B$3,"Player2",$AM29,"Team",1)&"D")&IF(AQ29="","",GETPIVOTDATA("Count of Match",Pivots!$B$3,"Player2",$AM29,"Team",2)&"P")&IF(AR29="","",GETPIVOTDATA("Count of Match",Pivots!$B$3,"Player2",$AM29,"Team",3)&"M") ->  | AO29: =IF(AM29="","",GETPIVOTDATA("Sum of Relative",Pivots!$B$3,"Player2",$AM29)/GETPIVOTDATA("Count of Match",Pivots!$B$3,"Player2",$AM29)) ->  | AP29: =IFERROR(GETPIVOTDATA("Sum of Relative",Pivots!$B$3,"Player2",$AM29,"Team",AP$4)/GETPIVOTDATA("Count of Match",Pivots!$B$3,"Player2",$AM29,"Team",AP$4),"") ->  | AQ29: =IFERROR(GETPIVOTDATA("Sum of Relative",Pivots!$B$3,"Player2",$AM29,"Team",AQ$4)/GETPIVOTDATA("Count of Match",Pivots!$B$3,"Player2",$AM29,"Team",AQ$4),"") ->  | AR29: =IFERROR(GETPIVOTDATA("Sum of Relative",Pivots!$B$3,"Player2",$AM29,"Team",AR$4)/GETPIVOTDATA("Count of Match",Pivots!$B$3,"Player2",$AM29,"Team",AR$4),"") ->  | AW29: =IF(AY29="","",GETPIVOTDATA("Count of Match",Pivots!$B$3,"Player2",$AV29,"Team",1)&"D")&IF(AZ29="","",GETPIVOTDATA("Count of Match",Pivots!$B$3,"Player2",$AV29,"Team",2)&"P")&IF(BA29="","",GETPIVOTDATA("Count of Match",Pivots!$B$3,"Player2",$AV29,"Team",3)&"M") ->  | AX29: =IF(AV29="","",GETPIVOTDATA("Sum of Relative",Pivots!$B$3,"Player2",$AV29)/GETPIVOTDATA("Count of Match",Pivots!$B$3,"Player2",$AV29)) ->  | AY29: =IFERROR(GETPIVOTDATA("Sum of Relative",Pivots!$B$3,"Player2",$AV29,"Team",AY$4)/GETPIVOTDATA("Count of Match",Pivots!$B$3,"Player2",$AV29,"Team",AY$4),"") ->  | AZ29: =IFERROR(GETPIVOTDATA("Sum of Relative",Pivots!$B$3,"Player2",$AV29,"Team",AZ$4)/GETPIVOTDATA("Count of Match",Pivots!$B$3,"Player2",$AV29,"Team",AZ$4),"") ->  | BA29: =IFERROR(GETPIVOTDATA("Sum of Relative",Pivots!$B$3,"Player2",$AV29,"Team",BA$4)/GETPIVOTDATA("Count of Match",Pivots!$B$3,"Player2",$AV29,"Team",BA$4),"") -> 
J30: =Pivots!AH57 -> 0 | K30: =IFERROR(VLOOKUP(J30,Tables!$F$2:$H$40,2),"") ->  | L30: =Pivots!AI58 -> 0 | M30: =IF(J30=0,"",GETPIVOTDATA("Average of Team",Pivots!AH30,"Match",$J30,"player2",$L30)) ->  | N30: =IF(J30=0,"",GETPIVOTDATA("Sum of Butler",Pivots!AI30,"Match",$J30,"player2",$L30)) ->  | O30: =IF(J30=0,"",GETPIVOTDATA("Sum of MatchS",Pivots!AJ30,"Match",$J30,"player2",$L30)) ->  | P30: =IF(J30=0,"",GETPIVOTDATA("Sum of Relative",Pivots!AK30,"Match",$J30,"player2",$L30)) ->  | S30: GW | T30: 1 | U30: =IFERROR(GETPIVOTDATA("Count of Match",Pivots!B$3,"Player2",S30),"") -> 10 | Y30: PPH | Z30: 2 | AA30: 9 | AE30: =IF(AG30="","",GETPIVOTDATA("Count of Match",Pivots!$B$3,"Player2",$AD30,"Team",1)&"D")&IF(AH30="","",GETPIVOTDATA("Count of Match",Pivots!$B$3,"Player2",$AD30,"Team",2)&"P")&IF(AI30="","",GETPIVOTDATA("Count of Match",Pivots!$B$3,"Player2",$AD30,"Team",3)&"M") ->  | AF30: =IF(AD30="","",GETPIVOTDATA("Sum of Relative",Pivots!$B$3,"Player2",$AD30)/GETPIVOTDATA("Count of Match",Pivots!$B$3,"Player2",$AD30)) ->  | AG30: =IFERROR(GETPIVOTDATA("Sum of Relative",Pivots!$B$3,"Player2",$AD30,"Team",AG$4)/GETPIVOTDATA("Count of Match",Pivots!$B$3,"Player2",$AD30,"Team",AG$4),"") ->  | AH30: =IFERROR(GETPIVOTDATA("Sum of Relative",Pivots!$B$3,"Player2",$AD30,"Team",AH$4)/GETPIVOTDATA("Count of Match",Pivots!$B$3,"Player2",$AD30,"Team",AH$4),"") ->  | AI30: =IFERROR(GETPIVOTDATA("Sum of Relative",Pivots!$B$3,"Player2",$AD30,"Team",AI$4)/GETPIVOTDATA("Count of Match",Pivots!$B$3,"Player2",$AD30,"Team",AI$4),"") ->  | AN30: =IF(AP30="","",GETPIVOTDATA("Count of Match",Pivots!$B$3,"Player2",$AM30,"Team",1)&"D")&IF(AQ30="","",GETPIVOTDATA("Count of Match",Pivots!$B$3,"Player2",$AM30,"Team",2)&"P")&IF(AR30="","",GETPIVOTDATA("Count of Match",Pivots!$B$3,"Player2",$AM30,"Team",3)&"M") ->  | AO30: =IF(AM30="","",GETPIVOTDATA("Sum of Relative",Pivots!$B$3,"Player2",$AM30)/GETPIVOTDATA("Count of Match",Pivots!$B$3,"Player2",$AM30)) ->  | AP30: =IFERROR(GETPIVOTDATA("Sum of Relative",Pivots!$B$3,"Player2",$AM30,"Team",AP$4)/GETPIVOTDATA("Count of Match",Pivots!$B$3,"Player2",$AM30,"Team",AP$4),"") ->  | AQ30: =IFERROR(GETPIVOTDATA("Sum of Relative",Pivots!$B$3,"Player2",$AM30,"Team",AQ$4)/GETPIVOTDATA("Count of Match",Pivots!$B$3,"Player2",$AM30,"Team",AQ$4),"") ->  | AR30: =IFERROR(GETPIVOTDATA("Sum of Relative",Pivots!$B$3,"Player2",$AM30,"Team",AR$4)/GETPIVOTDATA("Count of Match",Pivots!$B$3,"Player2",$AM30,"Team",AR$4),"") ->  | AW30: =IF(AY30="","",GETPIVOTDATA("Count of Match",Pivots!$B$3,"Player2",$AV30,"Team",1)&"D")&IF(AZ30="","",GETPIVOTDATA("Count of Match",Pivots!$B$3,"Player2",$AV30,"Team",2)&"P")&IF(BA30="","",GETPIVOTDATA("Count of Match",Pivots!$B$3,"Player2",$AV30,"Team",3)&"M") ->  | AX30: =IF(AV30="","",GETPIVOTDATA("Sum of Relative",Pivots!$B$3,"Player2",$AV30)/GETPIVOTDATA("Count of Match",Pivots!$B$3,"Player2",$AV30)) ->  | AY30: =IFERROR(GETPIVOTDATA("Sum of Relative",Pivots!$B$3,"Player2",$AV30,"Team",AY$4)/GETPIVOTDATA("Count of Match",Pivots!$B$3,"Player2",$AV30,"Team",AY$4),"") ->  | AZ30: =IFERROR(GETPIVOTDATA("Sum of Relative",Pivots!$B$3,"Player2",$AV30,"Team",AZ$4)/GETPIVOTDATA("Count of Match",Pivots!$B$3,"Player2",$AV30,"Team",AZ$4),"") ->  | BA30: =IFERROR(GETPIVOTDATA("Sum of Relative",Pivots!$B$3,"Player2",$AV30,"Team",BA$4)/GETPIVOTDATA("Count of Match",Pivots!$B$3,"Player2",$AV30,"Team",BA$4),"") -> 
J31: =Pivots!AH59 -> 0 | K31: =IFERROR(VLOOKUP(J31,Tables!$F$2:$H$40,2),"") ->  | L31: =Pivots!AI60 -> 0 | M31: =IF(J31=0,"",GETPIVOTDATA("Average of Team",Pivots!AH31,"Match",$J31,"player2",$L31)) ->  | N31: =IF(J31=0,"",GETPIVOTDATA("Sum of Butler",Pivots!AI31,"Match",$J31,"player2",$L31)) ->  | O31: =IF(J31=0,"",GETPIVOTDATA("Sum of MatchS",Pivots!AJ31,"Match",$J31,"player2",$L31)) ->  | P31: =IF(J31=0,"",GETPIVOTDATA("Sum of Relative",Pivots!AK31,"Match",$J31,"player2",$L31)) ->  | S31: HF | T31: 3 | U31: =IFERROR(GETPIVOTDATA("Count of Match",Pivots!B$3,"Player2",S31),"") ->  | Y31: PSH | Z31: 1 | AA31: 10 | AE31: =IF(AG31="","",GETPIVOTDATA("Count of Match",Pivots!$B$3,"Player2",$AD31,"Team",1)&"D")&IF(AH31="","",GETPIVOTDATA("Count of Match",Pivots!$B$3,"Player2",$AD31,"Team",2)&"P")&IF(AI31="","",GETPIVOTDATA("Count of Match",Pivots!$B$3,"Player2",$AD31,"Team",3)&"M") ->  | AF31: =IF(AD31="","",GETPIVOTDATA("Sum of Relative",Pivots!$B$3,"Player2",$AD31)/GETPIVOTDATA("Count of Match",Pivots!$B$3,"Player2",$AD31)) ->  | AG31: =IFERROR(GETPIVOTDATA("Sum of Relative",Pivots!$B$3,"Player2",$AD31,"Team",AG$4)/GETPIVOTDATA("Count of Match",Pivots!$B$3,"Player2",$AD31,"Team",AG$4),"") ->  | AH31: =IFERROR(GETPIVOTDATA("Sum of Relative",Pivots!$B$3,"Player2",$AD31,"Team",AH$4)/GETPIVOTDATA("Count of Match",Pivots!$B$3,"Player2",$AD31,"Team",AH$4),"") ->  | AI31: =IFERROR(GETPIVOTDATA("Sum of Relative",Pivots!$B$3,"Player2",$AD31,"Team",AI$4)/GETPIVOTDATA("Count of Match",Pivots!$B$3,"Player2",$AD31,"Team",AI$4),"") ->  | AN31: =IF(AP31="","",GETPIVOTDATA("Count of Match",Pivots!$B$3,"Player2",$AM31,"Team",1)&"D")&IF(AQ31="","",GETPIVOTDATA("Count of Match",Pivots!$B$3,"Player2",$AM31,"Team",2)&"P")&IF(AR31="","",GETPIVOTDATA("Count of Match",Pivots!$B$3,"Player2",$AM31,"Team",3)&"M") ->  | AO31: =IF(AM31="","",GETPIVOTDATA("Sum of Relative",Pivots!$B$3,"Player2",$AM31)/GETPIVOTDATA("Count of Match",Pivots!$B$3,"Player2",$AM31)) ->  | AP31: =IFERROR(GETPIVOTDATA("Sum of Relative",Pivots!$B$3,"Player2",$AM31,"Team",AP$4)/GETPIVOTDATA("Count of Match",Pivots!$B$3,"Player2",$AM31,"Team",AP$4),"") ->  | AQ31: =IFERROR(GETPIVOTDATA("Sum of Relative",Pivots!$B$3,"Player2",$AM31,"Team",AQ$4)/GETPIVOTDATA("Count of Match",Pivots!$B$3,"Player2",$AM31,"Team",AQ$4),"") ->  | AR31: =IFERROR(GETPIVOTDATA("Sum of Relative",Pivots!$B$3,"Player2",$AM31,"Team",AR$4)/GETPIVOTDATA("Count of Match",Pivots!$B$3,"Player2",$AM31,"Team",AR$4),"") ->  | AW31: =IF(AY31="","",GETPIVOTDATA("Count of Match",Pivots!$B$3,"Player2",$AV31,"Team",1)&"D")&IF(AZ31="","",GETPIVOTDATA("Count of Match",Pivots!$B$3,"Player2",$AV31,"Team",2)&"P")&IF(BA31="","",GETPIVOTDATA("Count of Match",Pivots!$B$3,"Player2",$AV31,"Team",3)&"M") ->  | AX31: =IF(AV31="","",GETPIVOTDATA("Sum of Relative",Pivots!$B$3,"Player2",$AV31)/GETPIVOTDATA("Count of Match",Pivots!$B$3,"Player2",$AV31)) ->  | AY31: =IFERROR(GETPIVOTDATA("Sum of Relative",Pivots!$B$3,"Player2",$AV31,"Team",AY$4)/GETPIVOTDATA("Count of Match",Pivots!$B$3,"Player2",$AV31,"Team",AY$4),"") ->  | AZ31: =IFERROR(GETPIVOTDATA("Sum of Relative",Pivots!$B$3,"Player2",$AV31,"Team",AZ$4)/GETPIVOTDATA("Count of Match",Pivots!$B$3,"Player2",$AV31,"Team",AZ$4),"") ->  | BA31: =IFERROR(GETPIVOTDATA("Sum of Relative",Pivots!$B$3,"Player2",$AV31,"Team",BA$4)/GETPIVOTDATA("Count of Match",Pivots!$B$3,"Player2",$AV31,"Team",BA$4),"") -> 
J32: =Pivots!AH61 -> 0 | K32: =IFERROR(VLOOKUP(J32,Tables!$F$2:$H$40,2),"") ->  | L32: =Pivots!AI62 -> 0 | M32: =IF(J32=0,"",GETPIVOTDATA("Average of Team",Pivots!AH32,"Match",$J32,"player2",$L32)) ->  | N32: =IF(J32=0,"",GETPIVOTDATA("Sum of Butler",Pivots!AI32,"Match",$J32,"player2",$L32)) ->  | O32: =IF(J32=0,"",GETPIVOTDATA("Sum of MatchS",Pivots!AJ32,"Match",$J32,"player2",$L32)) ->  | P32: =IF(J32=0,"",GETPIVOTDATA("Sum of Relative",Pivots!AK32,"Match",$J32,"player2",$L32)) ->  | S32: IC | T32: 3 | U32: =IFERROR(GETPIVOTDATA("Count of Match",Pivots!B$3,"Player2",S32),"") ->  | Y32: PSW | Z32: 2 | AA32: 9 | AE32: =IF(AG32="","",GETPIVOTDATA("Count of Match",Pivots!$B$3,"Player2",$AD32,"Team",1)&"D")&IF(AH32="","",GETPIVOTDATA("Count of Match",Pivots!$B$3,"Player2",$AD32,"Team",2)&"P")&IF(AI32="","",GETPIVOTDATA("Count of Match",Pivots!$B$3,"Player2",$AD32,"Team",3)&"M") ->  | AF32: =IF(AD32="","",GETPIVOTDATA("Sum of Relative",Pivots!$B$3,"Player2",$AD32)/GETPIVOTDATA("Count of Match",Pivots!$B$3,"Player2",$AD32)) ->  | AG32: =IFERROR(GETPIVOTDATA("Sum of Relative",Pivots!$B$3,"Player2",$AD32,"Team",AG$4)/GETPIVOTDATA("Count of Match",Pivots!$B$3,"Player2",$AD32,"Team",AG$4),"") ->  | AH32: =IFERROR(GETPIVOTDATA("Sum of Relative",Pivots!$B$3,"Player2",$AD32,"Team",AH$4)/GETPIVOTDATA("Count of Match",Pivots!$B$3,"Player2",$AD32,"Team",AH$4),"") ->  | AI32: =IFERROR(GETPIVOTDATA("Sum of Relative",Pivots!$B$3,"Player2",$AD32,"Team",AI$4)/GETPIVOTDATA("Count of Match",Pivots!$B$3,"Player2",$AD32,"Team",AI$4),"") ->  | AN32: =IF(AP32="","",GETPIVOTDATA("Count of Match",Pivots!$B$3,"Player2",$AM32,"Team",1)&"D")&IF(AQ32="","",GETPIVOTDATA("Count of Match",Pivots!$B$3,"Player2",$AM32,"Team",2)&"P")&IF(AR32="","",GETPIVOTDATA("Count of Match",Pivots!$B$3,"Player2",$AM32,"Team",3)&"M") ->  | AO32: =IF(AM32="","",GETPIVOTDATA("Sum of Relative",Pivots!$B$3,"Player2",$AM32)/GETPIVOTDATA("Count of Match",Pivots!$B$3,"Player2",$AM32)) ->  | AP32: =IFERROR(GETPIVOTDATA("Sum of Relative",Pivots!$B$3,"Player2",$AM32,"Team",AP$4)/GETPIVOTDATA("Count of Match",Pivots!$B$3,"Player2",$AM32,"Team",AP$4),"") ->  | AQ32: =IFERROR(GETPIVOTDATA("Sum of Relative",Pivots!$B$3,"Player2",$AM32,"Team",AQ$4)/GETPIVOTDATA("Count of Match",Pivots!$B$3,"Player2",$AM32,"Team",AQ$4),"") ->  | AR32: =IFERROR(GETPIVOTDATA("Sum of Relative",Pivots!$B$3,"Player2",$AM32,"Team",AR$4)/GETPIVOTDATA("Count of Match",Pivots!$B$3,"Player2",$AM32,"Team",AR$4),"") ->  | AW32: =IF(AY32="","",GETPIVOTDATA("Count of Match",Pivots!$B$3,"Player2",$AV32,"Team",1)&"D")&IF(AZ32="","",GETPIVOTDATA("Count of Match",Pivots!$B$3,"Player2",$AV32,"Team",2)&"P")&IF(BA32="","",GETPIVOTDATA("Count of Match",Pivots!$B$3,"Player2",$AV32,"Team",3)&"M") ->  | AX32: =IF(AV32="","",GETPIVOTDATA("Sum of Relative",Pivots!$B$3,"Player2",$AV32)/GETPIVOTDATA("Count of Match",Pivots!$B$3,"Player2",$AV32)) ->  | AY32: =IFERROR(GETPIVOTDATA("Sum of Relative",Pivots!$B$3,"Player2",$AV32,"Team",AY$4)/GETPIVOTDATA("Count of Match",Pivots!$B$3,"Player2",$AV32,"Team",AY$4),"") ->  | AZ32: =IFERROR(GETPIVOTDATA("Sum of Relative",Pivots!$B$3,"Player2",$AV32,"Team",AZ$4)/GETPIVOTDATA("Count of Match",Pivots!$B$3,"Player2",$AV32,"Team",AZ$4),"") ->  | BA32: =IFERROR(GETPIVOTDATA("Sum of Relative",Pivots!$B$3,"Player2",$AV32,"Team",BA$4)/GETPIVOTDATA("Count of Match",Pivots!$B$3,"Player2",$AV32,"Team",BA$4),"") -> 
J33: =Pivots!AH63 -> 0 | K33: =IFERROR(VLOOKUP(J33,Tables!$F$2:$H$40,2),"") ->  | L33: =Pivots!AI64 -> 0 | M33: =IF(J33=0,"",GETPIVOTDATA("Average of Team",Pivots!AH33,"Match",$J33,"player2",$L33)) ->  | N33: =IF(J33=0,"",GETPIVOTDATA("Sum of Butler",Pivots!AI33,"Match",$J33,"player2",$L33)) ->  | O33: =IF(J33=0,"",GETPIVOTDATA("Sum of MatchS",Pivots!AJ33,"Match",$J33,"player2",$L33)) ->  | P33: =IF(J33=0,"",GETPIVOTDATA("Sum of Relative",Pivots!AK33,"Match",$J33,"player2",$L33)) ->  | S33: JAN | T33: 1 | U33: =IFERROR(GETPIVOTDATA("Count of Match",Pivots!B$3,"Player2",S33),"") -> 9 | Y33: PW | Z33: 3 | AA33: 12 | AE33: =IF(AG33="","",GETPIVOTDATA("Count of Match",Pivots!$B$3,"Player2",$AD33,"Team",1)&"D")&IF(AH33="","",GETPIVOTDATA("Count of Match",Pivots!$B$3,"Player2",$AD33,"Team",2)&"P")&IF(AI33="","",GETPIVOTDATA("Count of Match",Pivots!$B$3,"Player2",$AD33,"Team",3)&"M") ->  | AF33: =IF(AD33="","",GETPIVOTDATA("Sum of Relative",Pivots!$B$3,"Player2",$AD33)/GETPIVOTDATA("Count of Match",Pivots!$B$3,"Player2",$AD33)) ->  | AG33: =IFERROR(GETPIVOTDATA("Sum of Relative",Pivots!$B$3,"Player2",$AD33,"Team",AG$4)/GETPIVOTDATA("Count of Match",Pivots!$B$3,"Player2",$AD33,"Team",AG$4),"") ->  | AH33: =IFERROR(GETPIVOTDATA("Sum of Relative",Pivots!$B$3,"Player2",$AD33,"Team",AH$4)/GETPIVOTDATA("Count of Match",Pivots!$B$3,"Player2",$AD33,"Team",AH$4),"") ->  | AI33: =IFERROR(GETPIVOTDATA("Sum of Relative",Pivots!$B$3,"Player2",$AD33,"Team",AI$4)/GETPIVOTDATA("Count of Match",Pivots!$B$3,"Player2",$AD33,"Team",AI$4),"") ->  | AN33: =IF(AP33="","",GETPIVOTDATA("Count of Match",Pivots!$B$3,"Player2",$AM33,"Team",1)&"D")&IF(AQ33="","",GETPIVOTDATA("Count of Match",Pivots!$B$3,"Player2",$AM33,"Team",2)&"P")&IF(AR33="","",GETPIVOTDATA("Count of Match",Pivots!$B$3,"Player2",$AM33,"Team",3)&"M") ->  | AO33: =IF(AM33="","",GETPIVOTDATA("Sum of Relative",Pivots!$B$3,"Player2",$AM33)/GETPIVOTDATA("Count of Match",Pivots!$B$3,"Player2",$AM33)) ->  | AP33: =IFERROR(GETPIVOTDATA("Sum of Relative",Pivots!$B$3,"Player2",$AM33,"Team",AP$4)/GETPIVOTDATA("Count of Match",Pivots!$B$3,"Player2",$AM33,"Team",AP$4),"") ->  | AQ33: =IFERROR(GETPIVOTDATA("Sum of Relative",Pivots!$B$3,"Player2",$AM33,"Team",AQ$4)/GETPIVOTDATA("Count of Match",Pivots!$B$3,"Player2",$AM33,"Team",AQ$4),"") ->  | AR33: =IFERROR(GETPIVOTDATA("Sum of Relative",Pivots!$B$3,"Player2",$AM33,"Team",AR$4)/GETPIVOTDATA("Count of Match",Pivots!$B$3,"Player2",$AM33,"Team",AR$4),"") ->  | AW33: =IF(AY33="","",GETPIVOTDATA("Count of Match",Pivots!$B$3,"Player2",$AV33,"Team",1)&"D")&IF(AZ33="","",GETPIVOTDATA("Count of Match",Pivots!$B$3,"Player2",$AV33,"Team",2)&"P")&IF(BA33="","",GETPIVOTDATA("Count of Match",Pivots!$B$3,"Player2",$AV33,"Team",3)&"M") ->  | AX33: =IF(AV33="","",GETPIVOTDATA("Sum of Relative",Pivots!$B$3,"Player2",$AV33)/GETPIVOTDATA("Count of Match",Pivots!$B$3,"Player2",$AV33)) ->  | AY33: =IFERROR(GETPIVOTDATA("Sum of Relative",Pivots!$B$3,"Player2",$AV33,"Team",AY$4)/GETPIVOTDATA("Count of Match",Pivots!$B$3,"Player2",$AV33,"Team",AY$4),"") ->  | AZ33: =IFERROR(GETPIVOTDATA("Sum of Relative",Pivots!$B$3,"Player2",$AV33,"Team",AZ$4)/GETPIVOTDATA("Count of Match",Pivots!$B$3,"Player2",$AV33,"Team",AZ$4),"") ->  | BA33: =IFERROR(GETPIVOTDATA("Sum of Relative",Pivots!$B$3,"Player2",$AV33,"Team",BA$4)/GETPIVOTDATA("Count of Match",Pivots!$B$3,"Player2",$AV33,"Team",BA$4),"") -> 
J34: =Pivots!AH65 -> 0 | K34: =IFERROR(VLOOKUP(J34,Tables!$F$2:$H$40,2),"") ->  | L34: =Pivots!AI66 -> 0 | M34: =IF(J34=0,"",GETPIVOTDATA("Average of Team",Pivots!AH34,"Match",$J34,"player2",$L34)) ->  | N34: =IF(J34=0,"",GETPIVOTDATA("Sum of Butler",Pivots!AI34,"Match",$J34,"player2",$L34)) ->  | O34: =IF(J34=0,"",GETPIVOTDATA("Sum of MatchS",Pivots!AJ34,"Match",$J34,"player2",$L34)) ->  | P34: =IF(J34=0,"",GETPIVOTDATA("Sum of Relative",Pivots!AK34,"Match",$J34,"player2",$L34)) ->  | S34: JAR | T34: 2 | U34: =IFERROR(GETPIVOTDATA("Count of Match",Pivots!B$3,"Player2",S34),"") -> 5 | Y34: RB | Z34: 1 | AA34: 11 | AE34: =IF(AG34="","",GETPIVOTDATA("Count of Match",Pivots!$B$3,"Player2",$AD34,"Team",1)&"D")&IF(AH34="","",GETPIVOTDATA("Count of Match",Pivots!$B$3,"Player2",$AD34,"Team",2)&"P")&IF(AI34="","",GETPIVOTDATA("Count of Match",Pivots!$B$3,"Player2",$AD34,"Team",3)&"M") ->  | AF34: =IF(AD34="","",GETPIVOTDATA("Sum of Relative",Pivots!$B$3,"Player2",$AD34)/GETPIVOTDATA("Count of Match",Pivots!$B$3,"Player2",$AD34)) ->  | AG34: =IFERROR(GETPIVOTDATA("Sum of Relative",Pivots!$B$3,"Player2",$AD34,"Team",AG$4)/GETPIVOTDATA("Count of Match",Pivots!$B$3,"Player2",$AD34,"Team",AG$4),"") ->  | AH34: =IFERROR(GETPIVOTDATA("Sum of Relative",Pivots!$B$3,"Player2",$AD34,"Team",AH$4)/GETPIVOTDATA("Count of Match",Pivots!$B$3,"Player2",$AD34,"Team",AH$4),"") ->  | AI34: =IFERROR(GETPIVOTDATA("Sum of Relative",Pivots!$B$3,"Player2",$AD34,"Team",AI$4)/GETPIVOTDATA("Count of Match",Pivots!$B$3,"Player2",$AD34,"Team",AI$4),"") ->  | AN34: =IF(AP34="","",GETPIVOTDATA("Count of Match",Pivots!$B$3,"Player2",$AM34,"Team",1)&"D")&IF(AQ34="","",GETPIVOTDATA("Count of Match",Pivots!$B$3,"Player2",$AM34,"Team",2)&"P")&IF(AR34="","",GETPIVOTDATA("Count of Match",Pivots!$B$3,"Player2",$AM34,"Team",3)&"M") ->  | AO34: =IF(AM34="","",GETPIVOTDATA("Sum of Relative",Pivots!$B$3,"Player2",$AM34)/GETPIVOTDATA("Count of Match",Pivots!$B$3,"Player2",$AM34)) ->  | AP34: =IFERROR(GETPIVOTDATA("Sum of Relative",Pivots!$B$3,"Player2",$AM34,"Team",AP$4)/GETPIVOTDATA("Count of Match",Pivots!$B$3,"Player2",$AM34,"Team",AP$4),"") ->  | AQ34: =IFERROR(GETPIVOTDATA("Sum of Relative",Pivots!$B$3,"Player2",$AM34,"Team",AQ$4)/GETPIVOTDATA("Count of Match",Pivots!$B$3,"Player2",$AM34,"Team",AQ$4),"") ->  | AR34: =IFERROR(GETPIVOTDATA("Sum of Relative",Pivots!$B$3,"Player2",$AM34,"Team",AR$4)/GETPIVOTDATA("Count of Match",Pivots!$B$3,"Player2",$AM34,"Team",AR$4),"") ->  | AW34: =IF(AY34="","",GETPIVOTDATA("Count of Match",Pivots!$B$3,"Player2",$AV34,"Team",1)&"D")&IF(AZ34="","",GETPIVOTDATA("Count of Match",Pivots!$B$3,"Player2",$AV34,"Team",2)&"P")&IF(BA34="","",GETPIVOTDATA("Count of Match",Pivots!$B$3,"Player2",$AV34,"Team",3)&"M") ->  | AX34: =IF(AV34="","",GETPIVOTDATA("Sum of Relative",Pivots!$B$3,"Player2",$AV34)/GETPIVOTDATA("Count of Match",Pivots!$B$3,"Player2",$AV34)) ->  | AY34: =IFERROR(GETPIVOTDATA("Sum of Relative",Pivots!$B$3,"Player2",$AV34,"Team",AY$4)/GETPIVOTDATA("Count of Match",Pivots!$B$3,"Player2",$AV34,"Team",AY$4),"") ->  | AZ34: =IFERROR(GETPIVOTDATA("Sum of Relative",Pivots!$B$3,"Player2",$AV34,"Team",AZ$4)/GETPIVOTDATA("Count of Match",Pivots!$B$3,"Player2",$AV34,"Team",AZ$4),"") ->  | BA34: =IFERROR(GETPIVOTDATA("Sum of Relative",Pivots!$B$3,"Player2",$AV34,"Team",BA$4)/GETPIVOTDATA("Count of Match",Pivots!$B$3,"Player2",$AV34,"Team",BA$4),"") -> 
J35: =Pivots!AH67 -> 0 | K35: =IFERROR(VLOOKUP(J35,Tables!$F$2:$H$40,2),"") ->  | L35: =Pivots!AI68 -> 0 | M35: =IF(J35=0,"",GETPIVOTDATA("Average of Team",Pivots!AH35,"Match",$J35,"player2",$L35)) ->  | N35: =IF(J35=0,"",GETPIVOTDATA("Sum of Butler",Pivots!AI35,"Match",$J35,"player2",$L35)) ->  | O35: =IF(J35=0,"",GETPIVOTDATA("Sum of MatchS",Pivots!AJ35,"Match",$J35,"player2",$L35)) ->  | P35: =IF(J35=0,"",GETPIVOTDATA("Sum of Relative",Pivots!AK35,"Match",$J35,"player2",$L35)) ->  | S35: JAT | T35: 1 | U35: =IFERROR(GETPIVOTDATA("Count of Match",Pivots!B$3,"Player2",S35),"") -> 4 | Y35: RCM | Z35: 1 | AA35: 10 | AE35: =IF(AG35="","",GETPIVOTDATA("Count of Match",Pivots!$B$3,"Player2",$AD35,"Team",1)&"D")&IF(AH35="","",GETPIVOTDATA("Count of Match",Pivots!$B$3,"Player2",$AD35,"Team",2)&"P")&IF(AI35="","",GETPIVOTDATA("Count of Match",Pivots!$B$3,"Player2",$AD35,"Team",3)&"M") ->  | AF35: =IF(AD35="","",GETPIVOTDATA("Sum of Relative",Pivots!$B$3,"Player2",$AD35)/GETPIVOTDATA("Count of Match",Pivots!$B$3,"Player2",$AD35)) ->  | AG35: =IFERROR(GETPIVOTDATA("Sum of Relative",Pivots!$B$3,"Player2",$AD35,"Team",AG$4)/GETPIVOTDATA("Count of Match",Pivots!$B$3,"Player2",$AD35,"Team",AG$4),"") ->  | AH35: =IFERROR(GETPIVOTDATA("Sum of Relative",Pivots!$B$3,"Player2",$AD35,"Team",AH$4)/GETPIVOTDATA("Count of Match",Pivots!$B$3,"Player2",$AD35,"Team",AH$4),"") ->  | AI35: =IFERROR(GETPIVOTDATA("Sum of Relative",Pivots!$B$3,"Player2",$AD35,"Team",AI$4)/GETPIVOTDATA("Count of Match",Pivots!$B$3,"Player2",$AD35,"Team",AI$4),"") ->  | AN35: =IF(AP35="","",GETPIVOTDATA("Count of Match",Pivots!$B$3,"Player2",$AM35,"Team",1)&"D")&IF(AQ35="","",GETPIVOTDATA("Count of Match",Pivots!$B$3,"Player2",$AM35,"Team",2)&"P")&IF(AR35="","",GETPIVOTDATA("Count of Match",Pivots!$B$3,"Player2",$AM35,"Team",3)&"M") ->  | AO35: =IF(AM35="","",GETPIVOTDATA("Sum of Relative",Pivots!$B$3,"Player2",$AM35)/GETPIVOTDATA("Count of Match",Pivots!$B$3,"Player2",$AM35)) ->  | AP35: =IFERROR(GETPIVOTDATA("Sum of Relative",Pivots!$B$3,"Player2",$AM35,"Team",AP$4)/GETPIVOTDATA("Count of Match",Pivots!$B$3,"Player2",$AM35,"Team",AP$4),"") ->  | AQ35: =IFERROR(GETPIVOTDATA("Sum of Relative",Pivots!$B$3,"Player2",$AM35,"Team",AQ$4)/GETPIVOTDATA("Count of Match",Pivots!$B$3,"Player2",$AM35,"Team",AQ$4),"") ->  | AR35: =IFERROR(GETPIVOTDATA("Sum of Relative",Pivots!$B$3,"Player2",$AM35,"Team",AR$4)/GETPIVOTDATA("Count of Match",Pivots!$B$3,"Player2",$AM35,"Team",AR$4),"") ->  | AW35: =IF(AY35="","",GETPIVOTDATA("Count of Match",Pivots!$B$3,"Player2",$AV35,"Team",1)&"D")&IF(AZ35="","",GETPIVOTDATA("Count of Match",Pivots!$B$3,"Player2",$AV35,"Team",2)&"P")&IF(BA35="","",GETPIVOTDATA("Count of Match",Pivots!$B$3,"Player2",$AV35,"Team",3)&"M") ->  | AX35: =IF(AV35="","",GETPIVOTDATA("Sum of Relative",Pivots!$B$3,"Player2",$AV35)/GETPIVOTDATA("Count of Match",Pivots!$B$3,"Player2",$AV35)) ->  | AY35: =IFERROR(GETPIVOTDATA("Sum of Relative",Pivots!$B$3,"Player2",$AV35,"Team",AY$4)/GETPIVOTDATA("Count of Match",Pivots!$B$3,"Player2",$AV35,"Team",AY$4),"") ->  | AZ35: =IFERROR(GETPIVOTDATA("Sum of Relative",Pivots!$B$3,"Player2",$AV35,"Team",AZ$4)/GETPIVOTDATA("Count of Match",Pivots!$B$3,"Player2",$AV35,"Team",AZ$4),"") ->  | BA35: =IFERROR(GETPIVOTDATA("Sum of Relative",Pivots!$B$3,"Player2",$AV35,"Team",BA$4)/GETPIVOTDATA("Count of Match",Pivots!$B$3,"Player2",$AV35,"Team",BA$4),"") -> 
J36: 0 | K36: =IFERROR(VLOOKUP(J36,Tables!$F$2:$H$40,2),"") ->  | L36: =Pivots!AI70 -> 0 | M36: =IF(J36=0,"",GETPIVOTDATA("Average of Team",Pivots!AH36,"Match",$J36,"player2",$L36)) ->  | N36: =IF(J36=0,"",GETPIVOTDATA("Sum of Butler",Pivots!AI36,"Match",$J36,"player2",$L36)) ->  | O36: =IF(J36=0,"",GETPIVOTDATA("Sum of MatchS",Pivots!AJ36,"Match",$J36,"player2",$L36)) ->  | P36: =IF(J36=0,"",GETPIVOTDATA("Sum of Relative",Pivots!AK36,"Match",$J36,"player2",$L36)) ->  | S36: JC | T36: 2 | U36: =IFERROR(GETPIVOTDATA("Count of Match",Pivots!B$3,"Player2",S36),"") -> 9 | Y36: RCO | Z36: 2 | AA36: 7 | AE36: =IF(AG36="","",GETPIVOTDATA("Count of Match",Pivots!$B$3,"Player2",$AD36,"Team",1)&"D")&IF(AH36="","",GETPIVOTDATA("Count of Match",Pivots!$B$3,"Player2",$AD36,"Team",2)&"P")&IF(AI36="","",GETPIVOTDATA("Count of Match",Pivots!$B$3,"Player2",$AD36,"Team",3)&"M") ->  | AF36: =IF(AD36="","",GETPIVOTDATA("Sum of Relative",Pivots!$B$3,"Player2",$AD36)/GETPIVOTDATA("Count of Match",Pivots!$B$3,"Player2",$AD36)) ->  | AG36: =IFERROR(GETPIVOTDATA("Sum of Relative",Pivots!$B$3,"Player2",$AD36,"Team",AG$4)/GETPIVOTDATA("Count of Match",Pivots!$B$3,"Player2",$AD36,"Team",AG$4),"") ->  | AH36: =IFERROR(GETPIVOTDATA("Sum of Relative",Pivots!$B$3,"Player2",$AD36,"Team",AH$4)/GETPIVOTDATA("Count of Match",Pivots!$B$3,"Player2",$AD36,"Team",AH$4),"") ->  | AI36: =IFERROR(GETPIVOTDATA("Sum of Relative",Pivots!$B$3,"Player2",$AD36,"Team",AI$4)/GETPIVOTDATA("Count of Match",Pivots!$B$3,"Player2",$AD36,"Team",AI$4),"") ->  | AN36: =IF(AP36="","",GETPIVOTDATA("Count of Match",Pivots!$B$3,"Player2",$AM36,"Team",1)&"D")&IF(AQ36="","",GETPIVOTDATA("Count of Match",Pivots!$B$3,"Player2",$AM36,"Team",2)&"P")&IF(AR36="","",GETPIVOTDATA("Count of Match",Pivots!$B$3,"Player2",$AM36,"Team",3)&"M") ->  | AO36: =IF(AM36="","",GETPIVOTDATA("Sum of Relative",Pivots!$B$3,"Player2",$AM36)/GETPIVOTDATA("Count of Match",Pivots!$B$3,"Player2",$AM36)) ->  | AP36: =IFERROR(GETPIVOTDATA("Sum of Relative",Pivots!$B$3,"Player2",$AM36,"Team",AP$4)/GETPIVOTDATA("Count of Match",Pivots!$B$3,"Player2",$AM36,"Team",AP$4),"") ->  | AQ36: =IFERROR(GETPIVOTDATA("Sum of Relative",Pivots!$B$3,"Player2",$AM36,"Team",AQ$4)/GETPIVOTDATA("Count of Match",Pivots!$B$3,"Player2",$AM36,"Team",AQ$4),"") ->  | AR36: =IFERROR(GETPIVOTDATA("Sum of Relative",Pivots!$B$3,"Player2",$AM36,"Team",AR$4)/GETPIVOTDATA("Count of Match",Pivots!$B$3,"Player2",$AM36,"Team",AR$4),"") ->  | AW36: =IF(AY36="","",GETPIVOTDATA("Count of Match",Pivots!$B$3,"Player2",$AV36,"Team",1)&"D")&IF(AZ36="","",GETPIVOTDATA("Count of Match",Pivots!$B$3,"Player2",$AV36,"Team",2)&"P")&IF(BA36="","",GETPIVOTDATA("Count of Match",Pivots!$B$3,"Player2",$AV36,"Team",3)&"M") ->  | AX36: =IF(AV36="","",GETPIVOTDATA("Sum of Relative",Pivots!$B$3,"Player2",$AV36)/GETPIVOTDATA("Count of Match",Pivots!$B$3,"Player2",$AV36)) ->  | AY36: =IFERROR(GETPIVOTDATA("Sum of Relative",Pivots!$B$3,"Player2",$AV36,"Team",AY$4)/GETPIVOTDATA("Count of Match",Pivots!$B$3,"Player2",$AV36,"Team",AY$4),"") ->  | AZ36: =IFERROR(GETPIVOTDATA("Sum of Relative",Pivots!$B$3,"Player2",$AV36,"Team",AZ$4)/GETPIVOTDATA("Count of Match",Pivots!$B$3,"Player2",$AV36,"Team",AZ$4),"") ->  | BA36: =IFERROR(GETPIVOTDATA("Sum of Relative",Pivots!$B$3,"Player2",$AV36,"Team",BA$4)/GETPIVOTDATA("Count of Match",Pivots!$B$3,"Player2",$AV36,"Team",BA$4),"") -> 
K37: =IFERROR(VLOOKUP(J37,Tables!$F$2:$H$40,2),"") ->  | S37: JSI | T37: 2 | U37: =IFERROR(GETPIVOTDATA("Count of Match",Pivots!B$3,"Player2",S37),"") -> 12 | Y37: RHA | Z37: 3 | AA37: 9 | AE37: =IF(AG37="","",GETPIVOTDATA("Count of Match",Pivots!$B$3,"Player2",$AD37,"Team",1)&"D")&IF(AH37="","",GETPIVOTDATA("Count of Match",Pivots!$B$3,"Player2",$AD37,"Team",2)&"P")&IF(AI37="","",GETPIVOTDATA("Count of Match",Pivots!$B$3,"Player2",$AD37,"Team",3)&"M") ->  | AF37: =IF(AD37="","",GETPIVOTDATA("Sum of Relative",Pivots!$B$3,"Player2",$AD37)/GETPIVOTDATA("Count of Match",Pivots!$B$3,"Player2",$AD37)) ->  | AG37: =IFERROR(GETPIVOTDATA("Sum of Relative",Pivots!$B$3,"Player2",$AD37,"Team",AG$4)/GETPIVOTDATA("Count of Match",Pivots!$B$3,"Player2",$AD37,"Team",AG$4),"") ->  | AH37: =IFERROR(GETPIVOTDATA("Sum of Relative",Pivots!$B$3,"Player2",$AD37,"Team",AH$4)/GETPIVOTDATA("Count of Match",Pivots!$B$3,"Player2",$AD37,"Team",AH$4),"") ->  | AI37: =IFERROR(GETPIVOTDATA("Sum of Relative",Pivots!$B$3,"Player2",$AD37,"Team",AI$4)/GETPIVOTDATA("Count of Match",Pivots!$B$3,"Player2",$AD37,"Team",AI$4),"") ->  | AN37: =IF(AP37="","",GETPIVOTDATA("Count of Match",Pivots!$B$3,"Player2",$AM37,"Team",1)&"D")&IF(AQ37="","",GETPIVOTDATA("Count of Match",Pivots!$B$3,"Player2",$AM37,"Team",2)&"P")&IF(AR37="","",GETPIVOTDATA("Count of Match",Pivots!$B$3,"Player2",$AM37,"Team",3)&"M") ->  | AO37: =IF(AM37="","",GETPIVOTDATA("Sum of Relative",Pivots!$B$3,"Player2",$AM37)/GETPIVOTDATA("Count of Match",Pivots!$B$3,"Player2",$AM37)) ->  | AP37: =IFERROR(GETPIVOTDATA("Sum of Relative",Pivots!$B$3,"Player2",$AM37,"Team",AP$4)/GETPIVOTDATA("Count of Match",Pivots!$B$3,"Player2",$AM37,"Team",AP$4),"") ->  | AQ37: =IFERROR(GETPIVOTDATA("Sum of Relative",Pivots!$B$3,"Player2",$AM37,"Team",AQ$4)/GETPIVOTDATA("Count of Match",Pivots!$B$3,"Player2",$AM37,"Team",AQ$4),"") ->  | AR37: =IFERROR(GETPIVOTDATA("Sum of Relative",Pivots!$B$3,"Player2",$AM37,"Team",AR$4)/GETPIVOTDATA("Count of Match",Pivots!$B$3,"Player2",$AM37,"Team",AR$4),"") ->  | AW37: =IF(AY37="","",GETPIVOTDATA("Count of Match",Pivots!$B$3,"Player2",$AV37,"Team",1)&"D")&IF(AZ37="","",GETPIVOTDATA("Count of Match",Pivots!$B$3,"Player2",$AV37,"Team",2)&"P")&IF(BA37="","",GETPIVOTDATA("Count of Match",Pivots!$B$3,"Player2",$AV37,"Team",3)&"M") ->  | AX37: =IF(AV37="","",GETPIVOTDATA("Sum of Relative",Pivots!$B$3,"Player2",$AV37)/GETPIVOTDATA("Count of Match",Pivots!$B$3,"Player2",$AV37)) ->  | AY37: =IFERROR(GETPIVOTDATA("Sum of Relative",Pivots!$B$3,"Player2",$AV37,"Team",AY$4)/GETPIVOTDATA("Count of Match",Pivots!$B$3,"Player2",$AV37,"Team",AY$4),"") ->  | AZ37: =IFERROR(GETPIVOTDATA("Sum of Relative",Pivots!$B$3,"Player2",$AV37,"Team",AZ$4)/GETPIVOTDATA("Count of Match",Pivots!$B$3,"Player2",$AV37,"Team",AZ$4),"") ->  | BA37: =IFERROR(GETPIVOTDATA("Sum of Relative",Pivots!$B$3,"Player2",$AV37,"Team",BA$4)/GETPIVOTDATA("Count of Match",Pivots!$B$3,"Player2",$AV37,"Team",BA$4),"") -> 
K38: =IFERROR(VLOOKUP(J38,Tables!$F$2:$H$40,2),"") ->  | S38: JSk | T38: 3 | U38: =IFERROR(GETPIVOTDATA("Count of Match",Pivots!B$3,"Player2",S38),"") ->  | Y38: RJ | Z38: 3 | AA38: 11 | AE38: =IF(AG38="","",GETPIVOTDATA("Count of Match",Pivots!$B$3,"Player2",$AD38,"Team",1)&"D")&IF(AH38="","",GETPIVOTDATA("Count of Match",Pivots!$B$3,"Player2",$AD38,"Team",2)&"P")&IF(AI38="","",GETPIVOTDATA("Count of Match",Pivots!$B$3,"Player2",$AD38,"Team",3)&"M") ->  | AF38: =IF(AD38="","",GETPIVOTDATA("Sum of Relative",Pivots!$B$3,"Player2",$AD38)/GETPIVOTDATA("Count of Match",Pivots!$B$3,"Player2",$AD38)) ->  | AG38: =IFERROR(GETPIVOTDATA("Sum of Relative",Pivots!$B$3,"Player2",$AD38,"Team",AG$4)/GETPIVOTDATA("Count of Match",Pivots!$B$3,"Player2",$AD38,"Team",AG$4),"") ->  | AH38: =IFERROR(GETPIVOTDATA("Sum of Relative",Pivots!$B$3,"Player2",$AD38,"Team",AH$4)/GETPIVOTDATA("Count of Match",Pivots!$B$3,"Player2",$AD38,"Team",AH$4),"") ->  | AI38: =IFERROR(GETPIVOTDATA("Sum of Relative",Pivots!$B$3,"Player2",$AD38,"Team",AI$4)/GETPIVOTDATA("Count of Match",Pivots!$B$3,"Player2",$AD38,"Team",AI$4),"") ->  | AN38: =IF(AP38="","",GETPIVOTDATA("Count of Match",Pivots!$B$3,"Player2",$AM38,"Team",1)&"D")&IF(AQ38="","",GETPIVOTDATA("Count of Match",Pivots!$B$3,"Player2",$AM38,"Team",2)&"P")&IF(AR38="","",GETPIVOTDATA("Count of Match",Pivots!$B$3,"Player2",$AM38,"Team",3)&"M") ->  | AO38: =IF(AM38="","",GETPIVOTDATA("Sum of Relative",Pivots!$B$3,"Player2",$AM38)/GETPIVOTDATA("Count of Match",Pivots!$B$3,"Player2",$AM38)) ->  | AP38: =IFERROR(GETPIVOTDATA("Sum of Relative",Pivots!$B$3,"Player2",$AM38,"Team",AP$4)/GETPIVOTDATA("Count of Match",Pivots!$B$3,"Player2",$AM38,"Team",AP$4),"") ->  | AQ38: =IFERROR(GETPIVOTDATA("Sum of Relative",Pivots!$B$3,"Player2",$AM38,"Team",AQ$4)/GETPIVOTDATA("Count of Match",Pivots!$B$3,"Player2",$AM38,"Team",AQ$4),"") ->  | AR38: =IFERROR(GETPIVOTDATA("Sum of Relative",Pivots!$B$3,"Player2",$AM38,"Team",AR$4)/GETPIVOTDATA("Count of Match",Pivots!$B$3,"Player2",$AM38,"Team",AR$4),"") ->  | AW38: =IF(AY38="","",GETPIVOTDATA("Count of Match",Pivots!$B$3,"Player2",$AV38,"Team",1)&"D")&IF(AZ38="","",GETPIVOTDATA("Count of Match",Pivots!$B$3,"Player2",$AV38,"Team",2)&"P")&IF(BA38="","",GETPIVOTDATA("Count of Match",Pivots!$B$3,"Player2",$AV38,"Team",3)&"M") ->  | AX38: =IF(AV38="","",GETPIVOTDATA("Sum of Relative",Pivots!$B$3,"Player2",$AV38)/GETPIVOTDATA("Count of Match",Pivots!$B$3,"Player2",$AV38)) ->  | AY38: =IFERROR(GETPIVOTDATA("Sum of Relative",Pivots!$B$3,"Player2",$AV38,"Team",AY$4)/GETPIVOTDATA("Count of Match",Pivots!$B$3,"Player2",$AV38,"Team",AY$4),"") ->  | AZ38: =IFERROR(GETPIVOTDATA("Sum of Relative",Pivots!$B$3,"Player2",$AV38,"Team",AZ$4)/GETPIVOTDATA("Count of Match",Pivots!$B$3,"Player2",$AV38,"Team",AZ$4),"") ->  | BA38: =IFERROR(GETPIVOTDATA("Sum of Relative",Pivots!$B$3,"Player2",$AV38,"Team",BA$4)/GETPIVOTDATA("Count of Match",Pivots!$B$3,"Player2",$AV38,"Team",BA$4),"") -> 
K39: =IFERROR(VLOOKUP(J39,Tables!$F$2:$H$40,2),"") ->  | S39: JST | T39: 3 | U39: =IFERROR(GETPIVOTDATA("Count of Match",Pivots!B$3,"Player2",S39),"") ->  | Y39: RPL | Z39: 1 | AA39: 11 | AE39: =IF(AG39="","",GETPIVOTDATA("Count of Match",Pivots!$B$3,"Player2",$AD39,"Team",1)&"D")&IF(AH39="","",GETPIVOTDATA("Count of Match",Pivots!$B$3,"Player2",$AD39,"Team",2)&"P")&IF(AI39="","",GETPIVOTDATA("Count of Match",Pivots!$B$3,"Player2",$AD39,"Team",3)&"M") ->  | AF39: =IF(AD39="","",GETPIVOTDATA("Sum of Relative",Pivots!$B$3,"Player2",$AD39)/GETPIVOTDATA("Count of Match",Pivots!$B$3,"Player2",$AD39)) ->  | AG39: =IFERROR(GETPIVOTDATA("Sum of Relative",Pivots!$B$3,"Player2",$AD39,"Team",AG$4)/GETPIVOTDATA("Count of Match",Pivots!$B$3,"Player2",$AD39,"Team",AG$4),"") ->  | AH39: =IFERROR(GETPIVOTDATA("Sum of Relative",Pivots!$B$3,"Player2",$AD39,"Team",AH$4)/GETPIVOTDATA("Count of Match",Pivots!$B$3,"Player2",$AD39,"Team",AH$4),"") ->  | AI39: =IFERROR(GETPIVOTDATA("Sum of Relative",Pivots!$B$3,"Player2",$AD39,"Team",AI$4)/GETPIVOTDATA("Count of Match",Pivots!$B$3,"Player2",$AD39,"Team",AI$4),"") ->  | AN39: =IF(AP39="","",GETPIVOTDATA("Count of Match",Pivots!$B$3,"Player2",$AM39,"Team",1)&"D")&IF(AQ39="","",GETPIVOTDATA("Count of Match",Pivots!$B$3,"Player2",$AM39,"Team",2)&"P")&IF(AR39="","",GETPIVOTDATA("Count of Match",Pivots!$B$3,"Player2",$AM39,"Team",3)&"M") ->  | AO39: =IF(AM39="","",GETPIVOTDATA("Sum of Relative",Pivots!$B$3,"Player2",$AM39)/GETPIVOTDATA("Count of Match",Pivots!$B$3,"Player2",$AM39)) ->  | AP39: =IFERROR(GETPIVOTDATA("Sum of Relative",Pivots!$B$3,"Player2",$AM39,"Team",AP$4)/GETPIVOTDATA("Count of Match",Pivots!$B$3,"Player2",$AM39,"Team",AP$4),"") ->  | AQ39: =IFERROR(GETPIVOTDATA("Sum of Relative",Pivots!$B$3,"Player2",$AM39,"Team",AQ$4)/GETPIVOTDATA("Count of Match",Pivots!$B$3,"Player2",$AM39,"Team",AQ$4),"") ->  | AR39: =IFERROR(GETPIVOTDATA("Sum of Relative",Pivots!$B$3,"Player2",$AM39,"Team",AR$4)/GETPIVOTDATA("Count of Match",Pivots!$B$3,"Player2",$AM39,"Team",AR$4),"") ->  | AW39: =IF(AY39="","",GETPIVOTDATA("Count of Match",Pivots!$B$3,"Player2",$AV39,"Team",1)&"D")&IF(AZ39="","",GETPIVOTDATA("Count of Match",Pivots!$B$3,"Player2",$AV39,"Team",2)&"P")&IF(BA39="","",GETPIVOTDATA("Count of Match",Pivots!$B$3,"Player2",$AV39,"Team",3)&"M") ->  | AX39: =IF(AV39="","",GETPIVOTDATA("Sum of Relative",Pivots!$B$3,"Player2",$AV39)/GETPIVOTDATA("Count of Match",Pivots!$B$3,"Player2",$AV39)) ->  | AY39: =IFERROR(GETPIVOTDATA("Sum of Relative",Pivots!$B$3,"Player2",$AV39,"Team",AY$4)/GETPIVOTDATA("Count of Match",Pivots!$B$3,"Player2",$AV39,"Team",AY$4),"") ->  | AZ39: =IFERROR(GETPIVOTDATA("Sum of Relative",Pivots!$B$3,"Player2",$AV39,"Team",AZ$4)/GETPIVOTDATA("Count of Match",Pivots!$B$3,"Player2",$AV39,"Team",AZ$4),"") ->  | BA39: =IFERROR(GETPIVOTDATA("Sum of Relative",Pivots!$B$3,"Player2",$AV39,"Team",BA$4)/GETPIVOTDATA("Count of Match",Pivots!$B$3,"Player2",$AV39,"Team",BA$4),"") -> 
K40: =IFERROR(VLOOKUP(J40,Tables!$F$2:$H$40,2),"") ->  | S40: JuS | T40: 3 | U40: =IFERROR(GETPIVOTDATA("Count of Match",Pivots!B$3,"Player2",S40),"") -> 4 | Y40: RS | Z40: 3 | AA40: 9 | AE40: =IF(AG40="","",GETPIVOTDATA("Count of Match",Pivots!$B$3,"Player2",$AD40,"Team",1)&"D")&IF(AH40="","",GETPIVOTDATA("Count of Match",Pivots!$B$3,"Player2",$AD40,"Team",2)&"P")&IF(AI40="","",GETPIVOTDATA("Count of Match",Pivots!$B$3,"Player2",$AD40,"Team",3)&"M") ->  | AF40: =IF(AD40="","",GETPIVOTDATA("Sum of Relative",Pivots!$B$3,"Player2",$AD40)/GETPIVOTDATA("Count of Match",Pivots!$B$3,"Player2",$AD40)) ->  | AG40: =IFERROR(GETPIVOTDATA("Sum of Relative",Pivots!$B$3,"Player2",$AD40,"Team",AG$4)/GETPIVOTDATA("Count of Match",Pivots!$B$3,"Player2",$AD40,"Team",AG$4),"") ->  | AH40: =IFERROR(GETPIVOTDATA("Sum of Relative",Pivots!$B$3,"Player2",$AD40,"Team",AH$4)/GETPIVOTDATA("Count of Match",Pivots!$B$3,"Player2",$AD40,"Team",AH$4),"") ->  | AI40: =IFERROR(GETPIVOTDATA("Sum of Relative",Pivots!$B$3,"Player2",$AD40,"Team",AI$4)/GETPIVOTDATA("Count of Match",Pivots!$B$3,"Player2",$AD40,"Team",AI$4),"") ->  | AN40: =IF(AP40="","",GETPIVOTDATA("Count of Match",Pivots!$B$3,"Player2",$AM40,"Team",1)&"D")&IF(AQ40="","",GETPIVOTDATA("Count of Match",Pivots!$B$3,"Player2",$AM40,"Team",2)&"P")&IF(AR40="","",GETPIVOTDATA("Count of Match",Pivots!$B$3,"Player2",$AM40,"Team",3)&"M") ->  | AO40: =IF(AM40="","",GETPIVOTDATA("Sum of Relative",Pivots!$B$3,"Player2",$AM40)/GETPIVOTDATA("Count of Match",Pivots!$B$3,"Player2",$AM40)) ->  | AP40: =IFERROR(GETPIVOTDATA("Sum of Relative",Pivots!$B$3,"Player2",$AM40,"Team",AP$4)/GETPIVOTDATA("Count of Match",Pivots!$B$3,"Player2",$AM40,"Team",AP$4),"") ->  | AQ40: =IFERROR(GETPIVOTDATA("Sum of Relative",Pivots!$B$3,"Player2",$AM40,"Team",AQ$4)/GETPIVOTDATA("Count of Match",Pivots!$B$3,"Player2",$AM40,"Team",AQ$4),"") ->  | AR40: =IFERROR(GETPIVOTDATA("Sum of Relative",Pivots!$B$3,"Player2",$AM40,"Team",AR$4)/GETPIVOTDATA("Count of Match",Pivots!$B$3,"Player2",$AM40,"Team",AR$4),"") ->  | AW40: =IF(AY40="","",GETPIVOTDATA("Count of Match",Pivots!$B$3,"Player2",$AV40,"Team",1)&"D")&IF(AZ40="","",GETPIVOTDATA("Count of Match",Pivots!$B$3,"Player2",$AV40,"Team",2)&"P")&IF(BA40="","",GETPIVOTDATA("Count of Match",Pivots!$B$3,"Player2",$AV40,"Team",3)&"M") ->  | AX40: =IF(AV40="","",GETPIVOTDATA("Sum of Relative",Pivots!$B$3,"Player2",$AV40)/GETPIVOTDATA("Count of Match",Pivots!$B$3,"Player2",$AV40)) ->  | AY40: =IFERROR(GETPIVOTDATA("Sum of Relative",Pivots!$B$3,"Player2",$AV40,"Team",AY$4)/GETPIVOTDATA("Count of Match",Pivots!$B$3,"Player2",$AV40,"Team",AY$4),"") ->  | AZ40: =IFERROR(GETPIVOTDATA("Sum of Relative",Pivots!$B$3,"Player2",$AV40,"Team",AZ$4)/GETPIVOTDATA("Count of Match",Pivots!$B$3,"Player2",$AV40,"Team",AZ$4),"") ->  | BA40: =IFERROR(GETPIVOTDATA("Sum of Relative",Pivots!$B$3,"Player2",$AV40,"Team",BA$4)/GETPIVOTDATA("Count of Match",Pivots!$B$3,"Player2",$AV40,"Team",BA$4),"") -> 
K41: =IFERROR(VLOOKUP(J41,Tables!$F$2:$H$40,2),"") ->  | S41: KAR | T41: 3 | U41: =IFERROR(GETPIVOTDATA("Count of Match",Pivots!B$3,"Player2",S41),"") ->  | Y41: RW | Z41: 3 | AA41: 3 | AE41: =IF(AG41="","",GETPIVOTDATA("Count of Match",Pivots!$B$3,"Player2",$AD41,"Team",1)&"D")&IF(AH41="","",GETPIVOTDATA("Count of Match",Pivots!$B$3,"Player2",$AD41,"Team",2)&"P")&IF(AI41="","",GETPIVOTDATA("Count of Match",Pivots!$B$3,"Player2",$AD41,"Team",3)&"M") ->  | AF41: =IF(AD41="","",GETPIVOTDATA("Sum of Relative",Pivots!$B$3,"Player2",$AD41)/GETPIVOTDATA("Count of Match",Pivots!$B$3,"Player2",$AD41)) ->  | AG41: =IFERROR(GETPIVOTDATA("Sum of Relative",Pivots!$B$3,"Player2",$AD41,"Team",AG$4)/GETPIVOTDATA("Count of Match",Pivots!$B$3,"Player2",$AD41,"Team",AG$4),"") ->  | AH41: =IFERROR(GETPIVOTDATA("Sum of Relative",Pivots!$B$3,"Player2",$AD41,"Team",AH$4)/GETPIVOTDATA("Count of Match",Pivots!$B$3,"Player2",$AD41,"Team",AH$4),"") ->  | AI41: =IFERROR(GETPIVOTDATA("Sum of Relative",Pivots!$B$3,"Player2",$AD41,"Team",AI$4)/GETPIVOTDATA("Count of Match",Pivots!$B$3,"Player2",$AD41,"Team",AI$4),"") ->  | AN41: =IF(AP41="","",GETPIVOTDATA("Count of Match",Pivots!$B$3,"Player2",$AM41,"Team",1)&"D")&IF(AQ41="","",GETPIVOTDATA("Count of Match",Pivots!$B$3,"Player2",$AM41,"Team",2)&"P")&IF(AR41="","",GETPIVOTDATA("Count of Match",Pivots!$B$3,"Player2",$AM41,"Team",3)&"M") ->  | AO41: =IF(AM41="","",GETPIVOTDATA("Sum of Relative",Pivots!$B$3,"Player2",$AM41)/GETPIVOTDATA("Count of Match",Pivots!$B$3,"Player2",$AM41)) ->  | AP41: =IFERROR(GETPIVOTDATA("Sum of Relative",Pivots!$B$3,"Player2",$AM41,"Team",AP$4)/GETPIVOTDATA("Count of Match",Pivots!$B$3,"Player2",$AM41,"Team",AP$4),"") ->  | AQ41: =IFERROR(GETPIVOTDATA("Sum of Relative",Pivots!$B$3,"Player2",$AM41,"Team",AQ$4)/GETPIVOTDATA("Count of Match",Pivots!$B$3,"Player2",$AM41,"Team",AQ$4),"") ->  | AR41: =IFERROR(GETPIVOTDATA("Sum of Relative",Pivots!$B$3,"Player2",$AM41,"Team",AR$4)/GETPIVOTDATA("Count of Match",Pivots!$B$3,"Player2",$AM41,"Team",AR$4),"") ->  | AW41: =IF(AY41="","",GETPIVOTDATA("Count of Match",Pivots!$B$3,"Player2",$AV41,"Team",1)&"D")&IF(AZ41="","",GETPIVOTDATA("Count of Match",Pivots!$B$3,"Player2",$AV41,"Team",2)&"P")&IF(BA41="","",GETPIVOTDATA("Count of Match",Pivots!$B$3,"Player2",$AV41,"Team",3)&"M") ->  | AX41: =IF(AV41="","",GETPIVOTDATA("Sum of Relative",Pivots!$B$3,"Player2",$AV41)/GETPIVOTDATA("Count of Match",Pivots!$B$3,"Player2",$AV41)) ->  | AY41: =IFERROR(GETPIVOTDATA("Sum of Relative",Pivots!$B$3,"Player2",$AV41,"Team",AY$4)/GETPIVOTDATA("Count of Match",Pivots!$B$3,"Player2",$AV41,"Team",AY$4),"") ->  | AZ41: =IFERROR(GETPIVOTDATA("Sum of Relative",Pivots!$B$3,"Player2",$AV41,"Team",AZ$4)/GETPIVOTDATA("Count of Match",Pivots!$B$3,"Player2",$AV41,"Team",AZ$4),"") ->  | BA41: =IFERROR(GETPIVOTDATA("Sum of Relative",Pivots!$B$3,"Player2",$AV41,"Team",BA$4)/GETPIVOTDATA("Count of Match",Pivots!$B$3,"Player2",$AV41,"Team",BA$4),"") -> 
K42: =IFERROR(VLOOKUP(J42,Tables!$F$2:$H$40,2),"") ->  | S42: KAS | T42: 3 | U42: =IFERROR(GETPIVOTDATA("Count of Match",Pivots!B$3,"Player2",S42),"") -> 2 | Y42: TG | Z42: 3 | AA42: 4 | AE42: =IF(AG42="","",GETPIVOTDATA("Count of Match",Pivots!$B$3,"Player2",$AD42,"Team",1)&"D")&IF(AH42="","",GETPIVOTDATA("Count of Match",Pivots!$B$3,"Player2",$AD42,"Team",2)&"P")&IF(AI42="","",GETPIVOTDATA("Count of Match",Pivots!$B$3,"Player2",$AD42,"Team",3)&"M") ->  | AF42: =IF(AD42="","",GETPIVOTDATA("Sum of Relative",Pivots!$B$3,"Player2",$AD42)/GETPIVOTDATA("Count of Match",Pivots!$B$3,"Player2",$AD42)) ->  | AG42: =IFERROR(GETPIVOTDATA("Sum of Relative",Pivots!$B$3,"Player2",$AD42,"Team",AG$4)/GETPIVOTDATA("Count of Match",Pivots!$B$3,"Player2",$AD42,"Team",AG$4),"") ->  | AH42: =IFERROR(GETPIVOTDATA("Sum of Relative",Pivots!$B$3,"Player2",$AD42,"Team",AH$4)/GETPIVOTDATA("Count of Match",Pivots!$B$3,"Player2",$AD42,"Team",AH$4),"") ->  | AI42: =IFERROR(GETPIVOTDATA("Sum of Relative",Pivots!$B$3,"Player2",$AD42,"Team",AI$4)/GETPIVOTDATA("Count of Match",Pivots!$B$3,"Player2",$AD42,"Team",AI$4),"") ->  | AN42: =IF(AP42="","",GETPIVOTDATA("Count of Match",Pivots!$B$3,"Player2",$AM42,"Team",1)&"D")&IF(AQ42="","",GETPIVOTDATA("Count of Match",Pivots!$B$3,"Player2",$AM42,"Team",2)&"P")&IF(AR42="","",GETPIVOTDATA("Count of Match",Pivots!$B$3,"Player2",$AM42,"Team",3)&"M") ->  | AO42: =IF(AM42="","",GETPIVOTDATA("Sum of Relative",Pivots!$B$3,"Player2",$AM42)/GETPIVOTDATA("Count of Match",Pivots!$B$3,"Player2",$AM42)) ->  | AP42: =IFERROR(GETPIVOTDATA("Sum of Relative",Pivots!$B$3,"Player2",$AM42,"Team",AP$4)/GETPIVOTDATA("Count of Match",Pivots!$B$3,"Player2",$AM42,"Team",AP$4),"") ->  | AQ42: =IFERROR(GETPIVOTDATA("Sum of Relative",Pivots!$B$3,"Player2",$AM42,"Team",AQ$4)/GETPIVOTDATA("Count of Match",Pivots!$B$3,"Player2",$AM42,"Team",AQ$4),"") ->  | AR42: =IFERROR(GETPIVOTDATA("Sum of Relative",Pivots!$B$3,"Player2",$AM42,"Team",AR$4)/GETPIVOTDATA("Count of Match",Pivots!$B$3,"Player2",$AM42,"Team",AR$4),"") ->  | AW42: =IF(AY42="","",GETPIVOTDATA("Count of Match",Pivots!$B$3,"Player2",$AV42,"Team",1)&"D")&IF(AZ42="","",GETPIVOTDATA("Count of Match",Pivots!$B$3,"Player2",$AV42,"Team",2)&"P")&IF(BA42="","",GETPIVOTDATA("Count of Match",Pivots!$B$3,"Player2",$AV42,"Team",3)&"M") ->  | AX42: =IF(AV42="","",GETPIVOTDATA("Sum of Relative",Pivots!$B$3,"Player2",$AV42)/GETPIVOTDATA("Count of Match",Pivots!$B$3,"Player2",$AV42)) ->  | AY42: =IFERROR(GETPIVOTDATA("Sum of Relative",Pivots!$B$3,"Player2",$AV42,"Team",AY$4)/GETPIVOTDATA("Count of Match",Pivots!$B$3,"Player2",$AV42,"Team",AY$4),"") ->  | AZ42: =IFERROR(GETPIVOTDATA("Sum of Relative",Pivots!$B$3,"Player2",$AV42,"Team",AZ$4)/GETPIVOTDATA("Count of Match",Pivots!$B$3,"Player2",$AV42,"Team",AZ$4),"") ->  | BA42: =IFERROR(GETPIVOTDATA("Sum of Relative",Pivots!$B$3,"Player2",$AV42,"Team",BA$4)/GETPIVOTDATA("Count of Match",Pivots!$B$3,"Player2",$AV42,"Team",BA$4),"") -> 
S43: KM | T43: 3 | U43: =IFERROR(GETPIVOTDATA("Count of Match",Pivots!B$3,"Player2",S43),"") ->  | Y43: TH | Z43: 1 | AA43: 3
S44: KSH | T44: 3 | U44: =IFERROR(GETPIVOTDATA("Count of Match",Pivots!B$3,"Player2",S44),"") ->  | Y44: TL | Z44: 3 | AA44: 9
S45: KST | T45: 1 | U45: =IFERROR(GETPIVOTDATA("Count of Match",Pivots!B$3,"Player2",S45),"") -> 8 | Y45: VC | Z45: 2 | AA45: 6
S46: LG | T46: 1 | U46: =IFERROR(GETPIVOTDATA("Count of Match",Pivots!B$3,"Player2",S46),"") ->  | Y46: WA | Z46: 2 | AA46: 5
S47: LH | T47: 3 | U47: =IFERROR(GETPIVOTDATA("Count of Match",Pivots!B$3,"Player2",S47),"") -> 3 | Y47: (blank)
S48: MB | T48: 2 | U48: =IFERROR(GETPIVOTDATA("Count of Match",Pivots!B$3,"Player2",S48),"") -> 6 | Y48: Grand Total | Z48: 87 | AA48: 287
S49: MG | T49: 3 | U49: =IFERROR(GETPIVOTDATA("Count of Match",Pivots!B$3,"Player2",S49),"") -> 
S50: MJ | T50: 3 | U50: =IFERROR(GETPIVOTDATA("Count of Match",Pivots!B$3,"Player2",S50),"") -> 
S51: ML | T51: 3 | U51: =IFERROR(GETPIVOTDATA("Count of Match",Pivots!B$3,"Player2",S51),"") -> 1
S52: MM | T52: 3 | U52: =IFERROR(GETPIVOTDATA("Count of Match",Pivots!B$3,"Player2",S52),"") -> 
S53: MR | T53: 2 | U53: =IFERROR(GETPIVOTDATA("Count of Match",Pivots!B$3,"Player2",S53),"") -> 10
S54: MW | T54: 2 | U54: =IFERROR(GETPIVOTDATA("Count of Match",Pivots!B$3,"Player2",S54),"") -> 9
S55: NA | T55: 3 | U55: =IFERROR(GETPIVOTDATA("Count of Match",Pivots!B$3,"Player2",S55),"") -> 
S56: NF | T56: 3 | U56: =IFERROR(GETPIVOTDATA("Count of Match",Pivots!B$3,"Player2",S56),"") -> 
S57: PC | T57: 3 | U57: =IFERROR(GETPIVOTDATA("Count of Match",Pivots!B$3,"Player2",S57),"") -> 
S58: PD | T58: 1 | U58: =IFERROR(GETPIVOTDATA("Count of Match",Pivots!B$3,"Player2",S58),"") -> 12
S59: PL | T59: 2 | U59: =IFERROR(GETPIVOTDATA("Count of Match",Pivots!B$3,"Player2",S59),"") -> 9
S60: PM | T60: 3 | U60: =IFERROR(GETPIVOTDATA("Count of Match",Pivots!B$3,"Player2",S60),"") -> 
S61: PPE | T61: 2 | U61: =IFERROR(GETPIVOTDATA("Count of Match",Pivots!B$3,"Player2",S61),"") -> 6
S62: PPH | T62: 2 | U62: =IFERROR(GETPIVOTDATA("Count of Match",Pivots!B$3,"Player2",S62),"") -> 9
S63: PSH | T63: 1 | U63: =IFERROR(GETPIVOTDATA("Count of Match",Pivots!B$3,"Player2",S63),"") -> 10
S64: PSW | T64: 2 | U64: =IFERROR(GETPIVOTDATA("Count of Match",Pivots!B$3,"Player2",S64),"") -> 9
S65: PW | T65: 3 | U65: =IFERROR(GETPIVOTDATA("Count of Match",Pivots!B$3,"Player2",S65),"") -> 12
S66: RB | T66: 1 | U66: =IFERROR(GETPIVOTDATA("Count of Match",Pivots!B$3,"Player2",S66),"") -> 11
S67: RCM | T67: 1 | U67: =IFERROR(GETPIVOTDATA("Count of Match",Pivots!B$3,"Player2",S67),"") -> 10
S68: RCO | T68: 2 | U68: =IFERROR(GETPIVOTDATA("Count of Match",Pivots!B$3,"Player2",S68),"") -> 7
S69: RHA | T69: 3 | U69: =IFERROR(GETPIVOTDATA("Count of Match",Pivots!B$3,"Player2",S69),"") -> 9
S70: RHE | T70: 3 | U70: =IFERROR(GETPIVOTDATA("Count of Match",Pivots!B$3,"Player2",S70),"") -> 
S71: RJ | T71: 3 | U71: =IFERROR(GETPIVOTDATA("Count of Match",Pivots!B$3,"Player2",S71),"") -> 11
S72: RN | T72: 3 | U72: =IFERROR(GETPIVOTDATA("Count of Match",Pivots!B$3,"Player2",S72),"") -> 
S73: RPL | T73: 1 | U73: =IFERROR(GETPIVOTDATA("Count of Match",Pivots!B$3,"Player2",S73),"") -> 11
S74: RS | T74: 3 | U74: =IFERROR(GETPIVOTDATA("Count of Match",Pivots!B$3,"Player2",S74),"") -> 9
S75: RW | T75: 3 | U75: =IFERROR(GETPIVOTDATA("Count of Match",Pivots!B$3,"Player2",S75),"") -> 3
S76: SP | T76: 3 | U76: =IFERROR(GETPIVOTDATA("Count of Match",Pivots!B$3,"Player2",S76),"") -> 
S77: SS | T77: 3 | U77: =IFERROR(GETPIVOTDATA("Count of Match",Pivots!B$3,"Player2",S77),"") -> 
S78: TG | T78: 3 | U78: =IFERROR(GETPIVOTDATA("Count of Match",Pivots!B$3,"Player2",S78),"") -> 4
S79: TH | T79: 1 | U79: =IFERROR(GETPIVOTDATA("Count of Match",Pivots!B$3,"Player2",S79),"") -> 3
S80: TL | T80: 3 | U80: =IFERROR(GETPIVOTDATA("Count of Match",Pivots!B$3,"Player2",S80),"") -> 9
S81: TR | T81: 3 | U81: =IFERROR(GETPIVOTDATA("Count of Match",Pivots!B$3,"Player2",S81),"") -> 
S82: VC | T82: 2 | U82: =IFERROR(GETPIVOTDATA("Count of Match",Pivots!B$3,"Player2",S82),"") -> 6
S83: WA | T83: 2 | U83: =IFERROR(GETPIVOTDATA("Count of Match",Pivots!B$3,"Player2",S83),"") -> 5
U84: =IFERROR(GETPIVOTDATA("Count of Match",Pivots!B$3,"Player2",S84),"") -> 
U85: =IFERROR(GETPIVOTDATA("Count of Match",Pivots!B$3,"Player2",S85),"") -> 
U86: =IFERROR(GETPIVOTDATA("Count of Match",Pivots!B$3,"Player2",S86),"") -> 
U87: =IFERROR(GETPIVOTDATA("Count of Match",Pivots!B$3,"Player2",S87),"") -> 
U88: =IFERROR(GETPIVOTDATA("Count of Match",Pivots!B$3,"Player2",S88),"") -> 
U89: =IFERROR(GETPIVOTDATA("Count of Match",Pivots!B$3,"Player2",S89),"") -> 
U90: =IFERROR(GETPIVOTDATA("Count of Match",Pivots!B$3,"Player2",S90),"") -> 
U91: =IFERROR(GETPIVOTDATA("Count of Match",Pivots!B$3,"Player2",S91),"") -> 
U92: =IFERROR(GETPIVOTDATA("Count of Match",Pivots!B$3,"Player2",S92),"") -> 
U93: =IFERROR(GETPIVOTDATA("Count of Match",Pivots!B$3,"Player2",S93),"") -> 
U94: =IFERROR(GETPIVOTDATA("Count of Match",Pivots!B$3,"Player2",S94),"") -> 
U95: =IFERROR(GETPIVOTDATA("Count of Match",Pivots!B$3,"Player2",S95),"") -> 
U96: =IFERROR(GETPIVOTDATA("Count of Match",Pivots!B$3,"Player2",S96),"") -> 
U97: =IFERROR(GETPIVOTDATA("Count of Match",Pivots!B$3,"Player2",S97),"") -> 
U98: =IFERROR(GETPIVOTDATA("Count of Match",Pivots!B$3,"Player2",S98),"") -> 
U99: =IFERROR(GETPIVOTDATA("Count of Match",Pivots!B$3,"Player2",S99),"") -> 
U100: =IFERROR(GETPIVOTDATA("Count of Match",Pivots!B$3,"Player2",S100),"") -> 
U101: =IFERROR(GETPIVOTDATA("Count of Match",Pivots!B$3,"Player2",S101),"") -> 
U102: =IFERROR(GETPIVOTDATA("Count of Match",Pivots!B$3,"Player2",S102),"") -> 
U103: =IFERROR(GETPIVOTDATA("Count of Match",Pivots!B$3,"Player2",S103),"") -> 

Sheet Players (hidden)
A1: Player | B1: Name | C1: Guess T
A2: AA | B2: Angelos Agathangelou | C2: 3
A3: AC | B3: Andrew Courtman | C3: 3
A4: AKA | B4: Ashok Kwatra | C4: 3
A5: AKM | B5: Andrew Kambites | C5: 1
A6: APO | B6: Andrea Powell | C6: 3
A7: APR | B7: Alison Pritchard | C7: 3
A8: AS | B8: Allan Sanis | C8: 3
A9: AW | B9: Alan Wearmouth | C9: 1
A10: BG | B10: Brian Goalby | C10: 2
A11: BR | B11: Ben Ritacca | C11: 3
A12: BY | B12: Bryony Youngs | C12: 1
A13: CK | B13: Chris Kinloch | C13: 1
A14: CL | B14: Chris Lewis | C14: 3
A15: CM | B15: Cynthia Moore | C15: 3
A16: CRO | B16: Claire Robinson | C16: 1
A17: DA | B17: David Atthey | C17: 3
A18: DHA | B18: David Hauser | C18: 3
A19: DHO | B19: Daphne Hogarth | C19: 3
A20: DHP | B20: Dave Hope | C20: 1
A21: DN | B21: Diana Nettleton | C21: 1
A22: DR | B22: Derek Rue | C22: 1
A23: DS | B23: David Simons | C23: 3
A24: ED | B24: Liz Davies | C24: 3
A25: GB | B25: George Barrett | C25: 2
A26: GS | B26: Graham Sadie | C26: 1
A27: GW | B27: Gary Watson | C27: 1
A28: HF | B28: Hussain Fatemian | C28: 3
A29: IC | B29: Ian Constable | C29: 3
A30: JAN | B30: Joe Angseesing | C30: 1
A31: JAR | B31: John Arblaster | C31: 2
A32: JAT | B32: John Atthey | C32: 1
A33: JC | B33: John Councer | C33: 2
A34: JSI | B34: Jim Simons | C34: 2
A35: JSk | B35: John Skjonnemand | C35: 3
A36: JST | B36: John Stirrup | C36: 3
A37: JuS | B37: Judy Sanis | C37: 3
A38: KAR | B38: K A Rahim | C38: 3
A39: KAS | B39: Anne Swannell | C39: 3
A40: KM | B40: Kate Morgan | C40: 3
A41: KSH | B41: Keith Sharp | C41: 3
A42: KST | B42: Keith Stanley | C42: 1
A43: LG | B43: Lindsay Geddes | C43: 1
A44: LH | B44: Lesley Harrison | C44: 3
A45: MB | B45: Mel Barlow | C45: 2
A46: MG | B46: Malcolm Green | C46: 3
A47: MJ | B47: Mary Jones | C47: 3
A48: ML | B48: Mike Lewis | C48: 3
A49: MM | B49: Martin McWilliam | C49: 3
A50: MR | B50: Mark Rogers | C50: 2
A51: MW | B51: Mike Wignall | C51: 2
A52: NA | B52: Norah Allen | C52: 3
A53: NF | B53: Nicky Ferguson | C53: 3
A54: PC | B54: Paul Clark | C54: 3
A55: PD | B55: Paul Denning | C55: 1
A56: PL | B56: Paul Lilley | C56: 2
A57: PM | B57: Phillip Morgan | C57: 3
A58: PPE | B58: Pam Pearce | C58: 2
A59: PPH | B59: Patrick Phair | C59: 2
A60: PSH | B60: Patrick Shields | C60: 1
A61: PSW | B61: Peter Swales | C61: 2
A62: PW | B62: Peter Waggett | C62: 3
A63: RB | B63: Richard Butland | C63: 1
A64: RCM | B64: Richard Chamberlain | C64: 1
A65: RCO | B65: Roy Collard | C65: 2
A66: RHA | B66: Richard Harris | C66: 3
A67: RHE | B67: Richard Hennell | C67: 3
A68: RJ | B68: Roger Jackson | C68: 3
A69: RN | B69: Roger Nicholls | C69: 3
A70: RPL | B70: Richard Plackett | C70: 1
A71: RS | B71: Roger Schofield | C71: 3
A72: RW | B72: Roger Williams | C72: 3
A73: SP | B73: Stan Powell | C73: 3
A74: SS | B74: Steve Sasanow | C74: 3
A75: TG | B75: Tricia Gilham | C75: 3
A76: TH | B76: Tony Hill | C76: 1
A77: TL | B77: Tony Letts | C77: 3
A78: TR | B78: Toby Roberts | C78: 3
A79: VC | B79: Val Constable | C79: 2
A80: WA | B80: Wendy Angseesing | C80: 2

Sheet Tables (hidden)
B2: Div | C2: Name | F2: Match | G2: Date | H2: Home | J2: Home / Away | K2: Home / Away
B3: 1 | C3: Dawes | F3: 1 | G3: Warks Sep 17 | H3: A | J3: H | K3: A
B4: 2 | C4: Porter | F4: =F3+1 -> 2 | G4: Leics Oct 17 | H4: H
B5: 3 | C5: Markham | F5: =F4+1 -> 3 | G5: Worcs Nov 17 | H5: H
F6: 4 | G6: Derby Jan 18 | H6: H
F7: 5 | G7: Notts Feb 18 | H7: A
F8: 6 | G8: Staffs Mar 18 | H8: H
F9: 7 | G9: Oxf Apr 18 | H9: H
F10: 11 | G10: Lei Sep 18 | H10: A
F11: 12 | G11: Wor Oct 18 | H11: A
F12: 13 | G12: Oxf Nov 18 | H12: H
F13: 14 | G13: Notts Jan19 | H13: H
F14: 15 | G14: Staffs Feb 19 | H14: A
F15: 16 | G15: Warks Apr 19 | H15: H
F16: 21 | G16: Worcs Sep 19 | H16: H
F17: 22 | G17: Oxford Oct 19 | H17: A
F18: 23 | G18: Derby Nov 19 | H18: H
F19: 24 | G19: Notts Dec 19 | H19: A
F20: 25 | G20: Staffs/Shr Jan 20 | H20: H
F21: 26 | G21: Warks Feb 20 | H21: A
F22: 27 | G22: Leics Apr 20 | H22: A

Sheet MatchD1 (hidden)
A1: Player1 | B1: Player2 | C1: Team | D1: Butler | E1: Match | F1: MatchS | G1: Relative | H1: P1 | I1: P2
A2: PPE | B2: RCO | C2: 1 | D2: -48 | E2: 1 | F2: =IF(C2=1,VLOOKUP(E2,Pivots!$AX$3:$BA$45,2))/2+IF(C2=2,VLOOKUP(E2,Pivots!$AX$3:$BA$45,3))/2+IF(C2=3,VLOOKUP(E2,Pivots!$AX$3:$BA$45,4))/2 -> -96 | G2: =IF(A2="","",D2-F2/4) -> -24 | H2: =VLOOKUP(A2,Players!$A$2:$B$92,2,FALSE) -> Pam Pearce | I2: =VLOOKUP(B2,Players!A$2:$B$92,2,FALSE) -> Roy Collard
A3: RB | B3: GW | C3: 1 | D3: -52 | E3: 1 | F3: =IF(C3=1,VLOOKUP(E3,Pivots!$AX$3:$BA$45,2))/2+IF(C3=2,VLOOKUP(E3,Pivots!$AX$3:$BA$45,3))/2+IF(C3=3,VLOOKUP(E3,Pivots!$AX$3:$BA$45,4))/2 -> -96 | G3: -28 | H3: =VLOOKUP(A3,Players!$A$2:$B$92,2,FALSE) -> Richard Butland | I3: =VLOOKUP(B3,Players!A$2:$B$92,2,FALSE) -> Gary Watson
A4: PD | B4: RPL | C4: 1 | D4: 31 | E4: 1 | F4: =IF(C4=1,VLOOKUP(E4,Pivots!$AX$3:$BA$45,2))/2+IF(C4=2,VLOOKUP(E4,Pivots!$AX$3:$BA$45,3))/2+IF(C4=3,VLOOKUP(E4,Pivots!$AX$3:$BA$45,4))/2 -> -96 | G4: 55 | H4: =VLOOKUP(A4,Players!$A$2:$B$92,2,FALSE) -> Paul Denning | I4: =VLOOKUP(B4,Players!A$2:$B$92,2,FALSE) -> Richard Plackett
A5: RHA | B5: TG | C5: 1 | D5: -27 | E5: 1 | F5: =IF(C5=1,VLOOKUP(E5,Pivots!$AX$3:$BA$45,2))/2+IF(C5=2,VLOOKUP(E5,Pivots!$AX$3:$BA$45,3))/2+IF(C5=3,VLOOKUP(E5,Pivots!$AX$3:$BA$45,4))/2 -> -96 | G5: -3 | H5: =VLOOKUP(A5,Players!$A$2:$B$92,2,FALSE) -> Richard Harris | I5: =VLOOKUP(B5,Players!A$2:$B$92,2,FALSE) -> Tricia Gilham
A6: APR | B6: DA | C6: 2 | D6: -2 | E6: 1 | F6: =IF(C6=1,VLOOKUP(E6,Pivots!$AX$3:$BA$45,2))/2+IF(C6=2,VLOOKUP(E6,Pivots!$AX$3:$BA$45,3))/2+IF(C6=3,VLOOKUP(E6,Pivots!$AX$3:$BA$45,4))/2 -> -37 | G6: 7.25 | H6: =VLOOKUP(A6,Players!$A$2:$B$92,2,FALSE) -> Alison Pritchard | I6: =VLOOKUP(B6,Players!A$2:$B$92,2,FALSE) -> David Atthey
A7: AKA | B7: DS | C7: 2 | D7: 37 | E7: 1 | F7: =IF(C7=1,VLOOKUP(E7,Pivots!$AX$3:$BA$45,2))/2+IF(C7=2,VLOOKUP(E7,Pivots!$AX$3:$BA$45,3))/2+IF(C7=3,VLOOKUP(E7,Pivots!$AX$3:$BA$45,4))/2 -> -37 | G7: 46.25 | H7: =VLOOKUP(A7,Players!$A$2:$B$92,2,FALSE) -> Ashok Kwatra | I7: =VLOOKUP(B7,Players!A$2:$B$92,2,FALSE) -> David Simons
A8: TL | B8: RS | C8: 2 | D8: -27 | E8: 1 | F8: =IF(C8=1,VLOOKUP(E8,Pivots!$AX$3:$BA$45,2))/2+IF(C8=2,VLOOKUP(E8,Pivots!$AX$3:$BA$45,3))/2+IF(C8=3,VLOOKUP(E8,Pivots!$AX$3:$BA$45,4))/2 -> -37 | G8: -17.75 | H8: =VLOOKUP(A8,Players!$A$2:$B$92,2,FALSE) -> Tony Letts | I8: =VLOOKUP(B8,Players!A$2:$B$92,2,FALSE) -> Roger Schofield
A9: PW | B9: PPH | C9: 2 | D9: -45 | E9: 1 | F9: =IF(C9=1,VLOOKUP(E9,Pivots!$AX$3:$BA$45,2))/2+IF(C9=2,VLOOKUP(E9,Pivots!$AX$3:$BA$45,3))/2+IF(C9=3,VLOOKUP(E9,Pivots!$AX$3:$BA$45,4))/2 -> -37 | G9: -35.75 | H9: =VLOOKUP(A9,Players!$A$2:$B$92,2,FALSE) -> Peter Waggett | I9: =VLOOKUP(B9,Players!A$2:$B$92,2,FALSE) -> Patrick Phair
A10: IC | B10: VC | C10: 3 | D10: -14 | E10: 1 | F10: =IF(C10=1,VLOOKUP(E10,Pivots!$AX$3:$BA$45,2))/2+IF(C10=2,VLOOKUP(E10,Pivots!$AX$3:$BA$45,3))/2+IF(C10=3,VLOOKUP(E10,Pivots!$AX$3:$BA$45,4))/2 -> 2 | G10: -14.5 | H10: =VLOOKUP(A10,Players!$A$2:$B$92,2,FALSE) -> Ian Constable | I10: =VLOOKUP(B10,Players!A$2:$B$92,2,FALSE) -> Val Constable
A11: PSW | B11: LH | C11: 3 | D11: 19 | E11: 1 | F11: =IF(C11=1,VLOOKUP(E11,Pivots!$AX$3:$BA$45,2))/2+IF(C11=2,VLOOKUP(E11,Pivots!$AX$3:$BA$45,3))/2+IF(C11=3,VLOOKUP(E11,Pivots!$AX$3:$BA$45,4))/2 -> 2 | G11: 18.5 | H11: =VLOOKUP(A11,Players!$A$2:$B$92,2,FALSE) -> Peter Swales | I11: =VLOOKUP(B11,Players!A$2:$B$92,2,FALSE) -> Lesley Harrison
A12: AS | B12: JUS | C12: 3 | D12: 6 | E12: 1 | F12: =IF(C12=1,VLOOKUP(E12,Pivots!$AX$3:$BA$45,2))/2+IF(C12=2,VLOOKUP(E12,Pivots!$AX$3:$BA$45,3))/2+IF(C12=3,VLOOKUP(E12,Pivots!$AX$3:$BA$45,4))/2 -> 2 | G12: 5.5 | H12: =VLOOKUP(A12,Players!$A$2:$B$92,2,FALSE) -> Allan Sanis | I12: =VLOOKUP(B12,Players!A$2:$B$92,2,FALSE) -> Judy Sanis
A13: RW | B13: KAS | C13: 3 | D13: -9 | E13: 1 | F13: =IF(C13=1,VLOOKUP(E13,Pivots!$AX$3:$BA$45,2))/2+IF(C13=2,VLOOKUP(E13,Pivots!$AX$3:$BA$45,3))/2+IF(C13=3,VLOOKUP(E13,Pivots!$AX$3:$BA$45,4))/2 -> 2 | G13: -9.5 | H13: =VLOOKUP(A13,Players!$A$2:$B$92,2,FALSE) -> Roger Williams | I13: =VLOOKUP(B13,Players!A$2:$B$92,2,FALSE) -> Anne Swannell
A14: PSH | B14: RCM | C14: 1 | D14: 59 | E14: 2 | F14: =IF(C14=1,VLOOKUP(E14,Pivots!$AX$3:$BA$45,2))/2+IF(C14=2,VLOOKUP(E14,Pivots!$AX$3:$BA$45,3))/2+IF(C14=3,VLOOKUP(E14,Pivots!$AX$3:$BA$45,4))/2 -> 123 | G14: 28.25 | H14: =VLOOKUP(A14,Players!$A$2:$B$92,2,FALSE) -> Patrick Shields | I14: =VLOOKUP(B14,Players!A$2:$B$92,2,FALSE) -> Richard Chamberlain
A15: JAN | B15: KST | C15: 1 | D15: 37 | E15: 2 | F15: =IF(C15=1,VLOOKUP(E15,Pivots!$AX$3:$BA$45,2))/2+IF(C15=2,VLOOKUP(E15,Pivots!$AX$3:$BA$45,3))/2+IF(C15=3,VLOOKUP(E15,Pivots!$AX$3:$BA$45,4))/2 -> 123 | G15: 6.25 | H15: =VLOOKUP(A15,Players!$A$2:$B$92,2,FALSE) -> Joe Angseesing | I15: =VLOOKUP(B15,Players!A$2:$B$92,2,FALSE) -> Keith Stanley
A16: PD | B16: RPL | C16: 1 | D16: 30 | E16: 2 | F16: =IF(C16=1,VLOOKUP(E16,Pivots!$AX$3:$BA$45,2))/2+IF(C16=2,VLOOKUP(E16,Pivots!$AX$3:$BA$45,3))/2+IF(C16=3,VLOOKUP(E16,Pivots!$AX$3:$BA$45,4))/2 -> 123 | G16: -0.75 | H16: =VLOOKUP(A16,Players!$A$2:$B$92,2,FALSE) -> Paul Denning | I16: =VLOOKUP(B16,Players!A$2:$B$92,2,FALSE) -> Richard Plackett
A17: GW | B17: JAT | C17: 1 | D17: -3 | E17: 2 | F17: =IF(C17=1,VLOOKUP(E17,Pivots!$AX$3:$BA$45,2))/2+IF(C17=2,VLOOKUP(E17,Pivots!$AX$3:$BA$45,3))/2+IF(C17=3,VLOOKUP(E17,Pivots!$AX$3:$BA$45,4))/2 -> 123 | G17: -33.75 | H17: =VLOOKUP(A17,Players!$A$2:$B$92,2,FALSE) -> Gary Watson | I17: =VLOOKUP(B17,Players!A$2:$B$92,2,FALSE) -> John Atthey
A18: PW | B18: MR | C18: 2 | D18: 71 | E18: 2 | F18: =IF(C18=1,VLOOKUP(E18,Pivots!$AX$3:$BA$45,2))/2+IF(C18=2,VLOOKUP(E18,Pivots!$AX$3:$BA$45,3))/2+IF(C18=3,VLOOKUP(E18,Pivots!$AX$3:$BA$45,4))/2 -> 129 | G18: 38.75 | H18: =VLOOKUP(A18,Players!$A$2:$B$92,2,FALSE) -> Peter Waggett | I18: =VLOOKUP(B18,Players!A$2:$B$92,2,FALSE) -> Mark Rogers
A19: RCO | B19: PPE | C19: 2 | D19: 49 | E19: 2 | F19: =IF(C19=1,VLOOKUP(E19,Pivots!$AX$3:$BA$45,2))/2+IF(C19=2,VLOOKUP(E19,Pivots!$AX$3:$BA$45,3))/2+IF(C19=3,VLOOKUP(E19,Pivots!$AX$3:$BA$45,4))/2 -> 129 | G19: 16.75 | H19: =VLOOKUP(A19,Players!$A$2:$B$92,2,FALSE) -> Roy Collard | I19: =VLOOKUP(B19,Players!A$2:$B$92,2,FALSE) -> Pam Pearce
A20: JSI | B20: PPH | C20: 2 | D20: 5 | E20: 2 | F20: =IF(C20=1,VLOOKUP(E20,Pivots!$AX$3:$BA$45,2))/2+IF(C20=2,VLOOKUP(E20,Pivots!$AX$3:$BA$45,3))/2+IF(C20=3,VLOOKUP(E20,Pivots!$AX$3:$BA$45,4))/2 -> 129 | G20: -27.25 | H20: =VLOOKUP(A20,Players!$A$2:$B$92,2,FALSE) -> Jim Simons | I20: =VLOOKUP(B20,Players!A$2:$B$92,2,FALSE) -> Patrick Phair
A21: TG | B21: RHA | C21: 2 | D21: 4 | E21: 2 | F21: =IF(C21=1,VLOOKUP(E21,Pivots!$AX$3:$BA$45,2))/2+IF(C21=2,VLOOKUP(E21,Pivots!$AX$3:$BA$45,3))/2+IF(C21=3,VLOOKUP(E21,Pivots!$AX$3:$BA$45,4))/2 -> 129 | G21: -28.25 | H21: =VLOOKUP(A21,Players!$A$2:$B$92,2,FALSE) -> Tricia Gilham | I21: =VLOOKUP(B21,Players!A$2:$B$92,2,FALSE) -> Richard Harris
A22: JAR | B22: MB | C22: 3 | D22: 62 | E22: 2 | F22: =IF(C22=1,VLOOKUP(E22,Pivots!$AX$3:$BA$45,2))/2+IF(C22=2,VLOOKUP(E22,Pivots!$AX$3:$BA$45,3))/2+IF(C22=3,VLOOKUP(E22,Pivots!$AX$3:$BA$45,4))/2 -> 61 | G22: 46.75 | H22: =VLOOKUP(A22,Players!$A$2:$B$92,2,FALSE) -> John Arblaster | I22: =VLOOKUP(B22,Players!A$2:$B$92,2,FALSE) -> Mel Barlow
A23: IC | B23: VC | C23: 3 | D23: 5 | E23: 2 | F23: =IF(C23=1,VLOOKUP(E23,Pivots!$AX$3:$BA$45,2))/2+IF(C23=2,VLOOKUP(E23,Pivots!$AX$3:$BA$45,3))/2+IF(C23=3,VLOOKUP(E23,Pivots!$AX$3:$BA$45,4))/2 -> 61 | G23: -10.25 | H23: =VLOOKUP(A23,Players!$A$2:$B$92,2,FALSE) -> Ian Constable | I23: =VLOOKUP(B23,Players!A$2:$B$92,2,FALSE) -> Val Constable
A24: AKA | B24: DS | C24: 3 | D24: -1 | E24: 2 | F24: =IF(C24=1,VLOOKUP(E24,Pivots!$AX$3:$BA$45,2))/2+IF(C24=2,VLOOKUP(E24,Pivots!$AX$3:$BA$45,3))/2+IF(C24=3,VLOOKUP(E24,Pivots!$AX$3:$BA$45,4))/2 -> 61 | G24: -16.25 | H24: =VLOOKUP(A24,Players!$A$2:$B$92,2,FALSE) -> Ashok Kwatra | I24: =VLOOKUP(B24,Players!A$2:$B$92,2,FALSE) -> David Simons
A25: WA | B25: MW | C25: 3 | D25: -5 | E25: 2 | F25: =IF(C25=1,VLOOKUP(E25,Pivots!$AX$3:$BA$45,2))/2+IF(C25=2,VLOOKUP(E25,Pivots!$AX$3:$BA$45,3))/2+IF(C25=3,VLOOKUP(E25,Pivots!$AX$3:$BA$45,4))/2 -> 61 | G25: -20.25 | H25: =VLOOKUP(A25,Players!$A$2:$B$92,2,FALSE) -> Wendy Angseesing | I25: =VLOOKUP(B25,Players!A$2:$B$92,2,FALSE) -> Mike Wignall
A26: PSH | B26: RCM | C26: 1 | D26: 26 | E26: 3 | F26: =IF(C26=1,VLOOKUP(E26,Pivots!$AX$3:$BA$45,2))/2+IF(C26=2,VLOOKUP(E26,Pivots!$AX$3:$BA$45,3))/2+IF(C26=3,VLOOKUP(E26,Pivots!$AX$3:$BA$45,4))/2 -> 42 | G26: 15.5 | H26: =VLOOKUP(A26,Players!$A$2:$B$92,2,FALSE) -> Patrick Shields | I26: =VLOOKUP(B26,Players!A$2:$B$92,2,FALSE) -> Richard Chamberlain
A27: PD | B27: RPL | C27: 1 | D27: 20 | E27: 3 | F27: =IF(C27=1,VLOOKUP(E27,Pivots!$AX$3:$BA$45,2))/2+IF(C27=2,VLOOKUP(E27,Pivots!$AX$3:$BA$45,3))/2+IF(C27=3,VLOOKUP(E27,Pivots!$AX$3:$BA$45,4))/2 -> 42 | G27: 9.5 | H27: =VLOOKUP(A27,Players!$A$2:$B$92,2,FALSE) -> Paul Denning | I27: =VLOOKUP(B27,Players!A$2:$B$92,2,FALSE) -> Richard Plackett
A28: JAN | B28: WA | C28: 1 | D28: 9 | E28: 3 | F28: =IF(C28=1,VLOOKUP(E28,Pivots!$AX$3:$BA$45,2))/2+IF(C28=2,VLOOKUP(E28,Pivots!$AX$3:$BA$45,3))/2+IF(C28=3,VLOOKUP(E28,Pivots!$AX$3:$BA$45,4))/2 -> 42 | G28: -1.5 | H28: =VLOOKUP(A28,Players!$A$2:$B$92,2,FALSE) -> Joe Angseesing | I28: =VLOOKUP(B28,Players!A$2:$B$92,2,FALSE) -> Wendy Angseesing
A29: GW | B29: RB | C29: 1 | D29: -13 | E29: 3 | F29: =IF(C29=1,VLOOKUP(E29,Pivots!$AX$3:$BA$45,2))/2+IF(C29=2,VLOOKUP(E29,Pivots!$AX$3:$BA$45,3))/2+IF(C29=3,VLOOKUP(E29,Pivots!$AX$3:$BA$45,4))/2 -> 42 | G29: -23.5 | H29: =VLOOKUP(A29,Players!$A$2:$B$92,2,FALSE) -> Gary Watson | I29: =VLOOKUP(B29,Players!A$2:$B$92,2,FALSE) -> Richard Butland
A30: PW | B30: MR | C30: 2 | D30: 25 | E30: 3 | F30: =IF(C30=1,VLOOKUP(E30,Pivots!$AX$3:$BA$45,2))/2+IF(C30=2,VLOOKUP(E30,Pivots!$AX$3:$BA$45,3))/2+IF(C30=3,VLOOKUP(E30,Pivots!$AX$3:$BA$45,4))/2 -> 42 | G30: 14.5 | H30: =VLOOKUP(A30,Players!$A$2:$B$92,2,FALSE) -> Peter Waggett | I30: =VLOOKUP(B30,Players!A$2:$B$92,2,FALSE) -> Mark Rogers
A31: PPE | B31: RCO | C31: 2 | D31: 12 | E31: 3 | F31: =IF(C31=1,VLOOKUP(E31,Pivots!$AX$3:$BA$45,2))/2+IF(C31=2,VLOOKUP(E31,Pivots!$AX$3:$BA$45,3))/2+IF(C31=3,VLOOKUP(E31,Pivots!$AX$3:$BA$45,4))/2 -> 42 | G31: 1.5 | H31: =VLOOKUP(A31,Players!$A$2:$B$92,2,FALSE) -> Pam Pearce | I31: =VLOOKUP(B31,Players!A$2:$B$92,2,FALSE) -> Roy Collard
A32: TG | B32: RHA | C32: 2 | D32: 10 | E32: 3 | F32: =IF(C32=1,VLOOKUP(E32,Pivots!$AX$3:$BA$45,2))/2+IF(C32=2,VLOOKUP(E32,Pivots!$AX$3:$BA$45,3))/2+IF(C32=3,VLOOKUP(E32,Pivots!$AX$3:$BA$45,4))/2 -> 42 | G32: -0.5 | H32: =VLOOKUP(A32,Players!$A$2:$B$92,2,FALSE) -> Tricia Gilham | I32: =VLOOKUP(B32,Players!A$2:$B$92,2,FALSE) -> Richard Harris
A33: JSI | B33: PPH | C33: 2 | D33: -5 | E33: 3 | F33: =IF(C33=1,VLOOKUP(E33,Pivots!$AX$3:$BA$45,2))/2+IF(C33=2,VLOOKUP(E33,Pivots!$AX$3:$BA$45,3))/2+IF(C33=3,VLOOKUP(E33,Pivots!$AX$3:$BA$45,4))/2 -> 42 | G33: -15.5 | H33: =VLOOKUP(A33,Players!$A$2:$B$92,2,FALSE) -> Jim Simons | I33: =VLOOKUP(B33,Players!A$2:$B$92,2,FALSE) -> Patrick Phair
A34: KAS | B34: PSW | C34: 3 | D34: 27 | E34: 3 | F34: =IF(C34=1,VLOOKUP(E34,Pivots!$AX$3:$BA$45,2))/2+IF(C34=2,VLOOKUP(E34,Pivots!$AX$3:$BA$45,3))/2+IF(C34=3,VLOOKUP(E34,Pivots!$AX$3:$BA$45,4))/2 -> 3 | G34: 26.25 | H34: =VLOOKUP(A34,Players!$A$2:$B$92,2,FALSE) -> Anne Swannell | I34: =VLOOKUP(B34,Players!A$2:$B$92,2,FALSE) -> Peter Swales
A35: VC | B35: IC | C35: 3 | D35: 12 | E35: 3 | F35: =IF(C35=1,VLOOKUP(E35,Pivots!$AX$3:$BA$45,2))/2+IF(C35=2,VLOOKUP(E35,Pivots!$AX$3:$BA$45,3))/2+IF(C35=3,VLOOKUP(E35,Pivots!$AX$3:$BA$45,4))/2 -> 3 | G35: 11.25 | H35: =VLOOKUP(A35,Players!$A$2:$B$92,2,FALSE) -> Val Constable | I35: =VLOOKUP(B35,Players!A$2:$B$92,2,FALSE) -> Ian Constable
A36: AS | B36: JUS | C36: 3 | D36: -20 | E36: 3 | F36: =IF(C36=1,VLOOKUP(E36,Pivots!$AX$3:$BA$45,2))/2+IF(C36=2,VLOOKUP(E36,Pivots!$AX$3:$BA$45,3))/2+IF(C36=3,VLOOKUP(E36,Pivots!$AX$3:$BA$45,4))/2 -> 3 | G36: -20.75 | H36: =VLOOKUP(A36,Players!$A$2:$B$92,2,FALSE) -> Allan Sanis | I36: =VLOOKUP(B36,Players!A$2:$B$92,2,FALSE) -> Judy Sanis
A37: APR | B37: DA | C37: 3 | D37: -16 | E37: 3 | F37: =IF(C37=1,VLOOKUP(E37,Pivots!$AX$3:$BA$45,2))/2+IF(C37=2,VLOOKUP(E37,Pivots!$AX$3:$BA$45,3))/2+IF(C37=3,VLOOKUP(E37,Pivots!$AX$3:$BA$45,4))/2 -> 3 | G37: -16.75 | H37: =VLOOKUP(A37,Players!$A$2:$B$92,2,FALSE) -> Alison Pritchard | I37: =VLOOKUP(B37,Players!A$2:$B$92,2,FALSE) -> David Atthey
A38: PD | B38: RPL | C38: 1 | D38: 29 | E38: 4 | F38: =IF(C38=1,VLOOKUP(E38,Pivots!$AX$3:$BA$45,2))/2+IF(C38=2,VLOOKUP(E38,Pivots!$AX$3:$BA$45,3))/2+IF(C38=3,VLOOKUP(E38,Pivots!$AX$3:$BA$45,4))/2 -> 50 | G38: 16.5 | H38: =VLOOKUP(A38,Players!$A$2:$B$92,2,FALSE) -> Paul Denning | I38: =VLOOKUP(B38,Players!A$2:$B$92,2,FALSE) -> Richard Plackett
A39: AKM | B39: RCM | C39: 1 | D39: 24 | E39: 4 | F39: =IF(C39=1,VLOOKUP(E39,Pivots!$AX$3:$BA$45,2))/2+IF(C39=2,VLOOKUP(E39,Pivots!$AX$3:$BA$45,3))/2+IF(C39=3,VLOOKUP(E39,Pivots!$AX$3:$BA$45,4))/2 -> 50 | G39: 11.5 | H39: =VLOOKUP(A39,Players!$A$2:$B$92,2,FALSE) -> Andrew Kambites | I39: =VLOOKUP(B39,Players!A$2:$B$92,2,FALSE) -> Richard Chamberlain
A40: PSH | B40: GW | C40: 1 | D40: 20 | E40: 4 | F40: =IF(C40=1,VLOOKUP(E40,Pivots!$AX$3:$BA$45,2))/2+IF(C40=2,VLOOKUP(E40,Pivots!$AX$3:$BA$45,3))/2+IF(C40=3,VLOOKUP(E40,Pivots!$AX$3:$BA$45,4))/2 -> 50 | G40: 7.5 | H40: =VLOOKUP(A40,Players!$A$2:$B$92,2,FALSE) -> Patrick Shields | I40: =VLOOKUP(B40,Players!A$2:$B$92,2,FALSE) -> Gary Watson
A41: DN | B41: BY | C41: 1 | D41: -23 | E41: 4 | F41: =IF(C41=1,VLOOKUP(E41,Pivots!$AX$3:$BA$45,2))/2+IF(C41=2,VLOOKUP(E41,Pivots!$AX$3:$BA$45,3))/2+IF(C41=3,VLOOKUP(E41,Pivots!$AX$3:$BA$45,4))/2 -> 50 | G41: -35.5 | H41: =VLOOKUP(A41,Players!$A$2:$B$92,2,FALSE) -> Diana Nettleton | I41: =VLOOKUP(B41,Players!A$2:$B$92,2,FALSE) -> Bryony Youngs
A42: JSI | B42: PPH | C42: 2 | D42: 30 | E42: 4 | F42: =IF(C42=1,VLOOKUP(E42,Pivots!$AX$3:$BA$45,2))/2+IF(C42=2,VLOOKUP(E42,Pivots!$AX$3:$BA$45,3))/2+IF(C42=3,VLOOKUP(E42,Pivots!$AX$3:$BA$45,4))/2 -> 28 | G42: 23 | H42: =VLOOKUP(A42,Players!$A$2:$B$92,2,FALSE) -> Jim Simons | I42: =VLOOKUP(B42,Players!A$2:$B$92,2,FALSE) -> Patrick Phair
A43: TG | B43: RHA | C43: 2 | D43: -20 | E43: 4 | F43: =IF(C43=1,VLOOKUP(E43,Pivots!$AX$3:$BA$45,2))/2+IF(C43=2,VLOOKUP(E43,Pivots!$AX$3:$BA$45,3))/2+IF(C43=3,VLOOKUP(E43,Pivots!$AX$3:$BA$45,4))/2 -> 28 | G43: -27 | H43: =VLOOKUP(A43,Players!$A$2:$B$92,2,FALSE) -> Tricia Gilham | I43: =VLOOKUP(B43,Players!A$2:$B$92,2,FALSE) -> Richard Harris
A44: IC | B44: VC | C44: 2 | D44: 7 | E44: 4 | F44: =IF(C44=1,VLOOKUP(E44,Pivots!$AX$3:$BA$45,2))/2+IF(C44=2,VLOOKUP(E44,Pivots!$AX$3:$BA$45,3))/2+IF(C44=3,VLOOKUP(E44,Pivots!$AX$3:$BA$45,4))/2 -> 28 | G44: 0 | H44: =VLOOKUP(A44,Players!$A$2:$B$92,2,FALSE) -> Ian Constable | I44: =VLOOKUP(B44,Players!A$2:$B$92,2,FALSE) -> Val Constable
A45: PPE | B45: RCO | C45: 2 | D45: 11 | E45: 4 | F45: =IF(C45=1,VLOOKUP(E45,Pivots!$AX$3:$BA$45,2))/2+IF(C45=2,VLOOKUP(E45,Pivots!$AX$3:$BA$45,3))/2+IF(C45=3,VLOOKUP(E45,Pivots!$AX$3:$BA$45,4))/2 -> 28 | G45: 4 | H45: =VLOOKUP(A45,Players!$A$2:$B$92,2,FALSE) -> Pam Pearce | I45: =VLOOKUP(B45,Players!A$2:$B$92,2,FALSE) -> Roy Collard
A46: DA | B46: APR | C46: 3 | D46: -18 | E46: 4 | F46: =IF(C46=1,VLOOKUP(E46,Pivots!$AX$3:$BA$45,2))/2+IF(C46=2,VLOOKUP(E46,Pivots!$AX$3:$BA$45,3))/2+IF(C46=3,VLOOKUP(E46,Pivots!$AX$3:$BA$45,4))/2 -> -14 | G46: -14.5 | H46: =VLOOKUP(A46,Players!$A$2:$B$92,2,FALSE) -> David Atthey | I46: =VLOOKUP(B46,Players!A$2:$B$92,2,FALSE) -> Alison Pritchard
A47: PW | B47: RJ | C47: 3 | D47: -8 | E47: 4 | F47: =IF(C47=1,VLOOKUP(E47,Pivots!$AX$3:$BA$45,2))/2+IF(C47=2,VLOOKUP(E47,Pivots!$AX$3:$BA$45,3))/2+IF(C47=3,VLOOKUP(E47,Pivots!$AX$3:$BA$45,4))/2 -> -14 | G47: -4.5 | H47: =VLOOKUP(A47,Players!$A$2:$B$92,2,FALSE) -> Peter Waggett | I47: =VLOOKUP(B47,Players!A$2:$B$92,2,FALSE) -> Roger Jackson
A48: AKA | B48: LH | C48: 3 | D48: -5 | E48: 4 | F48: =IF(C48=1,VLOOKUP(E48,Pivots!$AX$3:$BA$45,2))/2+IF(C48=2,VLOOKUP(E48,Pivots!$AX$3:$BA$45,3))/2+IF(C48=3,VLOOKUP(E48,Pivots!$AX$3:$BA$45,4))/2 -> -14 | G48: -1.5 | H48: =VLOOKUP(A48,Players!$A$2:$B$92,2,FALSE) -> Ashok Kwatra | I48: =VLOOKUP(B48,Players!A$2:$B$92,2,FALSE) -> Lesley Harrison
A49: MR | B49: JC | C49: 3 | D49: 17 | E49: 4 | F49: =IF(C49=1,VLOOKUP(E49,Pivots!$AX$3:$BA$45,2))/2+IF(C49=2,VLOOKUP(E49,Pivots!$AX$3:$BA$45,3))/2+IF(C49=3,VLOOKUP(E49,Pivots!$AX$3:$BA$45,4))/2 -> -14 | G49: 20.5 | H49: =VLOOKUP(A49,Players!$A$2:$B$92,2,FALSE) -> Mark Rogers | I49: =VLOOKUP(B49,Players!A$2:$B$92,2,FALSE) -> John Councer
A50: RB | B50: GW | C50: 1 | D50: 37 | E50: 5 | F50: =IF(C50=1,VLOOKUP(E50,Pivots!$AX$3:$BA$45,2))/2+IF(C50=2,VLOOKUP(E50,Pivots!$AX$3:$BA$45,3))/2+IF(C50=3,VLOOKUP(E50,Pivots!$AX$3:$BA$45,4))/2 -> 61 | G50: 21.75 | H50: =VLOOKUP(A50,Players!$A$2:$B$92,2,FALSE) -> Richard Butland | I50: =VLOOKUP(B50,Players!A$2:$B$92,2,FALSE) -> Gary Watson
A51: PD | B51: BY | C51: 1 | D51: 46 | E51: 5 | F51: =IF(C51=1,VLOOKUP(E51,Pivots!$AX$3:$BA$45,2))/2+IF(C51=2,VLOOKUP(E51,Pivots!$AX$3:$BA$45,3))/2+IF(C51=3,VLOOKUP(E51,Pivots!$AX$3:$BA$45,4))/2 -> 61 | G51: 30.75 | H51: =VLOOKUP(A51,Players!$A$2:$B$92,2,FALSE) -> Paul Denning | I51: =VLOOKUP(B51,Players!A$2:$B$92,2,FALSE) -> Bryony Youngs
A52: PSH | B52: RCM | C52: 1 | D52: 18 | E52: 5 | F52: =IF(C52=1,VLOOKUP(E52,Pivots!$AX$3:$BA$45,2))/2+IF(C52=2,VLOOKUP(E52,Pivots!$AX$3:$BA$45,3))/2+IF(C52=3,VLOOKUP(E52,Pivots!$AX$3:$BA$45,4))/2 -> 61 | G52: 2.75 | H52: =VLOOKUP(A52,Players!$A$2:$B$92,2,FALSE) -> Patrick Shields | I52: =VLOOKUP(B52,Players!A$2:$B$92,2,FALSE) -> Richard Chamberlain
A53: JAN | B53: KST | C53: 1 | D53: -40 | E53: 5 | F53: =IF(C53=1,VLOOKUP(E53,Pivots!$AX$3:$BA$45,2))/2+IF(C53=2,VLOOKUP(E53,Pivots!$AX$3:$BA$45,3))/2+IF(C53=3,VLOOKUP(E53,Pivots!$AX$3:$BA$45,4))/2 -> 61 | G53: -55.25 | H53: =VLOOKUP(A53,Players!$A$2:$B$92,2,FALSE) -> Joe Angseesing | I53: =VLOOKUP(B53,Players!A$2:$B$92,2,FALSE) -> Keith Stanley
A54: RHA | B54: TG | C54: 2 | D54: -21 | E54: 5 | F54: =IF(C54=1,VLOOKUP(E54,Pivots!$AX$3:$BA$45,2))/2+IF(C54=2,VLOOKUP(E54,Pivots!$AX$3:$BA$45,3))/2+IF(C54=3,VLOOKUP(E54,Pivots!$AX$3:$BA$45,4))/2 -> 10 | G54: -23.5 | H54: =VLOOKUP(A54,Players!$A$2:$B$92,2,FALSE) -> Richard Harris | I54: =VLOOKUP(B54,Players!A$2:$B$92,2,FALSE) -> Tricia Gilham
A55: IC | B55: AS | C55: 2 | D55: 13 | E55: 5 | F55: =IF(C55=1,VLOOKUP(E55,Pivots!$AX$3:$BA$45,2))/2+IF(C55=2,VLOOKUP(E55,Pivots!$AX$3:$BA$45,3))/2+IF(C55=3,VLOOKUP(E55,Pivots!$AX$3:$BA$45,4))/2 -> 10 | G55: 10.5 | H55: =VLOOKUP(A55,Players!$A$2:$B$92,2,FALSE) -> Ian Constable | I55: =VLOOKUP(B55,Players!A$2:$B$92,2,FALSE) -> Allan Sanis
A56: WA | B56: MW | C56: 2 | D56: 22 | E56: 5 | F56: =IF(C56=1,VLOOKUP(E56,Pivots!$AX$3:$BA$45,2))/2+IF(C56=2,VLOOKUP(E56,Pivots!$AX$3:$BA$45,3))/2+IF(C56=3,VLOOKUP(E56,Pivots!$AX$3:$BA$45,4))/2 -> 10 | G56: 19.5 | H56: =VLOOKUP(A56,Players!$A$2:$B$92,2,FALSE) -> Wendy Angseesing | I56: =VLOOKUP(B56,Players!A$2:$B$92,2,FALSE) -> Mike Wignall
A57: PPH | B57: JSI | C57: 2 | D57: -4 | E57: 5 | F57: =IF(C57=1,VLOOKUP(E57,Pivots!$AX$3:$BA$45,2))/2+IF(C57=2,VLOOKUP(E57,Pivots!$AX$3:$BA$45,3))/2+IF(C57=3,VLOOKUP(E57,Pivots!$AX$3:$BA$45,4))/2 -> 10 | G57: -6.5 | H57: =VLOOKUP(A57,Players!$A$2:$B$92,2,FALSE) -> Patrick Phair | I57: =VLOOKUP(B57,Players!A$2:$B$92,2,FALSE) -> Jim Simons
A58: LH | B58: PSW | C58: 3 | D58: 6 | E58: 5 | F58: =IF(C58=1,VLOOKUP(E58,Pivots!$AX$3:$BA$45,2))/2+IF(C58=2,VLOOKUP(E58,Pivots!$AX$3:$BA$45,3))/2+IF(C58=3,VLOOKUP(E58,Pivots!$AX$3:$BA$45,4))/2 -> -13 | G58: 9.25 | H58: =VLOOKUP(A58,Players!$A$2:$B$92,2,FALSE) -> Lesley Harrison | I58: =VLOOKUP(B58,Players!A$2:$B$92,2,FALSE) -> Peter Swales
A59: RJ | B59: PW | C59: 3 | D59: 7 | E59: 5 | F59: =IF(C59=1,VLOOKUP(E59,Pivots!$AX$3:$BA$45,2))/2+IF(C59=2,VLOOKUP(E59,Pivots!$AX$3:$BA$45,3))/2+IF(C59=3,VLOOKUP(E59,Pivots!$AX$3:$BA$45,4))/2 -> -13 | G59: 10.25 | H59: =VLOOKUP(A59,Players!$A$2:$B$92,2,FALSE) -> Roger Jackson | I59: =VLOOKUP(B59,Players!A$2:$B$92,2,FALSE) -> Peter Waggett
A60: SP | B60: APO | C60: 3 | D60: -33 | E60: 5 | F60: =IF(C60=1,VLOOKUP(E60,Pivots!$AX$3:$BA$45,2))/2+IF(C60=2,VLOOKUP(E60,Pivots!$AX$3:$BA$45,3))/2+IF(C60=3,VLOOKUP(E60,Pivots!$AX$3:$BA$45,4))/2 -> -13 | G60: -29.75 | H60: =VLOOKUP(A60,Players!$A$2:$B$92,2,FALSE) -> Stan Powell | I60: =VLOOKUP(B60,Players!A$2:$B$92,2,FALSE) -> Andrea Powell
A61: KAS | B61: RW | C61: 3 | D61: 7 | E61: 5 | F61: =IF(C61=1,VLOOKUP(E61,Pivots!$AX$3:$BA$45,2))/2+IF(C61=2,VLOOKUP(E61,Pivots!$AX$3:$BA$45,3))/2+IF(C61=3,VLOOKUP(E61,Pivots!$AX$3:$BA$45,4))/2 -> -13 | G61: 10.25 | H61: =VLOOKUP(A61,Players!$A$2:$B$92,2,FALSE) -> Anne Swannell | I61: =VLOOKUP(B61,Players!A$2:$B$92,2,FALSE) -> Roger Williams
A62: PD | B62: RPL | C62: 1 | D62: 57 | E62: 6 | F62: =IF(C62=1,VLOOKUP(E62,Pivots!$AX$3:$BA$45,2))/2+IF(C62=2,VLOOKUP(E62,Pivots!$AX$3:$BA$45,3))/2+IF(C62=3,VLOOKUP(E62,Pivots!$AX$3:$BA$45,4))/2 -> 76 | G62: 38 | H62: =VLOOKUP(A62,Players!$A$2:$B$92,2,FALSE) -> Paul Denning | I62: =VLOOKUP(B62,Players!A$2:$B$92,2,FALSE) -> Richard Plackett
A63: KST | B63: JAN | C63: 1 | D63: -29 | E63: 6 | F63: =IF(C63=1,VLOOKUP(E63,Pivots!$AX$3:$BA$45,2))/2+IF(C63=2,VLOOKUP(E63,Pivots!$AX$3:$BA$45,3))/2+IF(C63=3,VLOOKUP(E63,Pivots!$AX$3:$BA$45,4))/2 -> 76 | G63: -48 | H63: =VLOOKUP(A63,Players!$A$2:$B$92,2,FALSE) -> Keith Stanley | I63: =VLOOKUP(B63,Players!A$2:$B$92,2,FALSE) -> Joe Angseesing
A64: GW | B64: RB | C64: 1 | D64: 16 | E64: 6 | F64: =IF(C64=1,VLOOKUP(E64,Pivots!$AX$3:$BA$45,2))/2+IF(C64=2,VLOOKUP(E64,Pivots!$AX$3:$BA$45,3))/2+IF(C64=3,VLOOKUP(E64,Pivots!$AX$3:$BA$45,4))/2 -> 76 | G64: -3 | H64: =VLOOKUP(A64,Players!$A$2:$B$92,2,FALSE) -> Gary Watson | I64: =VLOOKUP(B64,Players!A$2:$B$92,2,FALSE) -> Richard Butland
A65: PSH | B65: RCM | C65: 1 | D65: 32 | E65: 6 | F65: =IF(C65=1,VLOOKUP(E65,Pivots!$AX$3:$BA$45,2))/2+IF(C65=2,VLOOKUP(E65,Pivots!$AX$3:$BA$45,3))/2+IF(C65=3,VLOOKUP(E65,Pivots!$AX$3:$BA$45,4))/2 -> 76 | G65: 13 | H65: =VLOOKUP(A65,Players!$A$2:$B$92,2,FALSE) -> Patrick Shields | I65: =VLOOKUP(B65,Players!A$2:$B$92,2,FALSE) -> Richard Chamberlain
A66: MW | B66: WA | C66: 2 | D66: 44 | E66: 6 | F66: =IF(C66=1,VLOOKUP(E66,Pivots!$AX$3:$BA$45,2))/2+IF(C66=2,VLOOKUP(E66,Pivots!$AX$3:$BA$45,3))/2+IF(C66=3,VLOOKUP(E66,Pivots!$AX$3:$BA$45,4))/2 -> 121 | G66: =IF(A66="","",D66-F66/4) -> 13.75 | H66: =VLOOKUP(A66,Players!$A$2:$B$92,2,FALSE) -> Mike Wignall | I66: =VLOOKUP(B66,Players!A$2:$B$92,2,FALSE) -> Wendy Angseesing
A67: IC | B67: VC | C67: 2 | D67: 38 | E67: 6 | F67: =IF(C67=1,VLOOKUP(E67,Pivots!$AX$3:$BA$45,2))/2+IF(C67=2,VLOOKUP(E67,Pivots!$AX$3:$BA$45,3))/2+IF(C67=3,VLOOKUP(E67,Pivots!$AX$3:$BA$45,4))/2 -> 121 | G67: 7.75 | H67: =VLOOKUP(A67,Players!$A$2:$B$92,2,FALSE) -> Ian Constable | I67: =VLOOKUP(B67,Players!A$2:$B$92,2,FALSE) -> Val Constable
A68: PPH | B68: JSI | C68: 2 | D68: 10 | E68: 6 | F68: =IF(C68=1,VLOOKUP(E68,Pivots!$AX$3:$BA$45,2))/2+IF(C68=2,VLOOKUP(E68,Pivots!$AX$3:$BA$45,3))/2+IF(C68=3,VLOOKUP(E68,Pivots!$AX$3:$BA$45,4))/2 -> 121 | G68: -20.25 | H68: =VLOOKUP(A68,Players!$A$2:$B$92,2,FALSE) -> Patrick Phair | I68: =VLOOKUP(B68,Players!A$2:$B$92,2,FALSE) -> Jim Simons
A69: TG | B69: RHA | C69: 2 | D69: 29 | E69: 6 | F69: =IF(C69=1,VLOOKUP(E69,Pivots!$AX$3:$BA$45,2))/2+IF(C69=2,VLOOKUP(E69,Pivots!$AX$3:$BA$45,3))/2+IF(C69=3,VLOOKUP(E69,Pivots!$AX$3:$BA$45,4))/2 -> 121 | G69: -1.25 | H69: =VLOOKUP(A69,Players!$A$2:$B$92,2,FALSE) -> Tricia Gilham | I69: =VLOOKUP(B69,Players!A$2:$B$92,2,FALSE) -> Richard Harris
A70: APR | B70: DA | C70: 3 | D70: 14 | E70: 6 | F70: =IF(C70=1,VLOOKUP(E70,Pivots!$AX$3:$BA$45,2))/2+IF(C70=2,VLOOKUP(E70,Pivots!$AX$3:$BA$45,3))/2+IF(C70=3,VLOOKUP(E70,Pivots!$AX$3:$BA$45,4))/2 -> 131 | G70: -18.75 | H70: =VLOOKUP(A70,Players!$A$2:$B$92,2,FALSE) -> Alison Pritchard | I70: =VLOOKUP(B70,Players!A$2:$B$92,2,FALSE) -> David Atthey
A71: RS | B71: TL | C71: 3 | D71: 41 | E71: 6 | F71: =IF(C71=1,VLOOKUP(E71,Pivots!$AX$3:$BA$45,2))/2+IF(C71=2,VLOOKUP(E71,Pivots!$AX$3:$BA$45,3))/2+IF(C71=3,VLOOKUP(E71,Pivots!$AX$3:$BA$45,4))/2 -> 131 | G71: 8.25 | H71: =VLOOKUP(A71,Players!$A$2:$B$92,2,FALSE) -> Roger Schofield | I71: =VLOOKUP(B71,Players!A$2:$B$92,2,FALSE) -> Tony Letts
A72: PW | B72: RJ | C72: 3 | D72: 32 | E72: 6 | F72: =IF(C72=1,VLOOKUP(E72,Pivots!$AX$3:$BA$45,2))/2+IF(C72=2,VLOOKUP(E72,Pivots!$AX$3:$BA$45,3))/2+IF(C72=3,VLOOKUP(E72,Pivots!$AX$3:$BA$45,4))/2 -> 131 | G72: -0.75 | H72: =VLOOKUP(A72,Players!$A$2:$B$92,2,FALSE) -> Peter Waggett | I72: =VLOOKUP(B72,Players!A$2:$B$92,2,FALSE) -> Roger Jackson
A73: JC | B73: MR | C73: 3 | D73: 44 | E73: 6 | F73: =IF(C73=1,VLOOKUP(E73,Pivots!$AX$3:$BA$45,2))/2+IF(C73=2,VLOOKUP(E73,Pivots!$AX$3:$BA$45,3))/2+IF(C73=3,VLOOKUP(E73,Pivots!$AX$3:$BA$45,4))/2 -> 131 | G73: 11.25 | H73: =VLOOKUP(A73,Players!$A$2:$B$92,2,FALSE) -> John Councer | I73: =VLOOKUP(B73,Players!A$2:$B$92,2,FALSE) -> Mark Rogers
A74: PSH | B74: RCM | C74: 1 | D74: 59 | E74: 7 | F74: =IF(C74=1,VLOOKUP(E74,Pivots!$AX$3:$BA$45,2))/2+IF(C74=2,VLOOKUP(E74,Pivots!$AX$3:$BA$45,3))/2+IF(C74=3,VLOOKUP(E74,Pivots!$AX$3:$BA$45,4))/2 -> 71 | G74: 41.25 | H74: =VLOOKUP(A74,Players!$A$2:$B$92,2,FALSE) -> Patrick Shields | I74: =VLOOKUP(B74,Players!A$2:$B$92,2,FALSE) -> Richard Chamberlain
A75: JAT | B75: CRO | C75: 1 | D75: 20 | E75: 7 | F75: =IF(C75=1,VLOOKUP(E75,Pivots!$AX$3:$BA$45,2))/2+IF(C75=2,VLOOKUP(E75,Pivots!$AX$3:$BA$45,3))/2+IF(C75=3,VLOOKUP(E75,Pivots!$AX$3:$BA$45,4))/2 -> 71 | G75: 2.25 | H75: =VLOOKUP(A75,Players!$A$2:$B$92,2,FALSE) -> John Atthey | I75: =VLOOKUP(B75,Players!A$2:$B$92,2,FALSE) -> Claire Robinson
A76: PD | B76: RPL | C76: 1 | D76: 11 | E76: 7 | F76: =IF(C76=1,VLOOKUP(E76,Pivots!$AX$3:$BA$45,2))/2+IF(C76=2,VLOOKUP(E76,Pivots!$AX$3:$BA$45,3))/2+IF(C76=3,VLOOKUP(E76,Pivots!$AX$3:$BA$45,4))/2 -> 71 | G76: -6.75 | H76: =VLOOKUP(A76,Players!$A$2:$B$92,2,FALSE) -> Paul Denning | I76: =VLOOKUP(B76,Players!A$2:$B$92,2,FALSE) -> Richard Plackett
A77: RB | B77: KST | C77: 1 | D77: -19 | E77: 7 | F77: =IF(C77=1,VLOOKUP(E77,Pivots!$AX$3:$BA$45,2))/2+IF(C77=2,VLOOKUP(E77,Pivots!$AX$3:$BA$45,3))/2+IF(C77=3,VLOOKUP(E77,Pivots!$AX$3:$BA$45,4))/2 -> 71 | G77: -36.75 | H77: =VLOOKUP(A77,Players!$A$2:$B$92,2,FALSE) -> Richard Butland | I77: =VLOOKUP(B77,Players!A$2:$B$92,2,FALSE) -> Keith Stanley
A78: JC | B78: MR | C78: 2 | D78: 4 | E78: 7 | F78: =IF(C78=1,VLOOKUP(E78,Pivots!$AX$3:$BA$45,2))/2+IF(C78=2,VLOOKUP(E78,Pivots!$AX$3:$BA$45,3))/2+IF(C78=3,VLOOKUP(E78,Pivots!$AX$3:$BA$45,4))/2 -> -32 | G78: 12 | H78: =VLOOKUP(A78,Players!$A$2:$B$92,2,FALSE) -> John Councer | I78: =VLOOKUP(B78,Players!A$2:$B$92,2,FALSE) -> Mark Rogers
A79: MB | B79: JAR | C79: 2 | D79: 0 | E79: 7 | F79: =IF(C79=1,VLOOKUP(E79,Pivots!$AX$3:$BA$45,2))/2+IF(C79=2,VLOOKUP(E79,Pivots!$AX$3:$BA$45,3))/2+IF(C79=3,VLOOKUP(E79,Pivots!$AX$3:$BA$45,4))/2 -> -32 | G79: 8 | H79: =VLOOKUP(A79,Players!$A$2:$B$92,2,FALSE) -> Mel Barlow | I79: =VLOOKUP(B79,Players!A$2:$B$92,2,FALSE) -> John Arblaster
A80: DN | B80: BY | C80: 2 | D80: -2 | E80: 7 | F80: =IF(C80=1,VLOOKUP(E80,Pivots!$AX$3:$BA$45,2))/2+IF(C80=2,VLOOKUP(E80,Pivots!$AX$3:$BA$45,3))/2+IF(C80=3,VLOOKUP(E80,Pivots!$AX$3:$BA$45,4))/2 -> -32 | G80: 6 | H80: =VLOOKUP(A80,Players!$A$2:$B$92,2,FALSE) -> Diana Nettleton | I80: =VLOOKUP(B80,Players!A$2:$B$92,2,FALSE) -> Bryony Youngs
A81: PPH | B81: JSI | C81: 2 | D81: -34 | E81: 7 | F81: =IF(C81=1,VLOOKUP(E81,Pivots!$AX$3:$BA$45,2))/2+IF(C81=2,VLOOKUP(E81,Pivots!$AX$3:$BA$45,3))/2+IF(C81=3,VLOOKUP(E81,Pivots!$AX$3:$BA$45,4))/2 -> -32 | G81: -26 | H81: =VLOOKUP(A81,Players!$A$2:$B$92,2,FALSE) -> Patrick Phair | I81: =VLOOKUP(B81,Players!A$2:$B$92,2,FALSE) -> Jim Simons
A82: APR | B82: DA | C82: 3 | D82: 17 | E82: 7 | F82: =IF(C82=1,VLOOKUP(E82,Pivots!$AX$3:$BA$45,2))/2+IF(C82=2,VLOOKUP(E82,Pivots!$AX$3:$BA$45,3))/2+IF(C82=3,VLOOKUP(E82,Pivots!$AX$3:$BA$45,4))/2 -> -35 | G82: 25.75 | H82: =VLOOKUP(A82,Players!$A$2:$B$92,2,FALSE) -> Alison Pritchard | I82: =VLOOKUP(B82,Players!A$2:$B$92,2,FALSE) -> David Atthey
A83: IC | B83: VC | C83: 3 | D83: -6 | E83: 7 | F83: =IF(C83=1,VLOOKUP(E83,Pivots!$AX$3:$BA$45,2))/2+IF(C83=2,VLOOKUP(E83,Pivots!$AX$3:$BA$45,3))/2+IF(C83=3,VLOOKUP(E83,Pivots!$AX$3:$BA$45,4))/2 -> -35 | G83: 2.75 | H83: =VLOOKUP(A83,Players!$A$2:$B$92,2,FALSE) -> Ian Constable | I83: =VLOOKUP(B83,Players!A$2:$B$92,2,FALSE) -> Val Constable
A84: AKA | B84: LH | C84: 3 | D84: -38 | E84: 7 | F84: =IF(C84=1,VLOOKUP(E84,Pivots!$AX$3:$BA$45,2))/2+IF(C84=2,VLOOKUP(E84,Pivots!$AX$3:$BA$45,3))/2+IF(C84=3,VLOOKUP(E84,Pivots!$AX$3:$BA$45,4))/2 -> -35 | G84: -29.25 | H84: =VLOOKUP(A84,Players!$A$2:$B$92,2,FALSE) -> Ashok Kwatra | I84: =VLOOKUP(B84,Players!A$2:$B$92,2,FALSE) -> Lesley Harrison
A85: PW | B85: RJ | C85: 3 | D85: -8 | E85: 7 | F85: =IF(C85=1,VLOOKUP(E85,Pivots!$AX$3:$BA$45,2))/2+IF(C85=2,VLOOKUP(E85,Pivots!$AX$3:$BA$45,3))/2+IF(C85=3,VLOOKUP(E85,Pivots!$AX$3:$BA$45,4))/2 -> -35 | G85: 0.75 | H85: =VLOOKUP(A85,Players!$A$2:$B$92,2,FALSE) -> Peter Waggett | I85: =VLOOKUP(B85,Players!A$2:$B$92,2,FALSE) -> Roger Jackson
A86: RB | B86: GW | C86: 1 | D86: -11 | E86: 11 | F86: =IF(C86=1,VLOOKUP(E86,Pivots!$AX$3:$BA$45,2))/2+IF(C86=2,VLOOKUP(E86,Pivots!$AX$3:$BA$45,3))/2+IF(C86=3,VLOOKUP(E86,Pivots!$AX$3:$BA$45,4))/2 -> -1 | G86: -10.75 | H86: =VLOOKUP(A86,Players!$A$2:$B$92,2,FALSE) -> Richard Butland | I86: =VLOOKUP(B86,Players!A$2:$B$92,2,FALSE) -> Gary Watson
A87: PSH | B87: RCM | C87: 1 | D87: 12 | E87: =E86 -> 11 | F87: =IF(C87=1,VLOOKUP(E87,Pivots!$AX$3:$BA$45,2))/2+IF(C87=2,VLOOKUP(E87,Pivots!$AX$3:$BA$45,3))/2+IF(C87=3,VLOOKUP(E87,Pivots!$AX$3:$BA$45,4))/2 -> -1 | G87: 12.25 | H87: =VLOOKUP(A87,Players!$A$2:$B$92,2,FALSE) -> Patrick Shields | I87: =VLOOKUP(B87,Players!A$2:$B$92,2,FALSE) -> Richard Chamberlain
A88: PD | B88: RPL | C88: 1 | D88: 5 | E88: =E87 -> 11 | F88: =IF(C88=1,VLOOKUP(E88,Pivots!$AX$3:$BA$45,2))/2+IF(C88=2,VLOOKUP(E88,Pivots!$AX$3:$BA$45,3))/2+IF(C88=3,VLOOKUP(E88,Pivots!$AX$3:$BA$45,4))/2 -> -1 | G88: 5.25 | H88: =VLOOKUP(A88,Players!$A$2:$B$92,2,FALSE) -> Paul Denning | I88: =VLOOKUP(B88,Players!A$2:$B$92,2,FALSE) -> Richard Plackett
A89: JC | B89: MR | C89: 1 | D89: -7 | E89: 11 | F89: =IF(C89=1,VLOOKUP(E89,Pivots!$AX$3:$BA$45,2))/2+IF(C89=2,VLOOKUP(E89,Pivots!$AX$3:$BA$45,3))/2+IF(C89=3,VLOOKUP(E89,Pivots!$AX$3:$BA$45,4))/2 -> -1 | G89: -6.75 | H89: =VLOOKUP(A89,Players!$A$2:$B$92,2,FALSE) -> John Councer | I89: =VLOOKUP(B89,Players!A$2:$B$92,2,FALSE) -> Mark Rogers
A90: JSI | B90: PPH | C90: 2 | D90: 3 | E90: 11 | F90: =IF(C90=1,VLOOKUP(E90,Pivots!$AX$3:$BA$45,2))/2+IF(C90=2,VLOOKUP(E90,Pivots!$AX$3:$BA$45,3))/2+IF(C90=3,VLOOKUP(E90,Pivots!$AX$3:$BA$45,4))/2 -> 6 | G90: 1.5 | H90: =VLOOKUP(A90,Players!$A$2:$B$92,2,FALSE) -> Jim Simons | I90: =VLOOKUP(B90,Players!A$2:$B$92,2,FALSE) -> Patrick Phair
A91: RCO | B91: PPE | C91: 2 | D91: 13 | E91: 11 | F91: =IF(C91=1,VLOOKUP(E91,Pivots!$AX$3:$BA$45,2))/2+IF(C91=2,VLOOKUP(E91,Pivots!$AX$3:$BA$45,3))/2+IF(C91=3,VLOOKUP(E91,Pivots!$AX$3:$BA$45,4))/2 -> 6 | G91: 11.5 | H91: =VLOOKUP(A91,Players!$A$2:$B$92,2,FALSE) -> Roy Collard | I91: =VLOOKUP(B91,Players!A$2:$B$92,2,FALSE) -> Pam Pearce
A92: TG | B92: RHA | C92: 2 | D92: -4 | E92: 11 | F92: =IF(C92=1,VLOOKUP(E92,Pivots!$AX$3:$BA$45,2))/2+IF(C92=2,VLOOKUP(E92,Pivots!$AX$3:$BA$45,3))/2+IF(C92=3,VLOOKUP(E92,Pivots!$AX$3:$BA$45,4))/2 -> 6 | G92: -5.5 | H92: =VLOOKUP(A92,Players!$A$2:$B$92,2,FALSE) -> Tricia Gilham | I92: =VLOOKUP(B92,Players!A$2:$B$92,2,FALSE) -> Richard Harris
A93: PW | B93: MW | C93: 2 | D93: -6 | E93: 11 | F93: =IF(C93=1,VLOOKUP(E93,Pivots!$AX$3:$BA$45,2))/2+IF(C93=2,VLOOKUP(E93,Pivots!$AX$3:$BA$45,3))/2+IF(C93=3,VLOOKUP(E93,Pivots!$AX$3:$BA$45,4))/2 -> 6 | G93: -7.5 | H93: =VLOOKUP(A93,Players!$A$2:$B$92,2,FALSE) -> Peter Waggett | I93: =VLOOKUP(B93,Players!A$2:$B$92,2,FALSE) -> Mike Wignall
A94: RS | B94: TL | C94: 3 | D94: 63 | E94: 11 | F94: =IF(C94=1,VLOOKUP(E94,Pivots!$AX$3:$BA$45,2))/2+IF(C94=2,VLOOKUP(E94,Pivots!$AX$3:$BA$45,3))/2+IF(C94=3,VLOOKUP(E94,Pivots!$AX$3:$BA$45,4))/2 -> 108 | G94: 36 | H94: =VLOOKUP(A94,Players!$A$2:$B$92,2,FALSE) -> Roger Schofield | I94: =VLOOKUP(B94,Players!A$2:$B$92,2,FALSE) -> Tony Letts
A95: JUS | B95: AS | C95: 3 | D95: 5 | E95: 11 | F95: =IF(C95=1,VLOOKUP(E95,Pivots!$AX$3:$BA$45,2))/2+IF(C95=2,VLOOKUP(E95,Pivots!$AX$3:$BA$45,3))/2+IF(C95=3,VLOOKUP(E95,Pivots!$AX$3:$BA$45,4))/2 -> 108 | G95: -22 | H95: =VLOOKUP(A95,Players!$A$2:$B$92,2,FALSE) -> Judy Sanis | I95: =VLOOKUP(B95,Players!A$2:$B$92,2,FALSE) -> Allan Sanis
A96: LH | B96: AKA | C96: 3 | D96: 5 | E96: 11 | F96: =IF(C96=1,VLOOKUP(E96,Pivots!$AX$3:$BA$45,2))/2+IF(C96=2,VLOOKUP(E96,Pivots!$AX$3:$BA$45,3))/2+IF(C96=3,VLOOKUP(E96,Pivots!$AX$3:$BA$45,4))/2 -> 108 | G96: -22 | H96: =VLOOKUP(A96,Players!$A$2:$B$92,2,FALSE) -> Lesley Harrison | I96: =VLOOKUP(B96,Players!A$2:$B$92,2,FALSE) -> Ashok Kwatra
A97: PL | B97: PSW | C97: 3 | D97: 35 | E97: 11 | F97: =IF(C97=1,VLOOKUP(E97,Pivots!$AX$3:$BA$45,2))/2+IF(C97=2,VLOOKUP(E97,Pivots!$AX$3:$BA$45,3))/2+IF(C97=3,VLOOKUP(E97,Pivots!$AX$3:$BA$45,4))/2 -> 108 | G97: 8 | H97: =VLOOKUP(A97,Players!$A$2:$B$92,2,FALSE) -> Paul Lilley | I97: =VLOOKUP(B97,Players!A$2:$B$92,2,FALSE) -> Peter Swales
A98: RPL | B98: PD | C98: 1 | D98: 44.6 | E98: =E86+1 -> 12 | F98: =IF(C98=1,VLOOKUP(E98,Pivots!$AX$3:$BA$45,2))/2+IF(C98=2,VLOOKUP(E98,Pivots!$AX$3:$BA$45,3))/2+IF(C98=3,VLOOKUP(E98,Pivots!$AX$3:$BA$45,4))/2 -> 99.87 | G98: 19.6325 | H98: =VLOOKUP(A98,Players!$A$2:$B$92,2,FALSE) -> Richard Plackett | I98: =VLOOKUP(B98,Players!A$2:$B$92,2,FALSE) -> Paul Denning
A99: GW | B99: RB | C99: 1 | D99: 9.54 | E99: =E98 -> 12 | F99: =IF(C99=1,VLOOKUP(E99,Pivots!$AX$3:$BA$45,2))/2+IF(C99=2,VLOOKUP(E99,Pivots!$AX$3:$BA$45,3))/2+IF(C99=3,VLOOKUP(E99,Pivots!$AX$3:$BA$45,4))/2 -> 99.87 | G99: -15.4275 | H99: =VLOOKUP(A99,Players!$A$2:$B$92,2,FALSE) -> Gary Watson | I99: =VLOOKUP(B99,Players!A$2:$B$92,2,FALSE) -> Richard Butland
A100: RCM | B100: PSH | C100: 1 | D100: 28.66 | E100: =E99 -> 12 | F100: =IF(C100=1,VLOOKUP(E100,Pivots!$AX$3:$BA$45,2))/2+IF(C100=2,VLOOKUP(E100,Pivots!$AX$3:$BA$45,3))/2+IF(C100=3,VLOOKUP(E100,Pivots!$AX$3:$BA$45,4))/2 -> 99.87 | G100: 3.6925 | H100: =VLOOKUP(A100,Players!$A$2:$B$92,2,FALSE) -> Richard Chamberlain | I100: =VLOOKUP(B100,Players!A$2:$B$92,2,FALSE) -> Patrick Shields
A101: JAT | B101: CRO | C101: 1 | D101: 17.07 | E101: 12 | F101: =IF(C101=1,VLOOKUP(E101,Pivots!$AX$3:$BA$45,2))/2+IF(C101=2,VLOOKUP(E101,Pivots!$AX$3:$BA$45,3))/2+IF(C101=3,VLOOKUP(E101,Pivots!$AX$3:$BA$45,4))/2 -> 99.87 | G101: -7.8975 | H101: =VLOOKUP(A101,Players!$A$2:$B$92,2,FALSE) -> John Atthey | I101: =VLOOKUP(B101,Players!A$2:$B$92,2,FALSE) -> Claire Robinson
A102: JAN | B102: KST | C102: 2 | D102: 29.45 | E102: 12 | F102: =IF(C102=1,VLOOKUP(E102,Pivots!$AX$3:$BA$45,2))/2+IF(C102=2,VLOOKUP(E102,Pivots!$AX$3:$BA$45,3))/2+IF(C102=3,VLOOKUP(E102,Pivots!$AX$3:$BA$45,4))/2 -> 8.91 | G102: 27.2225 | H102: =VLOOKUP(A102,Players!$A$2:$B$92,2,FALSE) -> Joe Angseesing | I102: =VLOOKUP(B102,Players!A$2:$B$92,2,FALSE) -> Keith Stanley
A103: JC | B103: MR | C103: 2 | D103: 6.53 | E103: 12 | F103: =IF(C103=1,VLOOKUP(E103,Pivots!$AX$3:$BA$45,2))/2+IF(C103=2,VLOOKUP(E103,Pivots!$AX$3:$BA$45,3))/2+IF(C103=3,VLOOKUP(E103,Pivots!$AX$3:$BA$45,4))/2 -> 8.91 | G103: 4.3025 | H103: =VLOOKUP(A103,Players!$A$2:$B$92,2,FALSE) -> John Councer | I103: =VLOOKUP(B103,Players!A$2:$B$92,2,FALSE) -> Mark Rogers
A104: PPH | B104: JSI | C104: 2 | D104: -9.26 | E104: 12 | F104: =IF(C104=1,VLOOKUP(E104,Pivots!$AX$3:$BA$45,2))/2+IF(C104=2,VLOOKUP(E104,Pivots!$AX$3:$BA$45,3))/2+IF(C104=3,VLOOKUP(E104,Pivots!$AX$3:$BA$45,4))/2 -> 8.91 | G104: -11.4875 | H104: =VLOOKUP(A104,Players!$A$2:$B$92,2,FALSE) -> Patrick Phair | I104: =VLOOKUP(B104,Players!A$2:$B$92,2,FALSE) -> Jim Simons
A105: WA | B105: MW | C105: 2 | D105: -17.81 | E105: 12 | F105: =IF(C105=1,VLOOKUP(E105,Pivots!$AX$3:$BA$45,2))/2+IF(C105=2,VLOOKUP(E105,Pivots!$AX$3:$BA$45,3))/2+IF(C105=3,VLOOKUP(E105,Pivots!$AX$3:$BA$45,4))/2 -> 8.91 | G105: -20.0375 | H105: =VLOOKUP(A105,Players!$A$2:$B$92,2,FALSE) -> Wendy Angseesing | I105: =VLOOKUP(B105,Players!A$2:$B$92,2,FALSE) -> Mike Wignall
A106: RS | B106: TL | C106: 3 | D106: -29.16 | E106: 12 | F106: =IF(C106=1,VLOOKUP(E106,Pivots!$AX$3:$BA$45,2))/2+IF(C106=2,VLOOKUP(E106,Pivots!$AX$3:$BA$45,3))/2+IF(C106=3,VLOOKUP(E106,Pivots!$AX$3:$BA$45,4))/2 -> -35.25 | G106: -20.3475 | H106: =VLOOKUP(A106,Players!$A$2:$B$92,2,FALSE) -> Roger Schofield | I106: =VLOOKUP(B106,Players!A$2:$B$92,2,FALSE) -> Tony Letts
A107: TG | B107: RHA | C107: 3 | D107: -0.26 | E107: 12 | F107: =IF(C107=1,VLOOKUP(E107,Pivots!$AX$3:$BA$45,2))/2+IF(C107=2,VLOOKUP(E107,Pivots!$AX$3:$BA$45,3))/2+IF(C107=3,VLOOKUP(E107,Pivots!$AX$3:$BA$45,4))/2 -> -35.25 | G107: 8.5525 | H107: =VLOOKUP(A107,Players!$A$2:$B$92,2,FALSE) -> Tricia Gilham | I107: =VLOOKUP(B107,Players!A$2:$B$92,2,FALSE) -> Richard Harris
A108: KAS | B108: RW | C108: 3 | D108: -7.38 | E108: 12 | F108: =IF(C108=1,VLOOKUP(E108,Pivots!$AX$3:$BA$45,2))/2+IF(C108=2,VLOOKUP(E108,Pivots!$AX$3:$BA$45,3))/2+IF(C108=3,VLOOKUP(E108,Pivots!$AX$3:$BA$45,4))/2 -> -35.25 | G108: 1.4325 | H108: =VLOOKUP(A108,Players!$A$2:$B$92,2,FALSE) -> Anne Swannell | I108: =VLOOKUP(B108,Players!A$2:$B$92,2,FALSE) -> Roger Williams
A109: PW | B109: RJ | C109: 3 | D109: 1.55 | E109: 12 | F109: =IF(C109=1,VLOOKUP(E109,Pivots!$AX$3:$BA$45,2))/2+IF(C109=2,VLOOKUP(E109,Pivots!$AX$3:$BA$45,3))/2+IF(C109=3,VLOOKUP(E109,Pivots!$AX$3:$BA$45,4))/2 -> -35.25 | G109: 10.3625 | H109: =VLOOKUP(A109,Players!$A$2:$B$92,2,FALSE) -> Peter Waggett | I109: =VLOOKUP(B109,Players!A$2:$B$92,2,FALSE) -> Roger Jackson
A110: PD | B110: RPL | C110: 1 | D110: 43 | E110: =E98+1 -> 13 | F110: =IF(C110=1,VLOOKUP(E110,Pivots!$AX$3:$BA$45,2))/2+IF(C110=2,VLOOKUP(E110,Pivots!$AX$3:$BA$45,3))/2+IF(C110=3,VLOOKUP(E110,Pivots!$AX$3:$BA$45,4))/2 -> 69 | G110: 25.75 | H110: =VLOOKUP(A110,Players!$A$2:$B$92,2,FALSE) -> Paul Denning | I110: =VLOOKUP(B110,Players!A$2:$B$92,2,FALSE) -> Richard Plackett
A111: PSH | B111: RCM | C111: 1 | D111: 28 | E111: =E110 -> 13 | F111: =IF(C111=1,VLOOKUP(E111,Pivots!$AX$3:$BA$45,2))/2+IF(C111=2,VLOOKUP(E111,Pivots!$AX$3:$BA$45,3))/2+IF(C111=3,VLOOKUP(E111,Pivots!$AX$3:$BA$45,4))/2 -> 69 | G111: 10.75 | H111: =VLOOKUP(A111,Players!$A$2:$B$92,2,FALSE) -> Patrick Shields | I111: =VLOOKUP(B111,Players!A$2:$B$92,2,FALSE) -> Richard Chamberlain
A112: GW | B112: RB | C112: 1 | D112: 26 | E112: =E111 -> 13 | F112: =IF(C112=1,VLOOKUP(E112,Pivots!$AX$3:$BA$45,2))/2+IF(C112=2,VLOOKUP(E112,Pivots!$AX$3:$BA$45,3))/2+IF(C112=3,VLOOKUP(E112,Pivots!$AX$3:$BA$45,4))/2 -> 69 | G112: 8.75 | H112: =VLOOKUP(A112,Players!$A$2:$B$92,2,FALSE) -> Gary Watson | I112: =VLOOKUP(B112,Players!A$2:$B$92,2,FALSE) -> Richard Butland
A113: JAN | B113: KST | C113: 1 | D113: -28 | E113: 13 | F113: =IF(C113=1,VLOOKUP(E113,Pivots!$AX$3:$BA$45,2))/2+IF(C113=2,VLOOKUP(E113,Pivots!$AX$3:$BA$45,3))/2+IF(C113=3,VLOOKUP(E113,Pivots!$AX$3:$BA$45,4))/2 -> 69 | G113: -45.25 | H113: =VLOOKUP(A113,Players!$A$2:$B$92,2,FALSE) -> Joe Angseesing | I113: =VLOOKUP(B113,Players!A$2:$B$92,2,FALSE) -> Keith Stanley
A114: TG | B114: RHA | C114: 2 | D114: 42 | E114: 13 | F114: =IF(C114=1,VLOOKUP(E114,Pivots!$AX$3:$BA$45,2))/2+IF(C114=2,VLOOKUP(E114,Pivots!$AX$3:$BA$45,3))/2+IF(C114=3,VLOOKUP(E114,Pivots!$AX$3:$BA$45,4))/2 -> 99 | G114: 17.25 | H114: =VLOOKUP(A114,Players!$A$2:$B$92,2,FALSE) -> Tricia Gilham | I114: =VLOOKUP(B114,Players!A$2:$B$92,2,FALSE) -> Richard Harris
A115: MB | B115: JAR | C115: 2 | D115: 30 | E115: 13 | F115: =IF(C115=1,VLOOKUP(E115,Pivots!$AX$3:$BA$45,2))/2+IF(C115=2,VLOOKUP(E115,Pivots!$AX$3:$BA$45,3))/2+IF(C115=3,VLOOKUP(E115,Pivots!$AX$3:$BA$45,4))/2 -> 99 | G115: 5.25 | H115: =VLOOKUP(A115,Players!$A$2:$B$92,2,FALSE) -> Mel Barlow | I115: =VLOOKUP(B115,Players!A$2:$B$92,2,FALSE) -> John Arblaster
A116: MR | B116: JC | C116: 2 | D116: 21 | E116: 13 | F116: =IF(C116=1,VLOOKUP(E116,Pivots!$AX$3:$BA$45,2))/2+IF(C116=2,VLOOKUP(E116,Pivots!$AX$3:$BA$45,3))/2+IF(C116=3,VLOOKUP(E116,Pivots!$AX$3:$BA$45,4))/2 -> 99 | G116: -3.75 | H116: =VLOOKUP(A116,Players!$A$2:$B$92,2,FALSE) -> Mark Rogers | I116: =VLOOKUP(B116,Players!A$2:$B$92,2,FALSE) -> John Councer
A117: WA | B117: MW | C117: 2 | D117: 6 | E117: 13 | F117: =IF(C117=1,VLOOKUP(E117,Pivots!$AX$3:$BA$45,2))/2+IF(C117=2,VLOOKUP(E117,Pivots!$AX$3:$BA$45,3))/2+IF(C117=3,VLOOKUP(E117,Pivots!$AX$3:$BA$45,4))/2 -> 99 | G117: -18.75 | H117: =VLOOKUP(A117,Players!$A$2:$B$92,2,FALSE) -> Wendy Angseesing | I117: =VLOOKUP(B117,Players!A$2:$B$92,2,FALSE) -> Mike Wignall
A118: Pl | B118: PSW | C118: 3 | D118: 50 | E118: 13 | F118: =IF(C118=1,VLOOKUP(E118,Pivots!$AX$3:$BA$45,2))/2+IF(C118=2,VLOOKUP(E118,Pivots!$AX$3:$BA$45,3))/2+IF(C118=3,VLOOKUP(E118,Pivots!$AX$3:$BA$45,4))/2 -> 131 | G118: 17.25 | H118: =VLOOKUP(A118,Players!$A$2:$B$92,2,FALSE) -> Paul Lilley | I118: =VLOOKUP(B118,Players!A$2:$B$92,2,FALSE) -> Peter Swales
A119: PW | B119: RJ | C119: 3 | D119: 32 | E119: 13 | F119: =IF(C119=1,VLOOKUP(E119,Pivots!$AX$3:$BA$45,2))/2+IF(C119=2,VLOOKUP(E119,Pivots!$AX$3:$BA$45,3))/2+IF(C119=3,VLOOKUP(E119,Pivots!$AX$3:$BA$45,4))/2 -> 131 | G119: -0.75 | H119: =VLOOKUP(A119,Players!$A$2:$B$92,2,FALSE) -> Peter Waggett | I119: =VLOOKUP(B119,Players!A$2:$B$92,2,FALSE) -> Roger Jackson
A120: KAS | B120: RW | C120: 3 | D120: 22 | E120: 13 | F120: =IF(C120=1,VLOOKUP(E120,Pivots!$AX$3:$BA$45,2))/2+IF(C120=2,VLOOKUP(E120,Pivots!$AX$3:$BA$45,3))/2+IF(C120=3,VLOOKUP(E120,Pivots!$AX$3:$BA$45,4))/2 -> 131 | G120: -10.75 | H120: =VLOOKUP(A120,Players!$A$2:$B$92,2,FALSE) -> Anne Swannell | I120: =VLOOKUP(B120,Players!A$2:$B$92,2,FALSE) -> Roger Williams
A121: TL | B121: RS | C121: 3 | D121: 27 | E121: 13 | F121: =IF(C121=1,VLOOKUP(E121,Pivots!$AX$3:$BA$45,2))/2+IF(C121=2,VLOOKUP(E121,Pivots!$AX$3:$BA$45,3))/2+IF(C121=3,VLOOKUP(E121,Pivots!$AX$3:$BA$45,4))/2 -> 131 | G121: -5.75 | H121: =VLOOKUP(A121,Players!$A$2:$B$92,2,FALSE) -> Tony Letts | I121: =VLOOKUP(B121,Players!A$2:$B$92,2,FALSE) -> Roger Schofield
A122: PD | B122: RPL | C122: 1 | D122: 49 | E122: =E110+1 -> 14 | F122: =IF(C122=1,VLOOKUP(E122,Pivots!$AX$3:$BA$45,2))/2+IF(C122=2,VLOOKUP(E122,Pivots!$AX$3:$BA$45,3))/2+IF(C122=3,VLOOKUP(E122,Pivots!$AX$3:$BA$45,4))/2 -> 121 | G122: 18.75 | H122: =VLOOKUP(A122,Players!$A$2:$B$92,2,FALSE) -> Paul Denning | I122: =VLOOKUP(B122,Players!A$2:$B$92,2,FALSE) -> Richard Plackett
A123: PSH | B123: RCM | C123: 1 | D123: 29 | E123: =E122 -> 14 | F123: =IF(C123=1,VLOOKUP(E123,Pivots!$AX$3:$BA$45,2))/2+IF(C123=2,VLOOKUP(E123,Pivots!$AX$3:$BA$45,3))/2+IF(C123=3,VLOOKUP(E123,Pivots!$AX$3:$BA$45,4))/2 -> 121 | G123: -1.25 | H123: =VLOOKUP(A123,Players!$A$2:$B$92,2,FALSE) -> Patrick Shields | I123: =VLOOKUP(B123,Players!A$2:$B$92,2,FALSE) -> Richard Chamberlain
A124: JAN | B124: KST | C124: 1 | D124: 23 | E124: =E123 -> 14 | F124: =IF(C124=1,VLOOKUP(E124,Pivots!$AX$3:$BA$45,2))/2+IF(C124=2,VLOOKUP(E124,Pivots!$AX$3:$BA$45,3))/2+IF(C124=3,VLOOKUP(E124,Pivots!$AX$3:$BA$45,4))/2 -> 121 | G124: -7.25 | H124: =VLOOKUP(A124,Players!$A$2:$B$92,2,FALSE) -> Joe Angseesing | I124: =VLOOKUP(B124,Players!A$2:$B$92,2,FALSE) -> Keith Stanley
A125: RB | B125: GW | C125: 1 | D125: 20 | E125: 14 | F125: =IF(C125=1,VLOOKUP(E125,Pivots!$AX$3:$BA$45,2))/2+IF(C125=2,VLOOKUP(E125,Pivots!$AX$3:$BA$45,3))/2+IF(C125=3,VLOOKUP(E125,Pivots!$AX$3:$BA$45,4))/2 -> 121 | G125: -10.25 | H125: =VLOOKUP(A125,Players!$A$2:$B$92,2,FALSE) -> Richard Butland | I125: =VLOOKUP(B125,Players!A$2:$B$92,2,FALSE) -> Gary Watson
A126: PPH | B126: JSI | C126: 2 | D126: 23 | E126: 14 | F126: =IF(C126=1,VLOOKUP(E126,Pivots!$AX$3:$BA$45,2))/2+IF(C126=2,VLOOKUP(E126,Pivots!$AX$3:$BA$45,3))/2+IF(C126=3,VLOOKUP(E126,Pivots!$AX$3:$BA$45,4))/2 -> 30 | G126: 15.5 | H126: =VLOOKUP(A126,Players!$A$2:$B$92,2,FALSE) -> Patrick Phair | I126: =VLOOKUP(B126,Players!A$2:$B$92,2,FALSE) -> Jim Simons
A127: RCO | B127: PPE | C127: 2 | D127: 9 | E127: 14 | F127: =IF(C127=1,VLOOKUP(E127,Pivots!$AX$3:$BA$45,2))/2+IF(C127=2,VLOOKUP(E127,Pivots!$AX$3:$BA$45,3))/2+IF(C127=3,VLOOKUP(E127,Pivots!$AX$3:$BA$45,4))/2 -> 30 | G127: 1.5 | H127: =VLOOKUP(A127,Players!$A$2:$B$92,2,FALSE) -> Roy Collard | I127: =VLOOKUP(B127,Players!A$2:$B$92,2,FALSE) -> Pam Pearce
A128: MR | B128: JC | C128: 2 | D128: 1 | E128: 14 | F128: =IF(C128=1,VLOOKUP(E128,Pivots!$AX$3:$BA$45,2))/2+IF(C128=2,VLOOKUP(E128,Pivots!$AX$3:$BA$45,3))/2+IF(C128=3,VLOOKUP(E128,Pivots!$AX$3:$BA$45,4))/2 -> 30 | G128: -6.5 | H128: =VLOOKUP(A128,Players!$A$2:$B$92,2,FALSE) -> Mark Rogers | I128: =VLOOKUP(B128,Players!A$2:$B$92,2,FALSE) -> John Councer
A129: WA | B129: MW | C129: 2 | D129: -3 | E129: 14 | F129: =IF(C129=1,VLOOKUP(E129,Pivots!$AX$3:$BA$45,2))/2+IF(C129=2,VLOOKUP(E129,Pivots!$AX$3:$BA$45,3))/2+IF(C129=3,VLOOKUP(E129,Pivots!$AX$3:$BA$45,4))/2 -> 30 | G129: -10.5 | H129: =VLOOKUP(A129,Players!$A$2:$B$92,2,FALSE) -> Wendy Angseesing | I129: =VLOOKUP(B129,Players!A$2:$B$92,2,FALSE) -> Mike Wignall
A130: PL | B130: PSW | C130: 3 | D130: 37 | E130: 14 | F130: =IF(C130=1,VLOOKUP(E130,Pivots!$AX$3:$BA$45,2))/2+IF(C130=2,VLOOKUP(E130,Pivots!$AX$3:$BA$45,3))/2+IF(C130=3,VLOOKUP(E130,Pivots!$AX$3:$BA$45,4))/2 -> 93 | G130: =IF(A130="","",D130-F130/4) -> 13.75 | H130: =VLOOKUP(A130,Players!$A$2:$B$92,2,FALSE) -> Paul Lilley | I130: =VLOOKUP(B130,Players!A$2:$B$92,2,FALSE) -> Peter Swales
A131: PW | B131: RJ | C131: 3 | D131: 36 | E131: 14 | F131: =IF(C131=1,VLOOKUP(E131,Pivots!$AX$3:$BA$45,2))/2+IF(C131=2,VLOOKUP(E131,Pivots!$AX$3:$BA$45,3))/2+IF(C131=3,VLOOKUP(E131,Pivots!$AX$3:$BA$45,4))/2 -> 93 | G131: 12.75 | H131: =VLOOKUP(A131,Players!$A$2:$B$92,2,FALSE) -> Peter Waggett | I131: =VLOOKUP(B131,Players!A$2:$B$92,2,FALSE) -> Roger Jackson
A132: AKA | B132: LH | C132: 3 | D132: 12 | E132: 14 | F132: =IF(C132=1,VLOOKUP(E132,Pivots!$AX$3:$BA$45,2))/2+IF(C132=2,VLOOKUP(E132,Pivots!$AX$3:$BA$45,3))/2+IF(C132=3,VLOOKUP(E132,Pivots!$AX$3:$BA$45,4))/2 -> 93 | G132: -11.25 | H132: =VLOOKUP(A132,Players!$A$2:$B$92,2,FALSE) -> Ashok Kwatra | I132: =VLOOKUP(B132,Players!A$2:$B$92,2,FALSE) -> Lesley Harrison
A133: APR | B133: DA | C133: 3 | D133: 8 | E133: 14 | F133: =IF(C133=1,VLOOKUP(E133,Pivots!$AX$3:$BA$45,2))/2+IF(C133=2,VLOOKUP(E133,Pivots!$AX$3:$BA$45,3))/2+IF(C133=3,VLOOKUP(E133,Pivots!$AX$3:$BA$45,4))/2 -> 93 | G133: -15.25 | H133: =VLOOKUP(A133,Players!$A$2:$B$92,2,FALSE) -> Alison Pritchard | I133: =VLOOKUP(B133,Players!A$2:$B$92,2,FALSE) -> David Atthey
A134: PSH | B134: PD | C134: 1 | D134: 49 | E134: =E122+1 -> 15 | F134: =IF(C134=1,VLOOKUP(E134,Pivots!$AX$3:$BA$45,2))/2+IF(C134=2,VLOOKUP(E134,Pivots!$AX$3:$BA$45,3))/2+IF(C134=3,VLOOKUP(E134,Pivots!$AX$3:$BA$45,4))/2 -> 57 | G134: 34.75 | H134: =VLOOKUP(A134,Players!$A$2:$B$92,2,FALSE) -> Patrick Shields | I134: =VLOOKUP(B134,Players!A$2:$B$92,2,FALSE) -> Paul Denning
A135: JAN | B135: KST | C135: 1 | D135: 16 | E135: =E134 -> 15 | F135: =IF(C135=1,VLOOKUP(E135,Pivots!$AX$3:$BA$45,2))/2+IF(C135=2,VLOOKUP(E135,Pivots!$AX$3:$BA$45,3))/2+IF(C135=3,VLOOKUP(E135,Pivots!$AX$3:$BA$45,4))/2 -> 57 | G135: 1.75 | H135: =VLOOKUP(A135,Players!$A$2:$B$92,2,FALSE) -> Joe Angseesing | I135: =VLOOKUP(B135,Players!A$2:$B$92,2,FALSE) -> Keith Stanley
A136: GW | B136: RB | C136: 1 | D136: 2 | E136: =E135 -> 15 | F136: =IF(C136=1,VLOOKUP(E136,Pivots!$AX$3:$BA$45,2))/2+IF(C136=2,VLOOKUP(E136,Pivots!$AX$3:$BA$45,3))/2+IF(C136=3,VLOOKUP(E136,Pivots!$AX$3:$BA$45,4))/2 -> 57 | G136: -12.25 | H136: =VLOOKUP(A136,Players!$A$2:$B$92,2,FALSE) -> Gary Watson | I136: =VLOOKUP(B136,Players!A$2:$B$92,2,FALSE) -> Richard Butland
A137: JAT | B137: CRO | C137: 1 | D137: -10 | E137: 15 | F137: =IF(C137=1,VLOOKUP(E137,Pivots!$AX$3:$BA$45,2))/2+IF(C137=2,VLOOKUP(E137,Pivots!$AX$3:$BA$45,3))/2+IF(C137=3,VLOOKUP(E137,Pivots!$AX$3:$BA$45,4))/2 -> 57 | G137: -24.25 | H137: =VLOOKUP(A137,Players!$A$2:$B$92,2,FALSE) -> John Atthey | I137: =VLOOKUP(B137,Players!A$2:$B$92,2,FALSE) -> Claire Robinson
A138: PSW | B138: PL | C138: 2 | D138: 46 | E138: 15 | F138: =IF(C138=1,VLOOKUP(E138,Pivots!$AX$3:$BA$45,2))/2+IF(C138=2,VLOOKUP(E138,Pivots!$AX$3:$BA$45,3))/2+IF(C138=3,VLOOKUP(E138,Pivots!$AX$3:$BA$45,4))/2 -> 57 | G138: 31.75 | H138: =VLOOKUP(A138,Players!$A$2:$B$92,2,FALSE) -> Peter Swales | I138: =VLOOKUP(B138,Players!A$2:$B$92,2,FALSE) -> Paul Lilley
A139: MR | B139: JC | C139: 2 | D139: 4 | E139: 15 | F139: =IF(C139=1,VLOOKUP(E139,Pivots!$AX$3:$BA$45,2))/2+IF(C139=2,VLOOKUP(E139,Pivots!$AX$3:$BA$45,3))/2+IF(C139=3,VLOOKUP(E139,Pivots!$AX$3:$BA$45,4))/2 -> 57 | G139: -10.25 | H139: =VLOOKUP(A139,Players!$A$2:$B$92,2,FALSE) -> Mark Rogers | I139: =VLOOKUP(B139,Players!A$2:$B$92,2,FALSE) -> John Councer
A140: PPH | B140: JSI | C140: 2 | D140: 5 | E140: 15 | F140: =IF(C140=1,VLOOKUP(E140,Pivots!$AX$3:$BA$45,2))/2+IF(C140=2,VLOOKUP(E140,Pivots!$AX$3:$BA$45,3))/2+IF(C140=3,VLOOKUP(E140,Pivots!$AX$3:$BA$45,4))/2 -> 57 | G140: -9.25 | H140: =VLOOKUP(A140,Players!$A$2:$B$92,2,FALSE) -> Patrick Phair | I140: =VLOOKUP(B140,Players!A$2:$B$92,2,FALSE) -> Jim Simons
A141: RCO | B141: PPe | C141: 2 | D141: 2 | E141: 15 | F141: =IF(C141=1,VLOOKUP(E141,Pivots!$AX$3:$BA$45,2))/2+IF(C141=2,VLOOKUP(E141,Pivots!$AX$3:$BA$45,3))/2+IF(C141=3,VLOOKUP(E141,Pivots!$AX$3:$BA$45,4))/2 -> 57 | G141: -12.25 | H141: =VLOOKUP(A141,Players!$A$2:$B$92,2,FALSE) -> Roy Collard | I141: =VLOOKUP(B141,Players!A$2:$B$92,2,FALSE) -> Pam Pearce
A142: JUS | B142: As | C142: 3 | D142: 11 | E142: 15 | F142: =IF(C142=1,VLOOKUP(E142,Pivots!$AX$3:$BA$45,2))/2+IF(C142=2,VLOOKUP(E142,Pivots!$AX$3:$BA$45,3))/2+IF(C142=3,VLOOKUP(E142,Pivots!$AX$3:$BA$45,4))/2 -> 11 | G142: 8.25 | H142: =VLOOKUP(A142,Players!$A$2:$B$92,2,FALSE) -> Judy Sanis | I142: =VLOOKUP(B142,Players!A$2:$B$92,2,FALSE) -> Allan Sanis
A143: PW | B143: RJ | C143: 3 | D143: 11 | E143: 15 | F143: =IF(C143=1,VLOOKUP(E143,Pivots!$AX$3:$BA$45,2))/2+IF(C143=2,VLOOKUP(E143,Pivots!$AX$3:$BA$45,3))/2+IF(C143=3,VLOOKUP(E143,Pivots!$AX$3:$BA$45,4))/2 -> 11 | G143: 8.25 | H143: =VLOOKUP(A143,Players!$A$2:$B$92,2,FALSE) -> Peter Waggett | I143: =VLOOKUP(B143,Players!A$2:$B$92,2,FALSE) -> Roger Jackson
A144: RS | B144: TL | C144: 3 | D144: 4 | E144: 15 | F144: =IF(C144=1,VLOOKUP(E144,Pivots!$AX$3:$BA$45,2))/2+IF(C144=2,VLOOKUP(E144,Pivots!$AX$3:$BA$45,3))/2+IF(C144=3,VLOOKUP(E144,Pivots!$AX$3:$BA$45,4))/2 -> 11 | G144: 1.25 | H144: =VLOOKUP(A144,Players!$A$2:$B$92,2,FALSE) -> Roger Schofield | I144: =VLOOKUP(B144,Players!A$2:$B$92,2,FALSE) -> Tony Letts
A145: DA | B145: APR | C145: 3 | D145: -15 | E145: 15 | F145: =IF(C145=1,VLOOKUP(E145,Pivots!$AX$3:$BA$45,2))/2+IF(C145=2,VLOOKUP(E145,Pivots!$AX$3:$BA$45,3))/2+IF(C145=3,VLOOKUP(E145,Pivots!$AX$3:$BA$45,4))/2 -> 11 | G145: -17.75 | H145: =VLOOKUP(A145,Players!$A$2:$B$92,2,FALSE) -> David Atthey | I145: =VLOOKUP(B145,Players!A$2:$B$92,2,FALSE) -> Alison Pritchard
A146: PSH | B146: RCM | C146: 1 | D146: 21 | E146: =E134+1 -> 16 | F146: =IF(C146=1,VLOOKUP(E146,Pivots!$AX$3:$BA$45,2))/2+IF(C146=2,VLOOKUP(E146,Pivots!$AX$3:$BA$45,3))/2+IF(C146=3,VLOOKUP(E146,Pivots!$AX$3:$BA$45,4))/2 -> 12 | G146: 18 | H146: =VLOOKUP(A146,Players!$A$2:$B$92,2,FALSE) -> Patrick Shields | I146: =VLOOKUP(B146,Players!A$2:$B$92,2,FALSE) -> Richard Chamberlain
A147: JAT | B147: CRO | C147: 1 | D147: 16 | E147: =E146 -> 16 | F147: =IF(C147=1,VLOOKUP(E147,Pivots!$AX$3:$BA$45,2))/2+IF(C147=2,VLOOKUP(E147,Pivots!$AX$3:$BA$45,3))/2+IF(C147=3,VLOOKUP(E147,Pivots!$AX$3:$BA$45,4))/2 -> 12 | G147: 13 | H147: =VLOOKUP(A147,Players!$A$2:$B$92,2,FALSE) -> John Atthey | I147: =VLOOKUP(B147,Players!A$2:$B$92,2,FALSE) -> Claire Robinson
A148: PD | B148: RPL | C148: 1 | D148: -8 | E148: =E147 -> 16 | F148: =IF(C148=1,VLOOKUP(E148,Pivots!$AX$3:$BA$45,2))/2+IF(C148=2,VLOOKUP(E148,Pivots!$AX$3:$BA$45,3))/2+IF(C148=3,VLOOKUP(E148,Pivots!$AX$3:$BA$45,4))/2 -> 12 | G148: -11 | H148: =VLOOKUP(A148,Players!$A$2:$B$92,2,FALSE) -> Paul Denning | I148: =VLOOKUP(B148,Players!A$2:$B$92,2,FALSE) -> Richard Plackett
A149: GW | B149: RB | C149: 1 | D149: -17 | E149: 16 | F149: =IF(C149=1,VLOOKUP(E149,Pivots!$AX$3:$BA$45,2))/2+IF(C149=2,VLOOKUP(E149,Pivots!$AX$3:$BA$45,3))/2+IF(C149=3,VLOOKUP(E149,Pivots!$AX$3:$BA$45,4))/2 -> 12 | G149: -20 | H149: =VLOOKUP(A149,Players!$A$2:$B$92,2,FALSE) -> Gary Watson | I149: =VLOOKUP(B149,Players!A$2:$B$92,2,FALSE) -> Richard Butland
A150: PPH | B150: JSI | C150: 2 | D150: 41 | E150: 16 | F150: =IF(C150=1,VLOOKUP(E150,Pivots!$AX$3:$BA$45,2))/2+IF(C150=2,VLOOKUP(E150,Pivots!$AX$3:$BA$45,3))/2+IF(C150=3,VLOOKUP(E150,Pivots!$AX$3:$BA$45,4))/2 -> 3 | G150: 40.25 | H150: =VLOOKUP(A150,Players!$A$2:$B$92,2,FALSE) -> Patrick Phair | I150: =VLOOKUP(B150,Players!A$2:$B$92,2,FALSE) -> Jim Simons
A151: RCO | B151: PPE | C151: 2 | D151: 15 | E151: 16 | F151: =IF(C151=1,VLOOKUP(E151,Pivots!$AX$3:$BA$45,2))/2+IF(C151=2,VLOOKUP(E151,Pivots!$AX$3:$BA$45,3))/2+IF(C151=3,VLOOKUP(E151,Pivots!$AX$3:$BA$45,4))/2 -> 3 | G151: 14.25 | H151: =VLOOKUP(A151,Players!$A$2:$B$92,2,FALSE) -> Roy Collard | I151: =VLOOKUP(B151,Players!A$2:$B$92,2,FALSE) -> Pam Pearce
A152: TH | B152: AW | C152: 2 | D152: -27 | E152: 16 | F152: =IF(C152=1,VLOOKUP(E152,Pivots!$AX$3:$BA$45,2))/2+IF(C152=2,VLOOKUP(E152,Pivots!$AX$3:$BA$45,3))/2+IF(C152=3,VLOOKUP(E152,Pivots!$AX$3:$BA$45,4))/2 -> 3 | G152: -27.75 | H152: =VLOOKUP(A152,Players!$A$2:$B$92,2,FALSE) -> Tony Hill | I152: =VLOOKUP(B152,Players!A$2:$B$92,2,FALSE) -> Alan Wearmouth
A153: JAR | B153: MB | C153: 2 | D153: -26 | E153: 16 | F153: =IF(C153=1,VLOOKUP(E153,Pivots!$AX$3:$BA$45,2))/2+IF(C153=2,VLOOKUP(E153,Pivots!$AX$3:$BA$45,3))/2+IF(C153=3,VLOOKUP(E153,Pivots!$AX$3:$BA$45,4))/2 -> 3 | G153: -26.75 | H153: =VLOOKUP(A153,Players!$A$2:$B$92,2,FALSE) -> John Arblaster | I153: =VLOOKUP(B153,Players!A$2:$B$92,2,FALSE) -> Mel Barlow
A154: RS | B154: TL | C154: 3 | D154: 42 | E154: 16 | F154: =IF(C154=1,VLOOKUP(E154,Pivots!$AX$3:$BA$45,2))/2+IF(C154=2,VLOOKUP(E154,Pivots!$AX$3:$BA$45,3))/2+IF(C154=3,VLOOKUP(E154,Pivots!$AX$3:$BA$45,4))/2 -> -33 | G154: 50.25 | H154: =VLOOKUP(A154,Players!$A$2:$B$92,2,FALSE) -> Roger Schofield | I154: =VLOOKUP(B154,Players!A$2:$B$92,2,FALSE) -> Tony Letts
A155: LH | B155: AKA | C155: 3 | D155: -48 | E155: 16 | F155: =IF(C155=1,VLOOKUP(E155,Pivots!$AX$3:$BA$45,2))/2+IF(C155=2,VLOOKUP(E155,Pivots!$AX$3:$BA$45,3))/2+IF(C155=3,VLOOKUP(E155,Pivots!$AX$3:$BA$45,4))/2 -> -33 | G155: -39.75 | H155: =VLOOKUP(A155,Players!$A$2:$B$92,2,FALSE) -> Lesley Harrison | I155: =VLOOKUP(B155,Players!A$2:$B$92,2,FALSE) -> Ashok Kwatra
A156: PW | B156: RJ | C156: 3 | D156: -26 | E156: 16 | F156: =IF(C156=1,VLOOKUP(E156,Pivots!$AX$3:$BA$45,2))/2+IF(C156=2,VLOOKUP(E156,Pivots!$AX$3:$BA$45,3))/2+IF(C156=3,VLOOKUP(E156,Pivots!$AX$3:$BA$45,4))/2 -> -33 | G156: -17.75 | H156: =VLOOKUP(A156,Players!$A$2:$B$92,2,FALSE) -> Peter Waggett | I156: =VLOOKUP(B156,Players!A$2:$B$92,2,FALSE) -> Roger Jackson
A157: TG | B157: RHA | C157: 3 | D157: -1 | E157: 16 | F157: =IF(C157=1,VLOOKUP(E157,Pivots!$AX$3:$BA$45,2))/2+IF(C157=2,VLOOKUP(E157,Pivots!$AX$3:$BA$45,3))/2+IF(C157=3,VLOOKUP(E157,Pivots!$AX$3:$BA$45,4))/2 -> -33 | G157: 7.25 | H157: =VLOOKUP(A157,Players!$A$2:$B$92,2,FALSE) -> Tricia Gilham | I157: =VLOOKUP(B157,Players!A$2:$B$92,2,FALSE) -> Richard Harris
A158: RB | B158: GW | C158: 1 | D158: 31 | E158: 21 | F158: =IF(C158=1,VLOOKUP(E158,Pivots!$AX$3:$BA$45,2))/2+IF(C158=2,VLOOKUP(E158,Pivots!$AX$3:$BA$45,3))/2+IF(C158=3,VLOOKUP(E158,Pivots!$AX$3:$BA$45,4))/2 -> 191 | G158: -16.75 | H158: =VLOOKUP(A158,Players!$A$2:$B$92,2,FALSE) -> Richard Butland | I158: =VLOOKUP(B158,Players!A$2:$B$92,2,FALSE) -> Gary Watson
A159: JAT | B159: CRO | C159: 1 | D159: 104 | E159: =E158 -> 21 | F159: =IF(C159=1,VLOOKUP(E159,Pivots!$AX$3:$BA$45,2))/2+IF(C159=2,VLOOKUP(E159,Pivots!$AX$3:$BA$45,3))/2+IF(C159=3,VLOOKUP(E159,Pivots!$AX$3:$BA$45,4))/2 -> 191 | G159: 56.25 | H159: =VLOOKUP(A159,Players!$A$2:$B$92,2,FALSE) -> John Atthey | I159: =VLOOKUP(B159,Players!A$2:$B$92,2,FALSE) -> Claire Robinson
A160: JAN | B160: RCM | C160: 1 | D160: 32 | E160: =E159 -> 21 | F160: =IF(C160=1,VLOOKUP(E160,Pivots!$AX$3:$BA$45,2))/2+IF(C160=2,VLOOKUP(E160,Pivots!$AX$3:$BA$45,3))/2+IF(C160=3,VLOOKUP(E160,Pivots!$AX$3:$BA$45,4))/2 -> 191 | G160: -15.75 | H160: =VLOOKUP(A160,Players!$A$2:$B$92,2,FALSE) -> Joe Angseesing | I160: =VLOOKUP(B160,Players!A$2:$B$92,2,FALSE) -> Richard Chamberlain
A161: PD | B161: RPL | C161: 1 | D161: 24 | E161: 21 | F161: =IF(C161=1,VLOOKUP(E161,Pivots!$AX$3:$BA$45,2))/2+IF(C161=2,VLOOKUP(E161,Pivots!$AX$3:$BA$45,3))/2+IF(C161=3,VLOOKUP(E161,Pivots!$AX$3:$BA$45,4))/2 -> 191 | G161: -23.75 | H161: =VLOOKUP(A161,Players!$A$2:$B$92,2,FALSE) -> Paul Denning | I161: =VLOOKUP(B161,Players!A$2:$B$92,2,FALSE) -> Richard Plackett
A162: RS | B162: TL | C162: 2 | D162: 14 | E162: 21 | F162: =IF(C162=1,VLOOKUP(E162,Pivots!$AX$3:$BA$45,2))/2+IF(C162=2,VLOOKUP(E162,Pivots!$AX$3:$BA$45,3))/2+IF(C162=3,VLOOKUP(E162,Pivots!$AX$3:$BA$45,4))/2 -> 67 | G162: -2.75 | H162: =VLOOKUP(A162,Players!$A$2:$B$92,2,FALSE) -> Roger Schofield | I162: =VLOOKUP(B162,Players!A$2:$B$92,2,FALSE) -> Tony Letts
A163: JC | B163: MR | C163: 2 | D163: 21 | E163: 21 | F163: =IF(C163=1,VLOOKUP(E163,Pivots!$AX$3:$BA$45,2))/2+IF(C163=2,VLOOKUP(E163,Pivots!$AX$3:$BA$45,3))/2+IF(C163=3,VLOOKUP(E163,Pivots!$AX$3:$BA$45,4))/2 -> 67 | G163: 4.25 | H163: =VLOOKUP(A163,Players!$A$2:$B$92,2,FALSE) -> John Councer | I163: =VLOOKUP(B163,Players!A$2:$B$92,2,FALSE) -> Mark Rogers
A164: RCO | B164: PPE | C164: 2 | D164: 27 | E164: 21 | F164: =IF(C164=1,VLOOKUP(E164,Pivots!$AX$3:$BA$45,2))/2+IF(C164=2,VLOOKUP(E164,Pivots!$AX$3:$BA$45,3))/2+IF(C164=3,VLOOKUP(E164,Pivots!$AX$3:$BA$45,4))/2 -> 67 | G164: 10.25 | H164: =VLOOKUP(A164,Players!$A$2:$B$92,2,FALSE) -> Roy Collard | I164: =VLOOKUP(B164,Players!A$2:$B$92,2,FALSE) -> Pam Pearce
A165: PSW | B165: PL | C165: 2 | D165: 5 | E165: 21 | F165: =IF(C165=1,VLOOKUP(E165,Pivots!$AX$3:$BA$45,2))/2+IF(C165=2,VLOOKUP(E165,Pivots!$AX$3:$BA$45,3))/2+IF(C165=3,VLOOKUP(E165,Pivots!$AX$3:$BA$45,4))/2 -> 67 | G165: -11.75 | H165: =VLOOKUP(A165,Players!$A$2:$B$92,2,FALSE) -> Peter Swales | I165: =VLOOKUP(B165,Players!A$2:$B$92,2,FALSE) -> Paul Lilley
A166: RJ | B166: PW | C166: 3 | D166: 50 | E166: 21 | F166: =IF(C166=1,VLOOKUP(E166,Pivots!$AX$3:$BA$45,2))/2+IF(C166=2,VLOOKUP(E166,Pivots!$AX$3:$BA$45,3))/2+IF(C166=3,VLOOKUP(E166,Pivots!$AX$3:$BA$45,4))/2 -> 64 | G166: 34 | H166: =VLOOKUP(A166,Players!$A$2:$B$92,2,FALSE) -> Roger Jackson | I166: =VLOOKUP(B166,Players!A$2:$B$92,2,FALSE) -> Peter Waggett
A167: MB | B167: JAR | C167: 3 | D167: 23 | E167: 21 | F167: =IF(C167=1,VLOOKUP(E167,Pivots!$AX$3:$BA$45,2))/2+IF(C167=2,VLOOKUP(E167,Pivots!$AX$3:$BA$45,3))/2+IF(C167=3,VLOOKUP(E167,Pivots!$AX$3:$BA$45,4))/2 -> 64 | G167: 7 | H167: =VLOOKUP(A167,Players!$A$2:$B$92,2,FALSE) -> Mel Barlow | I167: =VLOOKUP(B167,Players!A$2:$B$92,2,FALSE) -> John Arblaster
A168: WA | B168: MW | C168: 3 | D168: 16 | E168: 21 | F168: =IF(C168=1,VLOOKUP(E168,Pivots!$AX$3:$BA$45,2))/2+IF(C168=2,VLOOKUP(E168,Pivots!$AX$3:$BA$45,3))/2+IF(C168=3,VLOOKUP(E168,Pivots!$AX$3:$BA$45,4))/2 -> 64 | G168: 0 | H168: =VLOOKUP(A168,Players!$A$2:$B$92,2,FALSE) -> Wendy Angseesing | I168: =VLOOKUP(B168,Players!A$2:$B$92,2,FALSE) -> Mike Wignall
A169: JSI | B169: VC | C169: 3 | D169: -25 | E169: 21 | F169: =IF(C169=1,VLOOKUP(E169,Pivots!$AX$3:$BA$45,2))/2+IF(C169=2,VLOOKUP(E169,Pivots!$AX$3:$BA$45,3))/2+IF(C169=3,VLOOKUP(E169,Pivots!$AX$3:$BA$45,4))/2 -> 64 | G169: -41 | H169: =VLOOKUP(A169,Players!$A$2:$B$92,2,FALSE) -> Jim Simons | I169: =VLOOKUP(B169,Players!A$2:$B$92,2,FALSE) -> Val Constable
A170: PSH | B170: RCM | C170: 1 | D170: 25 | E170: 22 | F170: =IF(C170=1,VLOOKUP(E170,Pivots!$AX$3:$BA$45,2))/2+IF(C170=2,VLOOKUP(E170,Pivots!$AX$3:$BA$45,3))/2+IF(C170=3,VLOOKUP(E170,Pivots!$AX$3:$BA$45,4))/2 -> 1 | G170: 24.75 | H170: =VLOOKUP(A170,Players!$A$2:$B$92,2,FALSE) -> Patrick Shields | I170: =VLOOKUP(B170,Players!A$2:$B$92,2,FALSE) -> Richard Chamberlain
A171: RB | B171: KST | C171: 1 | D171: 22 | E171: =E170 -> 22 | F171: =IF(C171=1,VLOOKUP(E171,Pivots!$AX$3:$BA$45,2))/2+IF(C171=2,VLOOKUP(E171,Pivots!$AX$3:$BA$45,3))/2+IF(C171=3,VLOOKUP(E171,Pivots!$AX$3:$BA$45,4))/2 -> 1 | G171: 21.75 | H171: =VLOOKUP(A171,Players!$A$2:$B$92,2,FALSE) -> Richard Butland | I171: =VLOOKUP(B171,Players!A$2:$B$92,2,FALSE) -> Keith Stanley
A172: JAN | B172: WA | C172: 1 | D172: -39 | E172: =E171 -> 22 | F172: =IF(C172=1,VLOOKUP(E172,Pivots!$AX$3:$BA$45,2))/2+IF(C172=2,VLOOKUP(E172,Pivots!$AX$3:$BA$45,3))/2+IF(C172=3,VLOOKUP(E172,Pivots!$AX$3:$BA$45,4))/2 -> 1 | G172: -39.25 | H172: =VLOOKUP(A172,Players!$A$2:$B$92,2,FALSE) -> Joe Angseesing | I172: =VLOOKUP(B172,Players!A$2:$B$92,2,FALSE) -> Wendy Angseesing
A173: PD | B173: RPL | C173: 1 | D173: -7 | E173: 22 | F173: =IF(C173=1,VLOOKUP(E173,Pivots!$AX$3:$BA$45,2))/2+IF(C173=2,VLOOKUP(E173,Pivots!$AX$3:$BA$45,3))/2+IF(C173=3,VLOOKUP(E173,Pivots!$AX$3:$BA$45,4))/2 -> 1 | G173: -7.25 | H173: =VLOOKUP(A173,Players!$A$2:$B$92,2,FALSE) -> Paul Denning | I173: =VLOOKUP(B173,Players!A$2:$B$92,2,FALSE) -> Richard Plackett
A174: RS | B174: TL | C174: 2 | D174: 28 | E174: 22 | F174: =IF(C174=1,VLOOKUP(E174,Pivots!$AX$3:$BA$45,2))/2+IF(C174=2,VLOOKUP(E174,Pivots!$AX$3:$BA$45,3))/2+IF(C174=3,VLOOKUP(E174,Pivots!$AX$3:$BA$45,4))/2 -> 88 | G174: 6 | H174: =VLOOKUP(A174,Players!$A$2:$B$92,2,FALSE) -> Roger Schofield | I174: =VLOOKUP(B174,Players!A$2:$B$92,2,FALSE) -> Tony Letts
A175: RCO | B175: PPE | C175: 2 | D175: 14 | E175: 22 | F175: =IF(C175=1,VLOOKUP(E175,Pivots!$AX$3:$BA$45,2))/2+IF(C175=2,VLOOKUP(E175,Pivots!$AX$3:$BA$45,3))/2+IF(C175=3,VLOOKUP(E175,Pivots!$AX$3:$BA$45,4))/2 -> 88 | G175: -8 | H175: =VLOOKUP(A175,Players!$A$2:$B$92,2,FALSE) -> Roy Collard | I175: =VLOOKUP(B175,Players!A$2:$B$92,2,FALSE) -> Pam Pearce
A176: MB | B176: JAR | C176: 2 | D176: -10 | E176: 22 | F176: =IF(C176=1,VLOOKUP(E176,Pivots!$AX$3:$BA$45,2))/2+IF(C176=2,VLOOKUP(E176,Pivots!$AX$3:$BA$45,3))/2+IF(C176=3,VLOOKUP(E176,Pivots!$AX$3:$BA$45,4))/2 -> 88 | G176: -32 | H176: =VLOOKUP(A176,Players!$A$2:$B$92,2,FALSE) -> Mel Barlow | I176: =VLOOKUP(B176,Players!A$2:$B$92,2,FALSE) -> John Arblaster
A177: PPH | B177: MW | C177: 2 | D177: 56 | E177: 22 | F177: =IF(C177=1,VLOOKUP(E177,Pivots!$AX$3:$BA$45,2))/2+IF(C177=2,VLOOKUP(E177,Pivots!$AX$3:$BA$45,3))/2+IF(C177=3,VLOOKUP(E177,Pivots!$AX$3:$BA$45,4))/2 -> 88 | G177: 34 | H177: =VLOOKUP(A177,Players!$A$2:$B$92,2,FALSE) -> Patrick Phair | I177: =VLOOKUP(B177,Players!A$2:$B$92,2,FALSE) -> Mike Wignall
A178: JSI | B178: VC | C178: 3 | D178: 41 | E178: 22 | F178: =IF(C178=1,VLOOKUP(E178,Pivots!$AX$3:$BA$45,2))/2+IF(C178=2,VLOOKUP(E178,Pivots!$AX$3:$BA$45,3))/2+IF(C178=3,VLOOKUP(E178,Pivots!$AX$3:$BA$45,4))/2 -> 98 | G178: 16.5 | H178: =VLOOKUP(A178,Players!$A$2:$B$92,2,FALSE) -> Jim Simons | I178: =VLOOKUP(B178,Players!A$2:$B$92,2,FALSE) -> Val Constable
A179: AS | B179: JSI | C179: 3 | D179: -12 | E179: 22 | F179: =IF(C179=1,VLOOKUP(E179,Pivots!$AX$3:$BA$45,2))/2+IF(C179=2,VLOOKUP(E179,Pivots!$AX$3:$BA$45,3))/2+IF(C179=3,VLOOKUP(E179,Pivots!$AX$3:$BA$45,4))/2 -> 98 | G179: -36.5 | H179: =VLOOKUP(A179,Players!$A$2:$B$92,2,FALSE) -> Allan Sanis | I179: =VLOOKUP(B179,Players!A$2:$B$92,2,FALSE) -> Jim Simons
A180: RHA | B180: BR | C180: 3 | D180: 51 | E180: 22 | F180: =IF(C180=1,VLOOKUP(E180,Pivots!$AX$3:$BA$45,2))/2+IF(C180=2,VLOOKUP(E180,Pivots!$AX$3:$BA$45,3))/2+IF(C180=3,VLOOKUP(E180,Pivots!$AX$3:$BA$45,4))/2 -> 98 | G180: 26.5 | H180: =VLOOKUP(A180,Players!$A$2:$B$92,2,FALSE) -> Richard Harris | I180: =VLOOKUP(B180,Players!A$2:$B$92,2,FALSE) -> Ben Ritacca
A181: PW | B181: RJ | C181: 3 | D181: 18 | E181: 22 | F181: =IF(C181=1,VLOOKUP(E181,Pivots!$AX$3:$BA$45,2))/2+IF(C181=2,VLOOKUP(E181,Pivots!$AX$3:$BA$45,3))/2+IF(C181=3,VLOOKUP(E181,Pivots!$AX$3:$BA$45,4))/2 -> 98 | G181: -6.5 | H181: =VLOOKUP(A181,Players!$A$2:$B$92,2,FALSE) -> Peter Waggett | I181: =VLOOKUP(B181,Players!A$2:$B$92,2,FALSE) -> Roger Jackson
A182: KST | B182: JAN | C182: 1 | D182: 37 | E182: =E170+1 -> 23 | F182: =IF(C182=1,VLOOKUP(E182,Pivots!$AX$3:$BA$45,2))/2+IF(C182=2,VLOOKUP(E182,Pivots!$AX$3:$BA$45,3))/2+IF(C182=3,VLOOKUP(E182,Pivots!$AX$3:$BA$45,4))/2 -> 46 | G182: 25.5 | H182: =VLOOKUP(A182,Players!$A$2:$B$92,2,FALSE) -> Keith Stanley | I182: =VLOOKUP(B182,Players!A$2:$B$92,2,FALSE) -> Joe Angseesing
A183: RB | B183: AKM | C183: 1 | D183: -10 | E183: =E182 -> 23 | F183: =IF(C183=1,VLOOKUP(E183,Pivots!$AX$3:$BA$45,2))/2+IF(C183=2,VLOOKUP(E183,Pivots!$AX$3:$BA$45,3))/2+IF(C183=3,VLOOKUP(E183,Pivots!$AX$3:$BA$45,4))/2 -> 46 | G183: -21.5 | H183: =VLOOKUP(A183,Players!$A$2:$B$92,2,FALSE) -> Richard Butland | I183: =VLOOKUP(B183,Players!A$2:$B$92,2,FALSE) -> Andrew Kambites
A184: AW | B184: TH | C184: 1 | D184: 2 | E184: =E183 -> 23 | F184: =IF(C184=1,VLOOKUP(E184,Pivots!$AX$3:$BA$45,2))/2+IF(C184=2,VLOOKUP(E184,Pivots!$AX$3:$BA$45,3))/2+IF(C184=3,VLOOKUP(E184,Pivots!$AX$3:$BA$45,4))/2 -> 46 | G184: -9.5 | H184: =VLOOKUP(A184,Players!$A$2:$B$92,2,FALSE) -> Alan Wearmouth | I184: =VLOOKUP(B184,Players!A$2:$B$92,2,FALSE) -> Tony Hill
A185: PD | B185: RPL | C185: 1 | D185: 17 | E185: 23 | F185: =IF(C185=1,VLOOKUP(E185,Pivots!$AX$3:$BA$45,2))/2+IF(C185=2,VLOOKUP(E185,Pivots!$AX$3:$BA$45,3))/2+IF(C185=3,VLOOKUP(E185,Pivots!$AX$3:$BA$45,4))/2 -> 46 | G185: 5.5 | H185: =VLOOKUP(A185,Players!$A$2:$B$92,2,FALSE) -> Paul Denning | I185: =VLOOKUP(B185,Players!A$2:$B$92,2,FALSE) -> Richard Plackett
A186: MR | B186: JC | C186: 2 | D186: 10 | E186: 23 | F186: =IF(C186=1,VLOOKUP(E186,Pivots!$AX$3:$BA$45,2))/2+IF(C186=2,VLOOKUP(E186,Pivots!$AX$3:$BA$45,3))/2+IF(C186=3,VLOOKUP(E186,Pivots!$AX$3:$BA$45,4))/2 -> -65 | G186: 26.25 | H186: =VLOOKUP(A186,Players!$A$2:$B$92,2,FALSE) -> Mark Rogers | I186: =VLOOKUP(B186,Players!A$2:$B$92,2,FALSE) -> John Councer
A187: VC | B187: JSI | C187: 2 | D187: -13 | E187: 23 | F187: =IF(C187=1,VLOOKUP(E187,Pivots!$AX$3:$BA$45,2))/2+IF(C187=2,VLOOKUP(E187,Pivots!$AX$3:$BA$45,3))/2+IF(C187=3,VLOOKUP(E187,Pivots!$AX$3:$BA$45,4))/2 -> -65 | G187: 3.25 | H187: =VLOOKUP(A187,Players!$A$2:$B$92,2,FALSE) -> Val Constable | I187: =VLOOKUP(B187,Players!A$2:$B$92,2,FALSE) -> Jim Simons
A188: RS | B188: TL | C188: 2 | D188: -26 | E188: 23 | F188: =IF(C188=1,VLOOKUP(E188,Pivots!$AX$3:$BA$45,2))/2+IF(C188=2,VLOOKUP(E188,Pivots!$AX$3:$BA$45,3))/2+IF(C188=3,VLOOKUP(E188,Pivots!$AX$3:$BA$45,4))/2 -> -65 | G188: -9.75 | H188: =VLOOKUP(A188,Players!$A$2:$B$92,2,FALSE) -> Roger Schofield | I188: =VLOOKUP(B188,Players!A$2:$B$92,2,FALSE) -> Tony Letts
A189: PSW | B189: PL | C189: 2 | D189: -36 | E189: 23 | F189: =IF(C189=1,VLOOKUP(E189,Pivots!$AX$3:$BA$45,2))/2+IF(C189=2,VLOOKUP(E189,Pivots!$AX$3:$BA$45,3))/2+IF(C189=3,VLOOKUP(E189,Pivots!$AX$3:$BA$45,4))/2 -> -65 | G189: -19.75 | H189: =VLOOKUP(A189,Players!$A$2:$B$92,2,FALSE) -> Peter Swales | I189: =VLOOKUP(B189,Players!A$2:$B$92,2,FALSE) -> Paul Lilley
A190: DA | B190: APR | C190: 3 | D190: 31 | E190: 23 | F190: =IF(C190=1,VLOOKUP(E190,Pivots!$AX$3:$BA$45,2))/2+IF(C190=2,VLOOKUP(E190,Pivots!$AX$3:$BA$45,3))/2+IF(C190=3,VLOOKUP(E190,Pivots!$AX$3:$BA$45,4))/2 -> 88 | G190: 9 | H190: =VLOOKUP(A190,Players!$A$2:$B$92,2,FALSE) -> David Atthey | I190: =VLOOKUP(B190,Players!A$2:$B$92,2,FALSE) -> Alison Pritchard
A191: BR | B191: RHA | C191: 3 | D191: 27 | E191: 23 | F191: =IF(C191=1,VLOOKUP(E191,Pivots!$AX$3:$BA$45,2))/2+IF(C191=2,VLOOKUP(E191,Pivots!$AX$3:$BA$45,3))/2+IF(C191=3,VLOOKUP(E191,Pivots!$AX$3:$BA$45,4))/2 -> 88 | G191: 5 | H191: =VLOOKUP(A191,Players!$A$2:$B$92,2,FALSE) -> Ben Ritacca | I191: =VLOOKUP(B191,Players!A$2:$B$92,2,FALSE) -> Richard Harris
A192: MW | B192: pph | C192: 3 | D192: 25 | E192: 23 | F192: =IF(C192=1,VLOOKUP(E192,Pivots!$AX$3:$BA$45,2))/2+IF(C192=2,VLOOKUP(E192,Pivots!$AX$3:$BA$45,3))/2+IF(C192=3,VLOOKUP(E192,Pivots!$AX$3:$BA$45,4))/2 -> 88 | G192: 3 | H192: =VLOOKUP(A192,Players!$A$2:$B$92,2,FALSE) -> Mike Wignall | I192: =VLOOKUP(B192,Players!A$2:$B$92,2,FALSE) -> Patrick Phair
A193: PW | B193: RJ | C193: 3 | D193: 5 | E193: 23 | F193: =IF(C193=1,VLOOKUP(E193,Pivots!$AX$3:$BA$45,2))/2+IF(C193=2,VLOOKUP(E193,Pivots!$AX$3:$BA$45,3))/2+IF(C193=3,VLOOKUP(E193,Pivots!$AX$3:$BA$45,4))/2 -> 88 | G193: -17 | H193: =VLOOKUP(A193,Players!$A$2:$B$92,2,FALSE) -> Peter Waggett | I193: =VLOOKUP(B193,Players!A$2:$B$92,2,FALSE) -> Roger Jackson
A194: PSH | B194: RCM | C194: 1 | D194: 11 | E194: =E182+1 -> 24 | F194: =IF(C194=1,VLOOKUP(E194,Pivots!$AX$3:$BA$45,2))/2+IF(C194=2,VLOOKUP(E194,Pivots!$AX$3:$BA$45,3))/2+IF(C194=3,VLOOKUP(E194,Pivots!$AX$3:$BA$45,4))/2 -> -3 | G194: =IF(A194="","",D194-F194/4) -> 11.75 | H194: =VLOOKUP(A194,Players!$A$2:$B$92,2,FALSE) -> Patrick Shields | I194: =VLOOKUP(B194,Players!A$2:$B$92,2,FALSE) -> Richard Chamberlain
A195: PD | B195: RPL | C195: 1 | D195: -1 | E195: =E194 -> 24 | F195: =IF(C195=1,VLOOKUP(E195,Pivots!$AX$3:$BA$45,2))/2+IF(C195=2,VLOOKUP(E195,Pivots!$AX$3:$BA$45,3))/2+IF(C195=3,VLOOKUP(E195,Pivots!$AX$3:$BA$45,4))/2 -> -3 | G195: -0.25 | H195: =VLOOKUP(A195,Players!$A$2:$B$92,2,FALSE) -> Paul Denning | I195: =VLOOKUP(B195,Players!A$2:$B$92,2,FALSE) -> Richard Plackett
A196: RB | B196: GW | C196: 1 | D196: 26 | E196: =E195 -> 24 | F196: =IF(C196=1,VLOOKUP(E196,Pivots!$AX$3:$BA$45,2))/2+IF(C196=2,VLOOKUP(E196,Pivots!$AX$3:$BA$45,3))/2+IF(C196=3,VLOOKUP(E196,Pivots!$AX$3:$BA$45,4))/2 -> -3 | G196: 26.75 | H196: =VLOOKUP(A196,Players!$A$2:$B$92,2,FALSE) -> Richard Butland | I196: =VLOOKUP(B196,Players!A$2:$B$92,2,FALSE) -> Gary Watson
A197: AW | B197: TH | C197: 1 | D197: -39 | E197: 24 | F197: =IF(C197=1,VLOOKUP(E197,Pivots!$AX$3:$BA$45,2))/2+IF(C197=2,VLOOKUP(E197,Pivots!$AX$3:$BA$45,3))/2+IF(C197=3,VLOOKUP(E197,Pivots!$AX$3:$BA$45,4))/2 -> -3 | G197: -38.25 | H197: =VLOOKUP(A197,Players!$A$2:$B$92,2,FALSE) -> Alan Wearmouth | I197: =VLOOKUP(B197,Players!A$2:$B$92,2,FALSE) -> Tony Hill
A198: VC | B198: JSi | C198: 2 | D198: -16 | E198: 24 | F198: =IF(C198=1,VLOOKUP(E198,Pivots!$AX$3:$BA$45,2))/2+IF(C198=2,VLOOKUP(E198,Pivots!$AX$3:$BA$45,3))/2+IF(C198=3,VLOOKUP(E198,Pivots!$AX$3:$BA$45,4))/2 -> -32 | G198: -8 | H198: =VLOOKUP(A198,Players!$A$2:$B$92,2,FALSE) -> Val Constable | I198: =VLOOKUP(B198,Players!A$2:$B$92,2,FALSE) -> Jim Simons
A199: PSW | B199: Pl | C199: 2 | D199: 46 | E199: 24 | F199: =IF(C199=1,VLOOKUP(E199,Pivots!$AX$3:$BA$45,2))/2+IF(C199=2,VLOOKUP(E199,Pivots!$AX$3:$BA$45,3))/2+IF(C199=3,VLOOKUP(E199,Pivots!$AX$3:$BA$45,4))/2 -> -32 | G199: 54 | H199: =VLOOKUP(A199,Players!$A$2:$B$92,2,FALSE) -> Peter Swales | I199: =VLOOKUP(B199,Players!A$2:$B$92,2,FALSE) -> Paul Lilley
A200: RCO | B200: MR | C200: 2 | D200: -67 | E200: 24 | F200: =IF(C200=1,VLOOKUP(E200,Pivots!$AX$3:$BA$45,2))/2+IF(C200=2,VLOOKUP(E200,Pivots!$AX$3:$BA$45,3))/2+IF(C200=3,VLOOKUP(E200,Pivots!$AX$3:$BA$45,4))/2 -> -32 | G200: -59 | H200: =VLOOKUP(A200,Players!$A$2:$B$92,2,FALSE) -> Roy Collard | I200: =VLOOKUP(B200,Players!A$2:$B$92,2,FALSE) -> Mark Rogers
... 785 more rows
